{"text_format":"1","workbook":"xlsx","n_sheets":89,"sheets":["INICIO","0001-01 USAQUEN","0002-01 CHAPINERO","0003-01 SANTAFE","0004-01 SAN CRISTOBAL","0005-01 USME","0006-01 TUNJUELITO","0007-01 BOSA","0008-01 KENNEDY","0009-01 FONTIBON","0010-01 ENGATIVA","0011-01 SUBA","0012-01 BARRIOS UNI","0013-01 TEUSAQUILLO","0014-01 MARTIRES","0015-01 A. NARIÑO","0016-01 P. ARANDA","0017-01 CANDELARIA","0018-01 R. URIBE","0019-01 C. BOLIVAR","0020-01 SUMAPAZ","0100-01 CONCEJO","0102-01 PERSONERIA","0104-01 SECRETARÍA GENERAL","0105-01 VEEDURIA","0111-03 SDH","0110-01 SDG","0111-01 SDH","0111-02 SDH","0111-04 SDH","0112-01 SDE","0113-01 SDM","0113-02 SDM","0114-01 SDS","0117-01 SDDE","0118-01 SDHT","0119-01 SDCRD","0120-01 SDP","0121-01 SDM","0125-01 DASCD","0122-01 SDIS","0126-01 SDA","0127-01 DADEP","0131-01 UAECOB","0136-01 SJD","0137-01 SDSCJ","0137-02 SDSCJ","0200-01 IPES","0201-01 FFDS","0203-01 IDIGER","0204-01 IDU","0206-01 FONCEP","0206-02 FONCEP","0208-01 CVP","0211-01 IDRD","0213-01 IDPC","0214-01 IDIPRON","0215-01 FUGA","0216-01 OFB","0218-01 JB","0219-01 IDEP","0220-01 IDPAC","0221-01 IDT","0221-02 IDT","0222-01 IDARTES","0226-01 UAECD","0227-01 UAERMV","0228-01 UAESP","0229-01 IDPYBA","0230-01 UD","0235-01 CONTRALORIA","0240-01 LOTERIA ","0260-01 CANAL CAPITAL","0262-01 TRANSMILENIO","0263-01 ERU","0264-01 AB ESP","0265-01 EAAB","0266-01 EMB","0267-01 C. SALUD","0423-01 SUBRED CENTRO","0424-01 SUBRED OCCIDENTE","0425-01 SUBRED SUR","0426-01 SUBRED NORTE","0501-01 ATENEA","Fondos de Desarrollo Local","Administración Central","Establecimientos Públicos","EICD","ESES"],"not_rendered":{"charts":0,"images":2,"macros":1,"external_links":0,"defined_names":0,"comments":84,"pivot_tables":0},"unopened":[],"bounds":{"document_bytes":16777216,"sheet_cells":100000,"rows_first":2000,"rows_last":500,"rows_between":2000,"halvings":0,"cell_chars":16384,"cell_head_chars":4096},"cells_cut":0,"cells_raw":0,"read":"whole","date_system":"1900"}

{"sheet":"INICIO","index":0,"n_rows":0,"n_cols":0,"rows_kept":0,"cut":false,"hidden":false,"merged":[]}

{"sheet":"0001-01 USAQUEN","index":1,"n_rows":27,"n_cols":16,"rows_kept":27,"cut":false,"hidden":false,"merged":[[5,10,5,11],[5,12,5,13],[5,14,5,15],[1,1,1,4],[3,0,6,0],[3,1,6,1],[3,2,4,4],[3,5,3,9],[3,10,4,15],[4,5,6,5],[4,6,6,6],[4,7,5,9],[5,3,5,4]]}
["PLAN DE AUSTERIDAD EN EL GASTO 2025-2027"]
["Entidad"," "]
["Valores en Pesos Corrientes"]
["CONCEPTO\n(Decreto 062 de 2024)","Posiciones Presupuestales Asociadas\n(Funcionamiento e Inversión)","LÍNEA BASE",null,null,"PLAN DE AUSTERIDAD EN EL GASTO 2025-2027",null,null,null,null,"SEGUIMIENTO RESULTADOS PLAN DE AUSTERIDAD 2025-2027"]
[null,null,null,null,null,"ESTRATEGIAS\n2025-2027","ACCIONES\n2025-2027","META INDICADOR DE AUSTERIDAD"]
[null,null,"AÑO 2023","AÑO 2024",null,null,null,null,null,null,"AÑO 2025",null,"AÑO 2026",null,"AÑO 2027"]
[null,null,"Valor EJECUTADO\na 31/12/2023","Valor EJECUTADO\na 31/12/2024","Resultado\nIndicador Austeridad",null,null,"AÑO 2025","AÑO 2026","AÑO 2027","Valor EJECUTADO\na 31/12/2025","Resultado\nIndicador Austeridad","Valor EJECUTADO\na 31/12/2026","Resultado\nIndicador Austeridad","Valor EJECUTADO\na 31/12/2027","Resultado\nIndicador Austeridad"]
["Servicios de personal"]
["Artículo 6°.- Reducción del gasto en CPS profesionales y de apoyo a la gestión. ","N.A.  \nSe registran totales. Corresponde con lo reportado en SIDEAP y SIVICOF",null,null,{"$f":"1-(D9/C9)","v":{"$error":"#DIV/0!"}},null,null,null,null,null,null,{"$f":"1-(K9/D9)","v":{"$error":"#DIV/0!"}},null,{"$f":"1-(M9/K9)","v":{"$error":"#DIV/0!"}},null,{"$f":"1-(O9/M9)","v":{"$error":"#DIV/0!"}}]
["Artículo 7°.- Horas extras, dominicales y festivos. ",null,null,null,{"$error":"#DIV/0!"},null,null,null,null,null,null,{"$f":"1-(K10/D10)","v":{"$error":"#DIV/0!"}},null,{"$f":"1-(M10/K10)","v":{"$error":"#DIV/0!"}},null,{"$error":"#DIV/0!"}]
["Artículo 8°.- Viáticos y gastos de viaje.",null,null,null,{"$error":"#DIV/0!"},null,null,null,null,null,null,{"$error":"#DIV/0!"},null,{"$error":"#DIV/0!"},null,{"$error":"#DIV/0!"}]
["Artículo 9°.- Compensación por vacaciones.",null,null,null,{"$error":"#DIV/0!"},null,null,null,null,null,null,{"$error":"#DIV/0!"},null,{"$error":"#DIV/0!"},null,{"$error":"#DIV/0!"}]
["Artículo 10°.- Bono navideño.",null,null,null,{"$error":"#DIV/0!"},null,null,null,null,null,null,{"$error":"#DIV/0!"},null,{"$error":"#DIV/0!"},null,{"$error":"#DIV/0!"}]
["Artículo 11 -. Capacitación.",null,null,null,{"$error":"#DIV/0!"},null,null,null,null,null,null,{"$error":"#DIV/0!"},null,{"$error":"#DIV/0!"},null,{"$error":"#DIV/0!"}]
["Artículo 12 -. Bienestar.",null,null,null,{"$error":"#DIV/0!"},null,null,null,null,null,null,{"$error":"#DIV/0!"},null,{"$error":"#DIV/0!"},null,{"$error":"#DIV/0!"}]
["Artículo 13 -. Eventos y conmemoraciones.",null,null,null,{"$error":"#DIV/0!"},null,null,null,null,null,null,{"$error":"#DIV/0!"},null,{"$error":"#DIV/0!"},null,{"$error":"#DIV/0!"}]
["Artículo 14 -. Fondos educativos.",null,null,null,{"$error":"#DIV/0!"},null,null,null,null,null,null,{"$error":"#DIV/0!"},null,{"$error":"#DIV/0!"},null,{"$error":"#DIV/0!"}]
["Servicios Administrativos"]
["Artículo 15. Telefonía.",null,null,null,{"$f":"1-(D19/C19)","v":{"$error":"#DIV/0!"}},null,null,null,null,null,null,{"$error":"#DIV/0!"},null,{"$error":"#DIV/0!"},null,{"$error":"#DIV/0!"}]
["Artículo 16 -. Vehículos oficiales.",null,null,null,{"$error":"#DIV/0!"},null,null,null,null,null,null,{"$error":"#DIV/0!"},null,{"$error":"#DIV/0!"},null,{"$error":"#DIV/0!"}]
["Artículo 17 -. Adquisición de vehículos y maquinaria.",null,null,null,{"$error":"#DIV/0!"},null,null,null,null,null,null,{"$error":"#DIV/0!"},null,{"$error":"#DIV/0!"},null,{"$error":"#DIV/0!"}]
["Artículo 18 -. Fotocopiado, multicopiado e impresión.",null,null,null,{"$error":"#DIV/0!"},null,null,null,null,null,null,{"$error":"#DIV/0!"},null,{"$error":"#DIV/0!"},null,{"$error":"#DIV/0!"}]
["Artículo 19 -. Publicidad distrital.",null,null,null,{"$error":"#DIV/0!"},null,null,null,null,null,null,{"$error":"#DIV/0!"},null,{"$error":"#DIV/0!"},null,{"$error":"#DIV/0!"}]
["Artículo 20 -. Cajas menores.",null,null,null,{"$error":"#DIV/0!"},null,null,null,null,null,null,{"$error":"#DIV/0!"},null,{"$error":"#DIV/0!"},null,{"$error":"#DIV/0!"}]
["Artículo 21 -. Mantenimiento o reparación de bienes inmuebles o muebles.",null,null,null,{"$error":"#DIV/0!"},null,null,null,null,null,null,{"$error":"#DIV/0!"},null,{"$error":"#DIV/0!"},null,{"$error":"#DIV/0!"}]
["Artículo 22 -. Suscripciones.",null,null,null,{"$error":"#DIV/0!"},null,null,null,null,null,null,{"$error":"#DIV/0!"},null,{"$error":"#DIV/0!"},null,{"$error":"#DIV/0!"}]
["Artículo 23 -. Servicios públicos.",null,null,null,{"$error":"#DIV/0!"},null,null,null,null,null,null,{"$error":"#DIV/0!"},null,{"$error":"#DIV/0!"},null,{"$error":"#DIV/0!"}]

{"sheet":"0002-01 CHAPINERO","index":2,"n_rows":27,"n_cols":16,"rows_kept":27,"cut":false,"hidden":false,"merged":[[5,10,5,11],[5,12,5,13],[5,14,5,15],[1,1,1,4],[3,0,6,0],[3,1,6,1],[3,2,4,4],[3,5,3,9],[3,10,4,15],[4,5,6,5],[4,6,6,6],[4,7,5,9],[5,3,5,4]]}
["PLAN DE AUSTERIDAD EN EL GASTO 2025-2027"]
["Entidad"," "]
["Valores en Pesos Corrientes"]
["CONCEPTO\n(Decreto 062 de 2024)","Posiciones Presupuestales Asociadas\n(Funcionamiento e Inversión)","LÍNEA BASE",null,null,"PLAN DE AUSTERIDAD EN EL GASTO 2025-2027",null,null,null,null,"SEGUIMIENTO RESULTADOS PLAN DE AUSTERIDAD 2025-2027"]
[null,null,null,null,null,"ESTRATEGIAS\n2025-2027","ACCIONES\n2025-2027","META INDICADOR DE AUSTERIDAD"]
[null,null,"AÑO 2023","AÑO 2024",null,null,null,null,null,null,"AÑO 2025",null,"AÑO 2026",null,"AÑO 2027"]
[null,null,"Valor EJECUTADO\na 31/12/2023","Valor EJECUTADO\na 31/12/2024","Resultado\nIndicador Austeridad",null,null,"AÑO 2025","AÑO 2026","AÑO 2027","Valor EJECUTADO\na 31/12/2025","Resultado\nIndicador Austeridad","Valor EJECUTADO\na 31/12/2026","Resultado\nIndicador Austeridad","Valor EJECUTADO\na 31/12/2027","Resultado\nIndicador Austeridad"]
["Servicios de personal"]
["Artículo 6°.- Reducción del gasto en CPS profesionales y de apoyo a la gestión. ","N.A.  \nSe registran totales. Corresponde con lo reportado en SIDEAP y SIVICOF",null,null,{"$f":"1-(D9/C9)","v":{"$error":"#DIV/0!"}},null,null,null,null,null,null,{"$f":"1-(K9/D9)","v":{"$error":"#DIV/0!"}},null,{"$f":"1-(M9/K9)","v":{"$error":"#DIV/0!"}},null,{"$f":"1-(O9/M9)","v":{"$error":"#DIV/0!"}}]
["Artículo 7°.- Horas extras, dominicales y festivos. ",null,null,null,{"$error":"#DIV/0!"},null,null,null,null,null,null,{"$f":"1-(K10/D10)","v":{"$error":"#DIV/0!"}},null,{"$f":"1-(M10/K10)","v":{"$error":"#DIV/0!"}},null,{"$error":"#DIV/0!"}]
["Artículo 8°.- Viáticos y gastos de viaje.",null,null,null,{"$error":"#DIV/0!"},null,null,null,null,null,null,{"$error":"#DIV/0!"},null,{"$error":"#DIV/0!"},null,{"$error":"#DIV/0!"}]
["Artículo 9°.- Compensación por vacaciones.",null,null,null,{"$error":"#DIV/0!"},null,null,null,null,null,null,{"$error":"#DIV/0!"},null,{"$error":"#DIV/0!"},null,{"$error":"#DIV/0!"}]
["Artículo 10°.- Bono navideño.",null,null,null,{"$error":"#DIV/0!"},null,null,null,null,null,null,{"$error":"#DIV/0!"},null,{"$error":"#DIV/0!"},null,{"$error":"#DIV/0!"}]
["Artículo 11 -. Capacitación.",null,null,null,{"$error":"#DIV/0!"},null,null,null,null,null,null,{"$error":"#DIV/0!"},null,{"$error":"#DIV/0!"},null,{"$error":"#DIV/0!"}]
["Artículo 12 -. Bienestar.",null,null,null,{"$error":"#DIV/0!"},null,null,null,null,null,null,{"$error":"#DIV/0!"},null,{"$error":"#DIV/0!"},null,{"$error":"#DIV/0!"}]
["Artículo 13 -. Eventos y conmemoraciones.",null,null,null,{"$error":"#DIV/0!"},null,null,null,null,null,null,{"$error":"#DIV/0!"},null,{"$error":"#DIV/0!"},null,{"$error":"#DIV/0!"}]
["Artículo 14 -. Fondos educativos.",null,null,null,{"$error":"#DIV/0!"},null,null,null,null,null,null,{"$error":"#DIV/0!"},null,{"$error":"#DIV/0!"},null,{"$error":"#DIV/0!"}]
["Servicios Administrativos"]
["Artículo 15. Telefonía.",null,null,null,{"$f":"1-(D19/C19)","v":{"$error":"#DIV/0!"}},null,null,null,null,null,null,{"$error":"#DIV/0!"},null,{"$error":"#DIV/0!"},null,{"$error":"#DIV/0!"}]
["Artículo 16 -. Vehículos oficiales.",null,null,null,{"$error":"#DIV/0!"},null,null,null,null,null,null,{"$error":"#DIV/0!"},null,{"$error":"#DIV/0!"},null,{"$error":"#DIV/0!"}]
["Artículo 17 -. Adquisición de vehículos y maquinaria.",null,null,null,{"$error":"#DIV/0!"},null,null,null,null,null,null,{"$error":"#DIV/0!"},null,{"$error":"#DIV/0!"},null,{"$error":"#DIV/0!"}]
["Artículo 18 -. Fotocopiado, multicopiado e impresión.",null,null,null,{"$error":"#DIV/0!"},null,null,null,null,null,null,{"$error":"#DIV/0!"},null,{"$error":"#DIV/0!"},null,{"$error":"#DIV/0!"}]
["Artículo 19 -. Publicidad distrital.",null,null,null,{"$error":"#DIV/0!"},null,null,null,null,null,null,{"$error":"#DIV/0!"},null,{"$error":"#DIV/0!"},null,{"$error":"#DIV/0!"}]
["Artículo 20 -. Cajas menores.",null,null,null,{"$error":"#DIV/0!"},null,null,null,null,null,null,{"$error":"#DIV/0!"},null,{"$error":"#DIV/0!"},null,{"$error":"#DIV/0!"}]
["Artículo 21 -. Mantenimiento o reparación de bienes inmuebles o muebles.",null,null,null,{"$error":"#DIV/0!"},null,null,null,null,null,null,{"$error":"#DIV/0!"},null,{"$error":"#DIV/0!"},null,{"$error":"#DIV/0!"}]
["Artículo 22 -. Suscripciones.",null,null,null,{"$error":"#DIV/0!"},null,null,null,null,null,null,{"$error":"#DIV/0!"},null,{"$error":"#DIV/0!"},null,{"$error":"#DIV/0!"}]
["Artículo 23 -. Servicios públicos.",null,null,null,{"$error":"#DIV/0!"},null,null,null,null,null,null,{"$error":"#DIV/0!"},null,{"$error":"#DIV/0!"},null,{"$error":"#DIV/0!"}]

{"sheet":"0003-01 SANTAFE","index":3,"n_rows":27,"n_cols":16,"rows_kept":27,"cut":false,"hidden":false,"merged":[[5,10,5,11],[5,12,5,13],[5,14,5,15],[1,1,1,4],[3,0,6,0],[3,1,6,1],[3,2,4,4],[3,5,3,9],[3,10,4,15],[4,5,6,5],[4,6,6,6],[4,7,5,9],[5,3,5,4]]}
["PLAN DE AUSTERIDAD EN EL GASTO 2025-2027"]
["Entidad"," "]
["Valores en Pesos Corrientes"]
["CONCEPTO\n(Decreto 062 de 2024)","Posiciones Presupuestales Asociadas\n(Funcionamiento e Inversión)","LÍNEA BASE",null,null,"PLAN DE AUSTERIDAD EN EL GASTO 2025-2027",null,null,null,null,"SEGUIMIENTO RESULTADOS PLAN DE AUSTERIDAD 2025-2027"]
[null,null,null,null,null,"ESTRATEGIAS\n2025-2027","ACCIONES\n2025-2027","META INDICADOR DE AUSTERIDAD"]
[null,null,"AÑO 2023","AÑO 2024",null,null,null,null,null,null,"AÑO 2025",null,"AÑO 2026",null,"AÑO 2027"]
[null,null,"Valor EJECUTADO\na 31/12/2023","Valor EJECUTADO\na 31/12/2024","Resultado\nIndicador Austeridad",null,null,"AÑO 2025","AÑO 2026","AÑO 2027","Valor EJECUTADO\na 31/12/2025","Resultado\nIndicador Austeridad","Valor EJECUTADO\na 31/12/2026","Resultado\nIndicador Austeridad","Valor EJECUTADO\na 31/12/2027","Resultado\nIndicador Austeridad"]
["Servicios de personal"]
["Artículo 6°.- Reducción del gasto en CPS profesionales y de apoyo a la gestión. ","N.A.  \nSe registran totales. Corresponde con lo reportado en SIDEAP y SIVICOF",null,null,{"$f":"1-(D9/C9)","v":{"$error":"#DIV/0!"}},null,null,null,null,null,null,{"$f":"1-(K9/D9)","v":{"$error":"#DIV/0!"}},null,{"$f":"1-(M9/K9)","v":{"$error":"#DIV/0!"}},null,{"$f":"1-(O9/M9)","v":{"$error":"#DIV/0!"}}]
["Artículo 7°.- Horas extras, dominicales y festivos. ",null,null,null,{"$error":"#DIV/0!"},null,null,null,null,null,null,{"$f":"1-(K10/D10)","v":{"$error":"#DIV/0!"}},null,{"$f":"1-(M10/K10)","v":{"$error":"#DIV/0!"}},null,{"$error":"#DIV/0!"}]
["Artículo 8°.- Viáticos y gastos de viaje.",null,null,null,{"$error":"#DIV/0!"},null,null,null,null,null,null,{"$error":"#DIV/0!"},null,{"$error":"#DIV/0!"},null,{"$error":"#DIV/0!"}]
["Artículo 9°.- Compensación por vacaciones.",null,null,null,{"$error":"#DIV/0!"},null,null,null,null,null,null,{"$error":"#DIV/0!"},null,{"$error":"#DIV/0!"},null,{"$error":"#DIV/0!"}]
["Artículo 10°.- Bono navideño.",null,null,null,{"$error":"#DIV/0!"},null,null,null,null,null,null,{"$error":"#DIV/0!"},null,{"$error":"#DIV/0!"},null,{"$error":"#DIV/0!"}]
["Artículo 11 -. Capacitación.",null,null,null,{"$error":"#DIV/0!"},null,null,null,null,null,null,{"$error":"#DIV/0!"},null,{"$error":"#DIV/0!"},null,{"$error":"#DIV/0!"}]
["Artículo 12 -. Bienestar.",null,null,null,{"$error":"#DIV/0!"},null,null,null,null,null,null,{"$error":"#DIV/0!"},null,{"$error":"#DIV/0!"},null,{"$error":"#DIV/0!"}]
["Artículo 13 -. Eventos y conmemoraciones.",null,null,null,{"$error":"#DIV/0!"},null,null,null,null,null,null,{"$error":"#DIV/0!"},null,{"$error":"#DIV/0!"},null,{"$error":"#DIV/0!"}]
["Artículo 14 -. Fondos educativos.",null,null,null,{"$error":"#DIV/0!"},null,null,null,null,null,null,{"$error":"#DIV/0!"},null,{"$error":"#DIV/0!"},null,{"$error":"#DIV/0!"}]
["Servicios Administrativos"]
["Artículo 15. Telefonía.",null,null,null,{"$f":"1-(D19/C19)","v":{"$error":"#DIV/0!"}},null,null,null,null,null,null,{"$error":"#DIV/0!"},null,{"$error":"#DIV/0!"},null,{"$error":"#DIV/0!"}]
["Artículo 16 -. Vehículos oficiales.",null,null,null,{"$error":"#DIV/0!"},null,null,null,null,null,null,{"$error":"#DIV/0!"},null,{"$error":"#DIV/0!"},null,{"$error":"#DIV/0!"}]
["Artículo 17 -. Adquisición de vehículos y maquinaria.",null,null,null,{"$error":"#DIV/0!"},null,null,null,null,null,null,{"$error":"#DIV/0!"},null,{"$error":"#DIV/0!"},null,{"$error":"#DIV/0!"}]
["Artículo 18 -. Fotocopiado, multicopiado e impresión.",null,null,null,{"$error":"#DIV/0!"},null,null,null,null,null,null,{"$error":"#DIV/0!"},null,{"$error":"#DIV/0!"},null,{"$error":"#DIV/0!"}]
["Artículo 19 -. Publicidad distrital.",null,null,null,{"$error":"#DIV/0!"},null,null,null,null,null,null,{"$error":"#DIV/0!"},null,{"$error":"#DIV/0!"},null,{"$error":"#DIV/0!"}]
["Artículo 20 -. Cajas menores.",null,null,null,{"$error":"#DIV/0!"},null,null,null,null,null,null,{"$error":"#DIV/0!"},null,{"$error":"#DIV/0!"},null,{"$error":"#DIV/0!"}]
["Artículo 21 -. Mantenimiento o reparación de bienes inmuebles o muebles.",null,null,null,{"$error":"#DIV/0!"},null,null,null,null,null,null,{"$error":"#DIV/0!"},null,{"$error":"#DIV/0!"},null,{"$error":"#DIV/0!"}]
["Artículo 22 -. Suscripciones.",null,null,null,{"$error":"#DIV/0!"},null,null,null,null,null,null,{"$error":"#DIV/0!"},null,{"$error":"#DIV/0!"},null,{"$error":"#DIV/0!"}]
["Artículo 23 -. Servicios públicos.",null,null,null,{"$error":"#DIV/0!"},null,null,null,null,null,null,{"$error":"#DIV/0!"},null,{"$error":"#DIV/0!"},null,{"$error":"#DIV/0!"}]

{"sheet":"0004-01 SAN CRISTOBAL","index":4,"n_rows":27,"n_cols":16,"rows_kept":27,"cut":false,"hidden":false,"merged":[[5,10,5,11],[5,12,5,13],[5,14,5,15],[1,1,1,4],[3,0,6,0],[3,1,6,1],[3,2,4,4],[3,5,3,9],[3,10,4,15],[4,5,6,5],[4,6,6,6],[4,7,5,9],[5,3,5,4]]}
["PLAN DE AUSTERIDAD EN EL GASTO 2025-2027"]
["Entidad"," "]
["Valores en Pesos Corrientes"]
["CONCEPTO\n(Decreto 062 de 2024)","Posiciones Presupuestales Asociadas\n(Funcionamiento e Inversión)","LÍNEA BASE",null,null,"PLAN DE AUSTERIDAD EN EL GASTO 2025-2027",null,null,null,null,"SEGUIMIENTO RESULTADOS PLAN DE AUSTERIDAD 2025-2027"]
[null,null,null,null,null,"ESTRATEGIAS\n2025-2027","ACCIONES\n2025-2027","META INDICADOR DE AUSTERIDAD"]
[null,null,"AÑO 2023","AÑO 2024",null,null,null,null,null,null,"AÑO 2025",null,"AÑO 2026",null,"AÑO 2027"]
[null,null,"Valor EJECUTADO\na 31/12/2023","Valor EJECUTADO\na 31/12/2024","Resultado\nIndicador Austeridad",null,null,"AÑO 2025","AÑO 2026","AÑO 2027","Valor EJECUTADO\na 31/12/2025","Resultado\nIndicador Austeridad","Valor EJECUTADO\na 31/12/2026","Resultado\nIndicador Austeridad","Valor EJECUTADO\na 31/12/2027","Resultado\nIndicador Austeridad"]
["Servicios de personal"]
["Artículo 6°.- Reducción del gasto en CPS profesionales y de apoyo a la gestión. ","N.A.  \nSe registran totales. Corresponde con lo reportado en SIDEAP y SIVICOF",null,null,{"$f":"1-(D9/C9)","v":{"$error":"#DIV/0!"}},null,null,null,null,null,null,{"$f":"1-(K9/D9)","v":{"$error":"#DIV/0!"}},null,{"$f":"1-(M9/K9)","v":{"$error":"#DIV/0!"}},null,{"$f":"1-(O9/M9)","v":{"$error":"#DIV/0!"}}]
["Artículo 7°.- Horas extras, dominicales y festivos. ",null,null,null,{"$error":"#DIV/0!"},null,null,null,null,null,null,{"$f":"1-(K10/D10)","v":{"$error":"#DIV/0!"}},null,{"$f":"1-(M10/K10)","v":{"$error":"#DIV/0!"}},null,{"$error":"#DIV/0!"}]
["Artículo 8°.- Viáticos y gastos de viaje.",null,null,null,{"$error":"#DIV/0!"},null,null,null,null,null,null,{"$error":"#DIV/0!"},null,{"$error":"#DIV/0!"},null,{"$error":"#DIV/0!"}]
["Artículo 9°.- Compensación por vacaciones.",null,null,null,{"$error":"#DIV/0!"},null,null,null,null,null,null,{"$error":"#DIV/0!"},null,{"$error":"#DIV/0!"},null,{"$error":"#DIV/0!"}]
["Artículo 10°.- Bono navideño.",null,null,null,{"$error":"#DIV/0!"},null,null,null,null,null,null,{"$error":"#DIV/0!"},null,{"$error":"#DIV/0!"},null,{"$error":"#DIV/0!"}]
["Artículo 11 -. Capacitación.",null,null,null,{"$error":"#DIV/0!"},null,null,null,null,null,null,{"$error":"#DIV/0!"},null,{"$error":"#DIV/0!"},null,{"$error":"#DIV/0!"}]
["Artículo 12 -. Bienestar.",null,null,null,{"$error":"#DIV/0!"},null,null,null,null,null,null,{"$error":"#DIV/0!"},null,{"$error":"#DIV/0!"},null,{"$error":"#DIV/0!"}]
["Artículo 13 -. Eventos y conmemoraciones.",null,null,null,{"$error":"#DIV/0!"},null,null,null,null,null,null,{"$error":"#DIV/0!"},null,{"$error":"#DIV/0!"},null,{"$error":"#DIV/0!"}]
["Artículo 14 -. Fondos educativos.",null,null,null,{"$error":"#DIV/0!"},null,null,null,null,null,null,{"$error":"#DIV/0!"},null,{"$error":"#DIV/0!"},null,{"$error":"#DIV/0!"}]
["Servicios Administrativos"]
["Artículo 15. Telefonía.",null,null,null,{"$f":"1-(D19/C19)","v":{"$error":"#DIV/0!"}},null,null,null,null,null,null,{"$error":"#DIV/0!"},null,{"$error":"#DIV/0!"},null,{"$error":"#DIV/0!"}]
["Artículo 16 -. Vehículos oficiales.",null,null,null,{"$error":"#DIV/0!"},null,null,null,null,null,null,{"$error":"#DIV/0!"},null,{"$error":"#DIV/0!"},null,{"$error":"#DIV/0!"}]
["Artículo 17 -. Adquisición de vehículos y maquinaria.",null,null,null,{"$error":"#DIV/0!"},null,null,null,null,null,null,{"$error":"#DIV/0!"},null,{"$error":"#DIV/0!"},null,{"$error":"#DIV/0!"}]
["Artículo 18 -. Fotocopiado, multicopiado e impresión.",null,null,null,{"$error":"#DIV/0!"},null,null,null,null,null,null,{"$error":"#DIV/0!"},null,{"$error":"#DIV/0!"},null,{"$error":"#DIV/0!"}]
["Artículo 19 -. Publicidad distrital.",null,null,null,{"$error":"#DIV/0!"},null,null,null,null,null,null,{"$error":"#DIV/0!"},null,{"$error":"#DIV/0!"},null,{"$error":"#DIV/0!"}]
["Artículo 20 -. Cajas menores.",null,null,null,{"$error":"#DIV/0!"},null,null,null,null,null,null,{"$error":"#DIV/0!"},null,{"$error":"#DIV/0!"},null,{"$error":"#DIV/0!"}]
["Artículo 21 -. Mantenimiento o reparación de bienes inmuebles o muebles.",null,null,null,{"$error":"#DIV/0!"},null,null,null,null,null,null,{"$error":"#DIV/0!"},null,{"$error":"#DIV/0!"},null,{"$error":"#DIV/0!"}]
["Artículo 22 -. Suscripciones.",null,null,null,{"$error":"#DIV/0!"},null,null,null,null,null,null,{"$error":"#DIV/0!"},null,{"$error":"#DIV/0!"},null,{"$error":"#DIV/0!"}]
["Artículo 23 -. Servicios públicos.",null,null,null,{"$error":"#DIV/0!"},null,null,null,null,null,null,{"$error":"#DIV/0!"},null,{"$error":"#DIV/0!"},null,{"$error":"#DIV/0!"}]

{"sheet":"0005-01 USME","index":5,"n_rows":27,"n_cols":16,"rows_kept":27,"cut":false,"hidden":false,"merged":[[5,10,5,11],[5,12,5,13],[5,14,5,15],[1,1,1,4],[3,0,6,0],[3,1,6,1],[3,2,4,4],[3,5,3,9],[3,10,4,15],[4,5,6,5],[4,6,6,6],[4,7,5,9],[5,3,5,4]]}
["PLAN DE AUSTERIDAD EN EL GASTO 2025-2027"]
["Entidad"," "]
["Valores en Pesos Corrientes"]
["CONCEPTO\n(Decreto 062 de 2024)","Posiciones Presupuestales Asociadas\n(Funcionamiento e Inversión)","LÍNEA BASE",null,null,"PLAN DE AUSTERIDAD EN EL GASTO 2025-2027",null,null,null,null,"SEGUIMIENTO RESULTADOS PLAN DE AUSTERIDAD 2025-2027"]
[null,null,null,null,null,"ESTRATEGIAS\n2025-2027","ACCIONES\n2025-2027","META INDICADOR DE AUSTERIDAD"]
[null,null,"AÑO 2023","AÑO 2024",null,null,null,null,null,null,"AÑO 2025",null,"AÑO 2026",null,"AÑO 2027"]
[null,null,"Valor EJECUTADO\na 31/12/2023","Valor EJECUTADO\na 31/12/2024","Resultado\nIndicador Austeridad",null,null,"AÑO 2025","AÑO 2026","AÑO 2027","Valor EJECUTADO\na 31/12/2025","Resultado\nIndicador Austeridad","Valor EJECUTADO\na 31/12/2026","Resultado\nIndicador Austeridad","Valor EJECUTADO\na 31/12/2027","Resultado\nIndicador Austeridad"]
["Servicios de personal"]
["Artículo 6°.- Reducción del gasto en CPS profesionales y de apoyo a la gestión. ","N.A.  \nSe registran totales. Corresponde con lo reportado en SIDEAP y SIVICOF",null,null,{"$f":"1-(D9/C9)","v":{"$error":"#DIV/0!"}},null,null,null,null,null,null,{"$f":"1-(K9/D9)","v":{"$error":"#DIV/0!"}},null,{"$f":"1-(M9/K9)","v":{"$error":"#DIV/0!"}},null,{"$f":"1-(O9/M9)","v":{"$error":"#DIV/0!"}}]
["Artículo 7°.- Horas extras, dominicales y festivos. ",null,null,null,{"$error":"#DIV/0!"},null,null,null,null,null,null,{"$f":"1-(K10/D10)","v":{"$error":"#DIV/0!"}},null,{"$f":"1-(M10/K10)","v":{"$error":"#DIV/0!"}},null,{"$error":"#DIV/0!"}]
["Artículo 8°.- Viáticos y gastos de viaje.",null,null,null,{"$error":"#DIV/0!"},null,null,null,null,null,null,{"$error":"#DIV/0!"},null,{"$error":"#DIV/0!"},null,{"$error":"#DIV/0!"}]
["Artículo 9°.- Compensación por vacaciones.",null,null,null,{"$error":"#DIV/0!"},null,null,null,null,null,null,{"$error":"#DIV/0!"},null,{"$error":"#DIV/0!"},null,{"$error":"#DIV/0!"}]
["Artículo 10°.- Bono navideño.",null,null,null,{"$error":"#DIV/0!"},null,null,null,null,null,null,{"$error":"#DIV/0!"},null,{"$error":"#DIV/0!"},null,{"$error":"#DIV/0!"}]
["Artículo 11 -. Capacitación.",null,null,null,{"$error":"#DIV/0!"},null,null,null,null,null,null,{"$error":"#DIV/0!"},null,{"$error":"#DIV/0!"},null,{"$error":"#DIV/0!"}]
["Artículo 12 -. Bienestar.",null,null,null,{"$error":"#DIV/0!"},null,null,null,null,null,null,{"$error":"#DIV/0!"},null,{"$error":"#DIV/0!"},null,{"$error":"#DIV/0!"}]
["Artículo 13 -. Eventos y conmemoraciones.",null,null,null,{"$error":"#DIV/0!"},null,null,null,null,null,null,{"$error":"#DIV/0!"},null,{"$error":"#DIV/0!"},null,{"$error":"#DIV/0!"}]
["Artículo 14 -. Fondos educativos.",null,null,null,{"$error":"#DIV/0!"},null,null,null,null,null,null,{"$error":"#DIV/0!"},null,{"$error":"#DIV/0!"},null,{"$error":"#DIV/0!"}]
["Servicios Administrativos"]
["Artículo 15. Telefonía.",null,null,null,{"$f":"1-(D19/C19)","v":{"$error":"#DIV/0!"}},null,null,null,null,null,null,{"$error":"#DIV/0!"},null,{"$error":"#DIV/0!"},null,{"$error":"#DIV/0!"}]
["Artículo 16 -. Vehículos oficiales.",null,null,null,{"$error":"#DIV/0!"},null,null,null,null,null,null,{"$error":"#DIV/0!"},null,{"$error":"#DIV/0!"},null,{"$error":"#DIV/0!"}]
["Artículo 17 -. Adquisición de vehículos y maquinaria.",null,null,null,{"$error":"#DIV/0!"},null,null,null,null,null,null,{"$error":"#DIV/0!"},null,{"$error":"#DIV/0!"},null,{"$error":"#DIV/0!"}]
["Artículo 18 -. Fotocopiado, multicopiado e impresión.",null,null,null,{"$error":"#DIV/0!"},null,null,null,null,null,null,{"$error":"#DIV/0!"},null,{"$error":"#DIV/0!"},null,{"$error":"#DIV/0!"}]
["Artículo 19 -. Publicidad distrital.",null,null,null,{"$error":"#DIV/0!"},null,null,null,null,null,null,{"$error":"#DIV/0!"},null,{"$error":"#DIV/0!"},null,{"$error":"#DIV/0!"}]
["Artículo 20 -. Cajas menores.",null,null,null,{"$error":"#DIV/0!"},null,null,null,null,null,null,{"$error":"#DIV/0!"},null,{"$error":"#DIV/0!"},null,{"$error":"#DIV/0!"}]
["Artículo 21 -. Mantenimiento o reparación de bienes inmuebles o muebles.",null,null,null,{"$error":"#DIV/0!"},null,null,null,null,null,null,{"$error":"#DIV/0!"},null,{"$error":"#DIV/0!"},null,{"$error":"#DIV/0!"}]
["Artículo 22 -. Suscripciones.",null,null,null,{"$error":"#DIV/0!"},null,null,null,null,null,null,{"$error":"#DIV/0!"},null,{"$error":"#DIV/0!"},null,{"$error":"#DIV/0!"}]
["Artículo 23 -. Servicios públicos.",null,null,null,{"$error":"#DIV/0!"},null,null,null,null,null,null,{"$error":"#DIV/0!"},null,{"$error":"#DIV/0!"},null,{"$error":"#DIV/0!"}]

{"sheet":"0006-01 TUNJUELITO","index":6,"n_rows":27,"n_cols":16,"rows_kept":27,"cut":false,"hidden":false,"merged":[[5,10,5,11],[5,12,5,13],[5,14,5,15],[1,1,1,4],[3,0,6,0],[3,1,6,1],[3,2,4,4],[3,5,3,9],[3,10,4,15],[4,5,6,5],[4,6,6,6],[4,7,5,9],[5,3,5,4]]}
["PLAN DE AUSTERIDAD EN EL GASTO 2025-2027"]
["Entidad"," "]
["Valores en Pesos Corrientes"]
["CONCEPTO\n(Decreto 062 de 2024)","Posiciones Presupuestales Asociadas\n(Funcionamiento e Inversión)","LÍNEA BASE",null,null,"PLAN DE AUSTERIDAD EN EL GASTO 2025-2027",null,null,null,null,"SEGUIMIENTO RESULTADOS PLAN DE AUSTERIDAD 2025-2027"]
[null,null,null,null,null,"ESTRATEGIAS\n2025-2027","ACCIONES\n2025-2027","META INDICADOR DE AUSTERIDAD"]
[null,null,"AÑO 2023","AÑO 2024",null,null,null,null,null,null,"AÑO 2025",null,"AÑO 2026",null,"AÑO 2027"]
[null,null,"Valor EJECUTADO\na 31/12/2023","Valor EJECUTADO\na 31/12/2024","Resultado\nIndicador Austeridad",null,null,"AÑO 2025","AÑO 2026","AÑO 2027","Valor EJECUTADO\na 31/12/2025","Resultado\nIndicador Austeridad","Valor EJECUTADO\na 31/12/2026","Resultado\nIndicador Austeridad","Valor EJECUTADO\na 31/12/2027","Resultado\nIndicador Austeridad"]
["Servicios de personal"]
["Artículo 6°.- Reducción del gasto en CPS profesionales y de apoyo a la gestión. ","N.A.  \nSe registran totales. Corresponde con lo reportado en SIDEAP y SIVICOF",null,null,{"$f":"1-(D9/C9)","v":{"$error":"#DIV/0!"}},null,null,null,null,null,null,{"$f":"1-(K9/D9)","v":{"$error":"#DIV/0!"}},null,{"$f":"1-(M9/K9)","v":{"$error":"#DIV/0!"}},null,{"$f":"1-(O9/M9)","v":{"$error":"#DIV/0!"}}]
["Artículo 7°.- Horas extras, dominicales y festivos. ",null,null,null,{"$error":"#DIV/0!"},null,null,null,null,null,null,{"$f":"1-(K10/D10)","v":{"$error":"#DIV/0!"}},null,{"$f":"1-(M10/K10)","v":{"$error":"#DIV/0!"}},null,{"$error":"#DIV/0!"}]
["Artículo 8°.- Viáticos y gastos de viaje.",null,null,null,{"$error":"#DIV/0!"},null,null,null,null,null,null,{"$error":"#DIV/0!"},null,{"$error":"#DIV/0!"},null,{"$error":"#DIV/0!"}]
["Artículo 9°.- Compensación por vacaciones.",null,null,null,{"$error":"#DIV/0!"},null,null,null,null,null,null,{"$error":"#DIV/0!"},null,{"$error":"#DIV/0!"},null,{"$error":"#DIV/0!"}]
["Artículo 10°.- Bono navideño.",null,null,null,{"$error":"#DIV/0!"},null,null,null,null,null,null,{"$error":"#DIV/0!"},null,{"$error":"#DIV/0!"},null,{"$error":"#DIV/0!"}]
["Artículo 11 -. Capacitación.",null,null,null,{"$error":"#DIV/0!"},null,null,null,null,null,null,{"$error":"#DIV/0!"},null,{"$error":"#DIV/0!"},null,{"$error":"#DIV/0!"}]
["Artículo 12 -. Bienestar.",null,null,null,{"$error":"#DIV/0!"},null,null,null,null,null,null,{"$error":"#DIV/0!"},null,{"$error":"#DIV/0!"},null,{"$error":"#DIV/0!"}]
["Artículo 13 -. Eventos y conmemoraciones.",null,null,null,{"$error":"#DIV/0!"},null,null,null,null,null,null,{"$error":"#DIV/0!"},null,{"$error":"#DIV/0!"},null,{"$error":"#DIV/0!"}]
["Artículo 14 -. Fondos educativos.",null,null,null,{"$error":"#DIV/0!"},null,null,null,null,null,null,{"$error":"#DIV/0!"},null,{"$error":"#DIV/0!"},null,{"$error":"#DIV/0!"}]
["Servicios Administrativos"]
["Artículo 15. Telefonía.",null,null,null,{"$f":"1-(D19/C19)","v":{"$error":"#DIV/0!"}},null,null,null,null,null,null,{"$error":"#DIV/0!"},null,{"$error":"#DIV/0!"},null,{"$error":"#DIV/0!"}]
["Artículo 16 -. Vehículos oficiales.",null,null,null,{"$error":"#DIV/0!"},null,null,null,null,null,null,{"$error":"#DIV/0!"},null,{"$error":"#DIV/0!"},null,{"$error":"#DIV/0!"}]
["Artículo 17 -. Adquisición de vehículos y maquinaria.",null,null,null,{"$error":"#DIV/0!"},null,null,null,null,null,null,{"$error":"#DIV/0!"},null,{"$error":"#DIV/0!"},null,{"$error":"#DIV/0!"}]
["Artículo 18 -. Fotocopiado, multicopiado e impresión.",null,null,null,{"$error":"#DIV/0!"},null,null,null,null,null,null,{"$error":"#DIV/0!"},null,{"$error":"#DIV/0!"},null,{"$error":"#DIV/0!"}]
["Artículo 19 -. Publicidad distrital.",null,null,null,{"$error":"#DIV/0!"},null,null,null,null,null,null,{"$error":"#DIV/0!"},null,{"$error":"#DIV/0!"},null,{"$error":"#DIV/0!"}]
["Artículo 20 -. Cajas menores.",null,null,null,{"$error":"#DIV/0!"},null,null,null,null,null,null,{"$error":"#DIV/0!"},null,{"$error":"#DIV/0!"},null,{"$error":"#DIV/0!"}]
["Artículo 21 -. Mantenimiento o reparación de bienes inmuebles o muebles.",null,null,null,{"$error":"#DIV/0!"},null,null,null,null,null,null,{"$error":"#DIV/0!"},null,{"$error":"#DIV/0!"},null,{"$error":"#DIV/0!"}]
["Artículo 22 -. Suscripciones.",null,null,null,{"$error":"#DIV/0!"},null,null,null,null,null,null,{"$error":"#DIV/0!"},null,{"$error":"#DIV/0!"},null,{"$error":"#DIV/0!"}]
["Artículo 23 -. Servicios públicos.",null,null,null,{"$error":"#DIV/0!"},null,null,null,null,null,null,{"$error":"#DIV/0!"},null,{"$error":"#DIV/0!"},null,{"$error":"#DIV/0!"}]

{"sheet":"0007-01 BOSA","index":7,"n_rows":27,"n_cols":16,"rows_kept":27,"cut":false,"hidden":false,"merged":[[5,10,5,11],[5,12,5,13],[5,14,5,15],[1,1,1,4],[3,0,6,0],[3,1,6,1],[3,2,4,4],[3,5,3,9],[3,10,4,15],[4,5,6,5],[4,6,6,6],[4,7,5,9],[5,3,5,4]]}
["PLAN DE AUSTERIDAD EN EL GASTO 2025-2027"]
["Entidad"," "]
["Valores en Pesos Corrientes"]
["CONCEPTO\n(Decreto 062 de 2024)","Posiciones Presupuestales Asociadas\n(Funcionamiento e Inversión)","LÍNEA BASE",null,null,"PLAN DE AUSTERIDAD EN EL GASTO 2025-2027",null,null,null,null,"SEGUIMIENTO RESULTADOS PLAN DE AUSTERIDAD 2025-2027"]
[null,null,null,null,null,"ESTRATEGIAS\n2025-2027","ACCIONES\n2025-2027","META INDICADOR DE AUSTERIDAD"]
[null,null,"AÑO 2023","AÑO 2024",null,null,null,null,null,null,"AÑO 2025",null,"AÑO 2026",null,"AÑO 2027"]
[null,null,"Valor EJECUTADO\na 31/12/2023","Valor EJECUTADO\na 31/12/2024","Resultado\nIndicador Austeridad",null,null,"AÑO 2025","AÑO 2026","AÑO 2027","Valor EJECUTADO\na 31/12/2025","Resultado\nIndicador Austeridad","Valor EJECUTADO\na 31/12/2026","Resultado\nIndicador Austeridad","Valor EJECUTADO\na 31/12/2027","Resultado\nIndicador Austeridad"]
["Servicios de personal"]
["Artículo 6°.- Reducción del gasto en CPS profesionales y de apoyo a la gestión. ","N.A.  \nSe registran totales. Corresponde con lo reportado en SIDEAP y SIVICOF",null,null,{"$f":"1-(D9/C9)","v":{"$error":"#DIV/0!"}},null,null,null,null,null,null,{"$f":"1-(K9/D9)","v":{"$error":"#DIV/0!"}},null,{"$f":"1-(M9/K9)","v":{"$error":"#DIV/0!"}},null,{"$f":"1-(O9/M9)","v":{"$error":"#DIV/0!"}}]
["Artículo 7°.- Horas extras, dominicales y festivos. ",null,null,null,{"$error":"#DIV/0!"},null,null,null,null,null,null,{"$f":"1-(K10/D10)","v":{"$error":"#DIV/0!"}},null,{"$f":"1-(M10/K10)","v":{"$error":"#DIV/0!"}},null,{"$error":"#DIV/0!"}]
["Artículo 8°.- Viáticos y gastos de viaje.",null,null,null,{"$error":"#DIV/0!"},null,null,null,null,null,null,{"$error":"#DIV/0!"},null,{"$error":"#DIV/0!"},null,{"$error":"#DIV/0!"}]
["Artículo 9°.- Compensación por vacaciones.",null,null,null,{"$error":"#DIV/0!"},null,null,null,null,null,null,{"$error":"#DIV/0!"},null,{"$error":"#DIV/0!"},null,{"$error":"#DIV/0!"}]
["Artículo 10°.- Bono navideño.",null,null,null,{"$error":"#DIV/0!"},null,null,null,null,null,null,{"$error":"#DIV/0!"},null,{"$error":"#DIV/0!"},null,{"$error":"#DIV/0!"}]
["Artículo 11 -. Capacitación.",null,null,null,{"$error":"#DIV/0!"},null,null,null,null,null,null,{"$error":"#DIV/0!"},null,{"$error":"#DIV/0!"},null,{"$error":"#DIV/0!"}]
["Artículo 12 -. Bienestar.",null,null,null,{"$error":"#DIV/0!"},null,null,null,null,null,null,{"$error":"#DIV/0!"},null,{"$error":"#DIV/0!"},null,{"$error":"#DIV/0!"}]
["Artículo 13 -. Eventos y conmemoraciones.",null,null,null,{"$error":"#DIV/0!"},null,null,null,null,null,null,{"$error":"#DIV/0!"},null,{"$error":"#DIV/0!"},null,{"$error":"#DIV/0!"}]
["Artículo 14 -. Fondos educativos.",null,null,null,{"$error":"#DIV/0!"},null,null,null,null,null,null,{"$error":"#DIV/0!"},null,{"$error":"#DIV/0!"},null,{"$error":"#DIV/0!"}]
["Servicios Administrativos"]
["Artículo 15. Telefonía.",null,null,null,{"$f":"1-(D19/C19)","v":{"$error":"#DIV/0!"}},null,null,null,null,null,null,{"$error":"#DIV/0!"},null,{"$error":"#DIV/0!"},null,{"$error":"#DIV/0!"}]
["Artículo 16 -. Vehículos oficiales.",null,null,null,{"$error":"#DIV/0!"},null,null,null,null,null,null,{"$error":"#DIV/0!"},null,{"$error":"#DIV/0!"},null,{"$error":"#DIV/0!"}]
["Artículo 17 -. Adquisición de vehículos y maquinaria.",null,null,null,{"$error":"#DIV/0!"},null,null,null,null,null,null,{"$error":"#DIV/0!"},null,{"$error":"#DIV/0!"},null,{"$error":"#DIV/0!"}]
["Artículo 18 -. Fotocopiado, multicopiado e impresión.",null,null,null,{"$error":"#DIV/0!"},null,null,null,null,null,null,{"$error":"#DIV/0!"},null,{"$error":"#DIV/0!"},null,{"$error":"#DIV/0!"}]
["Artículo 19 -. Publicidad distrital.",null,null,null,{"$error":"#DIV/0!"},null,null,null,null,null,null,{"$error":"#DIV/0!"},null,{"$error":"#DIV/0!"},null,{"$error":"#DIV/0!"}]
["Artículo 20 -. Cajas menores.",null,null,null,{"$error":"#DIV/0!"},null,null,null,null,null,null,{"$error":"#DIV/0!"},null,{"$error":"#DIV/0!"},null,{"$error":"#DIV/0!"}]
["Artículo 21 -. Mantenimiento o reparación de bienes inmuebles o muebles.",null,null,null,{"$error":"#DIV/0!"},null,null,null,null,null,null,{"$error":"#DIV/0!"},null,{"$error":"#DIV/0!"},null,{"$error":"#DIV/0!"}]
["Artículo 22 -. Suscripciones.",null,null,null,{"$error":"#DIV/0!"},null,null,null,null,null,null,{"$error":"#DIV/0!"},null,{"$error":"#DIV/0!"},null,{"$error":"#DIV/0!"}]
["Artículo 23 -. Servicios públicos.",null,null,null,{"$error":"#DIV/0!"},null,null,null,null,null,null,{"$error":"#DIV/0!"},null,{"$error":"#DIV/0!"},null,{"$error":"#DIV/0!"}]

{"sheet":"0008-01 KENNEDY","index":8,"n_rows":27,"n_cols":16,"rows_kept":27,"cut":false,"hidden":false,"merged":[[5,10,5,11],[5,12,5,13],[5,14,5,15],[1,1,1,4],[3,0,6,0],[3,1,6,1],[3,2,4,4],[3,5,3,9],[3,10,4,15],[4,5,6,5],[4,6,6,6],[4,7,5,9],[5,3,5,4]]}
["PLAN DE AUSTERIDAD EN EL GASTO 2025-2027"]
["Entidad"," "]
["Valores en Pesos Corrientes"]
["CONCEPTO\n(Decreto 062 de 2024)","Posiciones Presupuestales Asociadas\n(Funcionamiento e Inversión)","LÍNEA BASE",null,null,"PLAN DE AUSTERIDAD EN EL GASTO 2025-2027",null,null,null,null,"SEGUIMIENTO RESULTADOS PLAN DE AUSTERIDAD 2025-2027"]
[null,null,null,null,null,"ESTRATEGIAS\n2025-2027","ACCIONES\n2025-2027","META INDICADOR DE AUSTERIDAD"]
[null,null,"AÑO 2023","AÑO 2024",null,null,null,null,null,null,"AÑO 2025",null,"AÑO 2026",null,"AÑO 2027"]
[null,null,"Valor EJECUTADO\na 31/12/2023","Valor EJECUTADO\na 31/12/2024","Resultado\nIndicador Austeridad",null,null,"AÑO 2025","AÑO 2026","AÑO 2027","Valor EJECUTADO\na 31/12/2025","Resultado\nIndicador Austeridad","Valor EJECUTADO\na 31/12/2026","Resultado\nIndicador Austeridad","Valor EJECUTADO\na 31/12/2027","Resultado\nIndicador Austeridad"]
["Servicios de personal"]
["Artículo 6°.- Reducción del gasto en CPS profesionales y de apoyo a la gestión. ","N.A.  \nSe registran totales. Corresponde con lo reportado en SIDEAP y SIVICOF",null,null,{"$f":"1-(D9/C9)","v":{"$error":"#DIV/0!"}},null,null,null,null,null,null,{"$f":"1-(K9/D9)","v":{"$error":"#DIV/0!"}},null,{"$f":"1-(M9/K9)","v":{"$error":"#DIV/0!"}},null,{"$f":"1-(O9/M9)","v":{"$error":"#DIV/0!"}}]
["Artículo 7°.- Horas extras, dominicales y festivos. ",null,null,null,{"$error":"#DIV/0!"},null,null,null,null,null,null,{"$f":"1-(K10/D10)","v":{"$error":"#DIV/0!"}},null,{"$f":"1-(M10/K10)","v":{"$error":"#DIV/0!"}},null,{"$error":"#DIV/0!"}]
["Artículo 8°.- Viáticos y gastos de viaje.",null,null,null,{"$error":"#DIV/0!"},null,null,null,null,null,null,{"$error":"#DIV/0!"},null,{"$error":"#DIV/0!"},null,{"$error":"#DIV/0!"}]
["Artículo 9°.- Compensación por vacaciones.",null,null,null,{"$error":"#DIV/0!"},null,null,null,null,null,null,{"$error":"#DIV/0!"},null,{"$error":"#DIV/0!"},null,{"$error":"#DIV/0!"}]
["Artículo 10°.- Bono navideño.",null,null,null,{"$error":"#DIV/0!"},null,null,null,null,null,null,{"$error":"#DIV/0!"},null,{"$error":"#DIV/0!"},null,{"$error":"#DIV/0!"}]
["Artículo 11 -. Capacitación.",null,null,null,{"$error":"#DIV/0!"},null,null,null,null,null,null,{"$error":"#DIV/0!"},null,{"$error":"#DIV/0!"},null,{"$error":"#DIV/0!"}]
["Artículo 12 -. Bienestar.",null,null,null,{"$error":"#DIV/0!"},null,null,null,null,null,null,{"$error":"#DIV/0!"},null,{"$error":"#DIV/0!"},null,{"$error":"#DIV/0!"}]
["Artículo 13 -. Eventos y conmemoraciones.",null,null,null,{"$error":"#DIV/0!"},null,null,null,null,null,null,{"$error":"#DIV/0!"},null,{"$error":"#DIV/0!"},null,{"$error":"#DIV/0!"}]
["Artículo 14 -. Fondos educativos.",null,null,null,{"$error":"#DIV/0!"},null,null,null,null,null,null,{"$error":"#DIV/0!"},null,{"$error":"#DIV/0!"},null,{"$error":"#DIV/0!"}]
["Servicios Administrativos"]
["Artículo 15. Telefonía.",null,null,null,{"$f":"1-(D19/C19)","v":{"$error":"#DIV/0!"}},null,null,null,null,null,null,{"$error":"#DIV/0!"},null,{"$error":"#DIV/0!"},null,{"$error":"#DIV/0!"}]
["Artículo 16 -. Vehículos oficiales.",null,null,null,{"$error":"#DIV/0!"},null,null,null,null,null,null,{"$error":"#DIV/0!"},null,{"$error":"#DIV/0!"},null,{"$error":"#DIV/0!"}]
["Artículo 17 -. Adquisición de vehículos y maquinaria.",null,null,null,{"$error":"#DIV/0!"},null,null,null,null,null,null,{"$error":"#DIV/0!"},null,{"$error":"#DIV/0!"},null,{"$error":"#DIV/0!"}]
["Artículo 18 -. Fotocopiado, multicopiado e impresión.",null,null,null,{"$error":"#DIV/0!"},null,null,null,null,null,null,{"$error":"#DIV/0!"},null,{"$error":"#DIV/0!"},null,{"$error":"#DIV/0!"}]
["Artículo 19 -. Publicidad distrital.",null,null,null,{"$error":"#DIV/0!"},null,null,null,null,null,null,{"$error":"#DIV/0!"},null,{"$error":"#DIV/0!"},null,{"$error":"#DIV/0!"}]
["Artículo 20 -. Cajas menores.",null,null,null,{"$error":"#DIV/0!"},null,null,null,null,null,null,{"$error":"#DIV/0!"},null,{"$error":"#DIV/0!"},null,{"$error":"#DIV/0!"}]
["Artículo 21 -. Mantenimiento o reparación de bienes inmuebles o muebles.",null,null,null,{"$error":"#DIV/0!"},null,null,null,null,null,null,{"$error":"#DIV/0!"},null,{"$error":"#DIV/0!"},null,{"$error":"#DIV/0!"}]
["Artículo 22 -. Suscripciones.",null,null,null,{"$error":"#DIV/0!"},null,null,null,null,null,null,{"$error":"#DIV/0!"},null,{"$error":"#DIV/0!"},null,{"$error":"#DIV/0!"}]
["Artículo 23 -. Servicios públicos.",null,null,null,{"$error":"#DIV/0!"},null,null,null,null,null,null,{"$error":"#DIV/0!"},null,{"$error":"#DIV/0!"},null,{"$error":"#DIV/0!"}]

{"sheet":"0009-01 FONTIBON","index":9,"n_rows":27,"n_cols":16,"rows_kept":27,"cut":false,"hidden":false,"merged":[[5,10,5,11],[5,12,5,13],[5,14,5,15],[1,1,1,4],[3,0,6,0],[3,1,6,1],[3,2,4,4],[3,5,3,9],[3,10,4,15],[4,5,6,5],[4,6,6,6],[4,7,5,9],[5,3,5,4]]}
["PLAN DE AUSTERIDAD EN EL GASTO 2025-2027"]
["Entidad"," "]
["Valores en Pesos Corrientes"]
["CONCEPTO\n(Decreto 062 de 2024)","Posiciones Presupuestales Asociadas\n(Funcionamiento e Inversión)","LÍNEA BASE",null,null,"PLAN DE AUSTERIDAD EN EL GASTO 2025-2027",null,null,null,null,"SEGUIMIENTO RESULTADOS PLAN DE AUSTERIDAD 2025-2027"]
[null,null,null,null,null,"ESTRATEGIAS\n2025-2027","ACCIONES\n2025-2027","META INDICADOR DE AUSTERIDAD"]
[null,null,"AÑO 2023","AÑO 2024",null,null,null,null,null,null,"AÑO 2025",null,"AÑO 2026",null,"AÑO 2027"]
[null,null,"Valor EJECUTADO\na 31/12/2023","Valor EJECUTADO\na 31/12/2024","Resultado\nIndicador Austeridad",null,null,"AÑO 2025","AÑO 2026","AÑO 2027","Valor EJECUTADO\na 31/12/2025","Resultado\nIndicador Austeridad","Valor EJECUTADO\na 31/12/2026","Resultado\nIndicador Austeridad","Valor EJECUTADO\na 31/12/2027","Resultado\nIndicador Austeridad"]
["Servicios de personal"]
["Artículo 6°.- Reducción del gasto en CPS profesionales y de apoyo a la gestión. ","N.A.  \nSe registran totales. Corresponde con lo reportado en SIDEAP y SIVICOF",null,null,{"$f":"1-(D9/C9)","v":{"$error":"#DIV/0!"}},null,null,null,null,null,null,{"$f":"1-(K9/D9)","v":{"$error":"#DIV/0!"}},null,{"$f":"1-(M9/K9)","v":{"$error":"#DIV/0!"}},null,{"$f":"1-(O9/M9)","v":{"$error":"#DIV/0!"}}]
["Artículo 7°.- Horas extras, dominicales y festivos. ",null,null,null,{"$error":"#DIV/0!"},null,null,null,null,null,null,{"$f":"1-(K10/D10)","v":{"$error":"#DIV/0!"}},null,{"$f":"1-(M10/K10)","v":{"$error":"#DIV/0!"}},null,{"$error":"#DIV/0!"}]
["Artículo 8°.- Viáticos y gastos de viaje.",null,null,null,{"$error":"#DIV/0!"},null,null,null,null,null,null,{"$error":"#DIV/0!"},null,{"$error":"#DIV/0!"},null,{"$error":"#DIV/0!"}]
["Artículo 9°.- Compensación por vacaciones.",null,null,null,{"$error":"#DIV/0!"},null,null,null,null,null,null,{"$error":"#DIV/0!"},null,{"$error":"#DIV/0!"},null,{"$error":"#DIV/0!"}]
["Artículo 10°.- Bono navideño.",null,null,null,{"$error":"#DIV/0!"},null,null,null,null,null,null,{"$error":"#DIV/0!"},null,{"$error":"#DIV/0!"},null,{"$error":"#DIV/0!"}]
["Artículo 11 -. Capacitación.",null,null,null,{"$error":"#DIV/0!"},null,null,null,null,null,null,{"$error":"#DIV/0!"},null,{"$error":"#DIV/0!"},null,{"$error":"#DIV/0!"}]
["Artículo 12 -. Bienestar.",null,null,null,{"$error":"#DIV/0!"},null,null,null,null,null,null,{"$error":"#DIV/0!"},null,{"$error":"#DIV/0!"},null,{"$error":"#DIV/0!"}]
["Artículo 13 -. Eventos y conmemoraciones.",null,null,null,{"$error":"#DIV/0!"},null,null,null,null,null,null,{"$error":"#DIV/0!"},null,{"$error":"#DIV/0!"},null,{"$error":"#DIV/0!"}]
["Artículo 14 -. Fondos educativos.",null,null,null,{"$error":"#DIV/0!"},null,null,null,null,null,null,{"$error":"#DIV/0!"},null,{"$error":"#DIV/0!"},null,{"$error":"#DIV/0!"}]
["Servicios Administrativos"]
["Artículo 15. Telefonía.",null,null,null,{"$f":"1-(D19/C19)","v":{"$error":"#DIV/0!"}},null,null,null,null,null,null,{"$error":"#DIV/0!"},null,{"$error":"#DIV/0!"},null,{"$error":"#DIV/0!"}]
["Artículo 16 -. Vehículos oficiales.",null,null,null,{"$error":"#DIV/0!"},null,null,null,null,null,null,{"$error":"#DIV/0!"},null,{"$error":"#DIV/0!"},null,{"$error":"#DIV/0!"}]
["Artículo 17 -. Adquisición de vehículos y maquinaria.",null,null,null,{"$error":"#DIV/0!"},null,null,null,null,null,null,{"$error":"#DIV/0!"},null,{"$error":"#DIV/0!"},null,{"$error":"#DIV/0!"}]
["Artículo 18 -. Fotocopiado, multicopiado e impresión.",null,null,null,{"$error":"#DIV/0!"},null,null,null,null,null,null,{"$error":"#DIV/0!"},null,{"$error":"#DIV/0!"},null,{"$error":"#DIV/0!"}]
["Artículo 19 -. Publicidad distrital.",null,null,null,{"$error":"#DIV/0!"},null,null,null,null,null,null,{"$error":"#DIV/0!"},null,{"$error":"#DIV/0!"},null,{"$error":"#DIV/0!"}]
["Artículo 20 -. Cajas menores.",null,null,null,{"$error":"#DIV/0!"},null,null,null,null,null,null,{"$error":"#DIV/0!"},null,{"$error":"#DIV/0!"},null,{"$error":"#DIV/0!"}]
["Artículo 21 -. Mantenimiento o reparación de bienes inmuebles o muebles.",null,null,null,{"$error":"#DIV/0!"},null,null,null,null,null,null,{"$error":"#DIV/0!"},null,{"$error":"#DIV/0!"},null,{"$error":"#DIV/0!"}]
["Artículo 22 -. Suscripciones.",null,null,null,{"$error":"#DIV/0!"},null,null,null,null,null,null,{"$error":"#DIV/0!"},null,{"$error":"#DIV/0!"},null,{"$error":"#DIV/0!"}]
["Artículo 23 -. Servicios públicos.",null,null,null,{"$error":"#DIV/0!"},null,null,null,null,null,null,{"$error":"#DIV/0!"},null,{"$error":"#DIV/0!"},null,{"$error":"#DIV/0!"}]

{"sheet":"0010-01 ENGATIVA","index":10,"n_rows":27,"n_cols":16,"rows_kept":27,"cut":false,"hidden":false,"merged":[[5,10,5,11],[5,12,5,13],[5,14,5,15],[1,1,1,4],[3,0,6,0],[3,1,6,1],[3,2,4,4],[3,5,3,9],[3,10,4,15],[4,5,6,5],[4,6,6,6],[4,7,5,9],[5,3,5,4]]}
["PLAN DE AUSTERIDAD EN EL GASTO 2025-2027"]
["Entidad"," "]
["Valores en Pesos Corrientes"]
["CONCEPTO\n(Decreto 062 de 2024)","Posiciones Presupuestales Asociadas\n(Funcionamiento e Inversión)","LÍNEA BASE",null,null,"PLAN DE AUSTERIDAD EN EL GASTO 2025-2027",null,null,null,null,"SEGUIMIENTO RESULTADOS PLAN DE AUSTERIDAD 2025-2027"]
[null,null,null,null,null,"ESTRATEGIAS\n2025-2027","ACCIONES\n2025-2027","META INDICADOR DE AUSTERIDAD"]
[null,null,"AÑO 2023","AÑO 2024",null,null,null,null,null,null,"AÑO 2025",null,"AÑO 2026",null,"AÑO 2027"]
[null,null,"Valor EJECUTADO\na 31/12/2023","Valor EJECUTADO\na 31/12/2024","Resultado\nIndicador Austeridad",null,null,"AÑO 2025","AÑO 2026","AÑO 2027","Valor EJECUTADO\na 31/12/2025","Resultado\nIndicador Austeridad","Valor EJECUTADO\na 31/12/2026","Resultado\nIndicador Austeridad","Valor EJECUTADO\na 31/12/2027","Resultado\nIndicador Austeridad"]
["Servicios de personal"]
["Artículo 6°.- Reducción del gasto en CPS profesionales y de apoyo a la gestión. ","N.A.  \nSe registran totales. Corresponde con lo reportado en SIDEAP y SIVICOF",null,null,{"$f":"1-(D9/C9)","v":{"$error":"#DIV/0!"}},null,null,null,null,null,null,{"$f":"1-(K9/D9)","v":{"$error":"#DIV/0!"}},null,{"$f":"1-(M9/K9)","v":{"$error":"#DIV/0!"}},null,{"$f":"1-(O9/M9)","v":{"$error":"#DIV/0!"}}]
["Artículo 7°.- Horas extras, dominicales y festivos. ",null,null,null,{"$error":"#DIV/0!"},null,null,null,null,null,null,{"$f":"1-(K10/D10)","v":{"$error":"#DIV/0!"}},null,{"$f":"1-(M10/K10)","v":{"$error":"#DIV/0!"}},null,{"$error":"#DIV/0!"}]
["Artículo 8°.- Viáticos y gastos de viaje.",null,null,null,{"$error":"#DIV/0!"},null,null,null,null,null,null,{"$error":"#DIV/0!"},null,{"$error":"#DIV/0!"},null,{"$error":"#DIV/0!"}]
["Artículo 9°.- Compensación por vacaciones.",null,null,null,{"$error":"#DIV/0!"},null,null,null,null,null,null,{"$error":"#DIV/0!"},null,{"$error":"#DIV/0!"},null,{"$error":"#DIV/0!"}]
["Artículo 10°.- Bono navideño.",null,null,null,{"$error":"#DIV/0!"},null,null,null,null,null,null,{"$error":"#DIV/0!"},null,{"$error":"#DIV/0!"},null,{"$error":"#DIV/0!"}]
["Artículo 11 -. Capacitación.",null,null,null,{"$error":"#DIV/0!"},null,null,null,null,null,null,{"$error":"#DIV/0!"},null,{"$error":"#DIV/0!"},null,{"$error":"#DIV/0!"}]
["Artículo 12 -. Bienestar.",null,null,null,{"$error":"#DIV/0!"},null,null,null,null,null,null,{"$error":"#DIV/0!"},null,{"$error":"#DIV/0!"},null,{"$error":"#DIV/0!"}]
["Artículo 13 -. Eventos y conmemoraciones.",null,null,null,{"$error":"#DIV/0!"},null,null,null,null,null,null,{"$error":"#DIV/0!"},null,{"$error":"#DIV/0!"},null,{"$error":"#DIV/0!"}]
["Artículo 14 -. Fondos educativos.",null,null,null,{"$error":"#DIV/0!"},null,null,null,null,null,null,{"$error":"#DIV/0!"},null,{"$error":"#DIV/0!"},null,{"$error":"#DIV/0!"}]
["Servicios Administrativos"]
["Artículo 15. Telefonía.",null,null,null,{"$f":"1-(D19/C19)","v":{"$error":"#DIV/0!"}},null,null,null,null,null,null,{"$error":"#DIV/0!"},null,{"$error":"#DIV/0!"},null,{"$error":"#DIV/0!"}]
["Artículo 16 -. Vehículos oficiales.",null,null,null,{"$error":"#DIV/0!"},null,null,null,null,null,null,{"$error":"#DIV/0!"},null,{"$error":"#DIV/0!"},null,{"$error":"#DIV/0!"}]
["Artículo 17 -. Adquisición de vehículos y maquinaria.",null,null,null,{"$error":"#DIV/0!"},null,null,null,null,null,null,{"$error":"#DIV/0!"},null,{"$error":"#DIV/0!"},null,{"$error":"#DIV/0!"}]
["Artículo 18 -. Fotocopiado, multicopiado e impresión.",null,null,null,{"$error":"#DIV/0!"},null,null,null,null,null,null,{"$error":"#DIV/0!"},null,{"$error":"#DIV/0!"},null,{"$error":"#DIV/0!"}]
["Artículo 19 -. Publicidad distrital.",null,null,null,{"$error":"#DIV/0!"},null,null,null,null,null,null,{"$error":"#DIV/0!"},null,{"$error":"#DIV/0!"},null,{"$error":"#DIV/0!"}]
["Artículo 20 -. Cajas menores.",null,null,null,{"$error":"#DIV/0!"},null,null,null,null,null,null,{"$error":"#DIV/0!"},null,{"$error":"#DIV/0!"},null,{"$error":"#DIV/0!"}]
["Artículo 21 -. Mantenimiento o reparación de bienes inmuebles o muebles.",null,null,null,{"$error":"#DIV/0!"},null,null,null,null,null,null,{"$error":"#DIV/0!"},null,{"$error":"#DIV/0!"},null,{"$error":"#DIV/0!"}]
["Artículo 22 -. Suscripciones.",null,null,null,{"$error":"#DIV/0!"},null,null,null,null,null,null,{"$error":"#DIV/0!"},null,{"$error":"#DIV/0!"},null,{"$error":"#DIV/0!"}]
["Artículo 23 -. Servicios públicos.",null,null,null,{"$error":"#DIV/0!"},null,null,null,null,null,null,{"$error":"#DIV/0!"},null,{"$error":"#DIV/0!"},null,{"$error":"#DIV/0!"}]

{"sheet":"0011-01 SUBA","index":11,"n_rows":27,"n_cols":16,"rows_kept":27,"cut":false,"hidden":false,"merged":[[5,10,5,11],[5,12,5,13],[5,14,5,15],[1,1,1,4],[3,0,6,0],[3,1,6,1],[3,2,4,4],[3,5,3,9],[3,10,4,15],[4,5,6,5],[4,6,6,6],[4,7,5,9],[5,3,5,4]]}
["PLAN DE AUSTERIDAD EN EL GASTO 2025-2027"]
["Entidad"," "]
["Valores en Pesos Corrientes"]
["CONCEPTO\n(Decreto 062 de 2024)","Posiciones Presupuestales Asociadas\n(Funcionamiento e Inversión)","LÍNEA BASE",null,null,"PLAN DE AUSTERIDAD EN EL GASTO 2025-2027",null,null,null,null,"SEGUIMIENTO RESULTADOS PLAN DE AUSTERIDAD 2025-2027"]
[null,null,null,null,null,"ESTRATEGIAS\n2025-2027","ACCIONES\n2025-2027","META INDICADOR DE AUSTERIDAD"]
[null,null,"AÑO 2023","AÑO 2024",null,null,null,null,null,null,"AÑO 2025",null,"AÑO 2026",null,"AÑO 2027"]
[null,null,"Valor EJECUTADO\na 31/12/2023","Valor EJECUTADO\na 31/12/2024","Resultado\nIndicador Austeridad",null,null,"AÑO 2025","AÑO 2026","AÑO 2027","Valor EJECUTADO\na 31/12/2025","Resultado\nIndicador Austeridad","Valor EJECUTADO\na 31/12/2026","Resultado\nIndicador Austeridad","Valor EJECUTADO\na 31/12/2027","Resultado\nIndicador Austeridad"]
["Servicios de personal"]
["Artículo 6°.- Reducción del gasto en CPS profesionales y de apoyo a la gestión. ","N.A.  \nSe registran totales. Corresponde con lo reportado en SIDEAP y SIVICOF",null,null,{"$f":"1-(D9/C9)","v":{"$error":"#DIV/0!"}},null,null,null,null,null,null,{"$f":"1-(K9/D9)","v":{"$error":"#DIV/0!"}},null,{"$f":"1-(M9/K9)","v":{"$error":"#DIV/0!"}},null,{"$f":"1-(O9/M9)","v":{"$error":"#DIV/0!"}}]
["Artículo 7°.- Horas extras, dominicales y festivos. ",null,null,null,{"$error":"#DIV/0!"},null,null,null,null,null,null,{"$f":"1-(K10/D10)","v":{"$error":"#DIV/0!"}},null,{"$f":"1-(M10/K10)","v":{"$error":"#DIV/0!"}},null,{"$error":"#DIV/0!"}]
["Artículo 8°.- Viáticos y gastos de viaje.",null,null,null,{"$error":"#DIV/0!"},null,null,null,null,null,null,{"$error":"#DIV/0!"},null,{"$error":"#DIV/0!"},null,{"$error":"#DIV/0!"}]
["Artículo 9°.- Compensación por vacaciones.",null,null,null,{"$error":"#DIV/0!"},null,null,null,null,null,null,{"$error":"#DIV/0!"},null,{"$error":"#DIV/0!"},null,{"$error":"#DIV/0!"}]
["Artículo 10°.- Bono navideño.",null,null,null,{"$error":"#DIV/0!"},null,null,null,null,null,null,{"$error":"#DIV/0!"},null,{"$error":"#DIV/0!"},null,{"$error":"#DIV/0!"}]
["Artículo 11 -. Capacitación.",null,null,null,{"$error":"#DIV/0!"},null,null,null,null,null,null,{"$error":"#DIV/0!"},null,{"$error":"#DIV/0!"},null,{"$error":"#DIV/0!"}]
["Artículo 12 -. Bienestar.",null,null,null,{"$error":"#DIV/0!"},null,null,null,null,null,null,{"$error":"#DIV/0!"},null,{"$error":"#DIV/0!"},null,{"$error":"#DIV/0!"}]
["Artículo 13 -. Eventos y conmemoraciones.",null,null,null,{"$error":"#DIV/0!"},null,null,null,null,null,null,{"$error":"#DIV/0!"},null,{"$error":"#DIV/0!"},null,{"$error":"#DIV/0!"}]
["Artículo 14 -. Fondos educativos.",null,null,null,{"$error":"#DIV/0!"},null,null,null,null,null,null,{"$error":"#DIV/0!"},null,{"$error":"#DIV/0!"},null,{"$error":"#DIV/0!"}]
["Servicios Administrativos"]
["Artículo 15. Telefonía.",null,null,null,{"$f":"1-(D19/C19)","v":{"$error":"#DIV/0!"}},null,null,null,null,null,null,{"$error":"#DIV/0!"},null,{"$error":"#DIV/0!"},null,{"$error":"#DIV/0!"}]
["Artículo 16 -. Vehículos oficiales.",null,null,null,{"$error":"#DIV/0!"},null,null,null,null,null,null,{"$error":"#DIV/0!"},null,{"$error":"#DIV/0!"},null,{"$error":"#DIV/0!"}]
["Artículo 17 -. Adquisición de vehículos y maquinaria.",null,null,null,{"$error":"#DIV/0!"},null,null,null,null,null,null,{"$error":"#DIV/0!"},null,{"$error":"#DIV/0!"},null,{"$error":"#DIV/0!"}]
["Artículo 18 -. Fotocopiado, multicopiado e impresión.",null,null,null,{"$error":"#DIV/0!"},null,null,null,null,null,null,{"$error":"#DIV/0!"},null,{"$error":"#DIV/0!"},null,{"$error":"#DIV/0!"}]
["Artículo 19 -. Publicidad distrital.",null,null,null,{"$error":"#DIV/0!"},null,null,null,null,null,null,{"$error":"#DIV/0!"},null,{"$error":"#DIV/0!"},null,{"$error":"#DIV/0!"}]
["Artículo 20 -. Cajas menores.",null,null,null,{"$error":"#DIV/0!"},null,null,null,null,null,null,{"$error":"#DIV/0!"},null,{"$error":"#DIV/0!"},null,{"$error":"#DIV/0!"}]
["Artículo 21 -. Mantenimiento o reparación de bienes inmuebles o muebles.",null,null,null,{"$error":"#DIV/0!"},null,null,null,null,null,null,{"$error":"#DIV/0!"},null,{"$error":"#DIV/0!"},null,{"$error":"#DIV/0!"}]
["Artículo 22 -. Suscripciones.",null,null,null,{"$error":"#DIV/0!"},null,null,null,null,null,null,{"$error":"#DIV/0!"},null,{"$error":"#DIV/0!"},null,{"$error":"#DIV/0!"}]
["Artículo 23 -. Servicios públicos.",null,null,null,{"$error":"#DIV/0!"},null,null,null,null,null,null,{"$error":"#DIV/0!"},null,{"$error":"#DIV/0!"},null,{"$error":"#DIV/0!"}]

{"sheet":"0012-01 BARRIOS UNI","index":12,"n_rows":27,"n_cols":16,"rows_kept":27,"cut":false,"hidden":false,"merged":[[5,10,5,11],[5,12,5,13],[5,14,5,15],[1,1,1,4],[3,0,6,0],[3,1,6,1],[3,2,4,4],[3,5,3,9],[3,10,4,15],[4,5,6,5],[4,6,6,6],[4,7,5,9],[5,3,5,4]]}
["PLAN DE AUSTERIDAD EN EL GASTO 2025-2027"]
["Entidad"," "]
["Valores en Pesos Corrientes"]
["CONCEPTO\n(Decreto 062 de 2024)","Posiciones Presupuestales Asociadas\n(Funcionamiento e Inversión)","LÍNEA BASE",null,null,"PLAN DE AUSTERIDAD EN EL GASTO 2025-2027",null,null,null,null,"SEGUIMIENTO RESULTADOS PLAN DE AUSTERIDAD 2025-2027"]
[null,null,null,null,null,"ESTRATEGIAS\n2025-2027","ACCIONES\n2025-2027","META INDICADOR DE AUSTERIDAD"]
[null,null,"AÑO 2023","AÑO 2024",null,null,null,null,null,null,"AÑO 2025",null,"AÑO 2026",null,"AÑO 2027"]
[null,null,"Valor EJECUTADO\na 31/12/2023","Valor EJECUTADO\na 31/12/2024","Resultado\nIndicador Austeridad",null,null,"AÑO 2025","AÑO 2026","AÑO 2027","Valor EJECUTADO\na 31/12/2025","Resultado\nIndicador Austeridad","Valor EJECUTADO\na 31/12/2026","Resultado\nIndicador Austeridad","Valor EJECUTADO\na 31/12/2027","Resultado\nIndicador Austeridad"]
["Servicios de personal"]
["Artículo 6°.- Reducción del gasto en CPS profesionales y de apoyo a la gestión. ","N.A.  \nSe registran totales. Corresponde con lo reportado en SIDEAP y SIVICOF",null,null,{"$f":"1-(D9/C9)","v":{"$error":"#DIV/0!"}},null,null,null,null,null,null,{"$f":"1-(K9/D9)","v":{"$error":"#DIV/0!"}},null,{"$f":"1-(M9/K9)","v":{"$error":"#DIV/0!"}},null,{"$f":"1-(O9/M9)","v":{"$error":"#DIV/0!"}}]
["Artículo 7°.- Horas extras, dominicales y festivos. ",null,null,null,{"$error":"#DIV/0!"},null,null,null,null,null,null,{"$f":"1-(K10/D10)","v":{"$error":"#DIV/0!"}},null,{"$f":"1-(M10/K10)","v":{"$error":"#DIV/0!"}},null,{"$error":"#DIV/0!"}]
["Artículo 8°.- Viáticos y gastos de viaje.",null,null,null,{"$error":"#DIV/0!"},null,null,null,null,null,null,{"$error":"#DIV/0!"},null,{"$error":"#DIV/0!"},null,{"$error":"#DIV/0!"}]
["Artículo 9°.- Compensación por vacaciones.",null,null,null,{"$error":"#DIV/0!"},null,null,null,null,null,null,{"$error":"#DIV/0!"},null,{"$error":"#DIV/0!"},null,{"$error":"#DIV/0!"}]
["Artículo 10°.- Bono navideño.",null,null,null,{"$error":"#DIV/0!"},null,null,null,null,null,null,{"$error":"#DIV/0!"},null,{"$error":"#DIV/0!"},null,{"$error":"#DIV/0!"}]
["Artículo 11 -. Capacitación.",null,null,null,{"$error":"#DIV/0!"},null,null,null,null,null,null,{"$error":"#DIV/0!"},null,{"$error":"#DIV/0!"},null,{"$error":"#DIV/0!"}]
["Artículo 12 -. Bienestar.",null,null,null,{"$error":"#DIV/0!"},null,null,null,null,null,null,{"$error":"#DIV/0!"},null,{"$error":"#DIV/0!"},null,{"$error":"#DIV/0!"}]
["Artículo 13 -. Eventos y conmemoraciones.",null,null,null,{"$error":"#DIV/0!"},null,null,null,null,null,null,{"$error":"#DIV/0!"},null,{"$error":"#DIV/0!"},null,{"$error":"#DIV/0!"}]
["Artículo 14 -. Fondos educativos.",null,null,null,{"$error":"#DIV/0!"},null,null,null,null,null,null,{"$error":"#DIV/0!"},null,{"$error":"#DIV/0!"},null,{"$error":"#DIV/0!"}]
["Servicios Administrativos"]
["Artículo 15. Telefonía.",null,null,null,{"$f":"1-(D19/C19)","v":{"$error":"#DIV/0!"}},null,null,null,null,null,null,{"$error":"#DIV/0!"},null,{"$error":"#DIV/0!"},null,{"$error":"#DIV/0!"}]
["Artículo 16 -. Vehículos oficiales.",null,null,null,{"$error":"#DIV/0!"},null,null,null,null,null,null,{"$error":"#DIV/0!"},null,{"$error":"#DIV/0!"},null,{"$error":"#DIV/0!"}]
["Artículo 17 -. Adquisición de vehículos y maquinaria.",null,null,null,{"$error":"#DIV/0!"},null,null,null,null,null,null,{"$error":"#DIV/0!"},null,{"$error":"#DIV/0!"},null,{"$error":"#DIV/0!"}]
["Artículo 18 -. Fotocopiado, multicopiado e impresión.",null,null,null,{"$error":"#DIV/0!"},null,null,null,null,null,null,{"$error":"#DIV/0!"},null,{"$error":"#DIV/0!"},null,{"$error":"#DIV/0!"}]
["Artículo 19 -. Publicidad distrital.",null,null,null,{"$error":"#DIV/0!"},null,null,null,null,null,null,{"$error":"#DIV/0!"},null,{"$error":"#DIV/0!"},null,{"$error":"#DIV/0!"}]
["Artículo 20 -. Cajas menores.",null,null,null,{"$error":"#DIV/0!"},null,null,null,null,null,null,{"$error":"#DIV/0!"},null,{"$error":"#DIV/0!"},null,{"$error":"#DIV/0!"}]
["Artículo 21 -. Mantenimiento o reparación de bienes inmuebles o muebles.",null,null,null,{"$error":"#DIV/0!"},null,null,null,null,null,null,{"$error":"#DIV/0!"},null,{"$error":"#DIV/0!"},null,{"$error":"#DIV/0!"}]
["Artículo 22 -. Suscripciones.",null,null,null,{"$error":"#DIV/0!"},null,null,null,null,null,null,{"$error":"#DIV/0!"},null,{"$error":"#DIV/0!"},null,{"$error":"#DIV/0!"}]
["Artículo 23 -. Servicios públicos.",null,null,null,{"$error":"#DIV/0!"},null,null,null,null,null,null,{"$error":"#DIV/0!"},null,{"$error":"#DIV/0!"},null,{"$error":"#DIV/0!"}]

{"sheet":"0013-01 TEUSAQUILLO","index":13,"n_rows":27,"n_cols":16,"rows_kept":27,"cut":false,"hidden":false,"merged":[[5,10,5,11],[5,12,5,13],[5,14,5,15],[1,1,1,4],[3,0,6,0],[3,1,6,1],[3,2,4,4],[3,5,3,9],[3,10,4,15],[4,5,6,5],[4,6,6,6],[4,7,5,9],[5,3,5,4]]}
["PLAN DE AUSTERIDAD EN EL GASTO 2025-2027"]
["Entidad"," "]
["Valores en Pesos Corrientes"]
["CONCEPTO\n(Decreto 062 de 2024)","Posiciones Presupuestales Asociadas\n(Funcionamiento e Inversión)","LÍNEA BASE",null,null,"PLAN DE AUSTERIDAD EN EL GASTO 2025-2027",null,null,null,null,"SEGUIMIENTO RESULTADOS PLAN DE AUSTERIDAD 2025-2027"]
[null,null,null,null,null,"ESTRATEGIAS\n2025-2027","ACCIONES\n2025-2027","META INDICADOR DE AUSTERIDAD"]
[null,null,"AÑO 2023","AÑO 2024",null,null,null,null,null,null,"AÑO 2025",null,"AÑO 2026",null,"AÑO 2027"]
[null,null,"Valor EJECUTADO\na 31/12/2023","Valor EJECUTADO\na 31/12/2024","Resultado\nIndicador Austeridad",null,null,"AÑO 2025","AÑO 2026","AÑO 2027","Valor EJECUTADO\na 31/12/2025","Resultado\nIndicador Austeridad","Valor EJECUTADO\na 31/12/2026","Resultado\nIndicador Austeridad","Valor EJECUTADO\na 31/12/2027","Resultado\nIndicador Austeridad"]
["Servicios de personal"]
["Artículo 6°.- Reducción del gasto en CPS profesionales y de apoyo a la gestión. ","N.A.  \nSe registran totales. Corresponde con lo reportado en SIDEAP y SIVICOF",null,null,{"$f":"1-(D9/C9)","v":{"$error":"#DIV/0!"}},null,null,null,null,null,null,{"$f":"1-(K9/D9)","v":{"$error":"#DIV/0!"}},null,{"$f":"1-(M9/K9)","v":{"$error":"#DIV/0!"}},null,{"$f":"1-(O9/M9)","v":{"$error":"#DIV/0!"}}]
["Artículo 7°.- Horas extras, dominicales y festivos. ",null,null,null,{"$error":"#DIV/0!"},null,null,null,null,null,null,{"$f":"1-(K10/D10)","v":{"$error":"#DIV/0!"}},null,{"$f":"1-(M10/K10)","v":{"$error":"#DIV/0!"}},null,{"$error":"#DIV/0!"}]
["Artículo 8°.- Viáticos y gastos de viaje.",null,null,null,{"$error":"#DIV/0!"},null,null,null,null,null,null,{"$error":"#DIV/0!"},null,{"$error":"#DIV/0!"},null,{"$error":"#DIV/0!"}]
["Artículo 9°.- Compensación por vacaciones.",null,null,null,{"$error":"#DIV/0!"},null,null,null,null,null,null,{"$error":"#DIV/0!"},null,{"$error":"#DIV/0!"},null,{"$error":"#DIV/0!"}]
["Artículo 10°.- Bono navideño.",null,null,null,{"$error":"#DIV/0!"},null,null,null,null,null,null,{"$error":"#DIV/0!"},null,{"$error":"#DIV/0!"},null,{"$error":"#DIV/0!"}]
["Artículo 11 -. Capacitación.",null,null,null,{"$error":"#DIV/0!"},null,null,null,null,null,null,{"$error":"#DIV/0!"},null,{"$error":"#DIV/0!"},null,{"$error":"#DIV/0!"}]
["Artículo 12 -. Bienestar.",null,null,null,{"$error":"#DIV/0!"},null,null,null,null,null,null,{"$error":"#DIV/0!"},null,{"$error":"#DIV/0!"},null,{"$error":"#DIV/0!"}]
["Artículo 13 -. Eventos y conmemoraciones.",null,null,null,{"$error":"#DIV/0!"},null,null,null,null,null,null,{"$error":"#DIV/0!"},null,{"$error":"#DIV/0!"},null,{"$error":"#DIV/0!"}]
["Artículo 14 -. Fondos educativos.",null,null,null,{"$error":"#DIV/0!"},null,null,null,null,null,null,{"$error":"#DIV/0!"},null,{"$error":"#DIV/0!"},null,{"$error":"#DIV/0!"}]
["Servicios Administrativos"]
["Artículo 15. Telefonía.",null,null,null,{"$f":"1-(D19/C19)","v":{"$error":"#DIV/0!"}},null,null,null,null,null,null,{"$error":"#DIV/0!"},null,{"$error":"#DIV/0!"},null,{"$error":"#DIV/0!"}]
["Artículo 16 -. Vehículos oficiales.",null,null,null,{"$error":"#DIV/0!"},null,null,null,null,null,null,{"$error":"#DIV/0!"},null,{"$error":"#DIV/0!"},null,{"$error":"#DIV/0!"}]
["Artículo 17 -. Adquisición de vehículos y maquinaria.",null,null,null,{"$error":"#DIV/0!"},null,null,null,null,null,null,{"$error":"#DIV/0!"},null,{"$error":"#DIV/0!"},null,{"$error":"#DIV/0!"}]
["Artículo 18 -. Fotocopiado, multicopiado e impresión.",null,null,null,{"$error":"#DIV/0!"},null,null,null,null,null,null,{"$error":"#DIV/0!"},null,{"$error":"#DIV/0!"},null,{"$error":"#DIV/0!"}]
["Artículo 19 -. Publicidad distrital.",null,null,null,{"$error":"#DIV/0!"},null,null,null,null,null,null,{"$error":"#DIV/0!"},null,{"$error":"#DIV/0!"},null,{"$error":"#DIV/0!"}]
["Artículo 20 -. Cajas menores.",null,null,null,{"$error":"#DIV/0!"},null,null,null,null,null,null,{"$error":"#DIV/0!"},null,{"$error":"#DIV/0!"},null,{"$error":"#DIV/0!"}]
["Artículo 21 -. Mantenimiento o reparación de bienes inmuebles o muebles.",null,null,null,{"$error":"#DIV/0!"},null,null,null,null,null,null,{"$error":"#DIV/0!"},null,{"$error":"#DIV/0!"},null,{"$error":"#DIV/0!"}]
["Artículo 22 -. Suscripciones.",null,null,null,{"$error":"#DIV/0!"},null,null,null,null,null,null,{"$error":"#DIV/0!"},null,{"$error":"#DIV/0!"},null,{"$error":"#DIV/0!"}]
["Artículo 23 -. Servicios públicos.",null,null,null,{"$error":"#DIV/0!"},null,null,null,null,null,null,{"$error":"#DIV/0!"},null,{"$error":"#DIV/0!"},null,{"$error":"#DIV/0!"}]

{"sheet":"0014-01 MARTIRES","index":14,"n_rows":27,"n_cols":16,"rows_kept":27,"cut":false,"hidden":false,"merged":[[5,10,5,11],[5,12,5,13],[5,14,5,15],[1,1,1,4],[3,0,6,0],[3,1,6,1],[3,2,4,4],[3,5,3,9],[3,10,4,15],[4,5,6,5],[4,6,6,6],[4,7,5,9],[5,3,5,4]]}
["PLAN DE AUSTERIDAD EN EL GASTO 2025-2027"]
["Entidad","Alcaldia Local de Los Martires"]
["Valores en Pesos Corrientes"]
["CONCEPTO\n(Decreto 062 de 2024)","Posiciones Presupuestales Asociadas\n(Funcionamiento e Inversión)","LÍNEA BASE",null,null,"PLAN DE AUSTERIDAD EN EL GASTO 2025-2027",null,null,null,null,"SEGUIMIENTO RESULTADOS PLAN DE AUSTERIDAD 2025-2027"]
[null,null,null,null,null,"ESTRATEGIAS\n2025-2027","ACCIONES\n2025-2027","META INDICADOR DE AUSTERIDAD"]
[null,null,"AÑO 2023","AÑO 2024",null,null,null,null,null,null,"AÑO 2025",null,"AÑO 2026",null,"AÑO 2027"]
[null,null,"Valor EJECUTADO\na 31/12/2023","Valor EJECUTADO\na 31/12/2024","Resultado\nIndicador Austeridad",null,null,"AÑO 2025","AÑO 2026","AÑO 2027","Valor EJECUTADO\na 31/12/2025","Resultado\nIndicador Austeridad","Valor EJECUTADO\na 31/12/2026","Resultado\nIndicador Austeridad","Valor EJECUTADO\na 31/12/2027","Resultado\nIndicador Austeridad"]
["Servicios de personal"]
["Artículo 6°.- Reducción del gasto en CPS profesionales y de apoyo a la gestión. ","N.A.  \nSe registran totales. Corresponde con lo reportado en SIDEAP y SIVICOF",null,null,{"$f":"1-(D9/C9)","v":{"$error":"#DIV/0!"}},null,null,null,null,null,null,{"$f":"1-(K9/D9)","v":{"$error":"#DIV/0!"}},null,{"$f":"1-(M9/K9)","v":{"$error":"#DIV/0!"}},null,{"$f":"1-(O9/M9)","v":{"$error":"#DIV/0!"}}]
["Artículo 7°.- Horas extras, dominicales y festivos. ",null,null,null,{"$error":"#DIV/0!"},null,null,null,null,null,null,{"$f":"1-(K10/D10)","v":{"$error":"#DIV/0!"}},null,{"$f":"1-(M10/K10)","v":{"$error":"#DIV/0!"}},null,{"$error":"#DIV/0!"}]
["Artículo 8°.- Viáticos y gastos de viaje.",null,null,null,{"$error":"#DIV/0!"},null,null,null,null,null,null,{"$error":"#DIV/0!"},null,{"$error":"#DIV/0!"},null,{"$error":"#DIV/0!"}]
["Artículo 9°.- Compensación por vacaciones.",null,null,null,{"$error":"#DIV/0!"},null,null,null,null,null,null,{"$error":"#DIV/0!"},null,{"$error":"#DIV/0!"},null,{"$error":"#DIV/0!"}]
["Artículo 10°.- Bono navideño.",null,null,null,{"$error":"#DIV/0!"},null,null,null,null,null,null,{"$error":"#DIV/0!"},null,{"$error":"#DIV/0!"},null,{"$error":"#DIV/0!"}]
["Artículo 11 -. Capacitación.",null,null,null,{"$error":"#DIV/0!"},null,null,null,null,null,null,{"$error":"#DIV/0!"},null,{"$error":"#DIV/0!"},null,{"$error":"#DIV/0!"}]
["Artículo 12 -. Bienestar.",null,null,null,{"$error":"#DIV/0!"},null,null,null,null,null,null,{"$error":"#DIV/0!"},null,{"$error":"#DIV/0!"},null,{"$error":"#DIV/0!"}]
["Artículo 13 -. Eventos y conmemoraciones.",null,null,null,{"$error":"#DIV/0!"},null,null,null,null,null,null,{"$error":"#DIV/0!"},null,{"$error":"#DIV/0!"},null,{"$error":"#DIV/0!"}]
["Artículo 14 -. Fondos educativos.",null,null,null,{"$error":"#DIV/0!"},null,null,null,null,null,null,{"$error":"#DIV/0!"},null,{"$error":"#DIV/0!"},null,{"$error":"#DIV/0!"}]
["Servicios Administrativos"]
["Artículo 15. Telefonía.","2, funcionamiento",29844011,21744010,{"$f":"1-(D19/C19)","v":0.27141127243251584},"Generar una reduccion en la facturacion de las cuentas contrato asociadas al funcionamiento y comunicacion de la ALM. asimismo se indica que la ALM no adquiere ni adquirirá telefonos celulares ni planes para sus funcionarios.","Se plantea un cambio de operador, de ETB a Claro o movistar, que ofrezca una reducción en la facturación mensual para así lograr la reducción planteada en la meta del 1%. Y dar continuidad a la tendencia de ahorro de los últimos tres años en este rubro.",null,null,null,null,1,null,{"$error":"#DIV/0!"},null,{"$error":"#DIV/0!"}]
["Artículo 16 -. Vehículos oficiales.",null,null,null,{"$error":"#DIV/0!"},null,null,null,null,null,null,{"$error":"#DIV/0!"},null,{"$error":"#DIV/0!"},null,{"$error":"#DIV/0!"}]
["Artículo 17 -. Adquisición de vehículos y maquinaria.",null,null,null,{"$error":"#DIV/0!"},null,null,null,null,null,null,{"$error":"#DIV/0!"},null,{"$error":"#DIV/0!"},null,{"$error":"#DIV/0!"}]
["Artículo 18 -. Fotocopiado, multicopiado e impresión.","1, funcionamiento",7282800,0,1,"Generar una reduccion total en el uso de papel impreso y llegar a una aplicacion completa de papel cero en la ALM a traves de cambio de cultura y la concienciacion de todo el personal a traves de campañas activas permanentes y sensibilizaciones","Para este rubro siendo de funcionamiento e involucrándose directamente con el consumo de papel por áreas, se continuarán implementando las políticas de papel cero, se continuarán dando las campañas permanentes, las socializaciones, memorandos y demás comunicados, piezas gráficas y correos masivos que permitan la reducción del consumo del recurso, así como optimizar los procesos para lograr tal fin. Asimismo, se continuará dando una entrega restrictiva a lo mínimo necesario para cada área a fin de generar la reducción en los giros presupuestales del rubro. ",null,null,null,null,{"$error":"#DIV/0!"},null,{"$error":"#DIV/0!"},null,{"$error":"#DIV/0!"}]
["Artículo 19 -. Publicidad distrital.",null,null,null,{"$error":"#DIV/0!"},null,null,null,null,null,null,{"$error":"#DIV/0!"},null,{"$error":"#DIV/0!"},null,{"$error":"#DIV/0!"}]
["Artículo 20 -. Cajas menores.",null,null,null,{"$error":"#DIV/0!"},null,null,null,null,null,null,{"$error":"#DIV/0!"},null,{"$error":"#DIV/0!"},null,{"$error":"#DIV/0!"}]
["Artículo 21 -. Mantenimiento o reparación de bienes inmuebles o muebles.",null,null,null,{"$error":"#DIV/0!"},null,null,null,null,null,null,{"$error":"#DIV/0!"},null,{"$error":"#DIV/0!"},null,{"$error":"#DIV/0!"}]
["Artículo 22 -. Suscripciones.",null,null,null,{"$error":"#DIV/0!"},null,null,null,null,null,null,{"$error":"#DIV/0!"},null,{"$error":"#DIV/0!"},null,{"$error":"#DIV/0!"}]
["Artículo 23 -. Servicios públicos.","3, funcionamiento",16256110,20166720,-0.24056247158760624,"implementar una reduccion progresiva en el consumo de los recursos naturales priorizando el mantenimiento preventivo de las instalaciones hidraulicas, asi como permeando en un cambio de conciencia a traves de campañas y sensibilizaciones a los colaboradores de la ALM","Generar un mantenimiento preventivo en lugar de correctivo a las instalaciones de las sedes concertadas a fin de evitar las pérdidas del recurso hídrico la cual fue la razón del incremento de la facturación en el 2024, aunado a esto, el incremento de campañas activas, de comunicados, socializaciones, capacitaciones, correos masivos, piezas gráficas y demás que permitan continuar con la disminución de los giros presupuestales y consumos del rubro que se venían llevando a cabo durante el cuatrienio anterior y llegar a la reducción meta del 1%.",null,null,null,null,1,null,{"$error":"#DIV/0!"},null,{"$error":"#DIV/0!"}]

{"sheet":"0015-01 A. NARIÑO","index":15,"n_rows":27,"n_cols":16,"rows_kept":27,"cut":false,"hidden":false,"merged":[[5,10,5,11],[5,12,5,13],[5,14,5,15],[1,1,1,4],[3,0,6,0],[3,1,6,1],[3,2,4,4],[3,5,3,9],[3,10,4,15],[4,5,6,5],[4,6,6,6],[4,7,5,9],[5,3,5,4]]}
["PLAN DE AUSTERIDAD EN EL GASTO 2025-2027"]
["Entidad"," "]
["Valores en Pesos Corrientes"]
["CONCEPTO\n(Decreto 062 de 2024)","Posiciones Presupuestales Asociadas\n(Funcionamiento e Inversión)","LÍNEA BASE",null,null,"PLAN DE AUSTERIDAD EN EL GASTO 2025-2027",null,null,null,null,"SEGUIMIENTO RESULTADOS PLAN DE AUSTERIDAD 2025-2027"]
[null,null,null,null,null,"ESTRATEGIAS\n2025-2027","ACCIONES\n2025-2027","META INDICADOR DE AUSTERIDAD"]
[null,null,"AÑO 2023","AÑO 2024",null,null,null,null,null,null,"AÑO 2025",null,"AÑO 2026",null,"AÑO 2027"]
[null,null,"Valor EJECUTADO\na 31/12/2023","Valor EJECUTADO\na 31/12/2024","Resultado\nIndicador Austeridad",null,null,"AÑO 2025","AÑO 2026","AÑO 2027","Valor EJECUTADO\na 31/12/2025","Resultado\nIndicador Austeridad","Valor EJECUTADO\na 31/12/2026","Resultado\nIndicador Austeridad","Valor EJECUTADO\na 31/12/2027","Resultado\nIndicador Austeridad"]
["Servicios de personal"]
["Artículo 6°.- Reducción del gasto en CPS profesionales y de apoyo a la gestión. ","N.A.  \nSe registran totales. Corresponde con lo reportado en SIDEAP y SIVICOF",null,null,{"$f":"1-(D9/C9)","v":{"$error":"#DIV/0!"}},null,null,null,null,null,null,{"$f":"1-(K9/D9)","v":{"$error":"#DIV/0!"}},null,{"$f":"1-(M9/K9)","v":{"$error":"#DIV/0!"}},null,{"$f":"1-(O9/M9)","v":{"$error":"#DIV/0!"}}]
["Artículo 7°.- Horas extras, dominicales y festivos. ",null,null,null,{"$error":"#DIV/0!"},null,null,null,null,null,null,{"$f":"1-(K10/D10)","v":{"$error":"#DIV/0!"}},null,{"$f":"1-(M10/K10)","v":{"$error":"#DIV/0!"}},null,{"$error":"#DIV/0!"}]
["Artículo 8°.- Viáticos y gastos de viaje.",null,null,null,{"$error":"#DIV/0!"},null,null,null,null,null,null,{"$error":"#DIV/0!"},null,{"$error":"#DIV/0!"},null,{"$error":"#DIV/0!"}]
["Artículo 9°.- Compensación por vacaciones.",null,null,null,{"$error":"#DIV/0!"},null,null,null,null,null,null,{"$error":"#DIV/0!"},null,{"$error":"#DIV/0!"},null,{"$error":"#DIV/0!"}]
["Artículo 10°.- Bono navideño.",null,null,null,{"$error":"#DIV/0!"},null,null,null,null,null,null,{"$error":"#DIV/0!"},null,{"$error":"#DIV/0!"},null,{"$error":"#DIV/0!"}]
["Artículo 11 -. Capacitación.",null,null,null,{"$error":"#DIV/0!"},null,null,null,null,null,null,{"$error":"#DIV/0!"},null,{"$error":"#DIV/0!"},null,{"$error":"#DIV/0!"}]
["Artículo 12 -. Bienestar.",null,null,null,{"$error":"#DIV/0!"},null,null,null,null,null,null,{"$error":"#DIV/0!"},null,{"$error":"#DIV/0!"},null,{"$error":"#DIV/0!"}]
["Artículo 13 -. Eventos y conmemoraciones.",null,null,null,{"$error":"#DIV/0!"},null,null,null,null,null,null,{"$error":"#DIV/0!"},null,{"$error":"#DIV/0!"},null,{"$error":"#DIV/0!"}]
["Artículo 14 -. Fondos educativos.",null,null,null,{"$error":"#DIV/0!"},null,null,null,null,null,null,{"$error":"#DIV/0!"},null,{"$error":"#DIV/0!"},null,{"$error":"#DIV/0!"}]
["Servicios Administrativos"]
["Artículo 15. Telefonía.",null,null,null,{"$f":"1-(D19/C19)","v":{"$error":"#DIV/0!"}},null,null,null,null,null,null,{"$error":"#DIV/0!"},null,{"$error":"#DIV/0!"},null,{"$error":"#DIV/0!"}]
["Artículo 16 -. Vehículos oficiales.",null,null,null,{"$error":"#DIV/0!"},null,null,null,null,null,null,{"$error":"#DIV/0!"},null,{"$error":"#DIV/0!"},null,{"$error":"#DIV/0!"}]
["Artículo 17 -. Adquisición de vehículos y maquinaria.",null,null,null,{"$error":"#DIV/0!"},null,null,null,null,null,null,{"$error":"#DIV/0!"},null,{"$error":"#DIV/0!"},null,{"$error":"#DIV/0!"}]
["Artículo 18 -. Fotocopiado, multicopiado e impresión.",null,null,null,{"$error":"#DIV/0!"},null,null,null,null,null,null,{"$error":"#DIV/0!"},null,{"$error":"#DIV/0!"},null,{"$error":"#DIV/0!"}]
["Artículo 19 -. Publicidad distrital.",null,null,null,{"$error":"#DIV/0!"},null,null,null,null,null,null,{"$error":"#DIV/0!"},null,{"$error":"#DIV/0!"},null,{"$error":"#DIV/0!"}]
["Artículo 20 -. Cajas menores.",null,null,null,{"$error":"#DIV/0!"},null,null,null,null,null,null,{"$error":"#DIV/0!"},null,{"$error":"#DIV/0!"},null,{"$error":"#DIV/0!"}]
["Artículo 21 -. Mantenimiento o reparación de bienes inmuebles o muebles.",null,null,null,{"$error":"#DIV/0!"},null,null,null,null,null,null,{"$error":"#DIV/0!"},null,{"$error":"#DIV/0!"},null,{"$error":"#DIV/0!"}]
["Artículo 22 -. Suscripciones.",null,null,null,{"$error":"#DIV/0!"},null,null,null,null,null,null,{"$error":"#DIV/0!"},null,{"$error":"#DIV/0!"},null,{"$error":"#DIV/0!"}]
["Artículo 23 -. Servicios públicos.",null,null,null,{"$error":"#DIV/0!"},null,null,null,null,null,null,{"$error":"#DIV/0!"},null,{"$error":"#DIV/0!"},null,{"$error":"#DIV/0!"}]

{"sheet":"0016-01 P. ARANDA","index":16,"n_rows":27,"n_cols":16,"rows_kept":27,"cut":false,"hidden":false,"merged":[[5,10,5,11],[5,12,5,13],[5,14,5,15],[1,1,1,4],[3,0,6,0],[3,1,6,1],[3,2,4,4],[3,5,3,9],[3,10,4,15],[4,5,6,5],[4,6,6,6],[4,7,5,9],[5,3,5,4]]}
["PLAN DE AUSTERIDAD EN EL GASTO 2025-2027"]
["Entidad"," "]
["Valores en Pesos Corrientes"]
["CONCEPTO\n(Decreto 062 de 2024)","Posiciones Presupuestales Asociadas\n(Funcionamiento e Inversión)","LÍNEA BASE",null,null,"PLAN DE AUSTERIDAD EN EL GASTO 2025-2027",null,null,null,null,"SEGUIMIENTO RESULTADOS PLAN DE AUSTERIDAD 2025-2027"]
[null,null,null,null,null,"ESTRATEGIAS\n2025-2027","ACCIONES\n2025-2027","META INDICADOR DE AUSTERIDAD"]
[null,null,"AÑO 2023","AÑO 2024",null,null,null,null,null,null,"AÑO 2025",null,"AÑO 2026",null,"AÑO 2027"]
[null,null,"Valor EJECUTADO\na 31/12/2023","Valor EJECUTADO\na 31/12/2024","Resultado\nIndicador Austeridad",null,null,"AÑO 2025","AÑO 2026","AÑO 2027","Valor EJECUTADO\na 31/12/2025","Resultado\nIndicador Austeridad","Valor EJECUTADO\na 31/12/2026","Resultado\nIndicador Austeridad","Valor EJECUTADO\na 31/12/2027","Resultado\nIndicador Austeridad"]
["Servicios de personal"]
["Artículo 6°.- Reducción del gasto en CPS profesionales y de apoyo a la gestión. ","N.A.  \nSe registran totales. Corresponde con lo reportado en SIDEAP y SIVICOF",null,null,{"$f":"1-(D9/C9)","v":{"$error":"#DIV/0!"}},null,null,null,null,null,null,{"$f":"1-(K9/D9)","v":{"$error":"#DIV/0!"}},null,{"$f":"1-(M9/K9)","v":{"$error":"#DIV/0!"}},null,{"$f":"1-(O9/M9)","v":{"$error":"#DIV/0!"}}]
["Artículo 7°.- Horas extras, dominicales y festivos. ",null,null,null,{"$error":"#DIV/0!"},null,null,null,null,null,null,{"$f":"1-(K10/D10)","v":{"$error":"#DIV/0!"}},null,{"$f":"1-(M10/K10)","v":{"$error":"#DIV/0!"}},null,{"$error":"#DIV/0!"}]
["Artículo 8°.- Viáticos y gastos de viaje.",null,null,null,{"$error":"#DIV/0!"},null,null,null,null,null,null,{"$error":"#DIV/0!"},null,{"$error":"#DIV/0!"},null,{"$error":"#DIV/0!"}]
["Artículo 9°.- Compensación por vacaciones.",null,null,null,{"$error":"#DIV/0!"},null,null,null,null,null,null,{"$error":"#DIV/0!"},null,{"$error":"#DIV/0!"},null,{"$error":"#DIV/0!"}]
["Artículo 10°.- Bono navideño.",null,null,null,{"$error":"#DIV/0!"},null,null,null,null,null,null,{"$error":"#DIV/0!"},null,{"$error":"#DIV/0!"},null,{"$error":"#DIV/0!"}]
["Artículo 11 -. Capacitación.",null,null,null,{"$error":"#DIV/0!"},null,null,null,null,null,null,{"$error":"#DIV/0!"},null,{"$error":"#DIV/0!"},null,{"$error":"#DIV/0!"}]
["Artículo 12 -. Bienestar.",null,null,null,{"$error":"#DIV/0!"},null,null,null,null,null,null,{"$error":"#DIV/0!"},null,{"$error":"#DIV/0!"},null,{"$error":"#DIV/0!"}]
["Artículo 13 -. Eventos y conmemoraciones.",null,null,null,{"$error":"#DIV/0!"},null,null,null,null,null,null,{"$error":"#DIV/0!"},null,{"$error":"#DIV/0!"},null,{"$error":"#DIV/0!"}]
["Artículo 14 -. Fondos educativos.",null,null,null,{"$error":"#DIV/0!"},null,null,null,null,null,null,{"$error":"#DIV/0!"},null,{"$error":"#DIV/0!"},null,{"$error":"#DIV/0!"}]
["Servicios Administrativos"]
["Artículo 15. Telefonía.",null,null,null,{"$f":"1-(D19/C19)","v":{"$error":"#DIV/0!"}},null,null,null,null,null,null,{"$error":"#DIV/0!"},null,{"$error":"#DIV/0!"},null,{"$error":"#DIV/0!"}]
["Artículo 16 -. Vehículos oficiales.",null,null,null,{"$error":"#DIV/0!"},null,null,null,null,null,null,{"$error":"#DIV/0!"},null,{"$error":"#DIV/0!"},null,{"$error":"#DIV/0!"}]
["Artículo 17 -. Adquisición de vehículos y maquinaria.",null,null,null,{"$error":"#DIV/0!"},null,null,null,null,null,null,{"$error":"#DIV/0!"},null,{"$error":"#DIV/0!"},null,{"$error":"#DIV/0!"}]
["Artículo 18 -. Fotocopiado, multicopiado e impresión.",null,null,null,{"$error":"#DIV/0!"},null,null,null,null,null,null,{"$error":"#DIV/0!"},null,{"$error":"#DIV/0!"},null,{"$error":"#DIV/0!"}]
["Artículo 19 -. Publicidad distrital.",null,null,null,{"$error":"#DIV/0!"},null,null,null,null,null,null,{"$error":"#DIV/0!"},null,{"$error":"#DIV/0!"},null,{"$error":"#DIV/0!"}]
["Artículo 20 -. Cajas menores.",null,null,null,{"$error":"#DIV/0!"},null,null,null,null,null,null,{"$error":"#DIV/0!"},null,{"$error":"#DIV/0!"},null,{"$error":"#DIV/0!"}]
["Artículo 21 -. Mantenimiento o reparación de bienes inmuebles o muebles.",null,null,null,{"$error":"#DIV/0!"},null,null,null,null,null,null,{"$error":"#DIV/0!"},null,{"$error":"#DIV/0!"},null,{"$error":"#DIV/0!"}]
["Artículo 22 -. Suscripciones.",null,null,null,{"$error":"#DIV/0!"},null,null,null,null,null,null,{"$error":"#DIV/0!"},null,{"$error":"#DIV/0!"},null,{"$error":"#DIV/0!"}]
["Artículo 23 -. Servicios públicos.",null,null,null,{"$error":"#DIV/0!"},null,null,null,null,null,null,{"$error":"#DIV/0!"},null,{"$error":"#DIV/0!"},null,{"$error":"#DIV/0!"}]

{"sheet":"0017-01 CANDELARIA","index":17,"n_rows":27,"n_cols":16,"rows_kept":27,"cut":false,"hidden":false,"merged":[[5,10,5,11],[5,12,5,13],[5,14,5,15],[1,1,1,4],[3,0,6,0],[3,1,6,1],[3,2,4,4],[3,5,3,9],[3,10,4,15],[4,5,6,5],[4,6,6,6],[4,7,5,9],[5,3,5,4]]}
["PLAN DE AUSTERIDAD EN EL GASTO 2025-2027"]
["Entidad"," "]
["Valores en Pesos Corrientes"]
["CONCEPTO\n(Decreto 062 de 2024)","Posiciones Presupuestales Asociadas\n(Funcionamiento e Inversión)","LÍNEA BASE",null,null,"PLAN DE AUSTERIDAD EN EL GASTO 2025-2027",null,null,null,null,"SEGUIMIENTO RESULTADOS PLAN DE AUSTERIDAD 2025-2027"]
[null,null,null,null,null,"ESTRATEGIAS\n2025-2027","ACCIONES\n2025-2027","META INDICADOR DE AUSTERIDAD"]
[null,null,"AÑO 2023","AÑO 2024",null,null,null,null,null,null,"AÑO 2025",null,"AÑO 2026",null,"AÑO 2027"]
[null,null,"Valor EJECUTADO\na 31/12/2023","Valor EJECUTADO\na 31/12/2024","Resultado\nIndicador Austeridad",null,null,"AÑO 2025","AÑO 2026","AÑO 2027","Valor EJECUTADO\na 31/12/2025","Resultado\nIndicador Austeridad","Valor EJECUTADO\na 31/12/2026","Resultado\nIndicador Austeridad","Valor EJECUTADO\na 31/12/2027","Resultado\nIndicador Austeridad"]
["Servicios de personal"]
["Artículo 6°.- Reducción del gasto en CPS profesionales y de apoyo a la gestión. ","N.A.  \nSe registran totales. Corresponde con lo reportado en SIDEAP y SIVICOF",null,null,{"$f":"1-(D9/C9)","v":{"$error":"#DIV/0!"}},null,null,null,null,null,null,{"$f":"1-(K9/D9)","v":{"$error":"#DIV/0!"}},null,{"$f":"1-(M9/K9)","v":{"$error":"#DIV/0!"}},null,{"$f":"1-(O9/M9)","v":{"$error":"#DIV/0!"}}]
["Artículo 7°.- Horas extras, dominicales y festivos. ",null,null,null,{"$error":"#DIV/0!"},null,null,null,null,null,null,{"$f":"1-(K10/D10)","v":{"$error":"#DIV/0!"}},null,{"$f":"1-(M10/K10)","v":{"$error":"#DIV/0!"}},null,{"$error":"#DIV/0!"}]
["Artículo 8°.- Viáticos y gastos de viaje.",null,null,null,{"$error":"#DIV/0!"},null,null,null,null,null,null,{"$error":"#DIV/0!"},null,{"$error":"#DIV/0!"},null,{"$error":"#DIV/0!"}]
["Artículo 9°.- Compensación por vacaciones.",null,null,null,{"$error":"#DIV/0!"},null,null,null,null,null,null,{"$error":"#DIV/0!"},null,{"$error":"#DIV/0!"},null,{"$error":"#DIV/0!"}]
["Artículo 10°.- Bono navideño.",null,null,null,{"$error":"#DIV/0!"},null,null,null,null,null,null,{"$error":"#DIV/0!"},null,{"$error":"#DIV/0!"},null,{"$error":"#DIV/0!"}]
["Artículo 11 -. Capacitación.",null,null,null,{"$error":"#DIV/0!"},null,null,null,null,null,null,{"$error":"#DIV/0!"},null,{"$error":"#DIV/0!"},null,{"$error":"#DIV/0!"}]
["Artículo 12 -. Bienestar.",null,null,null,{"$error":"#DIV/0!"},null,null,null,null,null,null,{"$error":"#DIV/0!"},null,{"$error":"#DIV/0!"},null,{"$error":"#DIV/0!"}]
["Artículo 13 -. Eventos y conmemoraciones.",null,null,null,{"$error":"#DIV/0!"},null,null,null,null,null,null,{"$error":"#DIV/0!"},null,{"$error":"#DIV/0!"},null,{"$error":"#DIV/0!"}]
["Artículo 14 -. Fondos educativos.",null,null,null,{"$error":"#DIV/0!"},null,null,null,null,null,null,{"$error":"#DIV/0!"},null,{"$error":"#DIV/0!"},null,{"$error":"#DIV/0!"}]
["Servicios Administrativos"]
["Artículo 15. Telefonía.",null,null,null,{"$f":"1-(D19/C19)","v":{"$error":"#DIV/0!"}},null,null,null,null,null,null,{"$error":"#DIV/0!"},null,{"$error":"#DIV/0!"},null,{"$error":"#DIV/0!"}]
["Artículo 16 -. Vehículos oficiales.",null,null,null,{"$error":"#DIV/0!"},null,null,null,null,null,null,{"$error":"#DIV/0!"},null,{"$error":"#DIV/0!"},null,{"$error":"#DIV/0!"}]
["Artículo 17 -. Adquisición de vehículos y maquinaria.",null,null,null,{"$error":"#DIV/0!"},null,null,null,null,null,null,{"$error":"#DIV/0!"},null,{"$error":"#DIV/0!"},null,{"$error":"#DIV/0!"}]
["Artículo 18 -. Fotocopiado, multicopiado e impresión.",null,null,null,{"$error":"#DIV/0!"},null,null,null,null,null,null,{"$error":"#DIV/0!"},null,{"$error":"#DIV/0!"},null,{"$error":"#DIV/0!"}]
["Artículo 19 -. Publicidad distrital.",null,null,null,{"$error":"#DIV/0!"},null,null,null,null,null,null,{"$error":"#DIV/0!"},null,{"$error":"#DIV/0!"},null,{"$error":"#DIV/0!"}]
["Artículo 20 -. Cajas menores.",null,null,null,{"$error":"#DIV/0!"},null,null,null,null,null,null,{"$error":"#DIV/0!"},null,{"$error":"#DIV/0!"},null,{"$error":"#DIV/0!"}]
["Artículo 21 -. Mantenimiento o reparación de bienes inmuebles o muebles.",null,null,null,{"$error":"#DIV/0!"},null,null,null,null,null,null,{"$error":"#DIV/0!"},null,{"$error":"#DIV/0!"},null,{"$error":"#DIV/0!"}]
["Artículo 22 -. Suscripciones.",null,null,null,{"$error":"#DIV/0!"},null,null,null,null,null,null,{"$error":"#DIV/0!"},null,{"$error":"#DIV/0!"},null,{"$error":"#DIV/0!"}]
["Artículo 23 -. Servicios públicos.",null,null,null,{"$error":"#DIV/0!"},null,null,null,null,null,null,{"$error":"#DIV/0!"},null,{"$error":"#DIV/0!"},null,{"$error":"#DIV/0!"}]

{"sheet":"0018-01 R. URIBE","index":18,"n_rows":27,"n_cols":16,"rows_kept":27,"cut":false,"hidden":false,"merged":[[5,10,5,11],[5,12,5,13],[5,14,5,15],[1,1,1,4],[3,0,6,0],[3,1,6,1],[3,2,4,4],[3,5,3,9],[3,10,4,15],[4,5,6,5],[4,6,6,6],[4,7,5,9],[5,3,5,4]]}
["PLAN DE AUSTERIDAD EN EL GASTO 2025-2027"]
["Entidad"," "]
["Valores en Pesos Corrientes"]
["CONCEPTO\n(Decreto 062 de 2024)","Posiciones Presupuestales Asociadas\n(Funcionamiento e Inversión)","LÍNEA BASE",null,null,"PLAN DE AUSTERIDAD EN EL GASTO 2025-2027",null,null,null,null,"SEGUIMIENTO RESULTADOS PLAN DE AUSTERIDAD 2025-2027"]
[null,null,null,null,null,"ESTRATEGIAS\n2025-2027","ACCIONES\n2025-2027","META INDICADOR DE AUSTERIDAD"]
[null,null,"AÑO 2023","AÑO 2024",null,null,null,null,null,null,"AÑO 2025",null,"AÑO 2026",null,"AÑO 2027"]
[null,null,"Valor EJECUTADO\na 31/12/2023","Valor EJECUTADO\na 31/12/2024","Resultado\nIndicador Austeridad",null,null,"AÑO 2025","AÑO 2026","AÑO 2027","Valor EJECUTADO\na 31/12/2025","Resultado\nIndicador Austeridad","Valor EJECUTADO\na 31/12/2026","Resultado\nIndicador Austeridad","Valor EJECUTADO\na 31/12/2027","Resultado\nIndicador Austeridad"]
["Servicios de personal"]
["Artículo 6°.- Reducción del gasto en CPS profesionales y de apoyo a la gestión. ","N.A.  \nSe registran totales. Corresponde con lo reportado en SIDEAP y SIVICOF",null,null,{"$f":"1-(D9/C9)","v":{"$error":"#DIV/0!"}},null,null,null,null,null,null,{"$f":"1-(K9/D9)","v":{"$error":"#DIV/0!"}},null,{"$f":"1-(M9/K9)","v":{"$error":"#DIV/0!"}},null,{"$f":"1-(O9/M9)","v":{"$error":"#DIV/0!"}}]
["Artículo 7°.- Horas extras, dominicales y festivos. ",null,null,null,{"$error":"#DIV/0!"},null,null,null,null,null,null,{"$f":"1-(K10/D10)","v":{"$error":"#DIV/0!"}},null,{"$f":"1-(M10/K10)","v":{"$error":"#DIV/0!"}},null,{"$error":"#DIV/0!"}]
["Artículo 8°.- Viáticos y gastos de viaje.",null,null,null,{"$error":"#DIV/0!"},null,null,null,null,null,null,{"$error":"#DIV/0!"},null,{"$error":"#DIV/0!"},null,{"$error":"#DIV/0!"}]
["Artículo 9°.- Compensación por vacaciones.",null,null,null,{"$error":"#DIV/0!"},null,null,null,null,null,null,{"$error":"#DIV/0!"},null,{"$error":"#DIV/0!"},null,{"$error":"#DIV/0!"}]
["Artículo 10°.- Bono navideño.",null,null,null,{"$error":"#DIV/0!"},null,null,null,null,null,null,{"$error":"#DIV/0!"},null,{"$error":"#DIV/0!"},null,{"$error":"#DIV/0!"}]
["Artículo 11 -. Capacitación.",null,null,null,{"$error":"#DIV/0!"},null,null,null,null,null,null,{"$error":"#DIV/0!"},null,{"$error":"#DIV/0!"},null,{"$error":"#DIV/0!"}]
["Artículo 12 -. Bienestar.",null,null,null,{"$error":"#DIV/0!"},null,null,null,null,null,null,{"$error":"#DIV/0!"},null,{"$error":"#DIV/0!"},null,{"$error":"#DIV/0!"}]
["Artículo 13 -. Eventos y conmemoraciones.",null,null,null,{"$error":"#DIV/0!"},null,null,null,null,null,null,{"$error":"#DIV/0!"},null,{"$error":"#DIV/0!"},null,{"$error":"#DIV/0!"}]
["Artículo 14 -. Fondos educativos.",null,null,null,{"$error":"#DIV/0!"},null,null,null,null,null,null,{"$error":"#DIV/0!"},null,{"$error":"#DIV/0!"},null,{"$error":"#DIV/0!"}]
["Servicios Administrativos"]
["Artículo 15. Telefonía.",null,null,null,{"$f":"1-(D19/C19)","v":{"$error":"#DIV/0!"}},null,null,null,null,null,null,{"$error":"#DIV/0!"},null,{"$error":"#DIV/0!"},null,{"$error":"#DIV/0!"}]
["Artículo 16 -. Vehículos oficiales.",null,null,null,{"$error":"#DIV/0!"},null,null,null,null,null,null,{"$error":"#DIV/0!"},null,{"$error":"#DIV/0!"},null,{"$error":"#DIV/0!"}]
["Artículo 17 -. Adquisición de vehículos y maquinaria.",null,null,null,{"$error":"#DIV/0!"},null,null,null,null,null,null,{"$error":"#DIV/0!"},null,{"$error":"#DIV/0!"},null,{"$error":"#DIV/0!"}]
["Artículo 18 -. Fotocopiado, multicopiado e impresión.",null,null,null,{"$error":"#DIV/0!"},null,null,null,null,null,null,{"$error":"#DIV/0!"},null,{"$error":"#DIV/0!"},null,{"$error":"#DIV/0!"}]
["Artículo 19 -. Publicidad distrital.",null,null,null,{"$error":"#DIV/0!"},null,null,null,null,null,null,{"$error":"#DIV/0!"},null,{"$error":"#DIV/0!"},null,{"$error":"#DIV/0!"}]
["Artículo 20 -. Cajas menores.",null,null,null,{"$error":"#DIV/0!"},null,null,null,null,null,null,{"$error":"#DIV/0!"},null,{"$error":"#DIV/0!"},null,{"$error":"#DIV/0!"}]
["Artículo 21 -. Mantenimiento o reparación de bienes inmuebles o muebles.",null,null,null,{"$error":"#DIV/0!"},null,null,null,null,null,null,{"$error":"#DIV/0!"},null,{"$error":"#DIV/0!"},null,{"$error":"#DIV/0!"}]
["Artículo 22 -. Suscripciones.",null,null,null,{"$error":"#DIV/0!"},null,null,null,null,null,null,{"$error":"#DIV/0!"},null,{"$error":"#DIV/0!"},null,{"$error":"#DIV/0!"}]
["Artículo 23 -. Servicios públicos.",null,null,null,{"$error":"#DIV/0!"},null,null,null,null,null,null,{"$error":"#DIV/0!"},null,{"$error":"#DIV/0!"},null,{"$error":"#DIV/0!"}]

{"sheet":"0019-01 C. BOLIVAR","index":19,"n_rows":27,"n_cols":16,"rows_kept":27,"cut":false,"hidden":false,"merged":[[5,10,5,11],[5,12,5,13],[5,14,5,15],[1,1,1,4],[3,0,6,0],[3,1,6,1],[3,2,4,4],[3,5,3,9],[3,10,4,15],[4,5,6,5],[4,6,6,6],[4,7,5,9],[5,3,5,4]]}
["PLAN DE AUSTERIDAD EN EL GASTO 2025-2027"]
["Entidad"," "]
["Valores en Pesos Corrientes"]
["CONCEPTO\n(Decreto 062 de 2024)","Posiciones Presupuestales Asociadas\n(Funcionamiento e Inversión)","LÍNEA BASE",null,null,"PLAN DE AUSTERIDAD EN EL GASTO 2025-2027",null,null,null,null,"SEGUIMIENTO RESULTADOS PLAN DE AUSTERIDAD 2025-2027"]
[null,null,null,null,null,"ESTRATEGIAS\n2025-2027","ACCIONES\n2025-2027","META INDICADOR DE AUSTERIDAD"]
[null,null,"AÑO 2023","AÑO 2024",null,null,null,null,null,null,"AÑO 2025",null,"AÑO 2026",null,"AÑO 2027"]
[null,null,"Valor EJECUTADO\na 31/12/2023","Valor EJECUTADO\na 31/12/2024","Resultado\nIndicador Austeridad",null,null,"AÑO 2025","AÑO 2026","AÑO 2027","Valor EJECUTADO\na 31/12/2025","Resultado\nIndicador Austeridad","Valor EJECUTADO\na 31/12/2026","Resultado\nIndicador Austeridad","Valor EJECUTADO\na 31/12/2027","Resultado\nIndicador Austeridad"]
["Servicios de personal"]
["Artículo 6°.- Reducción del gasto en CPS profesionales y de apoyo a la gestión. ","N.A.  \nSe registran totales. Corresponde con lo reportado en SIDEAP y SIVICOF",null,null,{"$f":"1-(D9/C9)","v":{"$error":"#DIV/0!"}},null,null,null,null,null,null,{"$f":"1-(K9/D9)","v":{"$error":"#DIV/0!"}},null,{"$f":"1-(M9/K9)","v":{"$error":"#DIV/0!"}},null,{"$f":"1-(O9/M9)","v":{"$error":"#DIV/0!"}}]
["Artículo 7°.- Horas extras, dominicales y festivos. ",null,null,null,{"$error":"#DIV/0!"},null,null,null,null,null,null,{"$f":"1-(K10/D10)","v":{"$error":"#DIV/0!"}},null,{"$f":"1-(M10/K10)","v":{"$error":"#DIV/0!"}},null,{"$error":"#DIV/0!"}]
["Artículo 8°.- Viáticos y gastos de viaje.",null,null,null,{"$error":"#DIV/0!"},null,null,null,null,null,null,{"$error":"#DIV/0!"},null,{"$error":"#DIV/0!"},null,{"$error":"#DIV/0!"}]
["Artículo 9°.- Compensación por vacaciones.",null,null,null,{"$error":"#DIV/0!"},null,null,null,null,null,null,{"$error":"#DIV/0!"},null,{"$error":"#DIV/0!"},null,{"$error":"#DIV/0!"}]
["Artículo 10°.- Bono navideño.",null,null,null,{"$error":"#DIV/0!"},null,null,null,null,null,null,{"$error":"#DIV/0!"},null,{"$error":"#DIV/0!"},null,{"$error":"#DIV/0!"}]
["Artículo 11 -. Capacitación.",null,null,null,{"$error":"#DIV/0!"},null,null,null,null,null,null,{"$error":"#DIV/0!"},null,{"$error":"#DIV/0!"},null,{"$error":"#DIV/0!"}]
["Artículo 12 -. Bienestar.",null,null,null,{"$error":"#DIV/0!"},null,null,null,null,null,null,{"$error":"#DIV/0!"},null,{"$error":"#DIV/0!"},null,{"$error":"#DIV/0!"}]
["Artículo 13 -. Eventos y conmemoraciones.",null,null,null,{"$error":"#DIV/0!"},null,null,null,null,null,null,{"$error":"#DIV/0!"},null,{"$error":"#DIV/0!"},null,{"$error":"#DIV/0!"}]
["Artículo 14 -. Fondos educativos.",null,null,null,{"$error":"#DIV/0!"},null,null,null,null,null,null,{"$error":"#DIV/0!"},null,{"$error":"#DIV/0!"},null,{"$error":"#DIV/0!"}]
["Servicios Administrativos"]
["Artículo 15. Telefonía.",null,null,null,{"$f":"1-(D19/C19)","v":{"$error":"#DIV/0!"}},null,null,null,null,null,null,{"$error":"#DIV/0!"},null,{"$error":"#DIV/0!"},null,{"$error":"#DIV/0!"}]
["Artículo 16 -. Vehículos oficiales.",null,null,null,{"$error":"#DIV/0!"},null,null,null,null,null,null,{"$error":"#DIV/0!"},null,{"$error":"#DIV/0!"},null,{"$error":"#DIV/0!"}]
["Artículo 17 -. Adquisición de vehículos y maquinaria.",null,null,null,{"$error":"#DIV/0!"},null,null,null,null,null,null,{"$error":"#DIV/0!"},null,{"$error":"#DIV/0!"},null,{"$error":"#DIV/0!"}]
["Artículo 18 -. Fotocopiado, multicopiado e impresión.",null,null,null,{"$error":"#DIV/0!"},null,null,null,null,null,null,{"$error":"#DIV/0!"},null,{"$error":"#DIV/0!"},null,{"$error":"#DIV/0!"}]
["Artículo 19 -. Publicidad distrital.",null,null,null,{"$error":"#DIV/0!"},null,null,null,null,null,null,{"$error":"#DIV/0!"},null,{"$error":"#DIV/0!"},null,{"$error":"#DIV/0!"}]
["Artículo 20 -. Cajas menores.",null,null,null,{"$error":"#DIV/0!"},null,null,null,null,null,null,{"$error":"#DIV/0!"},null,{"$error":"#DIV/0!"},null,{"$error":"#DIV/0!"}]
["Artículo 21 -. Mantenimiento o reparación de bienes inmuebles o muebles.",null,null,null,{"$error":"#DIV/0!"},null,null,null,null,null,null,{"$error":"#DIV/0!"},null,{"$error":"#DIV/0!"},null,{"$error":"#DIV/0!"}]
["Artículo 22 -. Suscripciones.",null,null,null,{"$error":"#DIV/0!"},null,null,null,null,null,null,{"$error":"#DIV/0!"},null,{"$error":"#DIV/0!"},null,{"$error":"#DIV/0!"}]
["Artículo 23 -. Servicios públicos.",null,null,null,{"$error":"#DIV/0!"},null,null,null,null,null,null,{"$error":"#DIV/0!"},null,{"$error":"#DIV/0!"},null,{"$error":"#DIV/0!"}]

{"sheet":"0020-01 SUMAPAZ","index":20,"n_rows":27,"n_cols":16,"rows_kept":27,"cut":false,"hidden":false,"merged":[[5,10,5,11],[5,12,5,13],[5,14,5,15],[1,1,1,4],[3,0,6,0],[3,1,6,1],[3,2,4,4],[3,5,3,9],[3,10,4,15],[4,5,6,5],[4,6,6,6],[4,7,5,9],[5,3,5,4]]}
["PLAN DE AUSTERIDAD EN EL GASTO 2025-2027"]
["Entidad"," "]
["Valores en Pesos Corrientes"]
["CONCEPTO\n(Decreto 062 de 2024)","Posiciones Presupuestales Asociadas\n(Funcionamiento e Inversión)","LÍNEA BASE",null,null,"PLAN DE AUSTERIDAD EN EL GASTO 2025-2027",null,null,null,null,"SEGUIMIENTO RESULTADOS PLAN DE AUSTERIDAD 2025-2027"]
[null,null,null,null,null,"ESTRATEGIAS\n2025-2027","ACCIONES\n2025-2027","META INDICADOR DE AUSTERIDAD"]
[null,null,"AÑO 2023","AÑO 2024",null,null,null,null,null,null,"AÑO 2025",null,"AÑO 2026",null,"AÑO 2027"]
[null,null,"Valor EJECUTADO\na 31/12/2023","Valor EJECUTADO\na 31/12/2024","Resultado\nIndicador Austeridad",null,null,"AÑO 2025","AÑO 2026","AÑO 2027","Valor EJECUTADO\na 31/12/2025","Resultado\nIndicador Austeridad","Valor EJECUTADO\na 31/12/2026","Resultado\nIndicador Austeridad","Valor EJECUTADO\na 31/12/2027","Resultado\nIndicador Austeridad"]
["Servicios de personal"]
["Artículo 6°.- Reducción del gasto en CPS profesionales y de apoyo a la gestión. ","N.A.  \nSe registran totales. Corresponde con lo reportado en SIDEAP y SIVICOF",null,null,{"$f":"1-(D9/C9)","v":{"$error":"#DIV/0!"}},null,null,null,null,null,null,{"$f":"1-(K9/D9)","v":{"$error":"#DIV/0!"}},null,{"$f":"1-(M9/K9)","v":{"$error":"#DIV/0!"}},null,{"$f":"1-(O9/M9)","v":{"$error":"#DIV/0!"}}]
["Artículo 7°.- Horas extras, dominicales y festivos. ",null,null,null,{"$error":"#DIV/0!"},null,null,null,null,null,null,{"$f":"1-(K10/D10)","v":{"$error":"#DIV/0!"}},null,{"$f":"1-(M10/K10)","v":{"$error":"#DIV/0!"}},null,{"$error":"#DIV/0!"}]
["Artículo 8°.- Viáticos y gastos de viaje.",null,null,null,{"$error":"#DIV/0!"},null,null,null,null,null,null,{"$error":"#DIV/0!"},null,{"$error":"#DIV/0!"},null,{"$error":"#DIV/0!"}]
["Artículo 9°.- Compensación por vacaciones.",null,null,null,{"$error":"#DIV/0!"},null,null,null,null,null,null,{"$error":"#DIV/0!"},null,{"$error":"#DIV/0!"},null,{"$error":"#DIV/0!"}]
["Artículo 10°.- Bono navideño.",null,null,null,{"$error":"#DIV/0!"},null,null,null,null,null,null,{"$error":"#DIV/0!"},null,{"$error":"#DIV/0!"},null,{"$error":"#DIV/0!"}]
["Artículo 11 -. Capacitación.",null,null,null,{"$error":"#DIV/0!"},null,null,null,null,null,null,{"$error":"#DIV/0!"},null,{"$error":"#DIV/0!"},null,{"$error":"#DIV/0!"}]
["Artículo 12 -. Bienestar.",null,null,null,{"$error":"#DIV/0!"},null,null,null,null,null,null,{"$error":"#DIV/0!"},null,{"$error":"#DIV/0!"},null,{"$error":"#DIV/0!"}]
["Artículo 13 -. Eventos y conmemoraciones.",null,null,null,{"$error":"#DIV/0!"},null,null,null,null,null,null,{"$error":"#DIV/0!"},null,{"$error":"#DIV/0!"},null,{"$error":"#DIV/0!"}]
["Artículo 14 -. Fondos educativos.",null,null,null,{"$error":"#DIV/0!"},null,null,null,null,null,null,{"$error":"#DIV/0!"},null,{"$error":"#DIV/0!"},null,{"$error":"#DIV/0!"}]
["Servicios Administrativos"]
["Artículo 15. Telefonía.",null,null,null,{"$f":"1-(D19/C19)","v":{"$error":"#DIV/0!"}},null,null,null,null,null,null,{"$error":"#DIV/0!"},null,{"$error":"#DIV/0!"},null,{"$error":"#DIV/0!"}]
["Artículo 16 -. Vehículos oficiales.",null,null,null,{"$error":"#DIV/0!"},null,null,null,null,null,null,{"$error":"#DIV/0!"},null,{"$error":"#DIV/0!"},null,{"$error":"#DIV/0!"}]
["Artículo 17 -. Adquisición de vehículos y maquinaria.",null,null,null,{"$error":"#DIV/0!"},null,null,null,null,null,null,{"$error":"#DIV/0!"},null,{"$error":"#DIV/0!"},null,{"$error":"#DIV/0!"}]
["Artículo 18 -. Fotocopiado, multicopiado e impresión.",null,null,null,{"$error":"#DIV/0!"},null,null,null,null,null,null,{"$error":"#DIV/0!"},null,{"$error":"#DIV/0!"},null,{"$error":"#DIV/0!"}]
["Artículo 19 -. Publicidad distrital.",null,null,null,{"$error":"#DIV/0!"},null,null,null,null,null,null,{"$error":"#DIV/0!"},null,{"$error":"#DIV/0!"},null,{"$error":"#DIV/0!"}]
["Artículo 20 -. Cajas menores.",null,null,null,{"$error":"#DIV/0!"},null,null,null,null,null,null,{"$error":"#DIV/0!"},null,{"$error":"#DIV/0!"},null,{"$error":"#DIV/0!"}]
["Artículo 21 -. Mantenimiento o reparación de bienes inmuebles o muebles.",null,null,null,{"$error":"#DIV/0!"},null,null,null,null,null,null,{"$error":"#DIV/0!"},null,{"$error":"#DIV/0!"},null,{"$error":"#DIV/0!"}]
["Artículo 22 -. Suscripciones.",null,null,null,{"$error":"#DIV/0!"},null,null,null,null,null,null,{"$error":"#DIV/0!"},null,{"$error":"#DIV/0!"},null,{"$error":"#DIV/0!"}]
["Artículo 23 -. Servicios públicos.",null,null,null,{"$error":"#DIV/0!"},null,null,null,null,null,null,{"$error":"#DIV/0!"},null,{"$error":"#DIV/0!"},null,{"$error":"#DIV/0!"}]

{"sheet":"0100-01 CONCEJO","index":21,"n_rows":27,"n_cols":16,"rows_kept":27,"cut":false,"hidden":false,"merged":[[5,10,5,11],[5,12,5,13],[5,14,5,15],[1,1,1,4],[3,0,6,0],[3,1,6,1],[3,2,4,4],[3,5,3,9],[3,10,4,15],[4,5,6,5],[4,6,6,6],[4,7,5,9],[5,3,5,4]]}
["PLAN DE AUSTERIDAD EN EL GASTO 2025-2027"]
["Entidad"," "]
["Valores en Pesos Corrientes"]
["CONCEPTO\n(Decreto 062 de 2024)","Posiciones Presupuestales Asociadas\n(Funcionamiento e Inversión)","LÍNEA BASE",null,null,"PLAN DE AUSTERIDAD EN EL GASTO 2025-2027",null,null,null,null,"SEGUIMIENTO RESULTADOS PLAN DE AUSTERIDAD 2025-2027"]
[null,null,null,null,null,"ESTRATEGIAS\n2025-2027","ACCIONES\n2025-2027","META INDICADOR DE AUSTERIDAD"]
[null,null,"AÑO 2023","AÑO 2024",null,null,null,null,null,null,"AÑO 2025",null,"AÑO 2026",null,"AÑO 2027"]
[null,null,"Valor EJECUTADO\na 31/12/2023","Valor EJECUTADO\na 31/12/2024","Resultado\nIndicador Austeridad",null,null,"AÑO 2025","AÑO 2026","AÑO 2027","Valor EJECUTADO\na 31/12/2025","Resultado\nIndicador Austeridad","Valor EJECUTADO\na 31/12/2026","Resultado\nIndicador Austeridad","Valor EJECUTADO\na 31/12/2027","Resultado\nIndicador Austeridad"]
["Servicios de personal"]
["Artículo 6°.- Reducción del gasto en CPS profesionales y de apoyo a la gestión. ","N.A.  \nSe registran totales. Corresponde con lo reportado en SIDEAP y SIVICOF",25973933571,22967979900,{"$f":"1-(D9/C9)","v":0.11572962804356135},"Uso eficiente de los cupos de contratación definidos","1. Resétar los topes definidos para contratación de OPS  - 2. Contrtara con personas jurídicas los servicios permanentes - 3. Colocar las responsabilidades estrategicas de algunas áreas en personal de planta y dimisnuir la dependencia de OPS.",0,0.01,0.01,null,{"$f":"1-(K9/D9)","v":1},null,{"$f":"1-(M9/K9)","v":{"$error":"#DIV/0!"}},null,{"$f":"1-(O9/M9)","v":{"$error":"#DIV/0!"}}]
["Artículo 7°.- Horas extras, dominicales y festivos. ","O211010100102           Horas extras, dominicales, festivos y recargos",189750198,301572969,-0.58931570126741062,"Racionalización de consumo y autorización de  horas extras, ","1. La autorización de horas extras en las entidades y organismos distritales sólo se hará efectiva cuando sea estrictamente necesario para atender asuntos del servicio reales e imprescindibles y en ningún caso de carácter permanente.",0,0,0,null,{"$f":"1-(K10/D10)","v":1},null,{"$f":"1-(M10/K10)","v":{"$error":"#DIV/0!"}},null,{"$error":"#DIV/0!"}]
["Artículo 8°.- Viáticos y gastos de viaje.","O2120202010             Viáticos de los funcionarios en comisión",27476997,4328115,0.84248224069027633,"Racionalización en la autorización de viáticos y gastos de viaje","1. Incentivar la comunicación derivada de eventos mediante el uso de herramientas informáticas y diminución de desplazamientos .",0,0,0,null,1,null,{"$error":"#DIV/0!"},null,{"$error":"#DIV/0!"}]
["Artículo 9°.- Compensación por vacaciones.","O211020300102           Indemnización por vacaciones",1375203331,2081302319,-0.51345060914486695,"Control de vacaciones anual y no capitalización de periodos sin disfrute de las mismas.","1. Adoptar medidas para que los servidores disfruten sus periodos de vacaciones al siguiente año de cumplirlas y así evitar que al momento del retiro el servidor tenga periodos acumulados",0,0,0,null,1,null,{"$error":"#DIV/0!"},null,{"$error":"#DIV/0!"}]
["Artículo 10°.- Bono navideño.","O21202020090696511  Servicios de promoción de eventos deportivos y recreativos",104275000,122000000,-0.16998321745384803,"Negociación conjunta","1. Adelantar proceso de negocIación conjunta para lograr eficiencia de costos.",0,0,0,null,1,null,{"$error":"#DIV/0!"},null,{"$error":"#DIV/0!"}]
["Artículo 11 -. Capacitación.","O21202020090292913      Servicios de educación para la formación y el trab",226659605,350785500,-0.54763130377819191,"Contratación con entidades educatrivas públicas ","1. búsqueda de capacitaciones gratuitas ofrecidas por entidades gubernamentales. ",0,0,0,null,1,null,{"$error":"#DIV/0!"},null,{"$error":"#DIV/0!"}]
["Artículo 12 -. Bienestar.","O21202020090696511      Servicios de promoción de eventos deportivos y recreativos",1131413552,{"$f":"1798852091-122000000","v":1676852091},-0.48208591636173015,"Contro efectivo de las actividades de bienestar autorizadas y realizar procesos de selección para operadores.","1. se confirma la asistencia a las actividades y seleccionando servicios más económicos a los cotizados inicialmente sin sacrificar la calidad. 2. Adherencia a la invitación de las actividades que realiza el Departamento Administrativo del Servicio Civil- DASC que permite que se amplie la oferta de eventos sin incrementar el costo ni hacer uso de los recursos de la entidad.",0,0,0,null,1,null,{"$error":"#DIV/0!"},null,{"$error":"#DIV/0!"}]
["Artículo 13 -. Eventos y conmemoraciones.","NA",0,0,{"$error":"#DIV/0!"},null,null,null,null,null,null,{"$error":"#DIV/0!"},null,{"$error":"#DIV/0!"},null,{"$error":"#DIV/0!"}]
["Artículo 14 -. Fondos educativos.","NA",0,0,{"$error":"#DIV/0!"},null,null,null,null,null,null,{"$error":"#DIV/0!"},null,{"$error":"#DIV/0!"},null,{"$error":"#DIV/0!"}]
["Servicios Administrativos"]
["Artículo 15. Telefonía.","O21202020080484131      Servicios móviles de voz",32649063,8552360,{"$f":"1-(D19/C19)","v":0.73805190060125159},"Contro efectivo de consumo de planes y verificación del uso racional y finalidad del mismo.","1. Verificación al consumo de voz y datos de cada línea activa.  2. Validación de uso conforme a los lineamientos autorizados en los puntos para atención a contribuyentes. 3, Únicamente contar con disposición en los Supercade y en los diferentes canales de difusión de la Secretaría Distrital de Hacienda las líneas móviles para atención a los contribuyentes.",0.01,0.01,0,null,1,null,{"$error":"#DIV/0!"},null,{"$error":"#DIV/0!"}]
["Artículo 16 -. Vehículos oficiales.","O2120201003033331101    Gasolina motor corriente",56837145,54600463,3.9352469234687937E-2,"Control efectivo del conusmo de combustible parque automor.","1 asignación de un cupo máximo de consumo mensual de galones, con seguimiento a través del chip instalado en cada vehículo y con este se registran los datos de tanqueo en la EDS  - 2. De otra parte, se garantiza desde el proceso de contratación que la medida del suministro de combustible sea exacta, requiriendo al contratista contar el registro vigente en el SICOM Indicador de austeridad. 3. Control al sistema de ratsreo satelital de los vehículos.",0,0,0,null,1,null,{"$error":"#DIV/0!"},null,{"$error":"#DIV/0!"}]
["Artículo 17 -. Adquisición de vehículos y maquinaria.","NA",0,0,{"$error":"#DIV/0!"},null,null,null,null,null,null,{"$error":"#DIV/0!"},null,{"$error":"#DIV/0!"},null,{"$error":"#DIV/0!"}]
["Artículo 18 -. Fotocopiado, multicopiado e impresión.","O21202020080585951      Servicios de copia y reproducción - ",108148743,125309277,-0.15867529777946654,"Estrategia de cero papel ","Utilizar el papel por ambas caras para las impresiones.  - Reutilizar el papel (limpio por una cara) para imprimir. - \tEvitar la impresión de correos electrónicos y utilizar la creación de carpetas electrónicas para su archivo.  - Utilizar permanentemente el correo electrónico como medio de envío de documentos en borrador o preliminares para su revisión. -  Digitalizar los documentos generados por la gestión de la Entidad.",0.01,0.01,0.01,null,1,null,{"$error":"#DIV/0!"},null,{"$error":"#DIV/0!"}]
["Artículo 19 -. Publicidad distrital.","O21202020080383619      Otros servicios de publicidad",1336344577,917890657,0.31313324961395794,"Control de la demanda de servicios contratos de edictos.","Se continuará con el control a la publicación de información y edictos en periodicos de amplia circulación remitidos por las áreas misionales mediante la supervisión del contratro de edictos",0.01,0,0,null,1,null,{"$error":"#DIV/0!"},null,{"$error":"#DIV/0!"}]
["Artículo 20 -. Cajas menores.","Varios Rubros",130475387,28259291,0.78341285931575744,"Optimización  en la gestión de gastos incluidos en lña caja menor.","Se excluiran gastos como impuestos y demás gastos que cuenten con contrato de los rubros de constitución de caja menor - se definirá linea de gasto directo para el pago de honorarios de secuestres",0.01,0,0,null,1,null,{"$error":"#DIV/0!"},null,{"$error":"#DIV/0!"}]
["Artículo 21 -. Mantenimiento o reparación de bienes inmuebles o muebles.","O2120202005 Servicios de instalación   O212020200807 Servicios de Mantenimiento",2112060877,2397736037,-0.13525896109859148,"Gestón eficiente del plan de mantenimiento de la entidad, focalizados en lo preventivo.","Se ejecutara el Plan de Mantenimiento preventivo de acuerdo con lo establecido por la Entidad -  Se atenderán las solicitudes de mantenimiento creadas por lo funcionarios canalizadas por la mesa de servicios .",0,0,0,null,1,null,{"$error":"#DIV/0!"},null,{"$error":"#DIV/0!"}]
["Artículo 22 -. Suscripciones.","O2120201003023230001 Periódicos impresos publicados cuatro o más veces por semana",1928700,2111700,-9.4882563384663277E-2,"Contratación mínima escencial de  suscripciones","Se continuara con la contratación de lo estrictamente requerido por la entidad y se incentivará la consulta de información en portales de internet.",0,0,0,null,1,null,{"$error":"#DIV/0!"},null,{"$error":"#DIV/0!"}]
["Artículo 23 -. Servicios públicos.","O21202020080484120      Servicios de telefonía fija (acceso) O21202020080686312      Servicios de distribución de electricidad (a comis O21202020090494110      Servicios de alcantarillado y tratamiento de aguas O21202020090494239      Servicios generales de recolección de otros desech",2468984039,2598772103,-5.2567396933261401E-2,"Control de consumo y corrección de fugas por cada uno de los servicios públicos.","1. A través del contrato de mantenimiento se realizarán  revisiones preventivas que garantizan que opere eficazmente el sistema eléctrico.     -2.   Se continura con la  dimerización en los pisos  (dimmer o atenuador de luz es un sensor que sirve para regular la intensidad de la luz o la luminosidad de acuerdo con la luz natural existente en el lugar).  3.  Las carteleras virtuales se mantendrán  apagadas en horarios no hábiles  4.  Los equipos de impresión se mantenderán en ahorro de energia. 5. Se revisaran  preventivamente  los puntos hidráulicos de las sedes para distribuir la cantidad de agua necesaria y evitar desperdicios y sobrepresiones. 6. Se continuara con el mantenimiento de  redes de recolección de aguas lluvias, mejorando el sistema de bombeo de las aguas lluvias  7. Se realizara la instalación de medidores de agua para independizar la lectura de agua por entidad y definir estrategias d eahorro por cada unidad de conusmo.",0,0,0,null,1,null,{"$error":"#DIV/0!"},null,{"$error":"#DIV/0!"}]

{"sheet":"0102-01 PERSONERIA","index":22,"n_rows":27,"n_cols":16,"rows_kept":27,"cut":false,"hidden":false,"merged":[[5,10,5,11],[5,12,5,13],[5,14,5,15],[1,1,1,4],[3,0,6,0],[3,1,6,1],[3,2,4,4],[3,5,3,9],[3,10,4,15],[4,5,6,5],[4,6,6,6],[4,7,5,9],[5,3,5,4]]}
["PLAN DE AUSTERIDAD EN EL GASTO 2025-2027"]
["Entidad"," "]
["Valores en Pesos Corrientes"]
["CONCEPTO\n(Decreto 062 de 2024)","Posiciones Presupuestales Asociadas\n(Funcionamiento e Inversión)","LÍNEA BASE",null,null,"PLAN DE AUSTERIDAD EN EL GASTO 2025-2027",null,null,null,null,"SEGUIMIENTO RESULTADOS PLAN DE AUSTERIDAD 2025-2027"]
[null,null,null,null,null,"ESTRATEGIAS\n2025-2027","ACCIONES\n2025-2027","META INDICADOR DE AUSTERIDAD"]
[null,null,"AÑO 2023","AÑO 2024",null,null,null,null,null,null,"AÑO 2025",null,"AÑO 2026",null,"AÑO 2027"]
[null,null,"Valor EJECUTADO\na 31/12/2023","Valor EJECUTADO\na 31/12/2024","Resultado\nIndicador Austeridad",null,null,"AÑO 2025","AÑO 2026","AÑO 2027","Valor EJECUTADO\na 31/12/2025","Resultado\nIndicador Austeridad","Valor EJECUTADO\na 31/12/2026","Resultado\nIndicador Austeridad","Valor EJECUTADO\na 31/12/2027","Resultado\nIndicador Austeridad"]
["Servicios de personal"]
["Artículo 6°.- Reducción del gasto en CPS profesionales y de apoyo a la gestión. ","N.A.  \nSe registran totales. Corresponde con lo reportado en SIDEAP y SIVICOF",null,null,{"$f":"1-(D9/C9)","v":{"$error":"#DIV/0!"}},null,null,null,null,null,null,{"$f":"1-(K9/D9)","v":{"$error":"#DIV/0!"}},null,{"$f":"1-(M9/K9)","v":{"$error":"#DIV/0!"}},null,{"$f":"1-(O9/M9)","v":{"$error":"#DIV/0!"}}]
["Artículo 7°.- Horas extras, dominicales y festivos. ",null,null,null,{"$error":"#DIV/0!"},null,null,null,null,null,null,{"$f":"1-(K10/D10)","v":{"$error":"#DIV/0!"}},null,{"$f":"1-(M10/K10)","v":{"$error":"#DIV/0!"}},null,{"$error":"#DIV/0!"}]
["Artículo 8°.- Viáticos y gastos de viaje.",null,null,null,{"$error":"#DIV/0!"},null,null,null,null,null,null,{"$error":"#DIV/0!"},null,{"$error":"#DIV/0!"},null,{"$error":"#DIV/0!"}]
["Artículo 9°.- Compensación por vacaciones.",null,null,null,{"$error":"#DIV/0!"},null,null,null,null,null,null,{"$error":"#DIV/0!"},null,{"$error":"#DIV/0!"},null,{"$error":"#DIV/0!"}]
["Artículo 10°.- Bono navideño.",null,null,null,{"$error":"#DIV/0!"},null,null,null,null,null,null,{"$error":"#DIV/0!"},null,{"$error":"#DIV/0!"},null,{"$error":"#DIV/0!"}]
["Artículo 11 -. Capacitación.",null,null,null,{"$error":"#DIV/0!"},null,null,null,null,null,null,{"$error":"#DIV/0!"},null,{"$error":"#DIV/0!"},null,{"$error":"#DIV/0!"}]
["Artículo 12 -. Bienestar.",null,null,null,{"$error":"#DIV/0!"},null,null,null,null,null,null,{"$error":"#DIV/0!"},null,{"$error":"#DIV/0!"},null,{"$error":"#DIV/0!"}]
["Artículo 13 -. Eventos y conmemoraciones.",null,null,null,{"$error":"#DIV/0!"},null,null,null,null,null,null,{"$error":"#DIV/0!"},null,{"$error":"#DIV/0!"},null,{"$error":"#DIV/0!"}]
["Artículo 14 -. Fondos educativos.",null,null,null,{"$error":"#DIV/0!"},null,null,null,null,null,null,{"$error":"#DIV/0!"},null,{"$error":"#DIV/0!"},null,{"$error":"#DIV/0!"}]
["Servicios Administrativos"]
["Artículo 15. Telefonía.",null,null,null,{"$f":"1-(D19/C19)","v":{"$error":"#DIV/0!"}},null,null,null,null,null,null,{"$error":"#DIV/0!"},null,{"$error":"#DIV/0!"},null,{"$error":"#DIV/0!"}]
["Artículo 16 -. Vehículos oficiales.",null,null,null,{"$error":"#DIV/0!"},null,null,null,null,null,null,{"$error":"#DIV/0!"},null,{"$error":"#DIV/0!"},null,{"$error":"#DIV/0!"}]
["Artículo 17 -. Adquisición de vehículos y maquinaria.",null,null,null,{"$error":"#DIV/0!"},null,null,null,null,null,null,{"$error":"#DIV/0!"},null,{"$error":"#DIV/0!"},null,{"$error":"#DIV/0!"}]
["Artículo 18 -. Fotocopiado, multicopiado e impresión.",null,null,null,{"$error":"#DIV/0!"},null,null,null,null,null,null,{"$error":"#DIV/0!"},null,{"$error":"#DIV/0!"},null,{"$error":"#DIV/0!"}]
["Artículo 19 -. Publicidad distrital.",null,null,null,{"$error":"#DIV/0!"},null,null,null,null,null,null,{"$error":"#DIV/0!"},null,{"$error":"#DIV/0!"},null,{"$error":"#DIV/0!"}]
["Artículo 20 -. Cajas menores.",null,null,null,{"$error":"#DIV/0!"},null,null,null,null,null,null,{"$error":"#DIV/0!"},null,{"$error":"#DIV/0!"},null,{"$error":"#DIV/0!"}]
["Artículo 21 -. Mantenimiento o reparación de bienes inmuebles o muebles.",null,null,null,{"$error":"#DIV/0!"},null,null,null,null,null,null,{"$error":"#DIV/0!"},null,{"$error":"#DIV/0!"},null,{"$error":"#DIV/0!"}]
["Artículo 22 -. Suscripciones.",null,null,null,{"$error":"#DIV/0!"},null,null,null,null,null,null,{"$error":"#DIV/0!"},null,{"$error":"#DIV/0!"},null,{"$error":"#DIV/0!"}]
["Artículo 23 -. Servicios públicos.",null,null,null,{"$error":"#DIV/0!"},null,null,null,null,null,null,{"$error":"#DIV/0!"},null,{"$error":"#DIV/0!"},null,{"$error":"#DIV/0!"}]

{"sheet":"0104-01 SECRETARÍA GENERAL","index":23,"n_rows":27,"n_cols":16,"rows_kept":27,"cut":false,"hidden":false,"merged":[[5,10,5,11],[5,12,5,13],[5,14,5,15],[1,1,1,4],[3,0,6,0],[3,1,6,1],[3,2,4,4],[3,5,3,9],[3,10,4,15],[4,5,6,5],[4,6,6,6],[4,7,5,9],[5,3,5,4]]}
[8502]
["Entidad"," "]
["Valores en Pesos Corrientes"]
["CONCEPTO\n(Decreto 062 de 2024)","Posiciones Presupuestales Asociadas\n(Funcionamiento e Inversión)","LÍNEA BASE",null,null,"PLAN DE AUSTERIDAD EN EL GASTO 2025-2027",null,null,null,null,"SEGUIMIENTO RESULTADOS PLAN DE AUSTERIDAD 2025-2027"]
[null,null,null,null,null,"ESTRATEGIAS\n2025-2027","ACCIONES\n2025-2027","META INDICADOR DE AUSTERIDAD"]
[null,null,"AÑO 2023","AÑO 2024",null,null,null,null,null,null,"AÑO 2025",null,"AÑO 2026",null,"AÑO 2027"]
[null,null,"Valor EJECUTADO\na 31/12/2023","Valor EJECUTADO\na 31/12/2024","Resultado\nIndicador Austeridad",null,null,"AÑO 2025","AÑO 2026","AÑO 2027","Valor EJECUTADO\na 31/12/2025","Resultado\nIndicador Austeridad","Valor EJECUTADO\na 31/12/2026","Resultado\nIndicador Austeridad","Valor EJECUTADO\na 31/12/2027","Resultado\nIndicador Austeridad"]
["Servicios de personal"]
["Artículo 6°.- Reducción del gasto en CPS profesionales y de apoyo a la gestión. ","N.A.  \nSe registran totales. Corresponde con lo reportado en SIDEAP y SIVICOF",null,null,{"$f":"1-(D9/C9)","v":{"$error":"#DIV/0!"}},null,null,null,null,null,null,{"$f":"1-(K9/D9)","v":{"$error":"#DIV/0!"}},null,{"$f":"1-(M9/K9)","v":{"$error":"#DIV/0!"}},null,{"$f":"1-(O9/M9)","v":{"$error":"#DIV/0!"}}]
["Artículo 7°.- Horas extras, dominicales y festivos. ",null,null,null,{"$error":"#DIV/0!"},null,null,null,null,null,null,{"$f":"1-(K10/D10)","v":{"$error":"#DIV/0!"}},null,{"$f":"1-(M10/K10)","v":{"$error":"#DIV/0!"}},null,{"$error":"#DIV/0!"}]
["Artículo 8°.- Viáticos y gastos de viaje.",null,null,null,{"$error":"#DIV/0!"},null,null,null,null,null,null,{"$error":"#DIV/0!"},null,{"$error":"#DIV/0!"},null,{"$error":"#DIV/0!"}]
["Artículo 9°.- Compensación por vacaciones.",null,null,null,{"$error":"#DIV/0!"},null,null,null,null,null,null,{"$error":"#DIV/0!"},null,{"$error":"#DIV/0!"},null,{"$error":"#DIV/0!"}]
["Artículo 10°.- Bono navideño.",null,null,null,{"$error":"#DIV/0!"},null,null,null,null,null,null,{"$error":"#DIV/0!"},null,{"$error":"#DIV/0!"},null,{"$error":"#DIV/0!"}]
["Artículo 11 -. Capacitación.",null,null,null,{"$error":"#DIV/0!"},null,null,null,null,null,null,{"$error":"#DIV/0!"},null,{"$error":"#DIV/0!"},null,{"$error":"#DIV/0!"}]
["Artículo 12 -. Bienestar.",null,null,null,{"$error":"#DIV/0!"},null,null,null,null,null,null,{"$error":"#DIV/0!"},null,{"$error":"#DIV/0!"},null,{"$error":"#DIV/0!"}]
["Artículo 13 -. Eventos y conmemoraciones.",null,null,null,{"$error":"#DIV/0!"},null,null,null,null,null,null,{"$error":"#DIV/0!"},null,{"$error":"#DIV/0!"},null,{"$error":"#DIV/0!"}]
["Artículo 14 -. Fondos educativos.",null,null,null,{"$error":"#DIV/0!"},null,null,null,null,null,null,{"$error":"#DIV/0!"},null,{"$error":"#DIV/0!"},null,{"$error":"#DIV/0!"}]
["Servicios Administrativos"]
["Artículo 15. Telefonía.",null,null,null,{"$f":"1-(D19/C19)","v":{"$error":"#DIV/0!"}},null,null,null,null,null,null,{"$error":"#DIV/0!"},null,{"$error":"#DIV/0!"},null,{"$error":"#DIV/0!"}]
["Artículo 16 -. Vehículos oficiales.",null,null,null,{"$error":"#DIV/0!"},null,null,null,null,null,null,{"$error":"#DIV/0!"},null,{"$error":"#DIV/0!"},null,{"$error":"#DIV/0!"}]
["Artículo 17 -. Adquisición de vehículos y maquinaria.",null,null,null,{"$error":"#DIV/0!"},null,null,null,null,null,null,{"$error":"#DIV/0!"},null,{"$error":"#DIV/0!"},null,{"$error":"#DIV/0!"}]
["Artículo 18 -. Fotocopiado, multicopiado e impresión.",null,null,null,{"$error":"#DIV/0!"},null,null,null,null,null,null,{"$error":"#DIV/0!"},null,{"$error":"#DIV/0!"},null,{"$error":"#DIV/0!"}]
["Artículo 19 -. Publicidad distrital.",null,null,null,{"$error":"#DIV/0!"},null,null,null,null,null,null,{"$error":"#DIV/0!"},null,{"$error":"#DIV/0!"},null,{"$error":"#DIV/0!"}]
["Artículo 20 -. Cajas menores.",null,null,null,{"$error":"#DIV/0!"},null,null,null,null,null,null,{"$error":"#DIV/0!"},null,{"$error":"#DIV/0!"},null,{"$error":"#DIV/0!"}]
["Artículo 21 -. Mantenimiento o reparación de bienes inmuebles o muebles.",null,null,null,{"$error":"#DIV/0!"},null,null,null,null,null,null,{"$error":"#DIV/0!"},null,{"$error":"#DIV/0!"},null,{"$error":"#DIV/0!"}]
["Artículo 22 -. Suscripciones.",null,null,null,{"$error":"#DIV/0!"},null,null,null,null,null,null,{"$error":"#DIV/0!"},null,{"$error":"#DIV/0!"},null,{"$error":"#DIV/0!"}]
["Artículo 23 -. Servicios públicos.",null,null,null,{"$error":"#DIV/0!"},null,null,null,null,null,null,{"$error":"#DIV/0!"},null,{"$error":"#DIV/0!"},null,{"$error":"#DIV/0!"}]

{"sheet":"0105-01 VEEDURIA","index":24,"n_rows":27,"n_cols":16,"rows_kept":27,"cut":false,"hidden":false,"merged":[[5,10,5,11],[5,12,5,13],[5,14,5,15],[1,1,1,4],[3,0,6,0],[3,1,6,1],[3,2,4,4],[3,5,3,9],[3,10,4,15],[4,5,6,5],[4,6,6,6],[4,7,5,9],[5,3,5,4]]}
["PLAN DE AUSTERIDAD EN EL GASTO 2025-2027"]
["Entidad"," "]
["Valores en Pesos Corrientes"]
["CONCEPTO\n(Decreto 062 de 2024)","Posiciones Presupuestales Asociadas\n(Funcionamiento e Inversión)","LÍNEA BASE",null,null,"PLAN DE AUSTERIDAD EN EL GASTO 2025-2027",null,null,null,null,"SEGUIMIENTO RESULTADOS PLAN DE AUSTERIDAD 2025-2027"]
[null,null,null,null,null,"ESTRATEGIAS\n2025-2027","ACCIONES\n2025-2027","META INDICADOR DE AUSTERIDAD"]
[null,null,"AÑO 2023","AÑO 2024",null,null,null,null,null,null,"AÑO 2025",null,"AÑO 2026",null,"AÑO 2027"]
[null,null,"Valor EJECUTADO\na 31/12/2023","Valor EJECUTADO\na 31/12/2024","Resultado\nIndicador Austeridad",null,null,"AÑO 2025","AÑO 2026","AÑO 2027","Valor EJECUTADO\na 31/12/2025","Resultado\nIndicador Austeridad","Valor EJECUTADO\na 31/12/2026","Resultado\nIndicador Austeridad","Valor EJECUTADO\na 31/12/2027","Resultado\nIndicador Austeridad"]
["Servicios de personal"]
["Artículo 6°.- Reducción del gasto en CPS profesionales y de apoyo a la gestión. ","N.A.  \nSe registran totales. Corresponde con lo reportado en SIDEAP y SIVICOF",null,null,{"$f":"1-(D9/C9)","v":{"$error":"#DIV/0!"}},null,null,null,null,null,null,{"$f":"1-(K9/D9)","v":{"$error":"#DIV/0!"}},null,{"$f":"1-(M9/K9)","v":{"$error":"#DIV/0!"}},null,{"$f":"1-(O9/M9)","v":{"$error":"#DIV/0!"}}]
["Artículo 7°.- Horas extras, dominicales y festivos. ",null,null,null,{"$error":"#DIV/0!"},null,null,null,null,null,null,{"$f":"1-(K10/D10)","v":{"$error":"#DIV/0!"}},null,{"$f":"1-(M10/K10)","v":{"$error":"#DIV/0!"}},null,{"$error":"#DIV/0!"}]
["Artículo 8°.- Viáticos y gastos de viaje.",null,null,null,{"$error":"#DIV/0!"},null,null,null,null,null,null,{"$error":"#DIV/0!"},null,{"$error":"#DIV/0!"},null,{"$error":"#DIV/0!"}]
["Artículo 9°.- Compensación por vacaciones.",null,null,null,{"$error":"#DIV/0!"},null,null,null,null,null,null,{"$error":"#DIV/0!"},null,{"$error":"#DIV/0!"},null,{"$error":"#DIV/0!"}]
["Artículo 10°.- Bono navideño.",null,null,null,{"$error":"#DIV/0!"},null,null,null,null,null,null,{"$error":"#DIV/0!"},null,{"$error":"#DIV/0!"},null,{"$error":"#DIV/0!"}]
["Artículo 11 -. Capacitación.",null,null,null,{"$error":"#DIV/0!"},null,null,null,null,null,null,{"$error":"#DIV/0!"},null,{"$error":"#DIV/0!"},null,{"$error":"#DIV/0!"}]
["Artículo 12 -. Bienestar.",null,null,null,{"$error":"#DIV/0!"},null,null,null,null,null,null,{"$error":"#DIV/0!"},null,{"$error":"#DIV/0!"},null,{"$error":"#DIV/0!"}]
["Artículo 13 -. Eventos y conmemoraciones.",null,null,null,{"$error":"#DIV/0!"},null,null,null,null,null,null,{"$error":"#DIV/0!"},null,{"$error":"#DIV/0!"},null,{"$error":"#DIV/0!"}]
["Artículo 14 -. Fondos educativos.",null,null,null,{"$error":"#DIV/0!"},null,null,null,null,null,null,{"$error":"#DIV/0!"},null,{"$error":"#DIV/0!"},null,{"$error":"#DIV/0!"}]
["Servicios Administrativos"]
["Artículo 15. Telefonía.",null,null,null,{"$f":"1-(D19/C19)","v":{"$error":"#DIV/0!"}},null,null,null,null,null,null,{"$error":"#DIV/0!"},null,{"$error":"#DIV/0!"},null,{"$error":"#DIV/0!"}]
["Artículo 16 -. Vehículos oficiales.",null,null,null,{"$error":"#DIV/0!"},null,null,null,null,null,null,{"$error":"#DIV/0!"},null,{"$error":"#DIV/0!"},null,{"$error":"#DIV/0!"}]
["Artículo 17 -. Adquisición de vehículos y maquinaria.",null,null,null,{"$error":"#DIV/0!"},null,null,null,null,null,null,{"$error":"#DIV/0!"},null,{"$error":"#DIV/0!"},null,{"$error":"#DIV/0!"}]
["Artículo 18 -. Fotocopiado, multicopiado e impresión.",null,null,null,{"$error":"#DIV/0!"},null,null,null,null,null,null,{"$error":"#DIV/0!"},null,{"$error":"#DIV/0!"},null,{"$error":"#DIV/0!"}]
["Artículo 19 -. Publicidad distrital.",null,null,null,{"$error":"#DIV/0!"},null,null,null,null,null,null,{"$error":"#DIV/0!"},null,{"$error":"#DIV/0!"},null,{"$error":"#DIV/0!"}]
["Artículo 20 -. Cajas menores.",null,null,null,{"$error":"#DIV/0!"},null,null,null,null,null,null,{"$error":"#DIV/0!"},null,{"$error":"#DIV/0!"},null,{"$error":"#DIV/0!"}]
["Artículo 21 -. Mantenimiento o reparación de bienes inmuebles o muebles.",null,null,null,{"$error":"#DIV/0!"},null,null,null,null,null,null,{"$error":"#DIV/0!"},null,{"$error":"#DIV/0!"},null,{"$error":"#DIV/0!"}]
["Artículo 22 -. Suscripciones.",null,null,null,{"$error":"#DIV/0!"},null,null,null,null,null,null,{"$error":"#DIV/0!"},null,{"$error":"#DIV/0!"},null,{"$error":"#DIV/0!"}]
["Artículo 23 -. Servicios públicos.",null,null,null,{"$error":"#DIV/0!"},null,null,null,null,null,null,{"$error":"#DIV/0!"},null,{"$error":"#DIV/0!"},null,{"$error":"#DIV/0!"}]

{"sheet":"0111-03 SDH","index":25,"n_rows":27,"n_cols":16,"rows_kept":27,"cut":false,"hidden":false,"merged":[[5,10,5,11],[5,12,5,13],[5,14,5,15],[1,1,1,4],[3,0,6,0],[3,1,6,1],[3,2,4,4],[3,5,3,9],[3,10,4,15],[4,5,6,5],[4,6,6,6],[4,7,5,9],[5,3,5,4]]}
["PLAN DE AUSTERIDAD EN EL GASTO 2025-2027"]
["Entidad"," "]
["Valores en Pesos Corrientes"]
["CONCEPTO\n(Decreto 062 de 2024)","Posiciones Presupuestales Asociadas\n(Funcionamiento e Inversión)","LÍNEA BASE",null,null,"PLAN DE AUSTERIDAD EN EL GASTO 2025-2027",null,null,null,null,"SEGUIMIENTO RESULTADOS PLAN DE AUSTERIDAD 2025-2027"]
[null,null,null,null,null,"ESTRATEGIAS\n2025-2027","ACCIONES\n2025-2027","META INDICADOR DE AUSTERIDAD"]
[null,null,"AÑO 2023","AÑO 2024",null,null,null,null,null,null,"AÑO 2025",null,"AÑO 2026",null,"AÑO 2027"]
[null,null,"Valor EJECUTADO\na 31/12/2023","Valor EJECUTADO\na 31/12/2024","Resultado\nIndicador Austeridad",null,null,"AÑO 2025","AÑO 2026","AÑO 2027","Valor EJECUTADO\na 31/12/2025","Resultado\nIndicador Austeridad","Valor EJECUTADO\na 31/12/2026","Resultado\nIndicador Austeridad","Valor EJECUTADO\na 31/12/2027","Resultado\nIndicador Austeridad"]
["Servicios de personal"]
["Artículo 6°.- Reducción del gasto en CPS profesionales y de apoyo a la gestión. ","N.A.  \nSe registran totales. Corresponde con lo reportado en SIDEAP y SIVICOF",null,null,{"$f":"1-(D9/C9)","v":{"$error":"#DIV/0!"}},null,null,null,null,null,null,{"$f":"1-(K9/D9)","v":{"$error":"#DIV/0!"}},null,{"$f":"1-(M9/K9)","v":{"$error":"#DIV/0!"}},null,{"$f":"1-(O9/M9)","v":{"$error":"#DIV/0!"}}]
["Artículo 7°.- Horas extras, dominicales y festivos. ",null,null,null,{"$error":"#DIV/0!"},null,null,null,null,null,null,{"$f":"1-(K10/D10)","v":{"$error":"#DIV/0!"}},null,{"$f":"1-(M10/K10)","v":{"$error":"#DIV/0!"}},null,{"$error":"#DIV/0!"}]
["Artículo 8°.- Viáticos y gastos de viaje.",null,null,null,{"$error":"#DIV/0!"},null,null,null,null,null,null,{"$error":"#DIV/0!"},null,{"$error":"#DIV/0!"},null,{"$error":"#DIV/0!"}]
["Artículo 9°.- Compensación por vacaciones.",null,null,null,{"$error":"#DIV/0!"},null,null,null,null,null,null,{"$error":"#DIV/0!"},null,{"$error":"#DIV/0!"},null,{"$error":"#DIV/0!"}]
["Artículo 10°.- Bono navideño.",null,null,null,{"$error":"#DIV/0!"},null,null,null,null,null,null,{"$error":"#DIV/0!"},null,{"$error":"#DIV/0!"},null,{"$error":"#DIV/0!"}]
["Artículo 11 -. Capacitación.",null,null,null,{"$error":"#DIV/0!"},null,null,null,null,null,null,{"$error":"#DIV/0!"},null,{"$error":"#DIV/0!"},null,{"$error":"#DIV/0!"}]
["Artículo 12 -. Bienestar.",null,null,null,{"$error":"#DIV/0!"},null,null,null,null,null,null,{"$error":"#DIV/0!"},null,{"$error":"#DIV/0!"},null,{"$error":"#DIV/0!"}]
["Artículo 13 -. Eventos y conmemoraciones.",null,null,null,{"$error":"#DIV/0!"},null,null,null,null,null,null,{"$error":"#DIV/0!"},null,{"$error":"#DIV/0!"},null,{"$error":"#DIV/0!"}]
["Artículo 14 -. Fondos educativos.",null,null,null,{"$error":"#DIV/0!"},null,null,null,null,null,null,{"$error":"#DIV/0!"},null,{"$error":"#DIV/0!"},null,{"$error":"#DIV/0!"}]
["Servicios Administrativos"]
["Artículo 15. Telefonía.",null,null,null,{"$f":"1-(D19/C19)","v":{"$error":"#DIV/0!"}},null,null,null,null,null,null,{"$error":"#DIV/0!"},null,{"$error":"#DIV/0!"},null,{"$error":"#DIV/0!"}]
["Artículo 16 -. Vehículos oficiales.",null,null,null,{"$error":"#DIV/0!"},null,null,null,null,null,null,{"$error":"#DIV/0!"},null,{"$error":"#DIV/0!"},null,{"$error":"#DIV/0!"}]
["Artículo 17 -. Adquisición de vehículos y maquinaria.",null,null,null,{"$error":"#DIV/0!"},null,null,null,null,null,null,{"$error":"#DIV/0!"},null,{"$error":"#DIV/0!"},null,{"$error":"#DIV/0!"}]
["Artículo 18 -. Fotocopiado, multicopiado e impresión.",null,null,null,{"$error":"#DIV/0!"},null,null,null,null,null,null,{"$error":"#DIV/0!"},null,{"$error":"#DIV/0!"},null,{"$error":"#DIV/0!"}]
["Artículo 19 -. Publicidad distrital.",null,null,null,{"$error":"#DIV/0!"},null,null,null,null,null,null,{"$error":"#DIV/0!"},null,{"$error":"#DIV/0!"},null,{"$error":"#DIV/0!"}]
["Artículo 20 -. Cajas menores.",null,null,null,{"$error":"#DIV/0!"},null,null,null,null,null,null,{"$error":"#DIV/0!"},null,{"$error":"#DIV/0!"},null,{"$error":"#DIV/0!"}]
["Artículo 21 -. Mantenimiento o reparación de bienes inmuebles o muebles.",null,null,null,{"$error":"#DIV/0!"},null,null,null,null,null,null,{"$error":"#DIV/0!"},null,{"$error":"#DIV/0!"},null,{"$error":"#DIV/0!"}]
["Artículo 22 -. Suscripciones.",null,null,null,{"$error":"#DIV/0!"},null,null,null,null,null,null,{"$error":"#DIV/0!"},null,{"$error":"#DIV/0!"},null,{"$error":"#DIV/0!"}]
["Artículo 23 -. Servicios públicos.",null,null,null,{"$error":"#DIV/0!"},null,null,null,null,null,null,{"$error":"#DIV/0!"},null,{"$error":"#DIV/0!"},null,{"$error":"#DIV/0!"}]

{"sheet":"0110-01 SDG","index":26,"n_rows":27,"n_cols":16,"rows_kept":27,"cut":false,"hidden":false,"merged":[[5,10,5,11],[5,12,5,13],[5,14,5,15],[1,1,1,4],[3,0,6,0],[3,1,6,1],[3,2,4,4],[3,5,3,9],[3,10,4,15],[4,5,6,5],[4,6,6,6],[4,7,5,9],[5,3,5,4]]}
["PLAN DE AUSTERIDAD EN EL GASTO 2025-2027"]
["Entidad"," "]
["Valores en Pesos Corrientes"]
["CONCEPTO\n(Decreto 062 de 2024)","Posiciones Presupuestales Asociadas\n(Funcionamiento e Inversión)","LÍNEA BASE",null,null,"PLAN DE AUSTERIDAD EN EL GASTO 2025-2027",null,null,null,null,"SEGUIMIENTO RESULTADOS PLAN DE AUSTERIDAD 2025-2027"]
[null,null,null,null,null,"ESTRATEGIAS\n2025-2027","ACCIONES\n2025-2027","META INDICADOR DE AUSTERIDAD"]
[null,null,"AÑO 2023","AÑO 2024",null,null,null,null,null,null,"AÑO 2025",null,"AÑO 2026",null,"AÑO 2027"]
[null,null,"Valor EJECUTADO\na 31/12/2023","Valor EJECUTADO\na 31/12/2024","Resultado\nIndicador Austeridad",null,null,"AÑO 2025","AÑO 2026","AÑO 2027","Valor EJECUTADO\na 31/12/2025","Resultado\nIndicador Austeridad","Valor EJECUTADO\na 31/12/2026","Resultado\nIndicador Austeridad","Valor EJECUTADO\na 31/12/2027","Resultado\nIndicador Austeridad"]
["Servicios de personal"]
["Artículo 6°.- Reducción del gasto en CPS profesionales y de apoyo a la gestión. ","N.A.  \nSe registran totales. Corresponde con lo reportado en SIDEAP y SIVICOF",null,null,{"$f":"1-(D9/C9)","v":{"$error":"#DIV/0!"}},null,null,null,null,null,null,{"$f":"1-(K9/D9)","v":{"$error":"#DIV/0!"}},null,{"$f":"1-(M9/K9)","v":{"$error":"#DIV/0!"}},null,{"$f":"1-(O9/M9)","v":{"$error":"#DIV/0!"}}]
["Artículo 7°.- Horas extras, dominicales y festivos. ",null,null,null,{"$error":"#DIV/0!"},null,null,null,null,null,null,{"$f":"1-(K10/D10)","v":{"$error":"#DIV/0!"}},null,{"$f":"1-(M10/K10)","v":{"$error":"#DIV/0!"}},null,{"$error":"#DIV/0!"}]
["Artículo 8°.- Viáticos y gastos de viaje.",null,null,null,{"$error":"#DIV/0!"},null,null,null,null,null,null,{"$error":"#DIV/0!"},null,{"$error":"#DIV/0!"},null,{"$error":"#DIV/0!"}]
["Artículo 9°.- Compensación por vacaciones.",null,null,null,{"$error":"#DIV/0!"},null,null,null,null,null,null,{"$error":"#DIV/0!"},null,{"$error":"#DIV/0!"},null,{"$error":"#DIV/0!"}]
["Artículo 10°.- Bono navideño.",null,null,null,{"$error":"#DIV/0!"},null,null,null,null,null,null,{"$error":"#DIV/0!"},null,{"$error":"#DIV/0!"},null,{"$error":"#DIV/0!"}]
["Artículo 11 -. Capacitación.",null,null,null,{"$error":"#DIV/0!"},null,null,null,null,null,null,{"$error":"#DIV/0!"},null,{"$error":"#DIV/0!"},null,{"$error":"#DIV/0!"}]
["Artículo 12 -. Bienestar.",null,null,null,{"$error":"#DIV/0!"},null,null,null,null,null,null,{"$error":"#DIV/0!"},null,{"$error":"#DIV/0!"},null,{"$error":"#DIV/0!"}]
["Artículo 13 -. Eventos y conmemoraciones.",null,null,null,{"$error":"#DIV/0!"},null,null,null,null,null,null,{"$error":"#DIV/0!"},null,{"$error":"#DIV/0!"},null,{"$error":"#DIV/0!"}]
["Artículo 14 -. Fondos educativos.",null,null,null,{"$error":"#DIV/0!"},null,null,null,null,null,null,{"$error":"#DIV/0!"},null,{"$error":"#DIV/0!"},null,{"$error":"#DIV/0!"}]
["Servicios Administrativos"]
["Artículo 15. Telefonía.",null,null,null,{"$f":"1-(D19/C19)","v":{"$error":"#DIV/0!"}},null,null,null,null,null,null,{"$error":"#DIV/0!"},null,{"$error":"#DIV/0!"},null,{"$error":"#DIV/0!"}]
["Artículo 16 -. Vehículos oficiales.",null,null,null,{"$error":"#DIV/0!"},null,null,null,null,null,null,{"$error":"#DIV/0!"},null,{"$error":"#DIV/0!"},null,{"$error":"#DIV/0!"}]
["Artículo 17 -. Adquisición de vehículos y maquinaria.",null,null,null,{"$error":"#DIV/0!"},null,null,null,null,null,null,{"$error":"#DIV/0!"},null,{"$error":"#DIV/0!"},null,{"$error":"#DIV/0!"}]
["Artículo 18 -. Fotocopiado, multicopiado e impresión.",null,null,null,{"$error":"#DIV/0!"},null,null,null,null,null,null,{"$error":"#DIV/0!"},null,{"$error":"#DIV/0!"},null,{"$error":"#DIV/0!"}]
["Artículo 19 -. Publicidad distrital.",null,null,null,{"$error":"#DIV/0!"},null,null,null,null,null,null,{"$error":"#DIV/0!"},null,{"$error":"#DIV/0!"},null,{"$error":"#DIV/0!"}]
["Artículo 20 -. Cajas menores.",null,null,null,{"$error":"#DIV/0!"},null,null,null,null,null,null,{"$error":"#DIV/0!"},null,{"$error":"#DIV/0!"},null,{"$error":"#DIV/0!"}]
["Artículo 21 -. Mantenimiento o reparación de bienes inmuebles o muebles.",null,null,null,{"$error":"#DIV/0!"},null,null,null,null,null,null,{"$error":"#DIV/0!"},null,{"$error":"#DIV/0!"},null,{"$error":"#DIV/0!"}]
["Artículo 22 -. Suscripciones.",null,null,null,{"$error":"#DIV/0!"},null,null,null,null,null,null,{"$error":"#DIV/0!"},null,{"$error":"#DIV/0!"},null,{"$error":"#DIV/0!"}]
["Artículo 23 -. Servicios públicos.",null,null,null,{"$error":"#DIV/0!"},null,null,null,null,null,null,{"$error":"#DIV/0!"},null,{"$error":"#DIV/0!"},null,{"$error":"#DIV/0!"}]

{"sheet":"0111-01 SDH","index":27,"n_rows":27,"n_cols":16,"rows_kept":27,"cut":false,"hidden":false,"merged":[[5,10,5,11],[5,12,5,13],[5,14,5,15],[1,1,1,4],[3,0,6,0],[3,1,6,1],[3,2,4,4],[3,5,3,9],[3,10,4,15],[4,5,6,5],[4,6,6,6],[4,7,5,9],[5,3,5,4]]}
["PLAN DE AUSTERIDAD EN EL GASTO 2025-2027"]
["Entidad"," "]
["Valores en Pesos Corrientes"]
["CONCEPTO\n(Decreto 062 de 2024)","Posiciones Presupuestales Asociadas\n(Funcionamiento e Inversión)","LÍNEA BASE",null,null,"PLAN DE AUSTERIDAD EN EL GASTO 2025-2027",null,null,null,null,"SEGUIMIENTO RESULTADOS PLAN DE AUSTERIDAD 2025-2027"]
[null,null,null,null,null,"ESTRATEGIAS\n2025-2027","ACCIONES\n2025-2027","META INDICADOR DE AUSTERIDAD"]
[null,null,"AÑO 2023","AÑO 2024",null,null,null,null,null,null,"AÑO 2025",null,"AÑO 2026",null,"AÑO 2027"]
[null,null,"Valor EJECUTADO\na 31/12/2023","Valor EJECUTADO\na 31/12/2024","Resultado\nIndicador Austeridad",null,null,"AÑO 2025","AÑO 2026","AÑO 2027","Valor EJECUTADO\na 31/12/2025","Resultado\nIndicador Austeridad","Valor EJECUTADO\na 31/12/2026","Resultado\nIndicador Austeridad","Valor EJECUTADO\na 31/12/2027","Resultado\nIndicador Austeridad"]
["Servicios de personal"]
["Artículo 6°.- Reducción del gasto en CPS profesionales y de apoyo a la gestión. ","N.A.  \nSe registran totales. Corresponde con lo reportado en SIDEAP y SIVICOF",null,null,{"$f":"1-(D9/C9)","v":{"$error":"#DIV/0!"}},null,null,null,null,null,null,{"$f":"1-(K9/D9)","v":{"$error":"#DIV/0!"}},null,{"$f":"1-(M9/K9)","v":{"$error":"#DIV/0!"}},null,{"$f":"1-(O9/M9)","v":{"$error":"#DIV/0!"}}]
["Artículo 7°.- Horas extras, dominicales y festivos. ",null,null,null,{"$error":"#DIV/0!"},null,null,null,null,null,null,{"$f":"1-(K10/D10)","v":{"$error":"#DIV/0!"}},null,{"$f":"1-(M10/K10)","v":{"$error":"#DIV/0!"}},null,{"$error":"#DIV/0!"}]
["Artículo 8°.- Viáticos y gastos de viaje.",null,null,null,{"$error":"#DIV/0!"},null,null,null,null,null,null,{"$error":"#DIV/0!"},null,{"$error":"#DIV/0!"},null,{"$error":"#DIV/0!"}]
["Artículo 9°.- Compensación por vacaciones.",null,null,null,{"$error":"#DIV/0!"},null,null,null,null,null,null,{"$error":"#DIV/0!"},null,{"$error":"#DIV/0!"},null,{"$error":"#DIV/0!"}]
["Artículo 10°.- Bono navideño.",null,null,null,{"$error":"#DIV/0!"},null,null,null,null,null,null,{"$error":"#DIV/0!"},null,{"$error":"#DIV/0!"},null,{"$error":"#DIV/0!"}]
["Artículo 11 -. Capacitación.",null,null,null,{"$error":"#DIV/0!"},null,null,null,null,null,null,{"$error":"#DIV/0!"},null,{"$error":"#DIV/0!"},null,{"$error":"#DIV/0!"}]
["Artículo 12 -. Bienestar.",null,null,null,{"$error":"#DIV/0!"},null,null,null,null,null,null,{"$error":"#DIV/0!"},null,{"$error":"#DIV/0!"},null,{"$error":"#DIV/0!"}]
["Artículo 13 -. Eventos y conmemoraciones.",null,null,null,{"$error":"#DIV/0!"},null,null,null,null,null,null,{"$error":"#DIV/0!"},null,{"$error":"#DIV/0!"},null,{"$error":"#DIV/0!"}]
["Artículo 14 -. Fondos educativos.",null,null,null,{"$error":"#DIV/0!"},null,null,null,null,null,null,{"$error":"#DIV/0!"},null,{"$error":"#DIV/0!"},null,{"$error":"#DIV/0!"}]
["Servicios Administrativos"]
["Artículo 15. Telefonía.",null,null,null,{"$f":"1-(D19/C19)","v":{"$error":"#DIV/0!"}},null,null,null,null,null,null,{"$error":"#DIV/0!"},null,{"$error":"#DIV/0!"},null,{"$error":"#DIV/0!"}]
["Artículo 16 -. Vehículos oficiales.",null,null,null,{"$error":"#DIV/0!"},null,null,null,null,null,null,{"$error":"#DIV/0!"},null,{"$error":"#DIV/0!"},null,{"$error":"#DIV/0!"}]
["Artículo 17 -. Adquisición de vehículos y maquinaria.",null,null,null,{"$error":"#DIV/0!"},null,null,null,null,null,null,{"$error":"#DIV/0!"},null,{"$error":"#DIV/0!"},null,{"$error":"#DIV/0!"}]
["Artículo 18 -. Fotocopiado, multicopiado e impresión.",null,null,null,{"$error":"#DIV/0!"},null,null,null,null,null,null,{"$error":"#DIV/0!"},null,{"$error":"#DIV/0!"},null,{"$error":"#DIV/0!"}]
["Artículo 19 -. Publicidad distrital.",null,null,null,{"$error":"#DIV/0!"},null,null,null,null,null,null,{"$error":"#DIV/0!"},null,{"$error":"#DIV/0!"},null,{"$error":"#DIV/0!"}]
["Artículo 20 -. Cajas menores.",null,null,null,{"$error":"#DIV/0!"},null,null,null,null,null,null,{"$error":"#DIV/0!"},null,{"$error":"#DIV/0!"},null,{"$error":"#DIV/0!"}]
["Artículo 21 -. Mantenimiento o reparación de bienes inmuebles o muebles.",null,null,null,{"$error":"#DIV/0!"},null,null,null,null,null,null,{"$error":"#DIV/0!"},null,{"$error":"#DIV/0!"},null,{"$error":"#DIV/0!"}]
["Artículo 22 -. Suscripciones.",null,null,null,{"$error":"#DIV/0!"},null,null,null,null,null,null,{"$error":"#DIV/0!"},null,{"$error":"#DIV/0!"},null,{"$error":"#DIV/0!"}]
["Artículo 23 -. Servicios públicos.",null,null,null,{"$error":"#DIV/0!"},null,null,null,null,null,null,{"$error":"#DIV/0!"},null,{"$error":"#DIV/0!"},null,{"$error":"#DIV/0!"}]

{"sheet":"0111-02 SDH","index":28,"n_rows":27,"n_cols":16,"rows_kept":27,"cut":false,"hidden":false,"merged":[[5,10,5,11],[5,12,5,13],[5,14,5,15],[1,1,1,4],[3,0,6,0],[3,1,6,1],[3,2,4,4],[3,5,3,9],[3,10,4,15],[4,5,6,5],[4,6,6,6],[4,7,5,9],[5,3,5,4]]}
["PLAN DE AUSTERIDAD EN EL GASTO 2025-2027"]
["Entidad"," "]
["Valores en Pesos Corrientes"]
["CONCEPTO\n(Decreto 062 de 2024)","Posiciones Presupuestales Asociadas\n(Funcionamiento e Inversión)","LÍNEA BASE",null,null,"PLAN DE AUSTERIDAD EN EL GASTO 2025-2027",null,null,null,null,"SEGUIMIENTO RESULTADOS PLAN DE AUSTERIDAD 2025-2027"]
[null,null,null,null,null,"ESTRATEGIAS\n2025-2027","ACCIONES\n2025-2027","META INDICADOR DE AUSTERIDAD"]
[null,null,"AÑO 2023","AÑO 2024",null,null,null,null,null,null,"AÑO 2025",null,"AÑO 2026",null,"AÑO 2027"]
[null,null,"Valor EJECUTADO\na 31/12/2023","Valor EJECUTADO\na 31/12/2024","Resultado\nIndicador Austeridad",null,null,"AÑO 2025","AÑO 2026","AÑO 2027","Valor EJECUTADO\na 31/12/2025","Resultado\nIndicador Austeridad","Valor EJECUTADO\na 31/12/2026","Resultado\nIndicador Austeridad","Valor EJECUTADO\na 31/12/2027","Resultado\nIndicador Austeridad"]
["Servicios de personal"]
["Artículo 6°.- Reducción del gasto en CPS profesionales y de apoyo a la gestión. ","N.A.  \nSe registran totales. Corresponde con lo reportado en SIDEAP y SIVICOF",null,null,{"$f":"1-(D9/C9)","v":{"$error":"#DIV/0!"}},null,null,null,null,null,null,{"$f":"1-(K9/D9)","v":{"$error":"#DIV/0!"}},null,{"$f":"1-(M9/K9)","v":{"$error":"#DIV/0!"}},null,{"$f":"1-(O9/M9)","v":{"$error":"#DIV/0!"}}]
["Artículo 7°.- Horas extras, dominicales y festivos. ",null,null,null,{"$error":"#DIV/0!"},null,null,null,null,null,null,{"$f":"1-(K10/D10)","v":{"$error":"#DIV/0!"}},null,{"$f":"1-(M10/K10)","v":{"$error":"#DIV/0!"}},null,{"$error":"#DIV/0!"}]
["Artículo 8°.- Viáticos y gastos de viaje.",null,null,null,{"$error":"#DIV/0!"},null,null,null,null,null,null,{"$error":"#DIV/0!"},null,{"$error":"#DIV/0!"},null,{"$error":"#DIV/0!"}]
["Artículo 9°.- Compensación por vacaciones.",null,null,null,{"$error":"#DIV/0!"},null,null,null,null,null,null,{"$error":"#DIV/0!"},null,{"$error":"#DIV/0!"},null,{"$error":"#DIV/0!"}]
["Artículo 10°.- Bono navideño.",null,null,null,{"$error":"#DIV/0!"},null,null,null,null,null,null,{"$error":"#DIV/0!"},null,{"$error":"#DIV/0!"},null,{"$error":"#DIV/0!"}]
["Artículo 11 -. Capacitación.",null,null,null,{"$error":"#DIV/0!"},null,null,null,null,null,null,{"$error":"#DIV/0!"},null,{"$error":"#DIV/0!"},null,{"$error":"#DIV/0!"}]
["Artículo 12 -. Bienestar.",null,null,null,{"$error":"#DIV/0!"},null,null,null,null,null,null,{"$error":"#DIV/0!"},null,{"$error":"#DIV/0!"},null,{"$error":"#DIV/0!"}]
["Artículo 13 -. Eventos y conmemoraciones.",null,null,null,{"$error":"#DIV/0!"},null,null,null,null,null,null,{"$error":"#DIV/0!"},null,{"$error":"#DIV/0!"},null,{"$error":"#DIV/0!"}]
["Artículo 14 -. Fondos educativos.",null,null,null,{"$error":"#DIV/0!"},null,null,null,null,null,null,{"$error":"#DIV/0!"},null,{"$error":"#DIV/0!"},null,{"$error":"#DIV/0!"}]
["Servicios Administrativos"]
["Artículo 15. Telefonía.",null,null,null,{"$f":"1-(D19/C19)","v":{"$error":"#DIV/0!"}},null,null,null,null,null,null,{"$error":"#DIV/0!"},null,{"$error":"#DIV/0!"},null,{"$error":"#DIV/0!"}]
["Artículo 16 -. Vehículos oficiales.",null,null,null,{"$error":"#DIV/0!"},null,null,null,null,null,null,{"$error":"#DIV/0!"},null,{"$error":"#DIV/0!"},null,{"$error":"#DIV/0!"}]
["Artículo 17 -. Adquisición de vehículos y maquinaria.",null,null,null,{"$error":"#DIV/0!"},null,null,null,null,null,null,{"$error":"#DIV/0!"},null,{"$error":"#DIV/0!"},null,{"$error":"#DIV/0!"}]
["Artículo 18 -. Fotocopiado, multicopiado e impresión.",null,null,null,{"$error":"#DIV/0!"},null,null,null,null,null,null,{"$error":"#DIV/0!"},null,{"$error":"#DIV/0!"},null,{"$error":"#DIV/0!"}]
["Artículo 19 -. Publicidad distrital.",null,null,null,{"$error":"#DIV/0!"},null,null,null,null,null,null,{"$error":"#DIV/0!"},null,{"$error":"#DIV/0!"},null,{"$error":"#DIV/0!"}]
["Artículo 20 -. Cajas menores.",null,null,null,{"$error":"#DIV/0!"},null,null,null,null,null,null,{"$error":"#DIV/0!"},null,{"$error":"#DIV/0!"},null,{"$error":"#DIV/0!"}]
["Artículo 21 -. Mantenimiento o reparación de bienes inmuebles o muebles.",null,null,null,{"$error":"#DIV/0!"},null,null,null,null,null,null,{"$error":"#DIV/0!"},null,{"$error":"#DIV/0!"},null,{"$error":"#DIV/0!"}]
["Artículo 22 -. Suscripciones.",null,null,null,{"$error":"#DIV/0!"},null,null,null,null,null,null,{"$error":"#DIV/0!"},null,{"$error":"#DIV/0!"},null,{"$error":"#DIV/0!"}]
["Artículo 23 -. Servicios públicos.",null,null,null,{"$error":"#DIV/0!"},null,null,null,null,null,null,{"$error":"#DIV/0!"},null,{"$error":"#DIV/0!"},null,{"$error":"#DIV/0!"}]

{"sheet":"0111-04 SDH","index":29,"n_rows":27,"n_cols":16,"rows_kept":27,"cut":false,"hidden":false,"merged":[[5,10,5,11],[5,12,5,13],[5,14,5,15],[1,1,1,4],[3,0,6,0],[3,1,6,1],[3,2,4,4],[3,5,3,9],[3,10,4,15],[4,5,6,5],[4,6,6,6],[4,7,5,9],[5,3,5,4]]}
["PLAN DE AUSTERIDAD EN EL GASTO 2025-2027"]
["Entidad"," "]
["Valores en Pesos Corrientes"]
["CONCEPTO\n(Decreto 062 de 2024)","Posiciones Presupuestales Asociadas\n(Funcionamiento e Inversión)","LÍNEA BASE",null,null,"PLAN DE AUSTERIDAD EN EL GASTO 2025-2027",null,null,null,null,"SEGUIMIENTO RESULTADOS PLAN DE AUSTERIDAD 2025-2027"]
[null,null,null,null,null,"ESTRATEGIAS\n2025-2027","ACCIONES\n2025-2027","META INDICADOR DE AUSTERIDAD"]
[null,null,"AÑO 2023","AÑO 2024",null,null,null,null,null,null,"AÑO 2025",null,"AÑO 2026",null,"AÑO 2027"]
[null,null,"Valor EJECUTADO\na 31/12/2023","Valor EJECUTADO\na 31/12/2024","Resultado\nIndicador Austeridad",null,null,"AÑO 2025","AÑO 2026","AÑO 2027","Valor EJECUTADO\na 31/12/2025","Resultado\nIndicador Austeridad","Valor EJECUTADO\na 31/12/2026","Resultado\nIndicador Austeridad","Valor EJECUTADO\na 31/12/2027","Resultado\nIndicador Austeridad"]
["Servicios de personal"]
["Artículo 6°.- Reducción del gasto en CPS profesionales y de apoyo a la gestión. ","N.A.  \nSe registran totales. Corresponde con lo reportado en SIDEAP y SIVICOF",null,null,{"$f":"1-(D9/C9)","v":{"$error":"#DIV/0!"}},null,null,null,null,null,null,{"$f":"1-(K9/D9)","v":{"$error":"#DIV/0!"}},null,{"$f":"1-(M9/K9)","v":{"$error":"#DIV/0!"}},null,{"$f":"1-(O9/M9)","v":{"$error":"#DIV/0!"}}]
["Artículo 7°.- Horas extras, dominicales y festivos. ",null,null,null,{"$error":"#DIV/0!"},null,null,null,null,null,null,{"$f":"1-(K10/D10)","v":{"$error":"#DIV/0!"}},null,{"$f":"1-(M10/K10)","v":{"$error":"#DIV/0!"}},null,{"$error":"#DIV/0!"}]
["Artículo 8°.- Viáticos y gastos de viaje.",null,null,null,{"$error":"#DIV/0!"},null,null,null,null,null,null,{"$error":"#DIV/0!"},null,{"$error":"#DIV/0!"},null,{"$error":"#DIV/0!"}]
["Artículo 9°.- Compensación por vacaciones.",null,null,null,{"$error":"#DIV/0!"},null,null,null,null,null,null,{"$error":"#DIV/0!"},null,{"$error":"#DIV/0!"},null,{"$error":"#DIV/0!"}]
["Artículo 10°.- Bono navideño.",null,null,null,{"$error":"#DIV/0!"},null,null,null,null,null,null,{"$error":"#DIV/0!"},null,{"$error":"#DIV/0!"},null,{"$error":"#DIV/0!"}]
["Artículo 11 -. Capacitación.",null,null,null,{"$error":"#DIV/0!"},null,null,null,null,null,null,{"$error":"#DIV/0!"},null,{"$error":"#DIV/0!"},null,{"$error":"#DIV/0!"}]
["Artículo 12 -. Bienestar.",null,null,null,{"$error":"#DIV/0!"},null,null,null,null,null,null,{"$error":"#DIV/0!"},null,{"$error":"#DIV/0!"},null,{"$error":"#DIV/0!"}]
["Artículo 13 -. Eventos y conmemoraciones.",null,null,null,{"$error":"#DIV/0!"},null,null,null,null,null,null,{"$error":"#DIV/0!"},null,{"$error":"#DIV/0!"},null,{"$error":"#DIV/0!"}]
["Artículo 14 -. Fondos educativos.",null,null,null,{"$error":"#DIV/0!"},null,null,null,null,null,null,{"$error":"#DIV/0!"},null,{"$error":"#DIV/0!"},null,{"$error":"#DIV/0!"}]
["Servicios Administrativos"]
["Artículo 15. Telefonía.",null,null,null,{"$f":"1-(D19/C19)","v":{"$error":"#DIV/0!"}},null,null,null,null,null,null,{"$error":"#DIV/0!"},null,{"$error":"#DIV/0!"},null,{"$error":"#DIV/0!"}]
["Artículo 16 -. Vehículos oficiales.",null,null,null,{"$error":"#DIV/0!"},null,null,null,null,null,null,{"$error":"#DIV/0!"},null,{"$error":"#DIV/0!"},null,{"$error":"#DIV/0!"}]
["Artículo 17 -. Adquisición de vehículos y maquinaria.",null,null,null,{"$error":"#DIV/0!"},null,null,null,null,null,null,{"$error":"#DIV/0!"},null,{"$error":"#DIV/0!"},null,{"$error":"#DIV/0!"}]
["Artículo 18 -. Fotocopiado, multicopiado e impresión.",null,null,null,{"$error":"#DIV/0!"},null,null,null,null,null,null,{"$error":"#DIV/0!"},null,{"$error":"#DIV/0!"},null,{"$error":"#DIV/0!"}]
["Artículo 19 -. Publicidad distrital.",null,null,null,{"$error":"#DIV/0!"},null,null,null,null,null,null,{"$error":"#DIV/0!"},null,{"$error":"#DIV/0!"},null,{"$error":"#DIV/0!"}]
["Artículo 20 -. Cajas menores.",null,null,null,{"$error":"#DIV/0!"},null,null,null,null,null,null,{"$error":"#DIV/0!"},null,{"$error":"#DIV/0!"},null,{"$error":"#DIV/0!"}]
["Artículo 21 -. Mantenimiento o reparación de bienes inmuebles o muebles.",null,null,null,{"$error":"#DIV/0!"},null,null,null,null,null,null,{"$error":"#DIV/0!"},null,{"$error":"#DIV/0!"},null,{"$error":"#DIV/0!"}]
["Artículo 22 -. Suscripciones.",null,null,null,{"$error":"#DIV/0!"},null,null,null,null,null,null,{"$error":"#DIV/0!"},null,{"$error":"#DIV/0!"},null,{"$error":"#DIV/0!"}]
["Artículo 23 -. Servicios públicos.",null,null,null,{"$error":"#DIV/0!"},null,null,null,null,null,null,{"$error":"#DIV/0!"},null,{"$error":"#DIV/0!"},null,{"$error":"#DIV/0!"}]

{"sheet":"0112-01 SDE","index":30,"n_rows":27,"n_cols":16,"rows_kept":27,"cut":false,"hidden":false,"merged":[[5,10,5,11],[5,12,5,13],[5,14,5,15],[1,1,1,4],[3,0,6,0],[3,1,6,1],[3,2,4,4],[3,5,3,9],[3,10,4,15],[4,5,6,5],[4,6,6,6],[4,7,5,9],[5,3,5,4]]}
["PLAN DE AUSTERIDAD EN EL GASTO 2025-2027"]
["Entidad"," "]
["Valores en Pesos Corrientes"]
["CONCEPTO\n(Decreto 062 de 2024)","Posiciones Presupuestales Asociadas\n(Funcionamiento e Inversión)","LÍNEA BASE",null,null,"PLAN DE AUSTERIDAD EN EL GASTO 2025-2027",null,null,null,null,"SEGUIMIENTO RESULTADOS PLAN DE AUSTERIDAD 2025-2027"]
[null,null,null,null,null,"ESTRATEGIAS\n2025-2027","ACCIONES\n2025-2027","META INDICADOR DE AUSTERIDAD"]
[null,null,"AÑO 2023","AÑO 2024",null,null,null,null,null,null,"AÑO 2025",null,"AÑO 2026",null,"AÑO 2027"]
[null,null,"Valor EJECUTADO\na 31/12/2023","Valor EJECUTADO\na 31/12/2024","Resultado\nIndicador Austeridad",null,null,"AÑO 2025","AÑO 2026","AÑO 2027","Valor EJECUTADO\na 31/12/2025","Resultado\nIndicador Austeridad","Valor EJECUTADO\na 31/12/2026","Resultado\nIndicador Austeridad","Valor EJECUTADO\na 31/12/2027","Resultado\nIndicador Austeridad"]
["Servicios de personal"]
["Artículo 6°.- Reducción del gasto en CPS profesionales y de apoyo a la gestión. ","N.A.  \nSe registran totales. Corresponde con lo reportado en SIDEAP y SIVICOF",null,null,{"$f":"1-(D9/C9)","v":{"$error":"#DIV/0!"}},null,null,null,null,null,null,{"$f":"1-(K9/D9)","v":{"$error":"#DIV/0!"}},null,{"$f":"1-(M9/K9)","v":{"$error":"#DIV/0!"}},null,{"$f":"1-(O9/M9)","v":{"$error":"#DIV/0!"}}]
["Artículo 7°.- Horas extras, dominicales y festivos. ",null,null,null,{"$error":"#DIV/0!"},null,null,null,null,null,null,{"$f":"1-(K10/D10)","v":{"$error":"#DIV/0!"}},null,{"$f":"1-(M10/K10)","v":{"$error":"#DIV/0!"}},null,{"$error":"#DIV/0!"}]
["Artículo 8°.- Viáticos y gastos de viaje.",null,null,null,{"$error":"#DIV/0!"},null,null,null,null,null,null,{"$error":"#DIV/0!"},null,{"$error":"#DIV/0!"},null,{"$error":"#DIV/0!"}]
["Artículo 9°.- Compensación por vacaciones.",null,null,null,{"$error":"#DIV/0!"},null,null,null,null,null,null,{"$error":"#DIV/0!"},null,{"$error":"#DIV/0!"},null,{"$error":"#DIV/0!"}]
["Artículo 10°.- Bono navideño.",null,null,null,{"$error":"#DIV/0!"},null,null,null,null,null,null,{"$error":"#DIV/0!"},null,{"$error":"#DIV/0!"},null,{"$error":"#DIV/0!"}]
["Artículo 11 -. Capacitación.",null,null,null,{"$error":"#DIV/0!"},null,null,null,null,null,null,{"$error":"#DIV/0!"},null,{"$error":"#DIV/0!"},null,{"$error":"#DIV/0!"}]
["Artículo 12 -. Bienestar.",null,null,null,{"$error":"#DIV/0!"},null,null,null,null,null,null,{"$error":"#DIV/0!"},null,{"$error":"#DIV/0!"},null,{"$error":"#DIV/0!"}]
["Artículo 13 -. Eventos y conmemoraciones.",null,null,null,{"$error":"#DIV/0!"},null,null,null,null,null,null,{"$error":"#DIV/0!"},null,{"$error":"#DIV/0!"},null,{"$error":"#DIV/0!"}]
["Artículo 14 -. Fondos educativos.",null,null,null,{"$error":"#DIV/0!"},null,null,null,null,null,null,{"$error":"#DIV/0!"},null,{"$error":"#DIV/0!"},null,{"$error":"#DIV/0!"}]
["Servicios Administrativos"]
["Artículo 15. Telefonía.",null,null,null,{"$f":"1-(D19/C19)","v":{"$error":"#DIV/0!"}},null,null,null,null,null,null,{"$error":"#DIV/0!"},null,{"$error":"#DIV/0!"},null,{"$error":"#DIV/0!"}]
["Artículo 16 -. Vehículos oficiales.",null,null,null,{"$error":"#DIV/0!"},null,null,null,null,null,null,{"$error":"#DIV/0!"},null,{"$error":"#DIV/0!"},null,{"$error":"#DIV/0!"}]
["Artículo 17 -. Adquisición de vehículos y maquinaria.",null,null,null,{"$error":"#DIV/0!"},null,null,null,null,null,null,{"$error":"#DIV/0!"},null,{"$error":"#DIV/0!"},null,{"$error":"#DIV/0!"}]
["Artículo 18 -. Fotocopiado, multicopiado e impresión.",null,null,null,{"$error":"#DIV/0!"},null,null,null,null,null,null,{"$error":"#DIV/0!"},null,{"$error":"#DIV/0!"},null,{"$error":"#DIV/0!"}]
["Artículo 19 -. Publicidad distrital.",null,null,null,{"$error":"#DIV/0!"},null,null,null,null,null,null,{"$error":"#DIV/0!"},null,{"$error":"#DIV/0!"},null,{"$error":"#DIV/0!"}]
["Artículo 20 -. Cajas menores.",null,null,null,{"$error":"#DIV/0!"},null,null,null,null,null,null,{"$error":"#DIV/0!"},null,{"$error":"#DIV/0!"},null,{"$error":"#DIV/0!"}]
["Artículo 21 -. Mantenimiento o reparación de bienes inmuebles o muebles.",null,null,null,{"$error":"#DIV/0!"},null,null,null,null,null,null,{"$error":"#DIV/0!"},null,{"$error":"#DIV/0!"},null,{"$error":"#DIV/0!"}]
["Artículo 22 -. Suscripciones.",null,null,null,{"$error":"#DIV/0!"},null,null,null,null,null,null,{"$error":"#DIV/0!"},null,{"$error":"#DIV/0!"},null,{"$error":"#DIV/0!"}]
["Artículo 23 -. Servicios públicos.",null,null,null,{"$error":"#DIV/0!"},null,null,null,null,null,null,{"$error":"#DIV/0!"},null,{"$error":"#DIV/0!"},null,{"$error":"#DIV/0!"}]

{"sheet":"0113-01 SDM","index":31,"n_rows":27,"n_cols":16,"rows_kept":27,"cut":false,"hidden":false,"merged":[[5,10,5,11],[5,12,5,13],[5,14,5,15],[1,1,1,4],[3,0,6,0],[3,1,6,1],[3,2,4,4],[3,5,3,9],[3,10,4,15],[4,5,6,5],[4,6,6,6],[4,7,5,9],[5,3,5,4]]}
["PLAN DE AUSTERIDAD EN EL GASTO 2025-2027"]
["Entidad"," "]
["Valores en Pesos Corrientes"]
["CONCEPTO\n(Decreto 062 de 2024)","Posiciones Presupuestales Asociadas\n(Funcionamiento e Inversión)","LÍNEA BASE",null,null,"PLAN DE AUSTERIDAD EN EL GASTO 2025-2027",null,null,null,null,"SEGUIMIENTO RESULTADOS PLAN DE AUSTERIDAD 2025-2027"]
[null,null,null,null,null,"ESTRATEGIAS\n2025-2027","ACCIONES\n2025-2027","META INDICADOR DE AUSTERIDAD"]
[null,null,"AÑO 2023","AÑO 2024",null,null,null,null,null,null,"AÑO 2025",null,"AÑO 2026",null,"AÑO 2027"]
[null,null,"Valor EJECUTADO\na 31/12/2023","Valor EJECUTADO\na 31/12/2024","Resultado\nIndicador Austeridad",null,null,"AÑO 2025","AÑO 2026","AÑO 2027","Valor EJECUTADO\na 31/12/2025","Resultado\nIndicador Austeridad","Valor EJECUTADO\na 31/12/2026","Resultado\nIndicador Austeridad","Valor EJECUTADO\na 31/12/2027","Resultado\nIndicador Austeridad"]
["Servicios de personal"]
["Artículo 6°.- Reducción del gasto en CPS profesionales y de apoyo a la gestión. ","N.A.  \nSe registran totales. Corresponde con lo reportado en SIDEAP y SIVICOF",null,null,{"$f":"1-(D9/C9)","v":{"$error":"#DIV/0!"}},null,null,null,null,null,null,{"$f":"1-(K9/D9)","v":{"$error":"#DIV/0!"}},null,{"$f":"1-(M9/K9)","v":{"$error":"#DIV/0!"}},null,{"$f":"1-(O9/M9)","v":{"$error":"#DIV/0!"}}]
["Artículo 7°.- Horas extras, dominicales y festivos. ",null,null,null,{"$error":"#DIV/0!"},null,null,null,null,null,null,{"$f":"1-(K10/D10)","v":{"$error":"#DIV/0!"}},null,{"$f":"1-(M10/K10)","v":{"$error":"#DIV/0!"}},null,{"$error":"#DIV/0!"}]
["Artículo 8°.- Viáticos y gastos de viaje.",null,null,null,{"$error":"#DIV/0!"},null,null,null,null,null,null,{"$error":"#DIV/0!"},null,{"$error":"#DIV/0!"},null,{"$error":"#DIV/0!"}]
["Artículo 9°.- Compensación por vacaciones.",null,null,null,{"$error":"#DIV/0!"},null,null,null,null,null,null,{"$error":"#DIV/0!"},null,{"$error":"#DIV/0!"},null,{"$error":"#DIV/0!"}]
["Artículo 10°.- Bono navideño.",null,null,null,{"$error":"#DIV/0!"},null,null,null,null,null,null,{"$error":"#DIV/0!"},null,{"$error":"#DIV/0!"},null,{"$error":"#DIV/0!"}]
["Artículo 11 -. Capacitación.",null,null,null,{"$error":"#DIV/0!"},null,null,null,null,null,null,{"$error":"#DIV/0!"},null,{"$error":"#DIV/0!"},null,{"$error":"#DIV/0!"}]
["Artículo 12 -. Bienestar.",null,null,null,{"$error":"#DIV/0!"},null,null,null,null,null,null,{"$error":"#DIV/0!"},null,{"$error":"#DIV/0!"},null,{"$error":"#DIV/0!"}]
["Artículo 13 -. Eventos y conmemoraciones.",null,null,null,{"$error":"#DIV/0!"},null,null,null,null,null,null,{"$error":"#DIV/0!"},null,{"$error":"#DIV/0!"},null,{"$error":"#DIV/0!"}]
["Artículo 14 -. Fondos educativos.",null,null,null,{"$error":"#DIV/0!"},null,null,null,null,null,null,{"$error":"#DIV/0!"},null,{"$error":"#DIV/0!"},null,{"$error":"#DIV/0!"}]
["Servicios Administrativos"]
["Artículo 15. Telefonía.",null,null,null,{"$f":"1-(D19/C19)","v":{"$error":"#DIV/0!"}},null,null,null,null,null,null,{"$error":"#DIV/0!"},null,{"$error":"#DIV/0!"},null,{"$error":"#DIV/0!"}]
["Artículo 16 -. Vehículos oficiales.",null,null,null,{"$error":"#DIV/0!"},null,null,null,null,null,null,{"$error":"#DIV/0!"},null,{"$error":"#DIV/0!"},null,{"$error":"#DIV/0!"}]
["Artículo 17 -. Adquisición de vehículos y maquinaria.",null,null,null,{"$error":"#DIV/0!"},null,null,null,null,null,null,{"$error":"#DIV/0!"},null,{"$error":"#DIV/0!"},null,{"$error":"#DIV/0!"}]
["Artículo 18 -. Fotocopiado, multicopiado e impresión.",null,null,null,{"$error":"#DIV/0!"},null,null,null,null,null,null,{"$error":"#DIV/0!"},null,{"$error":"#DIV/0!"},null,{"$error":"#DIV/0!"}]
["Artículo 19 -. Publicidad distrital.",null,null,null,{"$error":"#DIV/0!"},null,null,null,null,null,null,{"$error":"#DIV/0!"},null,{"$error":"#DIV/0!"},null,{"$error":"#DIV/0!"}]
["Artículo 20 -. Cajas menores.",null,null,null,{"$error":"#DIV/0!"},null,null,null,null,null,null,{"$error":"#DIV/0!"},null,{"$error":"#DIV/0!"},null,{"$error":"#DIV/0!"}]
["Artículo 21 -. Mantenimiento o reparación de bienes inmuebles o muebles.",null,null,null,{"$error":"#DIV/0!"},null,null,null,null,null,null,{"$error":"#DIV/0!"},null,{"$error":"#DIV/0!"},null,{"$error":"#DIV/0!"}]
["Artículo 22 -. Suscripciones.",null,null,null,{"$error":"#DIV/0!"},null,null,null,null,null,null,{"$error":"#DIV/0!"},null,{"$error":"#DIV/0!"},null,{"$error":"#DIV/0!"}]
["Artículo 23 -. Servicios públicos.",null,null,null,{"$error":"#DIV/0!"},null,null,null,null,null,null,{"$error":"#DIV/0!"},null,{"$error":"#DIV/0!"},null,{"$error":"#DIV/0!"}]

{"sheet":"0113-02 SDM","index":32,"n_rows":27,"n_cols":16,"rows_kept":27,"cut":false,"hidden":false,"merged":[[5,10,5,11],[5,12,5,13],[5,14,5,15],[1,1,1,4],[3,0,6,0],[3,1,6,1],[3,2,4,4],[3,5,3,9],[3,10,4,15],[4,5,6,5],[4,6,6,6],[4,7,5,9],[5,3,5,4]]}
["PLAN DE AUSTERIDAD EN EL GASTO 2025-2027"]
["Entidad"," "]
["Valores en Pesos Corrientes"]
["CONCEPTO\n(Decreto 062 de 2024)","Posiciones Presupuestales Asociadas\n(Funcionamiento e Inversión)","LÍNEA BASE",null,null,"PLAN DE AUSTERIDAD EN EL GASTO 2025-2027",null,null,null,null,"SEGUIMIENTO RESULTADOS PLAN DE AUSTERIDAD 2025-2027"]
[null,null,null,null,null,"ESTRATEGIAS\n2025-2027","ACCIONES\n2025-2027","META INDICADOR DE AUSTERIDAD"]
[null,null,"AÑO 2023","AÑO 2024",null,null,null,null,null,null,"AÑO 2025",null,"AÑO 2026",null,"AÑO 2027"]
[null,null,"Valor EJECUTADO\na 31/12/2023","Valor EJECUTADO\na 31/12/2024","Resultado\nIndicador Austeridad",null,null,"AÑO 2025","AÑO 2026","AÑO 2027","Valor EJECUTADO\na 31/12/2025","Resultado\nIndicador Austeridad","Valor EJECUTADO\na 31/12/2026","Resultado\nIndicador Austeridad","Valor EJECUTADO\na 31/12/2027","Resultado\nIndicador Austeridad"]
["Servicios de personal"]
["Artículo 6°.- Reducción del gasto en CPS profesionales y de apoyo a la gestión. ","N.A.  \nSe registran totales. Corresponde con lo reportado en SIDEAP y SIVICOF",null,null,{"$f":"1-(D9/C9)","v":{"$error":"#DIV/0!"}},null,null,null,null,null,null,{"$f":"1-(K9/D9)","v":{"$error":"#DIV/0!"}},null,{"$f":"1-(M9/K9)","v":{"$error":"#DIV/0!"}},null,{"$f":"1-(O9/M9)","v":{"$error":"#DIV/0!"}}]
["Artículo 7°.- Horas extras, dominicales y festivos. ",null,null,null,{"$error":"#DIV/0!"},null,null,null,null,null,null,{"$f":"1-(K10/D10)","v":{"$error":"#DIV/0!"}},null,{"$f":"1-(M10/K10)","v":{"$error":"#DIV/0!"}},null,{"$error":"#DIV/0!"}]
["Artículo 8°.- Viáticos y gastos de viaje.",null,null,null,{"$error":"#DIV/0!"},null,null,null,null,null,null,{"$error":"#DIV/0!"},null,{"$error":"#DIV/0!"},null,{"$error":"#DIV/0!"}]
["Artículo 9°.- Compensación por vacaciones.",null,null,null,{"$error":"#DIV/0!"},null,null,null,null,null,null,{"$error":"#DIV/0!"},null,{"$error":"#DIV/0!"},null,{"$error":"#DIV/0!"}]
["Artículo 10°.- Bono navideño.",null,null,null,{"$error":"#DIV/0!"},null,null,null,null,null,null,{"$error":"#DIV/0!"},null,{"$error":"#DIV/0!"},null,{"$error":"#DIV/0!"}]
["Artículo 11 -. Capacitación.",null,null,null,{"$error":"#DIV/0!"},null,null,null,null,null,null,{"$error":"#DIV/0!"},null,{"$error":"#DIV/0!"},null,{"$error":"#DIV/0!"}]
["Artículo 12 -. Bienestar.",null,null,null,{"$error":"#DIV/0!"},null,null,null,null,null,null,{"$error":"#DIV/0!"},null,{"$error":"#DIV/0!"},null,{"$error":"#DIV/0!"}]
["Artículo 13 -. Eventos y conmemoraciones.",null,null,null,{"$error":"#DIV/0!"},null,null,null,null,null,null,{"$error":"#DIV/0!"},null,{"$error":"#DIV/0!"},null,{"$error":"#DIV/0!"}]
["Artículo 14 -. Fondos educativos.",null,null,null,{"$error":"#DIV/0!"},null,null,null,null,null,null,{"$error":"#DIV/0!"},null,{"$error":"#DIV/0!"},null,{"$error":"#DIV/0!"}]
["Servicios Administrativos"]
["Artículo 15. Telefonía.",null,null,null,{"$f":"1-(D19/C19)","v":{"$error":"#DIV/0!"}},null,null,null,null,null,null,{"$error":"#DIV/0!"},null,{"$error":"#DIV/0!"},null,{"$error":"#DIV/0!"}]
["Artículo 16 -. Vehículos oficiales.",null,null,null,{"$error":"#DIV/0!"},null,null,null,null,null,null,{"$error":"#DIV/0!"},null,{"$error":"#DIV/0!"},null,{"$error":"#DIV/0!"}]
["Artículo 17 -. Adquisición de vehículos y maquinaria.",null,null,null,{"$error":"#DIV/0!"},null,null,null,null,null,null,{"$error":"#DIV/0!"},null,{"$error":"#DIV/0!"},null,{"$error":"#DIV/0!"}]
["Artículo 18 -. Fotocopiado, multicopiado e impresión.",null,null,null,{"$error":"#DIV/0!"},null,null,null,null,null,null,{"$error":"#DIV/0!"},null,{"$error":"#DIV/0!"},null,{"$error":"#DIV/0!"}]
["Artículo 19 -. Publicidad distrital.",null,null,null,{"$error":"#DIV/0!"},null,null,null,null,null,null,{"$error":"#DIV/0!"},null,{"$error":"#DIV/0!"},null,{"$error":"#DIV/0!"}]
["Artículo 20 -. Cajas menores.",null,null,null,{"$error":"#DIV/0!"},null,null,null,null,null,null,{"$error":"#DIV/0!"},null,{"$error":"#DIV/0!"},null,{"$error":"#DIV/0!"}]
["Artículo 21 -. Mantenimiento o reparación de bienes inmuebles o muebles.",null,null,null,{"$error":"#DIV/0!"},null,null,null,null,null,null,{"$error":"#DIV/0!"},null,{"$error":"#DIV/0!"},null,{"$error":"#DIV/0!"}]
["Artículo 22 -. Suscripciones.",null,null,null,{"$error":"#DIV/0!"},null,null,null,null,null,null,{"$error":"#DIV/0!"},null,{"$error":"#DIV/0!"},null,{"$error":"#DIV/0!"}]
["Artículo 23 -. Servicios públicos.",null,null,null,{"$error":"#DIV/0!"},null,null,null,null,null,null,{"$error":"#DIV/0!"},null,{"$error":"#DIV/0!"},null,{"$error":"#DIV/0!"}]

{"sheet":"0114-01 SDS","index":33,"n_rows":27,"n_cols":16,"rows_kept":27,"cut":false,"hidden":false,"merged":[[5,10,5,11],[5,12,5,13],[5,14,5,15],[1,1,1,4],[3,0,6,0],[3,1,6,1],[3,2,4,4],[3,5,3,9],[3,10,4,15],[4,5,6,5],[4,6,6,6],[4,7,5,9],[5,3,5,4]]}
["PLAN DE AUSTERIDAD EN EL GASTO 2025-2027"]
["Entidad"," "]
["Valores en Pesos Corrientes"]
["CONCEPTO\n(Decreto 062 de 2024)","Posiciones Presupuestales Asociadas\n(Funcionamiento e Inversión)","LÍNEA BASE",null,null,"PLAN DE AUSTERIDAD EN EL GASTO 2025-2027",null,null,null,null,"SEGUIMIENTO RESULTADOS PLAN DE AUSTERIDAD 2025-2027"]
[null,null,null,null,null,"ESTRATEGIAS\n2025-2027","ACCIONES\n2025-2027","META INDICADOR DE AUSTERIDAD"]
[null,null,"AÑO 2023","AÑO 2024",null,null,null,null,null,null,"AÑO 2025",null,"AÑO 2026",null,"AÑO 2027"]
[null,null,"Valor EJECUTADO\na 31/12/2023","Valor EJECUTADO\na 31/12/2024","Resultado\nIndicador Austeridad",null,null,"AÑO 2025","AÑO 2026","AÑO 2027","Valor EJECUTADO\na 31/12/2025","Resultado\nIndicador Austeridad","Valor EJECUTADO\na 31/12/2026","Resultado\nIndicador Austeridad","Valor EJECUTADO\na 31/12/2027","Resultado\nIndicador Austeridad"]
["Servicios de personal"]
["Artículo 6°.- Reducción del gasto en CPS profesionales y de apoyo a la gestión. ","N.A.  \nSe registran totales. Corresponde con lo reportado en SIDEAP y SIVICOF",132865270,926134126,{"$f":"1-(D9/C9)","v":-5.97047562542115},null,null,null,null,null,null,{"$f":"1-(K9/D9)","v":1},null,{"$f":"1-(M9/K9)","v":{"$error":"#DIV/0!"}},null,{"$f":"1-(O9/M9)","v":{"$error":"#DIV/0!"}}]
["Artículo 7°.- Horas extras, dominicales y festivos. ","Funcionamiento",943311205,1431916611,-0.51796841107172042,"Como parte de las medidas de austeridad y optimización de los recursos, se establecerá que el reconocimiento de horas extras a los funcionarios de los niveles técnicos y asistenciales (operarios, secretarias, auxiliares, entre otros) se realizará únicamente cuando sea estrictamente necesario para garantizar la continuidad y calidad en la prestación de los servicios asociados a los objetivos misionales de la entidad.","Ajustar el reconocimiento de horas extras únicamente a aquellas estrictamente necesarias, implementando un control sobre las planillas de reporte de horas extras, especialmente para conductores y demás funcionarios que reciban este pago, asegurando que estas correspondan a necesidades justificadas y verificadas.",0.03,0.02,0.01,null,{"$f":"1-(K10/D10)","v":1},null,{"$f":"1-(M10/K10)","v":{"$error":"#DIV/0!"}},null,{"$error":"#DIV/0!"}]
["Artículo 8°.- Viáticos y gastos de viaje.","Funcionamiento",null,3580671,{"$error":"#DIV/0!"},null,null,null,null,null,null,1,null,{"$error":"#DIV/0!"},null,{"$error":"#DIV/0!"}]
["Artículo 9°.- Compensación por vacaciones.","Funcionamiento",247967517,153537824,0.38081477018620946,null,null,null,null,null,null,1,null,{"$error":"#DIV/0!"},null,{"$error":"#DIV/0!"}]
["Artículo 10°.- Bono navideño.","Funciomamiento",44751699,32054338,0.28372913841773917,null,null,null,null,null,null,1,null,{"$error":"#DIV/0!"},null,{"$error":"#DIV/0!"}]
["Artículo 11 -. Capacitación.","Funcionamiento",272998637,196657824,0.27963807379741612,null,null,null,null,null,null,1,null,{"$error":"#DIV/0!"},null,{"$error":"#DIV/0!"}]
["Artículo 12 -. Bienestar.","Funcionamiento",{"$f":"401534606+11900000","v":413434606},469428816,-0.13543667895086653,null,null,null,null,null,null,1,null,{"$error":"#DIV/0!"},null,{"$error":"#DIV/0!"}]
["Artículo 13 -. Eventos y conmemoraciones.","N/A",0,0,{"$error":"#DIV/0!"},"La entidad no realiza eventos y conmoraciones.",null,null,null,null,null,{"$error":"#DIV/0!"},null,{"$error":"#DIV/0!"},null,{"$error":"#DIV/0!"}]
["Artículo 14 -. Fondos educativos.","Funcionamiento",98446520,96804560,1.6678700273001001E-2,null,null,null,null,null,null,1,null,{"$error":"#DIV/0!"},null,{"$error":"#DIV/0!"}]
["Servicios Administrativos"]
["Artículo 15. Telefonía.","Funcionamiento",{"$f":"53175901+216218206+2824535+11048305","v":283266947},null,{"$f":"1-(D19/C19)","v":1},null,null,null,null,null,null,{"$error":"#DIV/0!"},null,{"$error":"#DIV/0!"},null,{"$error":"#DIV/0!"}]
["Artículo 16 -. Vehículos oficiales.","Funciomamiento",{"$f":"117138895+50894095","v":168032990},null,1,null,null,null,null,null,null,{"$error":"#DIV/0!"},null,{"$error":"#DIV/0!"},null,{"$error":"#DIV/0!"}]
["Artículo 17 -. Adquisición de vehículos y maquinaria.","N/A",0,0,{"$error":"#DIV/0!"},null,null,null,null,null,null,{"$error":"#DIV/0!"},null,{"$error":"#DIV/0!"},null,{"$error":"#DIV/0!"}]
["Artículo 18 -. Fotocopiado, multicopiado e impresión.","Funcionamiento",{"$f":"17839007+10466510","v":28305517},null,1,null,null,null,null,null,null,{"$error":"#DIV/0!"},null,{"$error":"#DIV/0!"},null,{"$error":"#DIV/0!"}]
["Artículo 19 -. Publicidad distrital.","N/A",0,0,{"$error":"#DIV/0!"},null,null,null,null,null,null,{"$error":"#DIV/0!"},null,{"$error":"#DIV/0!"},null,{"$error":"#DIV/0!"}]
["Artículo 20 -. Cajas menores.","Funciomamiento",{"$f":"3711198+1518772","v":5229970},null,1,null,null,null,null,null,null,{"$error":"#DIV/0!"},null,{"$error":"#DIV/0!"},null,{"$error":"#DIV/0!"}]
["Artículo 21 -. Mantenimiento o reparación de bienes inmuebles o muebles.",null,null,null,{"$error":"#DIV/0!"},null,null,null,null,null,null,{"$error":"#DIV/0!"},null,{"$error":"#DIV/0!"},null,{"$error":"#DIV/0!"}]
["Artículo 22 -. Suscripciones.","N/A",0,0,{"$error":"#DIV/0!"},null,null,null,null,null,null,{"$error":"#DIV/0!"},null,{"$error":"#DIV/0!"},null,{"$error":"#DIV/0!"}]
["Artículo 23 -. Servicios públicos.","Funcionamiento",{"$f":"127315990+2035596444+26396590+11604090+40729138+32512360+62389280+821336220+12393850+7748840+17942579+15908710","v":3211874091},null,1,null,null,null,null,null,null,{"$error":"#DIV/0!"},null,{"$error":"#DIV/0!"},null,{"$error":"#DIV/0!"}]

{"sheet":"0117-01 SDDE","index":34,"n_rows":27,"n_cols":16,"rows_kept":27,"cut":false,"hidden":false,"merged":[[5,10,5,11],[5,12,5,13],[5,14,5,15],[1,1,1,4],[3,0,6,0],[3,1,6,1],[3,2,4,4],[3,5,3,9],[3,10,4,15],[4,5,6,5],[4,6,6,6],[4,7,5,9],[5,3,5,4]]}
["PLAN DE AUSTERIDAD EN EL GASTO 2025-2027"]
["Entidad"," "]
["Valores en Pesos Corrientes"]
["CONCEPTO\n(Decreto 062 de 2024)","Posiciones Presupuestales Asociadas\n(Funcionamiento e Inversión)","LÍNEA BASE",null,null,"PLAN DE AUSTERIDAD EN EL GASTO 2025-2027",null,null,null,null,"SEGUIMIENTO RESULTADOS PLAN DE AUSTERIDAD 2025-2027"]
[null,null,null,null,null,"ESTRATEGIAS\n2025-2027","ACCIONES\n2025-2027","META INDICADOR DE AUSTERIDAD"]
[null,null,"AÑO 2023","AÑO 2024",null,null,null,null,null,null,"AÑO 2025",null,"AÑO 2026",null,"AÑO 2027"]
[null,null,"Valor EJECUTADO\na 31/12/2023","Valor EJECUTADO\na 31/12/2024","Resultado\nIndicador Austeridad",null,null,"AÑO 2025","AÑO 2026","AÑO 2027","Valor EJECUTADO\na 31/12/2025","Resultado\nIndicador Austeridad","Valor EJECUTADO\na 31/12/2026","Resultado\nIndicador Austeridad","Valor EJECUTADO\na 31/12/2027","Resultado\nIndicador Austeridad"]
["Servicios de personal"]
["Artículo 6°.- Reducción del gasto en CPS profesionales y de apoyo a la gestión. ","N.A.  \nSe registran totales. Corresponde con lo reportado en SIDEAP y SIVICOF",null,null,{"$f":"1-(D9/C9)","v":{"$error":"#DIV/0!"}},null,null,null,null,null,null,{"$f":"1-(K9/D9)","v":{"$error":"#DIV/0!"}},null,{"$f":"1-(M9/K9)","v":{"$error":"#DIV/0!"}},null,{"$f":"1-(O9/M9)","v":{"$error":"#DIV/0!"}}]
["Artículo 7°.- Horas extras, dominicales y festivos. ",null,null,null,{"$error":"#DIV/0!"},null,null,null,null,null,null,{"$f":"1-(K10/D10)","v":{"$error":"#DIV/0!"}},null,{"$f":"1-(M10/K10)","v":{"$error":"#DIV/0!"}},null,{"$error":"#DIV/0!"}]
["Artículo 8°.- Viáticos y gastos de viaje.",null,null,null,{"$error":"#DIV/0!"},null,null,null,null,null,null,{"$error":"#DIV/0!"},null,{"$error":"#DIV/0!"},null,{"$error":"#DIV/0!"}]
["Artículo 9°.- Compensación por vacaciones.",null,null,null,{"$error":"#DIV/0!"},null,null,null,null,null,null,{"$error":"#DIV/0!"},null,{"$error":"#DIV/0!"},null,{"$error":"#DIV/0!"}]
["Artículo 10°.- Bono navideño.",null,null,null,{"$error":"#DIV/0!"},null,null,null,null,null,null,{"$error":"#DIV/0!"},null,{"$error":"#DIV/0!"},null,{"$error":"#DIV/0!"}]
["Artículo 11 -. Capacitación.",null,null,null,{"$error":"#DIV/0!"},null,null,null,null,null,null,{"$error":"#DIV/0!"},null,{"$error":"#DIV/0!"},null,{"$error":"#DIV/0!"}]
["Artículo 12 -. Bienestar.",null,null,null,{"$error":"#DIV/0!"},null,null,null,null,null,null,{"$error":"#DIV/0!"},null,{"$error":"#DIV/0!"},null,{"$error":"#DIV/0!"}]
["Artículo 13 -. Eventos y conmemoraciones.",null,null,null,{"$error":"#DIV/0!"},null,null,null,null,null,null,{"$error":"#DIV/0!"},null,{"$error":"#DIV/0!"},null,{"$error":"#DIV/0!"}]
["Artículo 14 -. Fondos educativos.",null,null,null,{"$error":"#DIV/0!"},null,null,null,null,null,null,{"$error":"#DIV/0!"},null,{"$error":"#DIV/0!"},null,{"$error":"#DIV/0!"}]
["Servicios Administrativos"]
["Artículo 15. Telefonía.",null,null,null,{"$f":"1-(D19/C19)","v":{"$error":"#DIV/0!"}},null,null,null,null,null,null,{"$error":"#DIV/0!"},null,{"$error":"#DIV/0!"},null,{"$error":"#DIV/0!"}]
["Artículo 16 -. Vehículos oficiales.",null,null,null,{"$error":"#DIV/0!"},null,null,null,null,null,null,{"$error":"#DIV/0!"},null,{"$error":"#DIV/0!"},null,{"$error":"#DIV/0!"}]
["Artículo 17 -. Adquisición de vehículos y maquinaria.",null,null,null,{"$error":"#DIV/0!"},null,null,null,null,null,null,{"$error":"#DIV/0!"},null,{"$error":"#DIV/0!"},null,{"$error":"#DIV/0!"}]
["Artículo 18 -. Fotocopiado, multicopiado e impresión.",null,null,null,{"$error":"#DIV/0!"},null,null,null,null,null,null,{"$error":"#DIV/0!"},null,{"$error":"#DIV/0!"},null,{"$error":"#DIV/0!"}]
["Artículo 19 -. Publicidad distrital.",null,null,null,{"$error":"#DIV/0!"},null,null,null,null,null,null,{"$error":"#DIV/0!"},null,{"$error":"#DIV/0!"},null,{"$error":"#DIV/0!"}]
["Artículo 20 -. Cajas menores.",null,null,null,{"$error":"#DIV/0!"},null,null,null,null,null,null,{"$error":"#DIV/0!"},null,{"$error":"#DIV/0!"},null,{"$error":"#DIV/0!"}]
["Artículo 21 -. Mantenimiento o reparación de bienes inmuebles o muebles.",null,null,null,{"$error":"#DIV/0!"},null,null,null,null,null,null,{"$error":"#DIV/0!"},null,{"$error":"#DIV/0!"},null,{"$error":"#DIV/0!"}]
["Artículo 22 -. Suscripciones.",null,null,null,{"$error":"#DIV/0!"},null,null,null,null,null,null,{"$error":"#DIV/0!"},null,{"$error":"#DIV/0!"},null,{"$error":"#DIV/0!"}]
["Artículo 23 -. Servicios públicos.",null,null,null,{"$error":"#DIV/0!"},null,null,null,null,null,null,{"$error":"#DIV/0!"},null,{"$error":"#DIV/0!"},null,{"$error":"#DIV/0!"}]

{"sheet":"0118-01 SDHT","index":35,"n_rows":27,"n_cols":16,"rows_kept":27,"cut":false,"hidden":false,"merged":[[5,10,5,11],[5,12,5,13],[5,14,5,15],[1,1,1,4],[3,0,6,0],[3,1,6,1],[3,2,4,4],[3,5,3,9],[3,10,4,15],[4,5,6,5],[4,6,6,6],[4,7,5,9],[5,3,5,4]]}
["PLAN DE AUSTERIDAD EN EL GASTO 2025-2027"]
["Entidad"," "]
["Valores en Pesos Corrientes"]
["CONCEPTO\n(Decreto 062 de 2024)","Posiciones Presupuestales Asociadas\n(Funcionamiento e Inversión)","LÍNEA BASE",null,null,"PLAN DE AUSTERIDAD EN EL GASTO 2025-2027",null,null,null,null,"SEGUIMIENTO RESULTADOS PLAN DE AUSTERIDAD 2025-2027"]
[null,null,null,null,null,"ESTRATEGIAS\n2025-2027","ACCIONES\n2025-2027","META INDICADOR DE AUSTERIDAD"]
[null,null,"AÑO 2023","AÑO 2024",null,null,null,null,null,null,"AÑO 2025",null,"AÑO 2026",null,"AÑO 2027"]
[null,null,"Valor EJECUTADO\na 31/12/2023","Valor EJECUTADO\na 31/12/2024","Resultado\nIndicador Austeridad",null,null,"AÑO 2025","AÑO 2026","AÑO 2027","Valor EJECUTADO\na 31/12/2025","Resultado\nIndicador Austeridad","Valor EJECUTADO\na 31/12/2026","Resultado\nIndicador Austeridad","Valor EJECUTADO\na 31/12/2027","Resultado\nIndicador Austeridad"]
["Servicios de personal"]
["Artículo 6°.- Reducción del gasto en CPS profesionales y de apoyo a la gestión. ","N.A.  \nSe registran totales. Corresponde con lo reportado en SIDEAP y SIVICOF",null,null,{"$f":"1-(D9/C9)","v":{"$error":"#DIV/0!"}},null,null,null,null,null,null,{"$f":"1-(K9/D9)","v":{"$error":"#DIV/0!"}},null,{"$f":"1-(M9/K9)","v":{"$error":"#DIV/0!"}},null,{"$f":"1-(O9/M9)","v":{"$error":"#DIV/0!"}}]
["Artículo 7°.- Horas extras, dominicales y festivos. ",null,null,null,{"$error":"#DIV/0!"},null,null,null,null,null,null,{"$f":"1-(K10/D10)","v":{"$error":"#DIV/0!"}},null,{"$f":"1-(M10/K10)","v":{"$error":"#DIV/0!"}},null,{"$error":"#DIV/0!"}]
["Artículo 8°.- Viáticos y gastos de viaje.",null,null,null,{"$error":"#DIV/0!"},null,null,null,null,null,null,{"$error":"#DIV/0!"},null,{"$error":"#DIV/0!"},null,{"$error":"#DIV/0!"}]
["Artículo 9°.- Compensación por vacaciones.",null,null,null,{"$error":"#DIV/0!"},null,null,null,null,null,null,{"$error":"#DIV/0!"},null,{"$error":"#DIV/0!"},null,{"$error":"#DIV/0!"}]
["Artículo 10°.- Bono navideño.",null,null,null,{"$error":"#DIV/0!"},null,null,null,null,null,null,{"$error":"#DIV/0!"},null,{"$error":"#DIV/0!"},null,{"$error":"#DIV/0!"}]
["Artículo 11 -. Capacitación.",null,null,null,{"$error":"#DIV/0!"},null,null,null,null,null,null,{"$error":"#DIV/0!"},null,{"$error":"#DIV/0!"},null,{"$error":"#DIV/0!"}]
["Artículo 12 -. Bienestar.",null,null,null,{"$error":"#DIV/0!"},null,null,null,null,null,null,{"$error":"#DIV/0!"},null,{"$error":"#DIV/0!"},null,{"$error":"#DIV/0!"}]
["Artículo 13 -. Eventos y conmemoraciones.",null,null,null,{"$error":"#DIV/0!"},null,null,null,null,null,null,{"$error":"#DIV/0!"},null,{"$error":"#DIV/0!"},null,{"$error":"#DIV/0!"}]
["Artículo 14 -. Fondos educativos.",null,null,null,{"$error":"#DIV/0!"},null,null,null,null,null,null,{"$error":"#DIV/0!"},null,{"$error":"#DIV/0!"},null,{"$error":"#DIV/0!"}]
["Servicios Administrativos"]
["Artículo 15. Telefonía.",null,null,null,{"$f":"1-(D19/C19)","v":{"$error":"#DIV/0!"}},null,null,null,null,null,null,{"$error":"#DIV/0!"},null,{"$error":"#DIV/0!"},null,{"$error":"#DIV/0!"}]
["Artículo 16 -. Vehículos oficiales.",null,null,null,{"$error":"#DIV/0!"},null,null,null,null,null,null,{"$error":"#DIV/0!"},null,{"$error":"#DIV/0!"},null,{"$error":"#DIV/0!"}]
["Artículo 17 -. Adquisición de vehículos y maquinaria.",null,null,null,{"$error":"#DIV/0!"},null,null,null,null,null,null,{"$error":"#DIV/0!"},null,{"$error":"#DIV/0!"},null,{"$error":"#DIV/0!"}]
["Artículo 18 -. Fotocopiado, multicopiado e impresión.",null,null,null,{"$error":"#DIV/0!"},null,null,null,null,null,null,{"$error":"#DIV/0!"},null,{"$error":"#DIV/0!"},null,{"$error":"#DIV/0!"}]
["Artículo 19 -. Publicidad distrital.",null,null,null,{"$error":"#DIV/0!"},null,null,null,null,null,null,{"$error":"#DIV/0!"},null,{"$error":"#DIV/0!"},null,{"$error":"#DIV/0!"}]
["Artículo 20 -. Cajas menores.",null,null,null,{"$error":"#DIV/0!"},null,null,null,null,null,null,{"$error":"#DIV/0!"},null,{"$error":"#DIV/0!"},null,{"$error":"#DIV/0!"}]
["Artículo 21 -. Mantenimiento o reparación de bienes inmuebles o muebles.",null,null,null,{"$error":"#DIV/0!"},null,null,null,null,null,null,{"$error":"#DIV/0!"},null,{"$error":"#DIV/0!"},null,{"$error":"#DIV/0!"}]
["Artículo 22 -. Suscripciones.",null,null,null,{"$error":"#DIV/0!"},null,null,null,null,null,null,{"$error":"#DIV/0!"},null,{"$error":"#DIV/0!"},null,{"$error":"#DIV/0!"}]
["Artículo 23 -. Servicios públicos.",null,null,null,{"$error":"#DIV/0!"},null,null,null,null,null,null,{"$error":"#DIV/0!"},null,{"$error":"#DIV/0!"},null,{"$error":"#DIV/0!"}]

{"sheet":"0119-01 SDCRD","index":36,"n_rows":27,"n_cols":16,"rows_kept":27,"cut":false,"hidden":false,"merged":[[5,10,5,11],[5,12,5,13],[5,14,5,15],[1,1,1,4],[3,0,6,0],[3,1,6,1],[3,2,4,4],[3,5,3,9],[3,10,4,15],[4,5,6,5],[4,6,6,6],[4,7,5,9],[5,3,5,4]]}
["PLAN DE AUSTERIDAD EN EL GASTO 2025-2027"]
["Entidad"," "]
["Valores en Pesos Corrientes"]
["CONCEPTO\n(Decreto 062 de 2024)","Posiciones Presupuestales Asociadas\n(Funcionamiento e Inversión)","LÍNEA BASE",null,null,"PLAN DE AUSTERIDAD EN EL GASTO 2025-2027",null,null,null,null,"SEGUIMIENTO RESULTADOS PLAN DE AUSTERIDAD 2025-2027"]
[null,null,null,null,null,"ESTRATEGIAS\n2025-2027","ACCIONES\n2025-2027","META INDICADOR DE AUSTERIDAD"]
[null,null,"AÑO 2023","AÑO 2024",null,null,null,null,null,null,"AÑO 2025",null,"AÑO 2026",null,"AÑO 2027"]
[null,null,"Valor EJECUTADO\na 31/12/2023","Valor EJECUTADO\na 31/12/2024","Resultado\nIndicador Austeridad",null,null,"AÑO 2025","AÑO 2026","AÑO 2027","Valor EJECUTADO\na 31/12/2025","Resultado\nIndicador Austeridad","Valor EJECUTADO\na 31/12/2026","Resultado\nIndicador Austeridad","Valor EJECUTADO\na 31/12/2027","Resultado\nIndicador Austeridad"]
["Servicios de personal"]
["Artículo 6°.- Reducción del gasto en CPS profesionales y de apoyo a la gestión. ","N.A.  \nSe registran totales. Corresponde con lo reportado en SIDEAP y SIVICOF",null,null,{"$f":"1-(D9/C9)","v":{"$error":"#DIV/0!"}},null,null,null,null,null,null,{"$f":"1-(K9/D9)","v":{"$error":"#DIV/0!"}},null,{"$f":"1-(M9/K9)","v":{"$error":"#DIV/0!"}},null,{"$f":"1-(O9/M9)","v":{"$error":"#DIV/0!"}}]
["Artículo 7°.- Horas extras, dominicales y festivos. ",null,null,null,{"$error":"#DIV/0!"},null,null,null,null,null,null,{"$f":"1-(K10/D10)","v":{"$error":"#DIV/0!"}},null,{"$f":"1-(M10/K10)","v":{"$error":"#DIV/0!"}},null,{"$error":"#DIV/0!"}]
["Artículo 8°.- Viáticos y gastos de viaje.",null,null,null,{"$error":"#DIV/0!"},null,null,null,null,null,null,{"$error":"#DIV/0!"},null,{"$error":"#DIV/0!"},null,{"$error":"#DIV/0!"}]
["Artículo 9°.- Compensación por vacaciones.",null,null,null,{"$error":"#DIV/0!"},null,null,null,null,null,null,{"$error":"#DIV/0!"},null,{"$error":"#DIV/0!"},null,{"$error":"#DIV/0!"}]
["Artículo 10°.- Bono navideño.",null,null,null,{"$error":"#DIV/0!"},null,null,null,null,null,null,{"$error":"#DIV/0!"},null,{"$error":"#DIV/0!"},null,{"$error":"#DIV/0!"}]
["Artículo 11 -. Capacitación.",null,null,null,{"$error":"#DIV/0!"},null,null,null,null,null,null,{"$error":"#DIV/0!"},null,{"$error":"#DIV/0!"},null,{"$error":"#DIV/0!"}]
["Artículo 12 -. Bienestar.",null,null,null,{"$error":"#DIV/0!"},null,null,null,null,null,null,{"$error":"#DIV/0!"},null,{"$error":"#DIV/0!"},null,{"$error":"#DIV/0!"}]
["Artículo 13 -. Eventos y conmemoraciones.",null,null,null,{"$error":"#DIV/0!"},null,null,null,null,null,null,{"$error":"#DIV/0!"},null,{"$error":"#DIV/0!"},null,{"$error":"#DIV/0!"}]
["Artículo 14 -. Fondos educativos.",null,null,null,{"$error":"#DIV/0!"},null,null,null,null,null,null,{"$error":"#DIV/0!"},null,{"$error":"#DIV/0!"},null,{"$error":"#DIV/0!"}]
["Servicios Administrativos"]
["Artículo 15. Telefonía.",null,null,null,{"$f":"1-(D19/C19)","v":{"$error":"#DIV/0!"}},null,null,null,null,null,null,{"$error":"#DIV/0!"},null,{"$error":"#DIV/0!"},null,{"$error":"#DIV/0!"}]
["Artículo 16 -. Vehículos oficiales.",null,null,null,{"$error":"#DIV/0!"},null,null,null,null,null,null,{"$error":"#DIV/0!"},null,{"$error":"#DIV/0!"},null,{"$error":"#DIV/0!"}]
["Artículo 17 -. Adquisición de vehículos y maquinaria.",null,null,null,{"$error":"#DIV/0!"},null,null,null,null,null,null,{"$error":"#DIV/0!"},null,{"$error":"#DIV/0!"},null,{"$error":"#DIV/0!"}]
["Artículo 18 -. Fotocopiado, multicopiado e impresión.",null,null,null,{"$error":"#DIV/0!"},null,null,null,null,null,null,{"$error":"#DIV/0!"},null,{"$error":"#DIV/0!"},null,{"$error":"#DIV/0!"}]
["Artículo 19 -. Publicidad distrital.",null,null,null,{"$error":"#DIV/0!"},null,null,null,null,null,null,{"$error":"#DIV/0!"},null,{"$error":"#DIV/0!"},null,{"$error":"#DIV/0!"}]
["Artículo 20 -. Cajas menores.",null,null,null,{"$error":"#DIV/0!"},null,null,null,null,null,null,{"$error":"#DIV/0!"},null,{"$error":"#DIV/0!"},null,{"$error":"#DIV/0!"}]
["Artículo 21 -. Mantenimiento o reparación de bienes inmuebles o muebles.",null,null,null,{"$error":"#DIV/0!"},null,null,null,null,null,null,{"$error":"#DIV/0!"},null,{"$error":"#DIV/0!"},null,{"$error":"#DIV/0!"}]
["Artículo 22 -. Suscripciones.",null,null,null,{"$error":"#DIV/0!"},null,null,null,null,null,null,{"$error":"#DIV/0!"},null,{"$error":"#DIV/0!"},null,{"$error":"#DIV/0!"}]
["Artículo 23 -. Servicios públicos.",null,null,null,{"$error":"#DIV/0!"},null,null,null,null,null,null,{"$error":"#DIV/0!"},null,{"$error":"#DIV/0!"},null,{"$error":"#DIV/0!"}]

{"sheet":"0120-01 SDP","index":37,"n_rows":27,"n_cols":16,"rows_kept":27,"cut":false,"hidden":false,"merged":[[5,10,5,11],[5,12,5,13],[5,14,5,15],[1,1,1,4],[3,0,6,0],[3,1,6,1],[3,2,4,4],[3,5,3,9],[3,10,4,15],[4,5,6,5],[4,6,6,6],[4,7,5,9],[5,3,5,4]]}
["PLAN DE AUSTERIDAD EN EL GASTO 2025-2027"]
["Entidad"," "]
["Valores en Pesos Corrientes"]
["CONCEPTO\n(Decreto 062 de 2024)","Posiciones Presupuestales Asociadas\n(Funcionamiento e Inversión)","LÍNEA BASE",null,null,"PLAN DE AUSTERIDAD EN EL GASTO 2025-2027",null,null,null,null,"SEGUIMIENTO RESULTADOS PLAN DE AUSTERIDAD 2025-2027"]
[null,null,null,null,null,"ESTRATEGIAS\n2025-2027","ACCIONES\n2025-2027","META INDICADOR DE AUSTERIDAD"]
[null,null,"AÑO 2023","AÑO 2024",null,null,null,null,null,null,"AÑO 2025",null,"AÑO 2026",null,"AÑO 2027"]
[null,null,"Valor EJECUTADO\na 31/12/2023","Valor EJECUTADO\na 31/12/2024","Resultado\nIndicador Austeridad",null,null,"AÑO 2025","AÑO 2026","AÑO 2027","Valor EJECUTADO\na 31/12/2025","Resultado\nIndicador Austeridad","Valor EJECUTADO\na 31/12/2026","Resultado\nIndicador Austeridad","Valor EJECUTADO\na 31/12/2027","Resultado\nIndicador Austeridad"]
["Servicios de personal"]
["Artículo 6°.- Reducción del gasto en CPS profesionales y de apoyo a la gestión. ","N.A.  \nSe registran totales. Corresponde con lo reportado en SIDEAP y SIVICOF",null,null,{"$f":"1-(D9/C9)","v":{"$error":"#DIV/0!"}},null,null,null,null,null,null,{"$f":"1-(K9/D9)","v":{"$error":"#DIV/0!"}},null,{"$f":"1-(M9/K9)","v":{"$error":"#DIV/0!"}},null,{"$f":"1-(O9/M9)","v":{"$error":"#DIV/0!"}}]
["Artículo 7°.- Horas extras, dominicales y festivos. ",null,null,null,{"$error":"#DIV/0!"},null,null,null,null,null,null,{"$f":"1-(K10/D10)","v":{"$error":"#DIV/0!"}},null,{"$f":"1-(M10/K10)","v":{"$error":"#DIV/0!"}},null,{"$error":"#DIV/0!"}]
["Artículo 8°.- Viáticos y gastos de viaje.",null,null,null,{"$error":"#DIV/0!"},null,null,null,null,null,null,{"$error":"#DIV/0!"},null,{"$error":"#DIV/0!"},null,{"$error":"#DIV/0!"}]
["Artículo 9°.- Compensación por vacaciones.",null,null,null,{"$error":"#DIV/0!"},null,null,null,null,null,null,{"$error":"#DIV/0!"},null,{"$error":"#DIV/0!"},null,{"$error":"#DIV/0!"}]
["Artículo 10°.- Bono navideño.",null,null,null,{"$error":"#DIV/0!"},null,null,null,null,null,null,{"$error":"#DIV/0!"},null,{"$error":"#DIV/0!"},null,{"$error":"#DIV/0!"}]
["Artículo 11 -. Capacitación.",null,null,null,{"$error":"#DIV/0!"},null,null,null,null,null,null,{"$error":"#DIV/0!"},null,{"$error":"#DIV/0!"},null,{"$error":"#DIV/0!"}]
["Artículo 12 -. Bienestar.",null,null,null,{"$error":"#DIV/0!"},null,null,null,null,null,null,{"$error":"#DIV/0!"},null,{"$error":"#DIV/0!"},null,{"$error":"#DIV/0!"}]
["Artículo 13 -. Eventos y conmemoraciones.",null,null,null,{"$error":"#DIV/0!"},null,null,null,null,null,null,{"$error":"#DIV/0!"},null,{"$error":"#DIV/0!"},null,{"$error":"#DIV/0!"}]
["Artículo 14 -. Fondos educativos.",null,null,null,{"$error":"#DIV/0!"},null,null,null,null,null,null,{"$error":"#DIV/0!"},null,{"$error":"#DIV/0!"},null,{"$error":"#DIV/0!"}]
["Servicios Administrativos"]
["Artículo 15. Telefonía.",null,null,null,{"$f":"1-(D19/C19)","v":{"$error":"#DIV/0!"}},null,null,null,null,null,null,{"$error":"#DIV/0!"},null,{"$error":"#DIV/0!"},null,{"$error":"#DIV/0!"}]
["Artículo 16 -. Vehículos oficiales.",null,null,null,{"$error":"#DIV/0!"},null,null,null,null,null,null,{"$error":"#DIV/0!"},null,{"$error":"#DIV/0!"},null,{"$error":"#DIV/0!"}]
["Artículo 17 -. Adquisición de vehículos y maquinaria.",null,null,null,{"$error":"#DIV/0!"},null,null,null,null,null,null,{"$error":"#DIV/0!"},null,{"$error":"#DIV/0!"},null,{"$error":"#DIV/0!"}]
["Artículo 18 -. Fotocopiado, multicopiado e impresión.",null,null,null,{"$error":"#DIV/0!"},null,null,null,null,null,null,{"$error":"#DIV/0!"},null,{"$error":"#DIV/0!"},null,{"$error":"#DIV/0!"}]
["Artículo 19 -. Publicidad distrital.",null,null,null,{"$error":"#DIV/0!"},null,null,null,null,null,null,{"$error":"#DIV/0!"},null,{"$error":"#DIV/0!"},null,{"$error":"#DIV/0!"}]
["Artículo 20 -. Cajas menores.",null,null,null,{"$error":"#DIV/0!"},null,null,null,null,null,null,{"$error":"#DIV/0!"},null,{"$error":"#DIV/0!"},null,{"$error":"#DIV/0!"}]
["Artículo 21 -. Mantenimiento o reparación de bienes inmuebles o muebles.",null,null,null,{"$error":"#DIV/0!"},null,null,null,null,null,null,{"$error":"#DIV/0!"},null,{"$error":"#DIV/0!"},null,{"$error":"#DIV/0!"}]
["Artículo 22 -. Suscripciones.",null,null,null,{"$error":"#DIV/0!"},null,null,null,null,null,null,{"$error":"#DIV/0!"},null,{"$error":"#DIV/0!"},null,{"$error":"#DIV/0!"}]
["Artículo 23 -. Servicios públicos.",null,null,null,{"$error":"#DIV/0!"},null,null,null,null,null,null,{"$error":"#DIV/0!"},null,{"$error":"#DIV/0!"},null,{"$error":"#DIV/0!"}]

{"sheet":"0121-01 SDM","index":38,"n_rows":27,"n_cols":16,"rows_kept":27,"cut":false,"hidden":false,"merged":[[5,10,5,11],[5,12,5,13],[5,14,5,15],[1,1,1,4],[3,0,6,0],[3,1,6,1],[3,2,4,4],[3,5,3,9],[3,10,4,15],[4,5,6,5],[4,6,6,6],[4,7,5,9],[5,3,5,4]]}
["PLAN DE AUSTERIDAD EN EL GASTO 2025-2027"]
["Entidad"," "]
["Valores en Pesos Corrientes"]
["CONCEPTO\n(Decreto 062 de 2024)","Posiciones Presupuestales Asociadas\n(Funcionamiento e Inversión)","LÍNEA BASE",null,null,"PLAN DE AUSTERIDAD EN EL GASTO 2025-2027",null,null,null,null,"SEGUIMIENTO RESULTADOS PLAN DE AUSTERIDAD 2025-2027"]
[null,null,null,null,null,"ESTRATEGIAS\n2025-2027","ACCIONES\n2025-2027","META INDICADOR DE AUSTERIDAD"]
[null,null,"AÑO 2023","AÑO 2024",null,null,null,null,null,null,"AÑO 2025",null,"AÑO 2026",null,"AÑO 2027"]
[null,null,"Valor EJECUTADO\na 31/12/2023","Valor EJECUTADO\na 31/12/2024","Resultado\nIndicador Austeridad",null,null,"AÑO 2025","AÑO 2026","AÑO 2027","Valor EJECUTADO\na 31/12/2025","Resultado\nIndicador Austeridad","Valor EJECUTADO\na 31/12/2026","Resultado\nIndicador Austeridad","Valor EJECUTADO\na 31/12/2027","Resultado\nIndicador Austeridad"]
["Servicios de personal"]
["Artículo 6°.- Reducción del gasto en CPS profesionales y de apoyo a la gestión. ","N.A.  \nSe registran totales. Corresponde con lo reportado en SIDEAP y SIVICOF",null,null,{"$f":"1-(D9/C9)","v":{"$error":"#DIV/0!"}},null,null,null,null,null,null,{"$f":"1-(K9/D9)","v":{"$error":"#DIV/0!"}},null,{"$f":"1-(M9/K9)","v":{"$error":"#DIV/0!"}},null,{"$f":"1-(O9/M9)","v":{"$error":"#DIV/0!"}}]
["Artículo 7°.- Horas extras, dominicales y festivos. ",null,null,null,{"$error":"#DIV/0!"},null,null,null,null,null,null,{"$f":"1-(K10/D10)","v":{"$error":"#DIV/0!"}},null,{"$f":"1-(M10/K10)","v":{"$error":"#DIV/0!"}},null,{"$error":"#DIV/0!"}]
["Artículo 8°.- Viáticos y gastos de viaje.",null,null,null,{"$error":"#DIV/0!"},null,null,null,null,null,null,{"$error":"#DIV/0!"},null,{"$error":"#DIV/0!"},null,{"$error":"#DIV/0!"}]
["Artículo 9°.- Compensación por vacaciones.",null,null,null,{"$error":"#DIV/0!"},null,null,null,null,null,null,{"$error":"#DIV/0!"},null,{"$error":"#DIV/0!"},null,{"$error":"#DIV/0!"}]
["Artículo 10°.- Bono navideño.",null,null,null,{"$error":"#DIV/0!"},null,null,null,null,null,null,{"$error":"#DIV/0!"},null,{"$error":"#DIV/0!"},null,{"$error":"#DIV/0!"}]
["Artículo 11 -. Capacitación.",null,null,null,{"$error":"#DIV/0!"},null,null,null,null,null,null,{"$error":"#DIV/0!"},null,{"$error":"#DIV/0!"},null,{"$error":"#DIV/0!"}]
["Artículo 12 -. Bienestar.",null,null,null,{"$error":"#DIV/0!"},null,null,null,null,null,null,{"$error":"#DIV/0!"},null,{"$error":"#DIV/0!"},null,{"$error":"#DIV/0!"}]
["Artículo 13 -. Eventos y conmemoraciones.",null,null,null,{"$error":"#DIV/0!"},null,null,null,null,null,null,{"$error":"#DIV/0!"},null,{"$error":"#DIV/0!"},null,{"$error":"#DIV/0!"}]
["Artículo 14 -. Fondos educativos.",null,null,null,{"$error":"#DIV/0!"},null,null,null,null,null,null,{"$error":"#DIV/0!"},null,{"$error":"#DIV/0!"},null,{"$error":"#DIV/0!"}]
["Servicios Administrativos"]
["Artículo 15. Telefonía.",null,null,null,{"$f":"1-(D19/C19)","v":{"$error":"#DIV/0!"}},null,null,null,null,null,null,{"$error":"#DIV/0!"},null,{"$error":"#DIV/0!"},null,{"$error":"#DIV/0!"}]
["Artículo 16 -. Vehículos oficiales.",null,null,null,{"$error":"#DIV/0!"},null,null,null,null,null,null,{"$error":"#DIV/0!"},null,{"$error":"#DIV/0!"},null,{"$error":"#DIV/0!"}]
["Artículo 17 -. Adquisición de vehículos y maquinaria.",null,null,null,{"$error":"#DIV/0!"},null,null,null,null,null,null,{"$error":"#DIV/0!"},null,{"$error":"#DIV/0!"},null,{"$error":"#DIV/0!"}]
["Artículo 18 -. Fotocopiado, multicopiado e impresión.",null,null,null,{"$error":"#DIV/0!"},null,null,null,null,null,null,{"$error":"#DIV/0!"},null,{"$error":"#DIV/0!"},null,{"$error":"#DIV/0!"}]
["Artículo 19 -. Publicidad distrital.",null,null,null,{"$error":"#DIV/0!"},null,null,null,null,null,null,{"$error":"#DIV/0!"},null,{"$error":"#DIV/0!"},null,{"$error":"#DIV/0!"}]
["Artículo 20 -. Cajas menores.",null,null,null,{"$error":"#DIV/0!"},null,null,null,null,null,null,{"$error":"#DIV/0!"},null,{"$error":"#DIV/0!"},null,{"$error":"#DIV/0!"}]
["Artículo 21 -. Mantenimiento o reparación de bienes inmuebles o muebles.",null,null,null,{"$error":"#DIV/0!"},null,null,null,null,null,null,{"$error":"#DIV/0!"},null,{"$error":"#DIV/0!"},null,{"$error":"#DIV/0!"}]
["Artículo 22 -. Suscripciones.",null,null,null,{"$error":"#DIV/0!"},null,null,null,null,null,null,{"$error":"#DIV/0!"},null,{"$error":"#DIV/0!"},null,{"$error":"#DIV/0!"}]
["Artículo 23 -. Servicios públicos.",null,null,null,{"$error":"#DIV/0!"},null,null,null,null,null,null,{"$error":"#DIV/0!"},null,{"$error":"#DIV/0!"},null,{"$error":"#DIV/0!"}]

{"sheet":"0125-01 DASCD","index":39,"n_rows":27,"n_cols":16,"rows_kept":27,"cut":false,"hidden":false,"merged":[[5,10,5,11],[5,12,5,13],[5,14,5,15],[1,1,1,4],[3,0,6,0],[3,1,6,1],[3,2,4,4],[3,5,3,9],[3,10,4,15],[4,5,6,5],[4,6,6,6],[4,7,5,9],[5,3,5,4]]}
["PLAN DE AUSTERIDAD EN EL GASTO 2025-2027"]
["Entidad"," "]
["Valores en Pesos Corrientes"]
["CONCEPTO\n(Decreto 062 de 2024)","Posiciones Presupuestales Asociadas\n(Funcionamiento e Inversión)","LÍNEA BASE",null,null,"PLAN DE AUSTERIDAD EN EL GASTO 2025-2027",null,null,null,null,"SEGUIMIENTO RESULTADOS PLAN DE AUSTERIDAD 2025-2027"]
[null,null,null,null,null,"ESTRATEGIAS\n2025-2027","ACCIONES\n2025-2027","META INDICADOR DE AUSTERIDAD"]
[null,null,"AÑO 2023","AÑO 2024",null,null,null,null,null,null,"AÑO 2025",null,"AÑO 2026",null,"AÑO 2027"]
[null,null,"Valor EJECUTADO\na 31/12/2023","Valor EJECUTADO\na 31/12/2024","Resultado\nIndicador Austeridad",null,null,"AÑO 2025","AÑO 2026","AÑO 2027","Valor EJECUTADO\na 31/12/2025","Resultado\nIndicador Austeridad","Valor EJECUTADO\na 31/12/2026","Resultado\nIndicador Austeridad","Valor EJECUTADO\na 31/12/2027","Resultado\nIndicador Austeridad"]
["Servicios de personal"]
["Artículo 6°.- Reducción del gasto en CPS profesionales y de apoyo a la gestión. ","N.A.  \nSe registran totales. Corresponde con lo reportado en SIDEAP y SIVICOF",null,null,{"$f":"1-(D9/C9)","v":{"$error":"#DIV/0!"}},null,null,null,null,null,null,{"$f":"1-(K9/D9)","v":{"$error":"#DIV/0!"}},null,{"$f":"1-(M9/K9)","v":{"$error":"#DIV/0!"}},null,{"$f":"1-(O9/M9)","v":{"$error":"#DIV/0!"}}]
["Artículo 7°.- Horas extras, dominicales y festivos. ",null,null,null,{"$error":"#DIV/0!"},null,null,null,null,null,null,{"$f":"1-(K10/D10)","v":{"$error":"#DIV/0!"}},null,{"$f":"1-(M10/K10)","v":{"$error":"#DIV/0!"}},null,{"$error":"#DIV/0!"}]
["Artículo 8°.- Viáticos y gastos de viaje.",null,null,null,{"$error":"#DIV/0!"},null,null,null,null,null,null,{"$error":"#DIV/0!"},null,{"$error":"#DIV/0!"},null,{"$error":"#DIV/0!"}]
["Artículo 9°.- Compensación por vacaciones.",null,null,null,{"$error":"#DIV/0!"},null,null,null,null,null,null,{"$error":"#DIV/0!"},null,{"$error":"#DIV/0!"},null,{"$error":"#DIV/0!"}]
["Artículo 10°.- Bono navideño.",null,null,null,{"$error":"#DIV/0!"},null,null,null,null,null,null,{"$error":"#DIV/0!"},null,{"$error":"#DIV/0!"},null,{"$error":"#DIV/0!"}]
["Artículo 11 -. Capacitación.",null,null,null,{"$error":"#DIV/0!"},null,null,null,null,null,null,{"$error":"#DIV/0!"},null,{"$error":"#DIV/0!"},null,{"$error":"#DIV/0!"}]
["Artículo 12 -. Bienestar.",null,null,null,{"$error":"#DIV/0!"},null,null,null,null,null,null,{"$error":"#DIV/0!"},null,{"$error":"#DIV/0!"},null,{"$error":"#DIV/0!"}]
["Artículo 13 -. Eventos y conmemoraciones.",null,null,null,{"$error":"#DIV/0!"},null,null,null,null,null,null,{"$error":"#DIV/0!"},null,{"$error":"#DIV/0!"},null,{"$error":"#DIV/0!"}]
["Artículo 14 -. Fondos educativos.",null,null,null,{"$error":"#DIV/0!"},null,null,null,null,null,null,{"$error":"#DIV/0!"},null,{"$error":"#DIV/0!"},null,{"$error":"#DIV/0!"}]
["Servicios Administrativos"]
["Artículo 15. Telefonía.",null,null,null,{"$f":"1-(D19/C19)","v":{"$error":"#DIV/0!"}},null,null,null,null,null,null,{"$error":"#DIV/0!"},null,{"$error":"#DIV/0!"},null,{"$error":"#DIV/0!"}]
["Artículo 16 -. Vehículos oficiales.",null,null,null,{"$error":"#DIV/0!"},null,null,null,null,null,null,{"$error":"#DIV/0!"},null,{"$error":"#DIV/0!"},null,{"$error":"#DIV/0!"}]
["Artículo 17 -. Adquisición de vehículos y maquinaria.",null,null,null,{"$error":"#DIV/0!"},null,null,null,null,null,null,{"$error":"#DIV/0!"},null,{"$error":"#DIV/0!"},null,{"$error":"#DIV/0!"}]
["Artículo 18 -. Fotocopiado, multicopiado e impresión.",null,null,null,{"$error":"#DIV/0!"},null,null,null,null,null,null,{"$error":"#DIV/0!"},null,{"$error":"#DIV/0!"},null,{"$error":"#DIV/0!"}]
["Artículo 19 -. Publicidad distrital.",null,null,null,{"$error":"#DIV/0!"},null,null,null,null,null,null,{"$error":"#DIV/0!"},null,{"$error":"#DIV/0!"},null,{"$error":"#DIV/0!"}]
["Artículo 20 -. Cajas menores.",null,null,null,{"$error":"#DIV/0!"},null,null,null,null,null,null,{"$error":"#DIV/0!"},null,{"$error":"#DIV/0!"},null,{"$error":"#DIV/0!"}]
["Artículo 21 -. Mantenimiento o reparación de bienes inmuebles o muebles.",null,null,null,{"$error":"#DIV/0!"},null,null,null,null,null,null,{"$error":"#DIV/0!"},null,{"$error":"#DIV/0!"},null,{"$error":"#DIV/0!"}]
["Artículo 22 -. Suscripciones.",null,null,null,{"$error":"#DIV/0!"},null,null,null,null,null,null,{"$error":"#DIV/0!"},null,{"$error":"#DIV/0!"},null,{"$error":"#DIV/0!"}]
["Artículo 23 -. Servicios públicos.",null,null,null,{"$error":"#DIV/0!"},null,null,null,null,null,null,{"$error":"#DIV/0!"},null,{"$error":"#DIV/0!"},null,{"$error":"#DIV/0!"}]

{"sheet":"0122-01 SDIS","index":40,"n_rows":27,"n_cols":16,"rows_kept":27,"cut":false,"hidden":false,"merged":[[5,10,5,11],[5,12,5,13],[5,14,5,15],[1,1,1,4],[3,0,6,0],[3,1,6,1],[3,2,4,4],[3,5,3,9],[3,10,4,15],[4,5,6,5],[4,6,6,6],[4,7,5,9],[5,3,5,4]]}
["PLAN DE AUSTERIDAD EN EL GASTO 2025-2027"]
["Entidad"," "]
["Valores en Pesos Corrientes"]
["CONCEPTO\n(Decreto 062 de 2024)","Posiciones Presupuestales Asociadas\n(Funcionamiento e Inversión)","LÍNEA BASE",null,null,"PLAN DE AUSTERIDAD EN EL GASTO 2025-2027",null,null,null,null,"SEGUIMIENTO RESULTADOS PLAN DE AUSTERIDAD 2025-2027"]
[null,null,null,null,null,"ESTRATEGIAS\n2025-2027","ACCIONES\n2025-2027","META INDICADOR DE AUSTERIDAD"]
[null,null,"AÑO 2023","AÑO 2024",null,null,null,null,null,null,"AÑO 2025",null,"AÑO 2026",null,"AÑO 2027"]
[null,null,"Valor EJECUTADO\na 31/12/2023","Valor EJECUTADO\na 31/12/2024","Resultado\nIndicador Austeridad",null,null,"AÑO 2025","AÑO 2026","AÑO 2027","Valor EJECUTADO\na 31/12/2025","Resultado\nIndicador Austeridad","Valor EJECUTADO\na 31/12/2026","Resultado\nIndicador Austeridad","Valor EJECUTADO\na 31/12/2027","Resultado\nIndicador Austeridad"]
["Servicios de personal"]
["Artículo 6°.- Reducción del gasto en CPS profesionales y de apoyo a la gestión. ","N.A.  \nSe registran totales. Corresponde con lo reportado en SIDEAP y SIVICOF",null,null,{"$f":"1-(D9/C9)","v":{"$error":"#DIV/0!"}},null,null,null,null,null,null,{"$f":"1-(K9/D9)","v":{"$error":"#DIV/0!"}},null,{"$f":"1-(M9/K9)","v":{"$error":"#DIV/0!"}},null,{"$f":"1-(O9/M9)","v":{"$error":"#DIV/0!"}}]
["Artículo 7°.- Horas extras, dominicales y festivos. ",null,null,null,{"$error":"#DIV/0!"},null,null,null,null,null,null,{"$f":"1-(K10/D10)","v":{"$error":"#DIV/0!"}},null,{"$f":"1-(M10/K10)","v":{"$error":"#DIV/0!"}},null,{"$error":"#DIV/0!"}]
["Artículo 8°.- Viáticos y gastos de viaje.",null,null,null,{"$error":"#DIV/0!"},null,null,null,null,null,null,{"$error":"#DIV/0!"},null,{"$error":"#DIV/0!"},null,{"$error":"#DIV/0!"}]
["Artículo 9°.- Compensación por vacaciones.",null,null,null,{"$error":"#DIV/0!"},null,null,null,null,null,null,{"$error":"#DIV/0!"},null,{"$error":"#DIV/0!"},null,{"$error":"#DIV/0!"}]
["Artículo 10°.- Bono navideño.",null,null,null,{"$error":"#DIV/0!"},null,null,null,null,null,null,{"$error":"#DIV/0!"},null,{"$error":"#DIV/0!"},null,{"$error":"#DIV/0!"}]
["Artículo 11 -. Capacitación.",null,null,null,{"$error":"#DIV/0!"},null,null,null,null,null,null,{"$error":"#DIV/0!"},null,{"$error":"#DIV/0!"},null,{"$error":"#DIV/0!"}]
["Artículo 12 -. Bienestar.",null,null,null,{"$error":"#DIV/0!"},null,null,null,null,null,null,{"$error":"#DIV/0!"},null,{"$error":"#DIV/0!"},null,{"$error":"#DIV/0!"}]
["Artículo 13 -. Eventos y conmemoraciones.",null,null,null,{"$error":"#DIV/0!"},null,null,null,null,null,null,{"$error":"#DIV/0!"},null,{"$error":"#DIV/0!"},null,{"$error":"#DIV/0!"}]
["Artículo 14 -. Fondos educativos.",null,null,null,{"$error":"#DIV/0!"},null,null,null,null,null,null,{"$error":"#DIV/0!"},null,{"$error":"#DIV/0!"},null,{"$error":"#DIV/0!"}]
["Servicios Administrativos"]
["Artículo 15. Telefonía.",null,null,null,{"$f":"1-(D19/C19)","v":{"$error":"#DIV/0!"}},null,null,null,null,null,null,{"$error":"#DIV/0!"},null,{"$error":"#DIV/0!"},null,{"$error":"#DIV/0!"}]
["Artículo 16 -. Vehículos oficiales.",null,null,null,{"$error":"#DIV/0!"},null,null,null,null,null,null,{"$error":"#DIV/0!"},null,{"$error":"#DIV/0!"},null,{"$error":"#DIV/0!"}]
["Artículo 17 -. Adquisición de vehículos y maquinaria.",null,null,null,{"$error":"#DIV/0!"},null,null,null,null,null,null,{"$error":"#DIV/0!"},null,{"$error":"#DIV/0!"},null,{"$error":"#DIV/0!"}]
["Artículo 18 -. Fotocopiado, multicopiado e impresión.",null,null,null,{"$error":"#DIV/0!"},null,null,null,null,null,null,{"$error":"#DIV/0!"},null,{"$error":"#DIV/0!"},null,{"$error":"#DIV/0!"}]
["Artículo 19 -. Publicidad distrital.",null,null,null,{"$error":"#DIV/0!"},null,null,null,null,null,null,{"$error":"#DIV/0!"},null,{"$error":"#DIV/0!"},null,{"$error":"#DIV/0!"}]
["Artículo 20 -. Cajas menores.",null,null,null,{"$error":"#DIV/0!"},null,null,null,null,null,null,{"$error":"#DIV/0!"},null,{"$error":"#DIV/0!"},null,{"$error":"#DIV/0!"}]
["Artículo 21 -. Mantenimiento o reparación de bienes inmuebles o muebles.",null,null,null,{"$error":"#DIV/0!"},null,null,null,null,null,null,{"$error":"#DIV/0!"},null,{"$error":"#DIV/0!"},null,{"$error":"#DIV/0!"}]
["Artículo 22 -. Suscripciones.",null,null,null,{"$error":"#DIV/0!"},null,null,null,null,null,null,{"$error":"#DIV/0!"},null,{"$error":"#DIV/0!"},null,{"$error":"#DIV/0!"}]
["Artículo 23 -. Servicios públicos.",null,null,null,{"$error":"#DIV/0!"},null,null,null,null,null,null,{"$error":"#DIV/0!"},null,{"$error":"#DIV/0!"},null,{"$error":"#DIV/0!"}]

{"sheet":"0126-01 SDA","index":41,"n_rows":27,"n_cols":16,"rows_kept":27,"cut":false,"hidden":false,"merged":[[5,10,5,11],[5,12,5,13],[5,14,5,15],[1,1,1,4],[3,0,6,0],[3,1,6,1],[3,2,4,4],[3,5,3,9],[3,10,4,15],[4,5,6,5],[4,6,6,6],[4,7,5,9],[5,3,5,4]]}
["PLAN DE AUSTERIDAD EN EL GASTO 2025-2027"]
["Entidad"," "]
["Valores en Pesos Corrientes"]
["CONCEPTO\n(Decreto 062 de 2024)","Posiciones Presupuestales Asociadas\n(Funcionamiento e Inversión)","LÍNEA BASE",null,null,"PLAN DE AUSTERIDAD EN EL GASTO 2025-2027",null,null,null,null,"SEGUIMIENTO RESULTADOS PLAN DE AUSTERIDAD 2025-2027"]
[null,null,null,null,null,"ESTRATEGIAS\n2025-2027","ACCIONES\n2025-2027","META INDICADOR DE AUSTERIDAD"]
[null,null,"AÑO 2023","AÑO 2024",null,null,null,null,null,null,"AÑO 2025",null,"AÑO 2026",null,"AÑO 2027"]
[null,null,"Valor EJECUTADO\na 31/12/2023","Valor EJECUTADO\na 31/12/2024","Resultado\nIndicador Austeridad",null,null,"AÑO 2025","AÑO 2026","AÑO 2027","Valor EJECUTADO\na 31/12/2025","Resultado\nIndicador Austeridad","Valor EJECUTADO\na 31/12/2026","Resultado\nIndicador Austeridad","Valor EJECUTADO\na 31/12/2027","Resultado\nIndicador Austeridad"]
["Servicios de personal"]
["Artículo 6°.- Reducción del gasto en CPS profesionales y de apoyo a la gestión. ","N.A.  \nSe registran totales. Corresponde con lo reportado en SIDEAP y SIVICOF",null,null,{"$f":"1-(D9/C9)","v":{"$error":"#DIV/0!"}},null,null,null,null,null,null,{"$f":"1-(K9/D9)","v":{"$error":"#DIV/0!"}},null,{"$f":"1-(M9/K9)","v":{"$error":"#DIV/0!"}},null,{"$f":"1-(O9/M9)","v":{"$error":"#DIV/0!"}}]
["Artículo 7°.- Horas extras, dominicales y festivos. ",null,null,null,{"$error":"#DIV/0!"},null,null,null,null,null,null,{"$f":"1-(K10/D10)","v":{"$error":"#DIV/0!"}},null,{"$f":"1-(M10/K10)","v":{"$error":"#DIV/0!"}},null,{"$error":"#DIV/0!"}]
["Artículo 8°.- Viáticos y gastos de viaje.",null,null,null,{"$error":"#DIV/0!"},null,null,null,null,null,null,{"$error":"#DIV/0!"},null,{"$error":"#DIV/0!"},null,{"$error":"#DIV/0!"}]
["Artículo 9°.- Compensación por vacaciones.",null,null,null,{"$error":"#DIV/0!"},null,null,null,null,null,null,{"$error":"#DIV/0!"},null,{"$error":"#DIV/0!"},null,{"$error":"#DIV/0!"}]
["Artículo 10°.- Bono navideño.",null,null,null,{"$error":"#DIV/0!"},null,null,null,null,null,null,{"$error":"#DIV/0!"},null,{"$error":"#DIV/0!"},null,{"$error":"#DIV/0!"}]
["Artículo 11 -. Capacitación.",null,null,null,{"$error":"#DIV/0!"},null,null,null,null,null,null,{"$error":"#DIV/0!"},null,{"$error":"#DIV/0!"},null,{"$error":"#DIV/0!"}]
["Artículo 12 -. Bienestar.",null,null,null,{"$error":"#DIV/0!"},null,null,null,null,null,null,{"$error":"#DIV/0!"},null,{"$error":"#DIV/0!"},null,{"$error":"#DIV/0!"}]
["Artículo 13 -. Eventos y conmemoraciones.",null,null,null,{"$error":"#DIV/0!"},null,null,null,null,null,null,{"$error":"#DIV/0!"},null,{"$error":"#DIV/0!"},null,{"$error":"#DIV/0!"}]
["Artículo 14 -. Fondos educativos.",null,null,null,{"$error":"#DIV/0!"},null,null,null,null,null,null,{"$error":"#DIV/0!"},null,{"$error":"#DIV/0!"},null,{"$error":"#DIV/0!"}]
["Servicios Administrativos"]
["Artículo 15. Telefonía.",null,null,null,{"$f":"1-(D19/C19)","v":{"$error":"#DIV/0!"}},null,null,null,null,null,null,{"$error":"#DIV/0!"},null,{"$error":"#DIV/0!"},null,{"$error":"#DIV/0!"}]
["Artículo 16 -. Vehículos oficiales.",null,null,null,{"$error":"#DIV/0!"},null,null,null,null,null,null,{"$error":"#DIV/0!"},null,{"$error":"#DIV/0!"},null,{"$error":"#DIV/0!"}]
["Artículo 17 -. Adquisición de vehículos y maquinaria.",null,null,null,{"$error":"#DIV/0!"},null,null,null,null,null,null,{"$error":"#DIV/0!"},null,{"$error":"#DIV/0!"},null,{"$error":"#DIV/0!"}]
["Artículo 18 -. Fotocopiado, multicopiado e impresión.",null,null,null,{"$error":"#DIV/0!"},null,null,null,null,null,null,{"$error":"#DIV/0!"},null,{"$error":"#DIV/0!"},null,{"$error":"#DIV/0!"}]
["Artículo 19 -. Publicidad distrital.",null,null,null,{"$error":"#DIV/0!"},null,null,null,null,null,null,{"$error":"#DIV/0!"},null,{"$error":"#DIV/0!"},null,{"$error":"#DIV/0!"}]
["Artículo 20 -. Cajas menores.",null,null,null,{"$error":"#DIV/0!"},null,null,null,null,null,null,{"$error":"#DIV/0!"},null,{"$error":"#DIV/0!"},null,{"$error":"#DIV/0!"}]
["Artículo 21 -. Mantenimiento o reparación de bienes inmuebles o muebles.",null,null,null,{"$error":"#DIV/0!"},null,null,null,null,null,null,{"$error":"#DIV/0!"},null,{"$error":"#DIV/0!"},null,{"$error":"#DIV/0!"}]
["Artículo 22 -. Suscripciones.",null,null,null,{"$error":"#DIV/0!"},null,null,null,null,null,null,{"$error":"#DIV/0!"},null,{"$error":"#DIV/0!"},null,{"$error":"#DIV/0!"}]
["Artículo 23 -. Servicios públicos.",null,null,null,{"$error":"#DIV/0!"},null,null,null,null,null,null,{"$error":"#DIV/0!"},null,{"$error":"#DIV/0!"},null,{"$error":"#DIV/0!"}]

{"sheet":"0127-01 DADEP","index":42,"n_rows":27,"n_cols":16,"rows_kept":27,"cut":false,"hidden":false,"merged":[[5,10,5,11],[5,12,5,13],[5,14,5,15],[1,1,1,4],[3,0,6,0],[3,1,6,1],[3,2,4,4],[3,5,3,9],[3,10,4,15],[4,5,6,5],[4,6,6,6],[4,7,5,9],[5,3,5,4]]}
["PLAN DE AUSTERIDAD EN EL GASTO 2025-2027"]
["Entidad"," "]
["Valores en Pesos Corrientes"]
["CONCEPTO\n(Decreto 062 de 2024)","Posiciones Presupuestales Asociadas\n(Funcionamiento e Inversión)","LÍNEA BASE",null,null,"PLAN DE AUSTERIDAD EN EL GASTO 2025-2027",null,null,null,null,"SEGUIMIENTO RESULTADOS PLAN DE AUSTERIDAD 2025-2027"]
[null,null,null,null,null,"ESTRATEGIAS\n2025-2027","ACCIONES\n2025-2027","META INDICADOR DE AUSTERIDAD"]
[null,null,"AÑO 2023","AÑO 2024",null,null,null,null,null,null,"AÑO 2025",null,"AÑO 2026",null,"AÑO 2027"]
[null,null,"Valor EJECUTADO\na 31/12/2023","Valor EJECUTADO\na 31/12/2024","Resultado\nIndicador Austeridad",null,null,"AÑO 2025","AÑO 2026","AÑO 2027","Valor EJECUTADO\na 31/12/2025","Resultado\nIndicador Austeridad","Valor EJECUTADO\na 31/12/2026","Resultado\nIndicador Austeridad","Valor EJECUTADO\na 31/12/2027","Resultado\nIndicador Austeridad"]
["Servicios de personal"]
["Artículo 6°.- Reducción del gasto en CPS profesionales y de apoyo a la gestión. ","N.A.  \nSe registran totales. Corresponde con lo reportado en SIDEAP y SIVICOF",null,null,{"$f":"1-(D9/C9)","v":{"$error":"#DIV/0!"}},null,null,null,null,null,null,{"$f":"1-(K9/D9)","v":{"$error":"#DIV/0!"}},null,{"$f":"1-(M9/K9)","v":{"$error":"#DIV/0!"}},null,{"$f":"1-(O9/M9)","v":{"$error":"#DIV/0!"}}]
["Artículo 7°.- Horas extras, dominicales y festivos. ",null,null,null,{"$error":"#DIV/0!"},null,null,null,null,null,null,{"$f":"1-(K10/D10)","v":{"$error":"#DIV/0!"}},null,{"$f":"1-(M10/K10)","v":{"$error":"#DIV/0!"}},null,{"$error":"#DIV/0!"}]
["Artículo 8°.- Viáticos y gastos de viaje.",null,null,null,{"$error":"#DIV/0!"},null,null,null,null,null,null,{"$error":"#DIV/0!"},null,{"$error":"#DIV/0!"},null,{"$error":"#DIV/0!"}]
["Artículo 9°.- Compensación por vacaciones.",null,null,null,{"$error":"#DIV/0!"},null,null,null,null,null,null,{"$error":"#DIV/0!"},null,{"$error":"#DIV/0!"},null,{"$error":"#DIV/0!"}]
["Artículo 10°.- Bono navideño.",null,null,null,{"$error":"#DIV/0!"},null,null,null,null,null,null,{"$error":"#DIV/0!"},null,{"$error":"#DIV/0!"},null,{"$error":"#DIV/0!"}]
["Artículo 11 -. Capacitación.",null,null,null,{"$error":"#DIV/0!"},null,null,null,null,null,null,{"$error":"#DIV/0!"},null,{"$error":"#DIV/0!"},null,{"$error":"#DIV/0!"}]
["Artículo 12 -. Bienestar.",null,null,null,{"$error":"#DIV/0!"},null,null,null,null,null,null,{"$error":"#DIV/0!"},null,{"$error":"#DIV/0!"},null,{"$error":"#DIV/0!"}]
["Artículo 13 -. Eventos y conmemoraciones.",null,null,null,{"$error":"#DIV/0!"},null,null,null,null,null,null,{"$error":"#DIV/0!"},null,{"$error":"#DIV/0!"},null,{"$error":"#DIV/0!"}]
["Artículo 14 -. Fondos educativos.",null,null,null,{"$error":"#DIV/0!"},null,null,null,null,null,null,{"$error":"#DIV/0!"},null,{"$error":"#DIV/0!"},null,{"$error":"#DIV/0!"}]
["Servicios Administrativos"]
["Artículo 15. Telefonía.",null,null,null,{"$f":"1-(D19/C19)","v":{"$error":"#DIV/0!"}},null,null,null,null,null,null,{"$error":"#DIV/0!"},null,{"$error":"#DIV/0!"},null,{"$error":"#DIV/0!"}]
["Artículo 16 -. Vehículos oficiales.",null,null,null,{"$error":"#DIV/0!"},null,null,null,null,null,null,{"$error":"#DIV/0!"},null,{"$error":"#DIV/0!"},null,{"$error":"#DIV/0!"}]
["Artículo 17 -. Adquisición de vehículos y maquinaria.",null,null,null,{"$error":"#DIV/0!"},null,null,null,null,null,null,{"$error":"#DIV/0!"},null,{"$error":"#DIV/0!"},null,{"$error":"#DIV/0!"}]
["Artículo 18 -. Fotocopiado, multicopiado e impresión.",null,null,null,{"$error":"#DIV/0!"},null,null,null,null,null,null,{"$error":"#DIV/0!"},null,{"$error":"#DIV/0!"},null,{"$error":"#DIV/0!"}]
["Artículo 19 -. Publicidad distrital.",null,null,null,{"$error":"#DIV/0!"},null,null,null,null,null,null,{"$error":"#DIV/0!"},null,{"$error":"#DIV/0!"},null,{"$error":"#DIV/0!"}]
["Artículo 20 -. Cajas menores.",null,null,null,{"$error":"#DIV/0!"},null,null,null,null,null,null,{"$error":"#DIV/0!"},null,{"$error":"#DIV/0!"},null,{"$error":"#DIV/0!"}]
["Artículo 21 -. Mantenimiento o reparación de bienes inmuebles o muebles.",null,null,null,{"$error":"#DIV/0!"},null,null,null,null,null,null,{"$error":"#DIV/0!"},null,{"$error":"#DIV/0!"},null,{"$error":"#DIV/0!"}]
["Artículo 22 -. Suscripciones.",null,null,null,{"$error":"#DIV/0!"},null,null,null,null,null,null,{"$error":"#DIV/0!"},null,{"$error":"#DIV/0!"},null,{"$error":"#DIV/0!"}]
["Artículo 23 -. Servicios públicos.",null,null,null,{"$error":"#DIV/0!"},null,null,null,null,null,null,{"$error":"#DIV/0!"},null,{"$error":"#DIV/0!"},null,{"$error":"#DIV/0!"}]

{"sheet":"0131-01 UAECOB","index":43,"n_rows":27,"n_cols":16,"rows_kept":27,"cut":false,"hidden":false,"merged":[[5,10,5,11],[5,12,5,13],[5,14,5,15],[1,1,1,4],[3,0,6,0],[3,1,6,1],[3,2,4,4],[3,5,3,9],[3,10,4,15],[4,5,6,5],[4,6,6,6],[4,7,5,9],[5,3,5,4]]}
["PLAN DE AUSTERIDAD EN EL GASTO 2025-2027"]
["Entidad"," "]
["Valores en Pesos Corrientes"]
["CONCEPTO\n(Decreto 062 de 2024)","Posiciones Presupuestales Asociadas\n(Funcionamiento e Inversión)","LÍNEA BASE",null,null,"PLAN DE AUSTERIDAD EN EL GASTO 2025-2027",null,null,null,null,"SEGUIMIENTO RESULTADOS PLAN DE AUSTERIDAD 2025-2027"]
[null,null,null,null,null,"ESTRATEGIAS\n2025-2027","ACCIONES\n2025-2027","META INDICADOR DE AUSTERIDAD"]
[null,null,"AÑO 2023","AÑO 2024",null,null,null,null,null,null,"AÑO 2025",null,"AÑO 2026",null,"AÑO 2027"]
[null,null,"Valor EJECUTADO\na 31/12/2023","Valor EJECUTADO\na 31/12/2024","Resultado\nIndicador Austeridad",null,null,"AÑO 2025","AÑO 2026","AÑO 2027","Valor EJECUTADO\na 31/12/2025","Resultado\nIndicador Austeridad","Valor EJECUTADO\na 31/12/2026","Resultado\nIndicador Austeridad","Valor EJECUTADO\na 31/12/2027","Resultado\nIndicador Austeridad"]
["Servicios de personal"]
["Artículo 6°.- Reducción del gasto en CPS profesionales y de apoyo a la gestión. ","N.A.  \nSe registran totales. Corresponde con lo reportado en SIDEAP y SIVICOF",null,null,{"$f":"1-(D9/C9)","v":{"$error":"#DIV/0!"}},null,null,null,null,null,null,{"$f":"1-(K9/D9)","v":{"$error":"#DIV/0!"}},null,{"$f":"1-(M9/K9)","v":{"$error":"#DIV/0!"}},null,{"$f":"1-(O9/M9)","v":{"$error":"#DIV/0!"}}]
["Artículo 7°.- Horas extras, dominicales y festivos. ",null,null,null,{"$error":"#DIV/0!"},null,null,null,null,null,null,{"$f":"1-(K10/D10)","v":{"$error":"#DIV/0!"}},null,{"$f":"1-(M10/K10)","v":{"$error":"#DIV/0!"}},null,{"$error":"#DIV/0!"}]
["Artículo 8°.- Viáticos y gastos de viaje.",null,null,null,{"$error":"#DIV/0!"},null,null,null,null,null,null,{"$error":"#DIV/0!"},null,{"$error":"#DIV/0!"},null,{"$error":"#DIV/0!"}]
["Artículo 9°.- Compensación por vacaciones.",null,null,null,{"$error":"#DIV/0!"},null,null,null,null,null,null,{"$error":"#DIV/0!"},null,{"$error":"#DIV/0!"},null,{"$error":"#DIV/0!"}]
["Artículo 10°.- Bono navideño.",null,null,null,{"$error":"#DIV/0!"},null,null,null,null,null,null,{"$error":"#DIV/0!"},null,{"$error":"#DIV/0!"},null,{"$error":"#DIV/0!"}]
["Artículo 11 -. Capacitación.",null,null,null,{"$error":"#DIV/0!"},null,null,null,null,null,null,{"$error":"#DIV/0!"},null,{"$error":"#DIV/0!"},null,{"$error":"#DIV/0!"}]
["Artículo 12 -. Bienestar.",null,null,null,{"$error":"#DIV/0!"},null,null,null,null,null,null,{"$error":"#DIV/0!"},null,{"$error":"#DIV/0!"},null,{"$error":"#DIV/0!"}]
["Artículo 13 -. Eventos y conmemoraciones.",null,null,null,{"$error":"#DIV/0!"},null,null,null,null,null,null,{"$error":"#DIV/0!"},null,{"$error":"#DIV/0!"},null,{"$error":"#DIV/0!"}]
["Artículo 14 -. Fondos educativos.",null,null,null,{"$error":"#DIV/0!"},null,null,null,null,null,null,{"$error":"#DIV/0!"},null,{"$error":"#DIV/0!"},null,{"$error":"#DIV/0!"}]
["Servicios Administrativos"]
["Artículo 15. Telefonía.",null,null,null,{"$f":"1-(D19/C19)","v":{"$error":"#DIV/0!"}},null,null,null,null,null,null,{"$error":"#DIV/0!"},null,{"$error":"#DIV/0!"},null,{"$error":"#DIV/0!"}]
["Artículo 16 -. Vehículos oficiales.",null,null,null,{"$error":"#DIV/0!"},null,null,null,null,null,null,{"$error":"#DIV/0!"},null,{"$error":"#DIV/0!"},null,{"$error":"#DIV/0!"}]
["Artículo 17 -. Adquisición de vehículos y maquinaria.",null,null,null,{"$error":"#DIV/0!"},null,null,null,null,null,null,{"$error":"#DIV/0!"},null,{"$error":"#DIV/0!"},null,{"$error":"#DIV/0!"}]
["Artículo 18 -. Fotocopiado, multicopiado e impresión.",null,null,null,{"$error":"#DIV/0!"},null,null,null,null,null,null,{"$error":"#DIV/0!"},null,{"$error":"#DIV/0!"},null,{"$error":"#DIV/0!"}]
["Artículo 19 -. Publicidad distrital.",null,null,null,{"$error":"#DIV/0!"},null,null,null,null,null,null,{"$error":"#DIV/0!"},null,{"$error":"#DIV/0!"},null,{"$error":"#DIV/0!"}]
["Artículo 20 -. Cajas menores.",null,null,null,{"$error":"#DIV/0!"},null,null,null,null,null,null,{"$error":"#DIV/0!"},null,{"$error":"#DIV/0!"},null,{"$error":"#DIV/0!"}]
["Artículo 21 -. Mantenimiento o reparación de bienes inmuebles o muebles.",null,null,null,{"$error":"#DIV/0!"},null,null,null,null,null,null,{"$error":"#DIV/0!"},null,{"$error":"#DIV/0!"},null,{"$error":"#DIV/0!"}]
["Artículo 22 -. Suscripciones.",null,null,null,{"$error":"#DIV/0!"},null,null,null,null,null,null,{"$error":"#DIV/0!"},null,{"$error":"#DIV/0!"},null,{"$error":"#DIV/0!"}]
["Artículo 23 -. Servicios públicos.",null,null,null,{"$error":"#DIV/0!"},null,null,null,null,null,null,{"$error":"#DIV/0!"},null,{"$error":"#DIV/0!"},null,{"$error":"#DIV/0!"}]

{"sheet":"0136-01 SJD","index":44,"n_rows":27,"n_cols":16,"rows_kept":27,"cut":false,"hidden":false,"merged":[[5,10,5,11],[5,12,5,13],[5,14,5,15],[1,1,1,4],[3,0,6,0],[3,1,6,1],[3,2,4,4],[3,5,3,9],[3,10,4,15],[4,5,6,5],[4,6,6,6],[4,7,5,9],[5,3,5,4]]}
["PLAN DE AUSTERIDAD EN EL GASTO 2025-2027"]
["Entidad"," "]
["Valores en Pesos Corrientes"]
["CONCEPTO\n(Decreto 062 de 2024)","Posiciones Presupuestales Asociadas\n(Funcionamiento e Inversión)","LÍNEA BASE",null,null,"PLAN DE AUSTERIDAD EN EL GASTO 2025-2027",null,null,null,null,"SEGUIMIENTO RESULTADOS PLAN DE AUSTERIDAD 2025-2027"]
[null,null,null,null,null,"ESTRATEGIAS\n2025-2027","ACCIONES\n2025-2027","META INDICADOR DE AUSTERIDAD"]
[null,null,"AÑO 2023","AÑO 2024",null,null,null,null,null,null,"AÑO 2025",null,"AÑO 2026",null,"AÑO 2027"]
[null,null,"Valor EJECUTADO\na 31/12/2023","Valor EJECUTADO\na 31/12/2024","Resultado\nIndicador Austeridad",null,null,"AÑO 2025","AÑO 2026","AÑO 2027","Valor EJECUTADO\na 31/12/2025","Resultado\nIndicador Austeridad","Valor EJECUTADO\na 31/12/2026","Resultado\nIndicador Austeridad","Valor EJECUTADO\na 31/12/2027","Resultado\nIndicador Austeridad"]
["Servicios de personal"]
["Artículo 6°.- Reducción del gasto en CPS profesionales y de apoyo a la gestión. ","N.A.  \nSe registran totales. Corresponde con lo reportado en SIDEAP y SIVICOF",null,null,{"$f":"1-(D9/C9)","v":{"$error":"#DIV/0!"}},null,null,null,null,null,null,{"$f":"1-(K9/D9)","v":{"$error":"#DIV/0!"}},null,{"$f":"1-(M9/K9)","v":{"$error":"#DIV/0!"}},null,{"$f":"1-(O9/M9)","v":{"$error":"#DIV/0!"}}]
["Artículo 7°.- Horas extras, dominicales y festivos. ",null,null,null,{"$error":"#DIV/0!"},null,null,null,null,null,null,{"$f":"1-(K10/D10)","v":{"$error":"#DIV/0!"}},null,{"$f":"1-(M10/K10)","v":{"$error":"#DIV/0!"}},null,{"$error":"#DIV/0!"}]
["Artículo 8°.- Viáticos y gastos de viaje.",null,null,null,{"$error":"#DIV/0!"},null,null,null,null,null,null,{"$error":"#DIV/0!"},null,{"$error":"#DIV/0!"},null,{"$error":"#DIV/0!"}]
["Artículo 9°.- Compensación por vacaciones.",null,null,null,{"$error":"#DIV/0!"},null,null,null,null,null,null,{"$error":"#DIV/0!"},null,{"$error":"#DIV/0!"},null,{"$error":"#DIV/0!"}]
["Artículo 10°.- Bono navideño.",null,null,null,{"$error":"#DIV/0!"},null,null,null,null,null,null,{"$error":"#DIV/0!"},null,{"$error":"#DIV/0!"},null,{"$error":"#DIV/0!"}]
["Artículo 11 -. Capacitación.",null,null,null,{"$error":"#DIV/0!"},null,null,null,null,null,null,{"$error":"#DIV/0!"},null,{"$error":"#DIV/0!"},null,{"$error":"#DIV/0!"}]
["Artículo 12 -. Bienestar.",null,null,null,{"$error":"#DIV/0!"},null,null,null,null,null,null,{"$error":"#DIV/0!"},null,{"$error":"#DIV/0!"},null,{"$error":"#DIV/0!"}]
["Artículo 13 -. Eventos y conmemoraciones.",null,null,null,{"$error":"#DIV/0!"},null,null,null,null,null,null,{"$error":"#DIV/0!"},null,{"$error":"#DIV/0!"},null,{"$error":"#DIV/0!"}]
["Artículo 14 -. Fondos educativos.",null,null,null,{"$error":"#DIV/0!"},null,null,null,null,null,null,{"$error":"#DIV/0!"},null,{"$error":"#DIV/0!"},null,{"$error":"#DIV/0!"}]
["Servicios Administrativos"]
["Artículo 15. Telefonía.",null,null,null,{"$f":"1-(D19/C19)","v":{"$error":"#DIV/0!"}},null,null,null,null,null,null,{"$error":"#DIV/0!"},null,{"$error":"#DIV/0!"},null,{"$error":"#DIV/0!"}]
["Artículo 16 -. Vehículos oficiales.",null,null,null,{"$error":"#DIV/0!"},null,null,null,null,null,null,{"$error":"#DIV/0!"},null,{"$error":"#DIV/0!"},null,{"$error":"#DIV/0!"}]
["Artículo 17 -. Adquisición de vehículos y maquinaria.",null,null,null,{"$error":"#DIV/0!"},null,null,null,null,null,null,{"$error":"#DIV/0!"},null,{"$error":"#DIV/0!"},null,{"$error":"#DIV/0!"}]
["Artículo 18 -. Fotocopiado, multicopiado e impresión.",null,null,null,{"$error":"#DIV/0!"},null,null,null,null,null,null,{"$error":"#DIV/0!"},null,{"$error":"#DIV/0!"},null,{"$error":"#DIV/0!"}]
["Artículo 19 -. Publicidad distrital.",null,null,null,{"$error":"#DIV/0!"},null,null,null,null,null,null,{"$error":"#DIV/0!"},null,{"$error":"#DIV/0!"},null,{"$error":"#DIV/0!"}]
["Artículo 20 -. Cajas menores.",null,null,null,{"$error":"#DIV/0!"},null,null,null,null,null,null,{"$error":"#DIV/0!"},null,{"$error":"#DIV/0!"},null,{"$error":"#DIV/0!"}]
["Artículo 21 -. Mantenimiento o reparación de bienes inmuebles o muebles.",null,null,null,{"$error":"#DIV/0!"},null,null,null,null,null,null,{"$error":"#DIV/0!"},null,{"$error":"#DIV/0!"},null,{"$error":"#DIV/0!"}]
["Artículo 22 -. Suscripciones.",null,null,null,{"$error":"#DIV/0!"},null,null,null,null,null,null,{"$error":"#DIV/0!"},null,{"$error":"#DIV/0!"},null,{"$error":"#DIV/0!"}]
["Artículo 23 -. Servicios públicos.",null,null,null,{"$error":"#DIV/0!"},null,null,null,null,null,null,{"$error":"#DIV/0!"},null,{"$error":"#DIV/0!"},null,{"$error":"#DIV/0!"}]

{"sheet":"0137-01 SDSCJ","index":45,"n_rows":27,"n_cols":16,"rows_kept":27,"cut":false,"hidden":false,"merged":[[5,10,5,11],[5,12,5,13],[5,14,5,15],[1,1,1,4],[3,0,6,0],[3,1,6,1],[3,2,4,4],[3,5,3,9],[3,10,4,15],[4,5,6,5],[4,6,6,6],[4,7,5,9],[5,3,5,4]]}
["PLAN DE AUSTERIDAD EN EL GASTO 2025-2027"]
["Entidad","Secretaría Distrital de Seguridad Convivencia y Justicia"]
["Valores en Pesos Corrientes"]
["CONCEPTO\n(Decreto 062 de 2024)","Posiciones Presupuestales Asociadas\n(Funcionamiento e Inversión)","LÍNEA BASE",null,null,"PLAN DE AUSTERIDAD EN EL GASTO 2025-2027",null,null,null,null,"SEGUIMIENTO RESULTADOS PLAN DE AUSTERIDAD 2025-2027"]
[null,null,null,null,null,"ESTRATEGIAS\n2025-2027","ACCIONES\n2025-2027","META INDICADOR DE AUSTERIDAD"]
[null,null,"AÑO 2023","AÑO 2024",null,null,null,null,null,null,"AÑO 2025",null,"AÑO 2026",null,"AÑO 2027"]
[null,null,"Valor EJECUTADO\na 31/12/2023","Valor EJECUTADO\na 31/12/2024","Resultado\nIndicador Austeridad",null,null,"AÑO 2025","AÑO 2026","AÑO 2027","Valor EJECUTADO\na 31/12/2025","Resultado\nIndicador Austeridad","Valor EJECUTADO\na 31/12/2026","Resultado\nIndicador Austeridad","Valor EJECUTADO\na 31/12/2027","Resultado\nIndicador Austeridad"]
["Servicios de personal"]
["Artículo 6°.- Reducción del gasto en CPS profesionales y de apoyo a la gestión. ","N.A.  \nSe registran totales. Corresponde con lo reportado en SIDEAP y SIVICOF",null,null,{"$f":"1-(D9/C9)","v":{"$error":"#DIV/0!"}},null,null,null,null,null,null,{"$f":"1-(K9/D9)","v":{"$error":"#DIV/0!"}},null,{"$f":"1-(M9/K9)","v":{"$error":"#DIV/0!"}},null,{"$f":"1-(O9/M9)","v":{"$error":"#DIV/0!"}}]
["Artículo 7°.- Horas extras, dominicales y festivos. ",null,null,null,{"$error":"#DIV/0!"},null,null,null,null,null,null,{"$f":"1-(K10/D10)","v":{"$error":"#DIV/0!"}},null,{"$f":"1-(M10/K10)","v":{"$error":"#DIV/0!"}},null,{"$error":"#DIV/0!"}]
["Artículo 8°.- Viáticos y gastos de viaje.",null,null,null,{"$error":"#DIV/0!"},null,null,null,null,null,null,{"$error":"#DIV/0!"},null,{"$error":"#DIV/0!"},null,{"$error":"#DIV/0!"}]
["Artículo 9°.- Compensación por vacaciones.",null,null,null,{"$error":"#DIV/0!"},null,null,null,null,null,null,{"$error":"#DIV/0!"},null,{"$error":"#DIV/0!"},null,{"$error":"#DIV/0!"}]
["Artículo 10°.- Bono navideño.",null,null,null,{"$error":"#DIV/0!"},null,null,null,null,null,null,{"$error":"#DIV/0!"},null,{"$error":"#DIV/0!"},null,{"$error":"#DIV/0!"}]
["Artículo 11 -. Capacitación.",null,null,null,{"$error":"#DIV/0!"},null,null,null,null,null,null,{"$error":"#DIV/0!"},null,{"$error":"#DIV/0!"},null,{"$error":"#DIV/0!"}]
["Artículo 12 -. Bienestar.",null,null,null,{"$error":"#DIV/0!"},null,null,null,null,null,null,{"$error":"#DIV/0!"},null,{"$error":"#DIV/0!"},null,{"$error":"#DIV/0!"}]
["Artículo 13 -. Eventos y conmemoraciones.",null,null,null,{"$error":"#DIV/0!"},null,null,null,null,null,null,{"$error":"#DIV/0!"},null,{"$error":"#DIV/0!"},null,{"$error":"#DIV/0!"}]
["Artículo 14 -. Fondos educativos.",null,null,null,{"$error":"#DIV/0!"},null,null,null,null,null,null,{"$error":"#DIV/0!"},null,{"$error":"#DIV/0!"},null,{"$error":"#DIV/0!"}]
["Servicios Administrativos"]
["Artículo 15. Telefonía.",null,null,null,{"$f":"1-(D19/C19)","v":{"$error":"#DIV/0!"}},null,null,null,null,null,null,{"$error":"#DIV/0!"},null,{"$error":"#DIV/0!"},null,{"$error":"#DIV/0!"}]
["Artículo 16 -. Vehículos oficiales.",null,null,null,{"$error":"#DIV/0!"},null,null,null,null,null,null,{"$error":"#DIV/0!"},null,{"$error":"#DIV/0!"},null,{"$error":"#DIV/0!"}]
["Artículo 17 -. Adquisición de vehículos y maquinaria.",null,null,null,{"$error":"#DIV/0!"},null,null,null,null,null,null,{"$error":"#DIV/0!"},null,{"$error":"#DIV/0!"},null,{"$error":"#DIV/0!"}]
["Artículo 18 -. Fotocopiado, multicopiado e impresión.",null,null,null,{"$error":"#DIV/0!"},null,null,null,null,null,null,{"$error":"#DIV/0!"},null,{"$error":"#DIV/0!"},null,{"$error":"#DIV/0!"}]
["Artículo 19 -. Publicidad distrital.",null,null,null,{"$error":"#DIV/0!"},null,null,null,null,null,null,{"$error":"#DIV/0!"},null,{"$error":"#DIV/0!"},null,{"$error":"#DIV/0!"}]
["Artículo 20 -. Cajas menores.",null,null,null,{"$error":"#DIV/0!"},null,null,null,null,null,null,{"$error":"#DIV/0!"},null,{"$error":"#DIV/0!"},null,{"$error":"#DIV/0!"}]
["Artículo 21 -. Mantenimiento o reparación de bienes inmuebles o muebles.",null,null,null,{"$error":"#DIV/0!"},null,null,null,null,null,null,{"$error":"#DIV/0!"},null,{"$error":"#DIV/0!"},null,{"$error":"#DIV/0!"}]
["Artículo 22 -. Suscripciones.",null,null,null,{"$error":"#DIV/0!"},null,null,null,null,null,null,{"$error":"#DIV/0!"},null,{"$error":"#DIV/0!"},null,{"$error":"#DIV/0!"}]
["Artículo 23 -. Servicios públicos.",null,null,null,{"$error":"#DIV/0!"},null,null,null,null,null,null,{"$error":"#DIV/0!"},null,{"$error":"#DIV/0!"},null,{"$error":"#DIV/0!"}]

{"sheet":"0137-02 SDSCJ","index":46,"n_rows":27,"n_cols":16,"rows_kept":27,"cut":false,"hidden":false,"merged":[[5,10,5,11],[5,12,5,13],[5,14,5,15],[1,1,1,4],[3,0,6,0],[3,1,6,1],[3,2,4,4],[3,5,3,9],[3,10,4,15],[4,5,6,5],[4,6,6,6],[4,7,5,9],[5,3,5,4]]}
["PLAN DE AUSTERIDAD EN EL GASTO 2025-2027"]
["Entidad","Unidad Administrativa Especial Cuerpo Oficial de Bomberos"]
["Valores en Pesos Corrientes"]
["CONCEPTO\n(Decreto 062 de 2024)","Posiciones Presupuestales Asociadas\n(Funcionamiento e Inversión)","LÍNEA BASE",null,null,"PLAN DE AUSTERIDAD EN EL GASTO 2025-2027",null,null,null,null,"SEGUIMIENTO RESULTADOS PLAN DE AUSTERIDAD 2025-2027"]
[null,null,null,null,null,"ESTRATEGIAS\n2025-2027","ACCIONES\n2025-2027","META INDICADOR DE AUSTERIDAD"]
[null,null,"AÑO 2023","AÑO 2024",null,null,null,null,null,null,"AÑO 2025",null,"AÑO 2026",null,"AÑO 2027"]
[null,null,"Valor EJECUTADO\na 31/12/2023","Valor EJECUTADO\na 31/12/2024","Resultado\nIndicador Austeridad",null,null,"AÑO 2025","AÑO 2026","AÑO 2027","Valor EJECUTADO\na 31/12/2025","Resultado\nIndicador Austeridad","Valor EJECUTADO\na 31/12/2026","Resultado\nIndicador Austeridad","Valor EJECUTADO\na 31/12/2027","Resultado\nIndicador Austeridad"]
["Servicios de personal"]
["Artículo 6°.- Reducción del gasto en CPS profesionales y de apoyo a la gestión. ","N.A.  \nSe registran totales. Corresponde con lo reportado en SIDEAP y SIVICOF",null,null,{"$f":"1-(D9/C9)","v":{"$error":"#DIV/0!"}},null,null,null,null,null,null,{"$f":"1-(K9/D9)","v":{"$error":"#DIV/0!"}},null,{"$f":"1-(M9/K9)","v":{"$error":"#DIV/0!"}},null,{"$f":"1-(O9/M9)","v":{"$error":"#DIV/0!"}}]
["Artículo 7°.- Horas extras, dominicales y festivos. ",null,null,null,{"$error":"#DIV/0!"},null,null,null,null,null,null,{"$f":"1-(K10/D10)","v":{"$error":"#DIV/0!"}},null,{"$f":"1-(M10/K10)","v":{"$error":"#DIV/0!"}},null,{"$error":"#DIV/0!"}]
["Artículo 8°.- Viáticos y gastos de viaje.",null,null,null,{"$error":"#DIV/0!"},null,null,null,null,null,null,{"$error":"#DIV/0!"},null,{"$error":"#DIV/0!"},null,{"$error":"#DIV/0!"}]
["Artículo 9°.- Compensación por vacaciones.",null,null,null,{"$error":"#DIV/0!"},null,null,null,null,null,null,{"$error":"#DIV/0!"},null,{"$error":"#DIV/0!"},null,{"$error":"#DIV/0!"}]
["Artículo 10°.- Bono navideño.",null,null,null,{"$error":"#DIV/0!"},null,null,null,null,null,null,{"$error":"#DIV/0!"},null,{"$error":"#DIV/0!"},null,{"$error":"#DIV/0!"}]
["Artículo 11 -. Capacitación.",null,null,null,{"$error":"#DIV/0!"},null,null,null,null,null,null,{"$error":"#DIV/0!"},null,{"$error":"#DIV/0!"},null,{"$error":"#DIV/0!"}]
["Artículo 12 -. Bienestar.",null,null,null,{"$error":"#DIV/0!"},null,null,null,null,null,null,{"$error":"#DIV/0!"},null,{"$error":"#DIV/0!"},null,{"$error":"#DIV/0!"}]
["Artículo 13 -. Eventos y conmemoraciones.",null,null,null,{"$error":"#DIV/0!"},null,null,null,null,null,null,{"$error":"#DIV/0!"},null,{"$error":"#DIV/0!"},null,{"$error":"#DIV/0!"}]
["Artículo 14 -. Fondos educativos.",null,null,null,{"$error":"#DIV/0!"},null,null,null,null,null,null,{"$error":"#DIV/0!"},null,{"$error":"#DIV/0!"},null,{"$error":"#DIV/0!"}]
["Servicios Administrativos"]
["Artículo 15. Telefonía.",null,null,null,{"$f":"1-(D19/C19)","v":{"$error":"#DIV/0!"}},null,null,null,null,null,null,{"$error":"#DIV/0!"},null,{"$error":"#DIV/0!"},null,{"$error":"#DIV/0!"}]
["Artículo 16 -. Vehículos oficiales.",null,null,null,{"$error":"#DIV/0!"},null,null,null,null,null,null,{"$error":"#DIV/0!"},null,{"$error":"#DIV/0!"},null,{"$error":"#DIV/0!"}]
["Artículo 17 -. Adquisición de vehículos y maquinaria.",null,null,null,{"$error":"#DIV/0!"},null,null,null,null,null,null,{"$error":"#DIV/0!"},null,{"$error":"#DIV/0!"},null,{"$error":"#DIV/0!"}]
["Artículo 18 -. Fotocopiado, multicopiado e impresión.",null,null,null,{"$error":"#DIV/0!"},null,null,null,null,null,null,{"$error":"#DIV/0!"},null,{"$error":"#DIV/0!"},null,{"$error":"#DIV/0!"}]
["Artículo 19 -. Publicidad distrital.",null,null,null,{"$error":"#DIV/0!"},null,null,null,null,null,null,{"$error":"#DIV/0!"},null,{"$error":"#DIV/0!"},null,{"$error":"#DIV/0!"}]
["Artículo 20 -. Cajas menores.",null,null,null,{"$error":"#DIV/0!"},null,null,null,null,null,null,{"$error":"#DIV/0!"},null,{"$error":"#DIV/0!"},null,{"$error":"#DIV/0!"}]
["Artículo 21 -. Mantenimiento o reparación de bienes inmuebles o muebles.",null,null,null,{"$error":"#DIV/0!"},null,null,null,null,null,null,{"$error":"#DIV/0!"},null,{"$error":"#DIV/0!"},null,{"$error":"#DIV/0!"}]
["Artículo 22 -. Suscripciones.",null,null,null,{"$error":"#DIV/0!"},null,null,null,null,null,null,{"$error":"#DIV/0!"},null,{"$error":"#DIV/0!"},null,{"$error":"#DIV/0!"}]
["Artículo 23 -. Servicios públicos.",null,null,null,{"$error":"#DIV/0!"},null,null,null,null,null,null,{"$error":"#DIV/0!"},null,{"$error":"#DIV/0!"},null,{"$error":"#DIV/0!"}]

{"sheet":"0200-01 IPES","index":47,"n_rows":27,"n_cols":16,"rows_kept":27,"cut":false,"hidden":false,"merged":[[5,10,5,11],[5,12,5,13],[5,14,5,15],[1,1,1,4],[3,0,6,0],[3,1,6,1],[3,2,4,4],[3,5,3,9],[3,10,4,15],[4,5,6,5],[4,6,6,6],[4,7,5,9],[5,3,5,4]]}
["PLAN DE AUSTERIDAD EN EL GASTO 2025-2027"]
["Entidad"," "]
["Valores en Pesos Corrientes"]
["CONCEPTO\n(Decreto 062 de 2024)","Posiciones Presupuestales Asociadas\n(Funcionamiento e Inversión)","LÍNEA BASE",null,null,"PLAN DE AUSTERIDAD EN EL GASTO 2025-2027",null,null,null,null,"SEGUIMIENTO RESULTADOS PLAN DE AUSTERIDAD 2025-2027"]
[null,null,null,null,null,"ESTRATEGIAS\n2025-2027","ACCIONES\n2025-2027","META INDICADOR DE AUSTERIDAD"]
[null,null,"AÑO 2023","AÑO 2024",null,null,null,null,null,null,"AÑO 2025",null,"AÑO 2026",null,"AÑO 2027"]
[null,null,"Valor EJECUTADO\na 31/12/2023","Valor EJECUTADO\na 31/12/2024","Resultado\nIndicador Austeridad",null,null,"AÑO 2025","AÑO 2026","AÑO 2027","Valor EJECUTADO\na 31/12/2025","Resultado\nIndicador Austeridad","Valor EJECUTADO\na 31/12/2026","Resultado\nIndicador Austeridad","Valor EJECUTADO\na 31/12/2027","Resultado\nIndicador Austeridad"]
["Servicios de personal"]
["Artículo 6°.- Reducción del gasto en CPS profesionales y de apoyo a la gestión. ","N.A.  \nSe registran totales. Corresponde con lo reportado en SIDEAP y SIVICOF",null,null,{"$f":"1-(D9/C9)","v":{"$error":"#DIV/0!"}},null,null,null,null,null,null,{"$f":"1-(K9/D9)","v":{"$error":"#DIV/0!"}},null,{"$f":"1-(M9/K9)","v":{"$error":"#DIV/0!"}},null,{"$f":"1-(O9/M9)","v":{"$error":"#DIV/0!"}}]
["Artículo 7°.- Horas extras, dominicales y festivos. ",null,null,null,{"$error":"#DIV/0!"},null,null,null,null,null,null,{"$f":"1-(K10/D10)","v":{"$error":"#DIV/0!"}},null,{"$f":"1-(M10/K10)","v":{"$error":"#DIV/0!"}},null,{"$error":"#DIV/0!"}]
["Artículo 8°.- Viáticos y gastos de viaje.",null,null,null,{"$error":"#DIV/0!"},null,null,null,null,null,null,{"$error":"#DIV/0!"},null,{"$error":"#DIV/0!"},null,{"$error":"#DIV/0!"}]
["Artículo 9°.- Compensación por vacaciones.",null,null,null,{"$error":"#DIV/0!"},null,null,null,null,null,null,{"$error":"#DIV/0!"},null,{"$error":"#DIV/0!"},null,{"$error":"#DIV/0!"}]
["Artículo 10°.- Bono navideño.",null,null,null,{"$error":"#DIV/0!"},null,null,null,null,null,null,{"$error":"#DIV/0!"},null,{"$error":"#DIV/0!"},null,{"$error":"#DIV/0!"}]
["Artículo 11 -. Capacitación.",null,null,null,{"$error":"#DIV/0!"},null,null,null,null,null,null,{"$error":"#DIV/0!"},null,{"$error":"#DIV/0!"},null,{"$error":"#DIV/0!"}]
["Artículo 12 -. Bienestar.",null,null,null,{"$error":"#DIV/0!"},null,null,null,null,null,null,{"$error":"#DIV/0!"},null,{"$error":"#DIV/0!"},null,{"$error":"#DIV/0!"}]
["Artículo 13 -. Eventos y conmemoraciones.",null,null,null,{"$error":"#DIV/0!"},null,null,null,null,null,null,{"$error":"#DIV/0!"},null,{"$error":"#DIV/0!"},null,{"$error":"#DIV/0!"}]
["Artículo 14 -. Fondos educativos.",null,null,null,{"$error":"#DIV/0!"},null,null,null,null,null,null,{"$error":"#DIV/0!"},null,{"$error":"#DIV/0!"},null,{"$error":"#DIV/0!"}]
["Servicios Administrativos"]
["Artículo 15. Telefonía.",null,null,null,{"$f":"1-(D19/C19)","v":{"$error":"#DIV/0!"}},null,null,null,null,null,null,{"$error":"#DIV/0!"},null,{"$error":"#DIV/0!"},null,{"$error":"#DIV/0!"}]
["Artículo 16 -. Vehículos oficiales.",null,null,null,{"$error":"#DIV/0!"},null,null,null,null,null,null,{"$error":"#DIV/0!"},null,{"$error":"#DIV/0!"},null,{"$error":"#DIV/0!"}]
["Artículo 17 -. Adquisición de vehículos y maquinaria.",null,null,null,{"$error":"#DIV/0!"},null,null,null,null,null,null,{"$error":"#DIV/0!"},null,{"$error":"#DIV/0!"},null,{"$error":"#DIV/0!"}]
["Artículo 18 -. Fotocopiado, multicopiado e impresión.",null,null,null,{"$error":"#DIV/0!"},null,null,null,null,null,null,{"$error":"#DIV/0!"},null,{"$error":"#DIV/0!"},null,{"$error":"#DIV/0!"}]
["Artículo 19 -. Publicidad distrital.",null,null,null,{"$error":"#DIV/0!"},null,null,null,null,null,null,{"$error":"#DIV/0!"},null,{"$error":"#DIV/0!"},null,{"$error":"#DIV/0!"}]
["Artículo 20 -. Cajas menores.",null,null,null,{"$error":"#DIV/0!"},null,null,null,null,null,null,{"$error":"#DIV/0!"},null,{"$error":"#DIV/0!"},null,{"$error":"#DIV/0!"}]
["Artículo 21 -. Mantenimiento o reparación de bienes inmuebles o muebles.",null,null,null,{"$error":"#DIV/0!"},null,null,null,null,null,null,{"$error":"#DIV/0!"},null,{"$error":"#DIV/0!"},null,{"$error":"#DIV/0!"}]
["Artículo 22 -. Suscripciones.",null,null,null,{"$error":"#DIV/0!"},null,null,null,null,null,null,{"$error":"#DIV/0!"},null,{"$error":"#DIV/0!"},null,{"$error":"#DIV/0!"}]
["Artículo 23 -. Servicios públicos.",null,null,null,{"$error":"#DIV/0!"},null,null,null,null,null,null,{"$error":"#DIV/0!"},null,{"$error":"#DIV/0!"},null,{"$error":"#DIV/0!"}]

{"sheet":"0201-01 FFDS","index":48,"n_rows":27,"n_cols":16,"rows_kept":27,"cut":false,"hidden":false,"merged":[[5,10,5,11],[5,12,5,13],[5,14,5,15],[1,1,1,4],[3,0,6,0],[3,1,6,1],[3,2,4,4],[3,5,3,9],[3,10,4,15],[4,5,6,5],[4,6,6,6],[4,7,5,9],[5,3,5,4]]}
["PLAN DE AUSTERIDAD EN EL GASTO 2025-2027"]
["Entidad"," "]
["Valores en Pesos Corrientes"]
["CONCEPTO\n(Decreto 062 de 2024)","Posiciones Presupuestales Asociadas\n(Funcionamiento e Inversión)","LÍNEA BASE",null,null,"PLAN DE AUSTERIDAD EN EL GASTO 2025-2027",null,null,null,null,"SEGUIMIENTO RESULTADOS PLAN DE AUSTERIDAD 2025-2027"]
[null,null,null,null,null,"ESTRATEGIAS\n2025-2027","ACCIONES\n2025-2027","META INDICADOR DE AUSTERIDAD"]
[null,null,"AÑO 2023","AÑO 2024",null,null,null,null,null,null,"AÑO 2025",null,"AÑO 2026",null,"AÑO 2027"]
[null,null,"Valor EJECUTADO\na 31/12/2023","Valor EJECUTADO\na 31/12/2024","Resultado\nIndicador Austeridad",null,null,"AÑO 2025","AÑO 2026","AÑO 2027","Valor EJECUTADO\na 31/12/2025","Resultado\nIndicador Austeridad","Valor EJECUTADO\na 31/12/2026","Resultado\nIndicador Austeridad","Valor EJECUTADO\na 31/12/2027","Resultado\nIndicador Austeridad"]
["Servicios de personal"]
["Artículo 6°.- Reducción del gasto en CPS profesionales y de apoyo a la gestión. ","N.A.  \nSe registran totales. Corresponde con lo reportado en SIDEAP y SIVICOF",null,null,{"$f":"1-(D9/C9)","v":{"$error":"#DIV/0!"}},null,null,null,null,null,null,{"$f":"1-(K9/D9)","v":{"$error":"#DIV/0!"}},null,{"$f":"1-(M9/K9)","v":{"$error":"#DIV/0!"}},null,{"$f":"1-(O9/M9)","v":{"$error":"#DIV/0!"}}]
["Artículo 7°.- Horas extras, dominicales y festivos. ",null,0,0,{"$error":"#DIV/0!"},null,null,null,null,null,null,{"$f":"1-(K10/D10)","v":{"$error":"#DIV/0!"}},null,{"$f":"1-(M10/K10)","v":{"$error":"#DIV/0!"}},null,{"$error":"#DIV/0!"}]
["Artículo 8°.- Viáticos y gastos de viaje.",null,0,0,{"$error":"#DIV/0!"},null,null,null,null,null,null,{"$error":"#DIV/0!"},null,{"$error":"#DIV/0!"},null,{"$error":"#DIV/0!"}]
["Artículo 9°.- Compensación por vacaciones.",null,0,0,{"$error":"#DIV/0!"},null,null,null,null,null,null,{"$error":"#DIV/0!"},null,{"$error":"#DIV/0!"},null,{"$error":"#DIV/0!"}]
["Artículo 10°.- Bono navideño.",null,0,0,{"$error":"#DIV/0!"},null,null,null,null,null,null,{"$error":"#DIV/0!"},null,{"$error":"#DIV/0!"},null,{"$error":"#DIV/0!"}]
["Artículo 11 -. Capacitación.",null,0,0,{"$error":"#DIV/0!"},null,null,null,null,null,null,{"$error":"#DIV/0!"},null,{"$error":"#DIV/0!"},null,{"$error":"#DIV/0!"}]
["Artículo 12 -. Bienestar.","Inversión",{"$f":"202904086+28417914","v":231322000},{"$f":"248371043+31300000","v":279671043},-0.20901186657559601,null,null,null,null,null,null,1,null,{"$error":"#DIV/0!"},null,{"$error":"#DIV/0!"}]
["Artículo 13 -. Eventos y conmemoraciones.","N/A",0,null,{"$error":"#DIV/0!"},"La entidad no realiza eventos y conmemoraciones.",null,null,null,null,null,{"$error":"#DIV/0!"},null,{"$error":"#DIV/0!"},null,{"$error":"#DIV/0!"}]
["Artículo 14 -. Fondos educativos.",null,0,0,{"$error":"#DIV/0!"},null,null,null,null,null,null,{"$error":"#DIV/0!"},null,{"$error":"#DIV/0!"},null,{"$error":"#DIV/0!"}]
["Servicios Administrativos"]
["Artículo 15. Telefonía.",null,null,null,{"$f":"1-(D19/C19)","v":{"$error":"#DIV/0!"}},null,null,null,null,null,null,{"$error":"#DIV/0!"},null,{"$error":"#DIV/0!"},null,{"$error":"#DIV/0!"}]
["Artículo 16 -. Vehículos oficiales.",null,null,null,{"$error":"#DIV/0!"},null,null,null,null,null,null,{"$error":"#DIV/0!"},null,{"$error":"#DIV/0!"},null,{"$error":"#DIV/0!"}]
["Artículo 17 -. Adquisición de vehículos y maquinaria.",null,null,null,{"$error":"#DIV/0!"},null,null,null,null,null,null,{"$error":"#DIV/0!"},null,{"$error":"#DIV/0!"},null,{"$error":"#DIV/0!"}]
["Artículo 18 -. Fotocopiado, multicopiado e impresión.",null,null,null,{"$error":"#DIV/0!"},null,null,null,null,null,null,{"$error":"#DIV/0!"},null,{"$error":"#DIV/0!"},null,{"$error":"#DIV/0!"}]
["Artículo 19 -. Publicidad distrital.",null,null,null,{"$error":"#DIV/0!"},null,null,null,null,null,null,{"$error":"#DIV/0!"},null,{"$error":"#DIV/0!"},null,{"$error":"#DIV/0!"}]
["Artículo 20 -. Cajas menores.",null,null,null,{"$error":"#DIV/0!"},null,null,null,null,null,null,{"$error":"#DIV/0!"},null,{"$error":"#DIV/0!"},null,{"$error":"#DIV/0!"}]
["Artículo 21 -. Mantenimiento o reparación de bienes inmuebles o muebles.",null,null,null,{"$error":"#DIV/0!"},null,null,null,null,null,null,{"$error":"#DIV/0!"},null,{"$error":"#DIV/0!"},null,{"$error":"#DIV/0!"}]
["Artículo 22 -. Suscripciones.",null,null,null,{"$error":"#DIV/0!"},null,null,null,null,null,null,{"$error":"#DIV/0!"},null,{"$error":"#DIV/0!"},null,{"$error":"#DIV/0!"}]
["Artículo 23 -. Servicios públicos.",null,null,null,{"$error":"#DIV/0!"},null,null,null,null,null,null,{"$error":"#DIV/0!"},null,{"$error":"#DIV/0!"},null,{"$error":"#DIV/0!"}]

{"sheet":"0203-01 IDIGER","index":49,"n_rows":27,"n_cols":16,"rows_kept":27,"cut":false,"hidden":false,"merged":[[5,10,5,11],[5,12,5,13],[5,14,5,15],[1,1,1,4],[3,0,6,0],[3,1,6,1],[3,2,4,4],[3,5,3,9],[3,10,4,15],[4,5,6,5],[4,6,6,6],[4,7,5,9],[5,3,5,4]]}
["PLAN DE AUSTERIDAD EN EL GASTO 2025-2027"]
["Entidad"," "]
["Valores en Pesos Corrientes"]
["CONCEPTO\n(Decreto 062 de 2024)","Posiciones Presupuestales Asociadas\n(Funcionamiento e Inversión)","LÍNEA BASE",null,null,"PLAN DE AUSTERIDAD EN EL GASTO 2025-2027",null,null,null,null,"SEGUIMIENTO RESULTADOS PLAN DE AUSTERIDAD 2025-2027"]
[null,null,null,null,null,"ESTRATEGIAS\n2025-2027","ACCIONES\n2025-2027","META INDICADOR DE AUSTERIDAD"]
[null,null,"AÑO 2023","AÑO 2024",null,null,null,null,null,null,"AÑO 2025",null,"AÑO 2026",null,"AÑO 2027"]
[null,null,"Valor EJECUTADO\na 31/12/2023","Valor EJECUTADO\na 31/12/2024","Resultado\nIndicador Austeridad",null,null,"AÑO 2025","AÑO 2026","AÑO 2027","Valor EJECUTADO\na 31/12/2025","Resultado\nIndicador Austeridad","Valor EJECUTADO\na 31/12/2026","Resultado\nIndicador Austeridad","Valor EJECUTADO\na 31/12/2027","Resultado\nIndicador Austeridad"]
["Servicios de personal"]
["Artículo 6°.- Reducción del gasto en CPS profesionales y de apoyo a la gestión. ","N.A.  \nSe registran totales. Corresponde con lo reportado en SIDEAP y SIVICOF",null,null,{"$f":"1-(D9/C9)","v":{"$error":"#DIV/0!"}},null,null,null,null,null,null,{"$f":"1-(K9/D9)","v":{"$error":"#DIV/0!"}},null,{"$f":"1-(M9/K9)","v":{"$error":"#DIV/0!"}},null,{"$f":"1-(O9/M9)","v":{"$error":"#DIV/0!"}}]
["Artículo 7°.- Horas extras, dominicales y festivos. ",null,null,null,{"$error":"#DIV/0!"},null,null,null,null,null,null,{"$f":"1-(K10/D10)","v":{"$error":"#DIV/0!"}},null,{"$f":"1-(M10/K10)","v":{"$error":"#DIV/0!"}},null,{"$error":"#DIV/0!"}]
["Artículo 8°.- Viáticos y gastos de viaje.",null,null,null,{"$error":"#DIV/0!"},null,null,null,null,null,null,{"$error":"#DIV/0!"},null,{"$error":"#DIV/0!"},null,{"$error":"#DIV/0!"}]
["Artículo 9°.- Compensación por vacaciones.",null,null,null,{"$error":"#DIV/0!"},null,null,null,null,null,null,{"$error":"#DIV/0!"},null,{"$error":"#DIV/0!"},null,{"$error":"#DIV/0!"}]
["Artículo 10°.- Bono navideño.",null,null,null,{"$error":"#DIV/0!"},null,null,null,null,null,null,{"$error":"#DIV/0!"},null,{"$error":"#DIV/0!"},null,{"$error":"#DIV/0!"}]
["Artículo 11 -. Capacitación.",null,null,null,{"$error":"#DIV/0!"},null,null,null,null,null,null,{"$error":"#DIV/0!"},null,{"$error":"#DIV/0!"},null,{"$error":"#DIV/0!"}]
["Artículo 12 -. Bienestar.",null,null,null,{"$error":"#DIV/0!"},null,null,null,null,null,null,{"$error":"#DIV/0!"},null,{"$error":"#DIV/0!"},null,{"$error":"#DIV/0!"}]
["Artículo 13 -. Eventos y conmemoraciones.",null,null,null,{"$error":"#DIV/0!"},null,null,null,null,null,null,{"$error":"#DIV/0!"},null,{"$error":"#DIV/0!"},null,{"$error":"#DIV/0!"}]
["Artículo 14 -. Fondos educativos.",null,null,null,{"$error":"#DIV/0!"},null,null,null,null,null,null,{"$error":"#DIV/0!"},null,{"$error":"#DIV/0!"},null,{"$error":"#DIV/0!"}]
["Servicios Administrativos"]
["Artículo 15. Telefonía.",null,null,null,{"$f":"1-(D19/C19)","v":{"$error":"#DIV/0!"}},null,null,null,null,null,null,{"$error":"#DIV/0!"},null,{"$error":"#DIV/0!"},null,{"$error":"#DIV/0!"}]
["Artículo 16 -. Vehículos oficiales.",null,null,null,{"$error":"#DIV/0!"},null,null,null,null,null,null,{"$error":"#DIV/0!"},null,{"$error":"#DIV/0!"},null,{"$error":"#DIV/0!"}]
["Artículo 17 -. Adquisición de vehículos y maquinaria.",null,null,null,{"$error":"#DIV/0!"},null,null,null,null,null,null,{"$error":"#DIV/0!"},null,{"$error":"#DIV/0!"},null,{"$error":"#DIV/0!"}]
["Artículo 18 -. Fotocopiado, multicopiado e impresión.",null,null,null,{"$error":"#DIV/0!"},null,null,null,null,null,null,{"$error":"#DIV/0!"},null,{"$error":"#DIV/0!"},null,{"$error":"#DIV/0!"}]
["Artículo 19 -. Publicidad distrital.",null,null,null,{"$error":"#DIV/0!"},null,null,null,null,null,null,{"$error":"#DIV/0!"},null,{"$error":"#DIV/0!"},null,{"$error":"#DIV/0!"}]
["Artículo 20 -. Cajas menores.",null,null,null,{"$error":"#DIV/0!"},null,null,null,null,null,null,{"$error":"#DIV/0!"},null,{"$error":"#DIV/0!"},null,{"$error":"#DIV/0!"}]
["Artículo 21 -. Mantenimiento o reparación de bienes inmuebles o muebles.",null,null,null,{"$error":"#DIV/0!"},null,null,null,null,null,null,{"$error":"#DIV/0!"},null,{"$error":"#DIV/0!"},null,{"$error":"#DIV/0!"}]
["Artículo 22 -. Suscripciones.",null,null,null,{"$error":"#DIV/0!"},null,null,null,null,null,null,{"$error":"#DIV/0!"},null,{"$error":"#DIV/0!"},null,{"$error":"#DIV/0!"}]
["Artículo 23 -. Servicios públicos.",null,null,null,{"$error":"#DIV/0!"},null,null,null,null,null,null,{"$error":"#DIV/0!"},null,{"$error":"#DIV/0!"},null,{"$error":"#DIV/0!"}]

{"sheet":"0204-01 IDU","index":50,"n_rows":27,"n_cols":16,"rows_kept":27,"cut":false,"hidden":false,"merged":[[5,10,5,11],[5,12,5,13],[5,14,5,15],[1,1,1,4],[3,0,6,0],[3,1,6,1],[3,2,4,4],[3,5,3,9],[3,10,4,15],[4,5,6,5],[4,6,6,6],[4,7,5,9],[5,3,5,4]]}
["PLAN DE AUSTERIDAD EN EL GASTO 2025-2027"]
["Entidad"," "]
["Valores en Pesos Corrientes"]
["CONCEPTO\n(Decreto 062 de 2024)","Posiciones Presupuestales Asociadas\n(Funcionamiento e Inversión)","LÍNEA BASE",null,null,"PLAN DE AUSTERIDAD EN EL GASTO 2025-2027",null,null,null,null,"SEGUIMIENTO RESULTADOS PLAN DE AUSTERIDAD 2025-2027"]
[null,null,null,null,null,"ESTRATEGIAS\n2025-2027","ACCIONES\n2025-2027","META INDICADOR DE AUSTERIDAD"]
[null,null,"AÑO 2023","AÑO 2024",null,null,null,null,null,null,"AÑO 2025",null,"AÑO 2026",null,"AÑO 2027"]
[null,null,"Valor EJECUTADO\na 31/12/2023","Valor EJECUTADO\na 31/12/2024","Resultado\nIndicador Austeridad",null,null,"AÑO 2025","AÑO 2026","AÑO 2027","Valor EJECUTADO\na 31/12/2025","Resultado\nIndicador Austeridad","Valor EJECUTADO\na 31/12/2026","Resultado\nIndicador Austeridad","Valor EJECUTADO\na 31/12/2027","Resultado\nIndicador Austeridad"]
["Servicios de personal"]
["Artículo 6°.- Reducción del gasto en CPS profesionales y de apoyo a la gestión. ","N.A.  \nSe registran totales. Corresponde con lo reportado en SIDEAP y SIVICOF",null,null,{"$f":"1-(D9/C9)","v":{"$error":"#DIV/0!"}},null,null,null,null,null,null,{"$f":"1-(K9/D9)","v":{"$error":"#DIV/0!"}},null,{"$f":"1-(M9/K9)","v":{"$error":"#DIV/0!"}},null,{"$f":"1-(O9/M9)","v":{"$error":"#DIV/0!"}}]
["Artículo 7°.- Horas extras, dominicales y festivos. ",null,null,null,{"$error":"#DIV/0!"},null,null,null,null,null,null,{"$f":"1-(K10/D10)","v":{"$error":"#DIV/0!"}},null,{"$f":"1-(M10/K10)","v":{"$error":"#DIV/0!"}},null,{"$error":"#DIV/0!"}]
["Artículo 8°.- Viáticos y gastos de viaje.",null,null,null,{"$error":"#DIV/0!"},null,null,null,null,null,null,{"$error":"#DIV/0!"},null,{"$error":"#DIV/0!"},null,{"$error":"#DIV/0!"}]
["Artículo 9°.- Compensación por vacaciones.",null,null,null,{"$error":"#DIV/0!"},null,null,null,null,null,null,{"$error":"#DIV/0!"},null,{"$error":"#DIV/0!"},null,{"$error":"#DIV/0!"}]
["Artículo 10°.- Bono navideño.",null,null,null,{"$error":"#DIV/0!"},null,null,null,null,null,null,{"$error":"#DIV/0!"},null,{"$error":"#DIV/0!"},null,{"$error":"#DIV/0!"}]
["Artículo 11 -. Capacitación.",null,null,null,{"$error":"#DIV/0!"},null,null,null,null,null,null,{"$error":"#DIV/0!"},null,{"$error":"#DIV/0!"},null,{"$error":"#DIV/0!"}]
["Artículo 12 -. Bienestar.",null,null,null,{"$error":"#DIV/0!"},null,null,null,null,null,null,{"$error":"#DIV/0!"},null,{"$error":"#DIV/0!"},null,{"$error":"#DIV/0!"}]
["Artículo 13 -. Eventos y conmemoraciones.",null,null,null,{"$error":"#DIV/0!"},null,null,null,null,null,null,{"$error":"#DIV/0!"},null,{"$error":"#DIV/0!"},null,{"$error":"#DIV/0!"}]
["Artículo 14 -. Fondos educativos.",null,null,null,{"$error":"#DIV/0!"},null,null,null,null,null,null,{"$error":"#DIV/0!"},null,{"$error":"#DIV/0!"},null,{"$error":"#DIV/0!"}]
["Servicios Administrativos"]
["Artículo 15. Telefonía.",null,null,null,{"$f":"1-(D19/C19)","v":{"$error":"#DIV/0!"}},null,null,null,null,null,null,{"$error":"#DIV/0!"},null,{"$error":"#DIV/0!"},null,{"$error":"#DIV/0!"}]
["Artículo 16 -. Vehículos oficiales.",null,null,null,{"$error":"#DIV/0!"},null,null,null,null,null,null,{"$error":"#DIV/0!"},null,{"$error":"#DIV/0!"},null,{"$error":"#DIV/0!"}]
["Artículo 17 -. Adquisición de vehículos y maquinaria.",null,null,null,{"$error":"#DIV/0!"},null,null,null,null,null,null,{"$error":"#DIV/0!"},null,{"$error":"#DIV/0!"},null,{"$error":"#DIV/0!"}]
["Artículo 18 -. Fotocopiado, multicopiado e impresión.",null,null,null,{"$error":"#DIV/0!"},null,null,null,null,null,null,{"$error":"#DIV/0!"},null,{"$error":"#DIV/0!"},null,{"$error":"#DIV/0!"}]
["Artículo 19 -. Publicidad distrital.",null,null,null,{"$error":"#DIV/0!"},null,null,null,null,null,null,{"$error":"#DIV/0!"},null,{"$error":"#DIV/0!"},null,{"$error":"#DIV/0!"}]
["Artículo 20 -. Cajas menores.",null,null,null,{"$error":"#DIV/0!"},null,null,null,null,null,null,{"$error":"#DIV/0!"},null,{"$error":"#DIV/0!"},null,{"$error":"#DIV/0!"}]
["Artículo 21 -. Mantenimiento o reparación de bienes inmuebles o muebles.",null,null,null,{"$error":"#DIV/0!"},null,null,null,null,null,null,{"$error":"#DIV/0!"},null,{"$error":"#DIV/0!"},null,{"$error":"#DIV/0!"}]
["Artículo 22 -. Suscripciones.",null,null,null,{"$error":"#DIV/0!"},null,null,null,null,null,null,{"$error":"#DIV/0!"},null,{"$error":"#DIV/0!"},null,{"$error":"#DIV/0!"}]
["Artículo 23 -. Servicios públicos.",null,null,null,{"$error":"#DIV/0!"},null,null,null,null,null,null,{"$error":"#DIV/0!"},null,{"$error":"#DIV/0!"},null,{"$error":"#DIV/0!"}]

{"sheet":"0206-01 FONCEP","index":51,"n_rows":27,"n_cols":16,"rows_kept":27,"cut":false,"hidden":false,"merged":[[5,10,5,11],[5,12,5,13],[5,14,5,15],[1,1,1,4],[3,0,6,0],[3,1,6,1],[3,2,4,4],[3,5,3,9],[3,10,4,15],[4,5,6,5],[4,6,6,6],[4,7,5,9],[5,3,5,4]]}
["PLAN DE AUSTERIDAD EN EL GASTO 2025-2027"]
["Entidad"," "]
["Valores en Pesos Corrientes"]
["CONCEPTO\n(Decreto 062 de 2024)","Posiciones Presupuestales Asociadas\n(Funcionamiento e Inversión)","LÍNEA BASE",null,null,"PLAN DE AUSTERIDAD EN EL GASTO 2025-2027",null,null,null,null,"SEGUIMIENTO RESULTADOS PLAN DE AUSTERIDAD 2025-2027"]
[null,null,null,null,null,"ESTRATEGIAS\n2025-2027","ACCIONES\n2025-2027","META INDICADOR DE AUSTERIDAD"]
[null,null,"AÑO 2023","AÑO 2024",null,null,null,null,null,null,"AÑO 2025",null,"AÑO 2026",null,"AÑO 2027"]
[null,null,"Valor EJECUTADO\na 31/12/2023","Valor EJECUTADO\na 31/12/2024","Resultado\nIndicador Austeridad",null,null,"AÑO 2025","AÑO 2026","AÑO 2027","Valor EJECUTADO\na 31/12/2025","Resultado\nIndicador Austeridad","Valor EJECUTADO\na 31/12/2026","Resultado\nIndicador Austeridad","Valor EJECUTADO\na 31/12/2027","Resultado\nIndicador Austeridad"]
["Servicios de personal"]
["Artículo 6°.- Reducción del gasto en CPS profesionales y de apoyo a la gestión. ","N.A.  \nSe registran totales. Corresponde con lo reportado en SIDEAP y SIVICOF",null,null,{"$f":"1-(D9/C9)","v":{"$error":"#DIV/0!"}},null,null,null,null,null,null,{"$f":"1-(K9/D9)","v":{"$error":"#DIV/0!"}},null,{"$f":"1-(M9/K9)","v":{"$error":"#DIV/0!"}},null,{"$f":"1-(O9/M9)","v":{"$error":"#DIV/0!"}}]
["Artículo 7°.- Horas extras, dominicales y festivos. ",null,null,null,{"$error":"#DIV/0!"},null,null,null,null,null,null,{"$f":"1-(K10/D10)","v":{"$error":"#DIV/0!"}},null,{"$f":"1-(M10/K10)","v":{"$error":"#DIV/0!"}},null,{"$error":"#DIV/0!"}]
["Artículo 8°.- Viáticos y gastos de viaje.",null,null,null,{"$error":"#DIV/0!"},null,null,null,null,null,null,{"$error":"#DIV/0!"},null,{"$error":"#DIV/0!"},null,{"$error":"#DIV/0!"}]
["Artículo 9°.- Compensación por vacaciones.",null,null,null,{"$error":"#DIV/0!"},null,null,null,null,null,null,{"$error":"#DIV/0!"},null,{"$error":"#DIV/0!"},null,{"$error":"#DIV/0!"}]
["Artículo 10°.- Bono navideño.",null,null,null,{"$error":"#DIV/0!"},null,null,null,null,null,null,{"$error":"#DIV/0!"},null,{"$error":"#DIV/0!"},null,{"$error":"#DIV/0!"}]
["Artículo 11 -. Capacitación.",null,null,null,{"$error":"#DIV/0!"},null,null,null,null,null,null,{"$error":"#DIV/0!"},null,{"$error":"#DIV/0!"},null,{"$error":"#DIV/0!"}]
["Artículo 12 -. Bienestar.",null,null,null,{"$error":"#DIV/0!"},null,null,null,null,null,null,{"$error":"#DIV/0!"},null,{"$error":"#DIV/0!"},null,{"$error":"#DIV/0!"}]
["Artículo 13 -. Eventos y conmemoraciones.",null,null,null,{"$error":"#DIV/0!"},null,null,null,null,null,null,{"$error":"#DIV/0!"},null,{"$error":"#DIV/0!"},null,{"$error":"#DIV/0!"}]
["Artículo 14 -. Fondos educativos.",null,null,null,{"$error":"#DIV/0!"},null,null,null,null,null,null,{"$error":"#DIV/0!"},null,{"$error":"#DIV/0!"},null,{"$error":"#DIV/0!"}]
["Servicios Administrativos"]
["Artículo 15. Telefonía.",null,null,null,{"$f":"1-(D19/C19)","v":{"$error":"#DIV/0!"}},null,null,null,null,null,null,{"$error":"#DIV/0!"},null,{"$error":"#DIV/0!"},null,{"$error":"#DIV/0!"}]
["Artículo 16 -. Vehículos oficiales.",null,null,null,{"$error":"#DIV/0!"},null,null,null,null,null,null,{"$error":"#DIV/0!"},null,{"$error":"#DIV/0!"},null,{"$error":"#DIV/0!"}]
["Artículo 17 -. Adquisición de vehículos y maquinaria.",null,null,null,{"$error":"#DIV/0!"},null,null,null,null,null,null,{"$error":"#DIV/0!"},null,{"$error":"#DIV/0!"},null,{"$error":"#DIV/0!"}]
["Artículo 18 -. Fotocopiado, multicopiado e impresión.",null,null,null,{"$error":"#DIV/0!"},null,null,null,null,null,null,{"$error":"#DIV/0!"},null,{"$error":"#DIV/0!"},null,{"$error":"#DIV/0!"}]
["Artículo 19 -. Publicidad distrital.",null,null,null,{"$error":"#DIV/0!"},null,null,null,null,null,null,{"$error":"#DIV/0!"},null,{"$error":"#DIV/0!"},null,{"$error":"#DIV/0!"}]
["Artículo 20 -. Cajas menores.",null,null,null,{"$error":"#DIV/0!"},null,null,null,null,null,null,{"$error":"#DIV/0!"},null,{"$error":"#DIV/0!"},null,{"$error":"#DIV/0!"}]
["Artículo 21 -. Mantenimiento o reparación de bienes inmuebles o muebles.",null,null,null,{"$error":"#DIV/0!"},null,null,null,null,null,null,{"$error":"#DIV/0!"},null,{"$error":"#DIV/0!"},null,{"$error":"#DIV/0!"}]
["Artículo 22 -. Suscripciones.",null,null,null,{"$error":"#DIV/0!"},null,null,null,null,null,null,{"$error":"#DIV/0!"},null,{"$error":"#DIV/0!"},null,{"$error":"#DIV/0!"}]
["Artículo 23 -. Servicios públicos.",null,null,null,{"$error":"#DIV/0!"},null,null,null,null,null,null,{"$error":"#DIV/0!"},null,{"$error":"#DIV/0!"},null,{"$error":"#DIV/0!"}]

{"sheet":"0206-02 FONCEP","index":52,"n_rows":27,"n_cols":16,"rows_kept":27,"cut":false,"hidden":false,"merged":[[5,10,5,11],[5,12,5,13],[5,14,5,15],[1,1,1,4],[3,0,6,0],[3,1,6,1],[3,2,4,4],[3,5,3,9],[3,10,4,15],[4,5,6,5],[4,6,6,6],[4,7,5,9],[5,3,5,4]]}
["PLAN DE AUSTERIDAD EN EL GASTO 2025-2027"]
["Entidad"," "]
["Valores en Pesos Corrientes"]
["CONCEPTO\n(Decreto 062 de 2024)","Posiciones Presupuestales Asociadas\n(Funcionamiento e Inversión)","LÍNEA BASE",null,null,"PLAN DE AUSTERIDAD EN EL GASTO 2025-2027",null,null,null,null,"SEGUIMIENTO RESULTADOS PLAN DE AUSTERIDAD 2025-2027"]
[null,null,null,null,null,"ESTRATEGIAS\n2025-2027","ACCIONES\n2025-2027","META INDICADOR DE AUSTERIDAD"]
[null,null,"AÑO 2023","AÑO 2024",null,null,null,null,null,null,"AÑO 2025",null,"AÑO 2026",null,"AÑO 2027"]
[null,null,"Valor EJECUTADO\na 31/12/2023","Valor EJECUTADO\na 31/12/2024","Resultado\nIndicador Austeridad",null,null,"AÑO 2025","AÑO 2026","AÑO 2027","Valor EJECUTADO\na 31/12/2025","Resultado\nIndicador Austeridad","Valor EJECUTADO\na 31/12/2026","Resultado\nIndicador Austeridad","Valor EJECUTADO\na 31/12/2027","Resultado\nIndicador Austeridad"]
["Servicios de personal"]
["Artículo 6°.- Reducción del gasto en CPS profesionales y de apoyo a la gestión. ","N.A.  \nSe registran totales. Corresponde con lo reportado en SIDEAP y SIVICOF",null,null,{"$f":"1-(D9/C9)","v":{"$error":"#DIV/0!"}},null,null,null,null,null,null,{"$f":"1-(K9/D9)","v":{"$error":"#DIV/0!"}},null,{"$f":"1-(M9/K9)","v":{"$error":"#DIV/0!"}},null,{"$f":"1-(O9/M9)","v":{"$error":"#DIV/0!"}}]
["Artículo 7°.- Horas extras, dominicales y festivos. ",null,null,null,{"$error":"#DIV/0!"},null,null,null,null,null,null,{"$f":"1-(K10/D10)","v":{"$error":"#DIV/0!"}},null,{"$f":"1-(M10/K10)","v":{"$error":"#DIV/0!"}},null,{"$error":"#DIV/0!"}]
["Artículo 8°.- Viáticos y gastos de viaje.",null,null,null,{"$error":"#DIV/0!"},null,null,null,null,null,null,{"$error":"#DIV/0!"},null,{"$error":"#DIV/0!"},null,{"$error":"#DIV/0!"}]
["Artículo 9°.- Compensación por vacaciones.",null,null,null,{"$error":"#DIV/0!"},null,null,null,null,null,null,{"$error":"#DIV/0!"},null,{"$error":"#DIV/0!"},null,{"$error":"#DIV/0!"}]
["Artículo 10°.- Bono navideño.",null,null,null,{"$error":"#DIV/0!"},null,null,null,null,null,null,{"$error":"#DIV/0!"},null,{"$error":"#DIV/0!"},null,{"$error":"#DIV/0!"}]
["Artículo 11 -. Capacitación.",null,null,null,{"$error":"#DIV/0!"},null,null,null,null,null,null,{"$error":"#DIV/0!"},null,{"$error":"#DIV/0!"},null,{"$error":"#DIV/0!"}]
["Artículo 12 -. Bienestar.",null,null,null,{"$error":"#DIV/0!"},null,null,null,null,null,null,{"$error":"#DIV/0!"},null,{"$error":"#DIV/0!"},null,{"$error":"#DIV/0!"}]
["Artículo 13 -. Eventos y conmemoraciones.",null,null,null,{"$error":"#DIV/0!"},null,null,null,null,null,null,{"$error":"#DIV/0!"},null,{"$error":"#DIV/0!"},null,{"$error":"#DIV/0!"}]
["Artículo 14 -. Fondos educativos.",null,null,null,{"$error":"#DIV/0!"},null,null,null,null,null,null,{"$error":"#DIV/0!"},null,{"$error":"#DIV/0!"},null,{"$error":"#DIV/0!"}]
["Servicios Administrativos"]
["Artículo 15. Telefonía.",null,null,null,{"$f":"1-(D19/C19)","v":{"$error":"#DIV/0!"}},null,null,null,null,null,null,{"$error":"#DIV/0!"},null,{"$error":"#DIV/0!"},null,{"$error":"#DIV/0!"}]
["Artículo 16 -. Vehículos oficiales.",null,null,null,{"$error":"#DIV/0!"},null,null,null,null,null,null,{"$error":"#DIV/0!"},null,{"$error":"#DIV/0!"},null,{"$error":"#DIV/0!"}]
["Artículo 17 -. Adquisición de vehículos y maquinaria.",null,null,null,{"$error":"#DIV/0!"},null,null,null,null,null,null,{"$error":"#DIV/0!"},null,{"$error":"#DIV/0!"},null,{"$error":"#DIV/0!"}]
["Artículo 18 -. Fotocopiado, multicopiado e impresión.",null,null,null,{"$error":"#DIV/0!"},null,null,null,null,null,null,{"$error":"#DIV/0!"},null,{"$error":"#DIV/0!"},null,{"$error":"#DIV/0!"}]
["Artículo 19 -. Publicidad distrital.",null,null,null,{"$error":"#DIV/0!"},null,null,null,null,null,null,{"$error":"#DIV/0!"},null,{"$error":"#DIV/0!"},null,{"$error":"#DIV/0!"}]
["Artículo 20 -. Cajas menores.",null,null,null,{"$error":"#DIV/0!"},null,null,null,null,null,null,{"$error":"#DIV/0!"},null,{"$error":"#DIV/0!"},null,{"$error":"#DIV/0!"}]
["Artículo 21 -. Mantenimiento o reparación de bienes inmuebles o muebles.",null,null,null,{"$error":"#DIV/0!"},null,null,null,null,null,null,{"$error":"#DIV/0!"},null,{"$error":"#DIV/0!"},null,{"$error":"#DIV/0!"}]
["Artículo 22 -. Suscripciones.",null,null,null,{"$error":"#DIV/0!"},null,null,null,null,null,null,{"$error":"#DIV/0!"},null,{"$error":"#DIV/0!"},null,{"$error":"#DIV/0!"}]
["Artículo 23 -. Servicios públicos.",null,null,null,{"$error":"#DIV/0!"},null,null,null,null,null,null,{"$error":"#DIV/0!"},null,{"$error":"#DIV/0!"},null,{"$error":"#DIV/0!"}]

{"sheet":"0208-01 CVP","index":53,"n_rows":27,"n_cols":16,"rows_kept":27,"cut":false,"hidden":false,"merged":[[5,10,5,11],[5,12,5,13],[5,14,5,15],[1,1,1,4],[3,0,6,0],[3,1,6,1],[3,2,4,4],[3,5,3,9],[3,10,4,15],[4,5,6,5],[4,6,6,6],[4,7,5,9],[5,3,5,4]]}
["PLAN DE AUSTERIDAD EN EL GASTO 2025-2027"]
["Entidad"," "]
["Valores en Pesos Corrientes"]
["CONCEPTO\n(Decreto 062 de 2024)","Posiciones Presupuestales Asociadas\n(Funcionamiento e Inversión)","LÍNEA BASE",null,null,"PLAN DE AUSTERIDAD EN EL GASTO 2025-2027",null,null,null,null,"SEGUIMIENTO RESULTADOS PLAN DE AUSTERIDAD 2025-2027"]
[null,null,null,null,null,"ESTRATEGIAS\n2025-2027","ACCIONES\n2025-2027","META INDICADOR DE AUSTERIDAD"]
[null,null,"AÑO 2023","AÑO 2024",null,null,null,null,null,null,"AÑO 2025",null,"AÑO 2026",null,"AÑO 2027"]
[null,null,"Valor EJECUTADO\na 31/12/2023","Valor EJECUTADO\na 31/12/2024","Resultado\nIndicador Austeridad",null,null,"AÑO 2025","AÑO 2026","AÑO 2027","Valor EJECUTADO\na 31/12/2025","Resultado\nIndicador Austeridad","Valor EJECUTADO\na 31/12/2026","Resultado\nIndicador Austeridad","Valor EJECUTADO\na 31/12/2027","Resultado\nIndicador Austeridad"]
["Servicios de personal"]
["Artículo 6°.- Reducción del gasto en CPS profesionales y de apoyo a la gestión. ","N.A.  \nSe registran totales. Corresponde con lo reportado en SIDEAP y SIVICOF",null,null,{"$f":"1-(D9/C9)","v":{"$error":"#DIV/0!"}},null,null,null,null,null,null,{"$f":"1-(K9/D9)","v":{"$error":"#DIV/0!"}},null,{"$f":"1-(M9/K9)","v":{"$error":"#DIV/0!"}},null,{"$f":"1-(O9/M9)","v":{"$error":"#DIV/0!"}}]
["Artículo 7°.- Horas extras, dominicales y festivos. ",null,null,null,{"$error":"#DIV/0!"},null,null,null,null,null,null,{"$f":"1-(K10/D10)","v":{"$error":"#DIV/0!"}},null,{"$f":"1-(M10/K10)","v":{"$error":"#DIV/0!"}},null,{"$error":"#DIV/0!"}]
["Artículo 8°.- Viáticos y gastos de viaje.",null,null,null,{"$error":"#DIV/0!"},null,null,null,null,null,null,{"$error":"#DIV/0!"},null,{"$error":"#DIV/0!"},null,{"$error":"#DIV/0!"}]
["Artículo 9°.- Compensación por vacaciones.",null,null,null,{"$error":"#DIV/0!"},null,null,null,null,null,null,{"$error":"#DIV/0!"},null,{"$error":"#DIV/0!"},null,{"$error":"#DIV/0!"}]
["Artículo 10°.- Bono navideño.",null,null,null,{"$error":"#DIV/0!"},null,null,null,null,null,null,{"$error":"#DIV/0!"},null,{"$error":"#DIV/0!"},null,{"$error":"#DIV/0!"}]
["Artículo 11 -. Capacitación.",null,null,null,{"$error":"#DIV/0!"},null,null,null,null,null,null,{"$error":"#DIV/0!"},null,{"$error":"#DIV/0!"},null,{"$error":"#DIV/0!"}]
["Artículo 12 -. Bienestar.",null,null,null,{"$error":"#DIV/0!"},null,null,null,null,null,null,{"$error":"#DIV/0!"},null,{"$error":"#DIV/0!"},null,{"$error":"#DIV/0!"}]
["Artículo 13 -. Eventos y conmemoraciones.",null,null,null,{"$error":"#DIV/0!"},null,null,null,null,null,null,{"$error":"#DIV/0!"},null,{"$error":"#DIV/0!"},null,{"$error":"#DIV/0!"}]
["Artículo 14 -. Fondos educativos.",null,null,null,{"$error":"#DIV/0!"},null,null,null,null,null,null,{"$error":"#DIV/0!"},null,{"$error":"#DIV/0!"},null,{"$error":"#DIV/0!"}]
["Servicios Administrativos"]
["Artículo 15. Telefonía.",null,null,null,{"$f":"1-(D19/C19)","v":{"$error":"#DIV/0!"}},null,null,null,null,null,null,{"$error":"#DIV/0!"},null,{"$error":"#DIV/0!"},null,{"$error":"#DIV/0!"}]
["Artículo 16 -. Vehículos oficiales.",null,null,null,{"$error":"#DIV/0!"},null,null,null,null,null,null,{"$error":"#DIV/0!"},null,{"$error":"#DIV/0!"},null,{"$error":"#DIV/0!"}]
["Artículo 17 -. Adquisición de vehículos y maquinaria.",null,null,null,{"$error":"#DIV/0!"},null,null,null,null,null,null,{"$error":"#DIV/0!"},null,{"$error":"#DIV/0!"},null,{"$error":"#DIV/0!"}]
["Artículo 18 -. Fotocopiado, multicopiado e impresión.",null,null,null,{"$error":"#DIV/0!"},null,null,null,null,null,null,{"$error":"#DIV/0!"},null,{"$error":"#DIV/0!"},null,{"$error":"#DIV/0!"}]
["Artículo 19 -. Publicidad distrital.",null,null,null,{"$error":"#DIV/0!"},null,null,null,null,null,null,{"$error":"#DIV/0!"},null,{"$error":"#DIV/0!"},null,{"$error":"#DIV/0!"}]
["Artículo 20 -. Cajas menores.",null,null,null,{"$error":"#DIV/0!"},null,null,null,null,null,null,{"$error":"#DIV/0!"},null,{"$error":"#DIV/0!"},null,{"$error":"#DIV/0!"}]
["Artículo 21 -. Mantenimiento o reparación de bienes inmuebles o muebles.",null,null,null,{"$error":"#DIV/0!"},null,null,null,null,null,null,{"$error":"#DIV/0!"},null,{"$error":"#DIV/0!"},null,{"$error":"#DIV/0!"}]
["Artículo 22 -. Suscripciones.",null,null,null,{"$error":"#DIV/0!"},null,null,null,null,null,null,{"$error":"#DIV/0!"},null,{"$error":"#DIV/0!"},null,{"$error":"#DIV/0!"}]
["Artículo 23 -. Servicios públicos.",null,null,null,{"$error":"#DIV/0!"},null,null,null,null,null,null,{"$error":"#DIV/0!"},null,{"$error":"#DIV/0!"},null,{"$error":"#DIV/0!"}]

{"sheet":"0211-01 IDRD","index":54,"n_rows":27,"n_cols":16,"rows_kept":27,"cut":false,"hidden":false,"merged":[[5,10,5,11],[5,12,5,13],[5,14,5,15],[1,1,1,4],[3,0,6,0],[3,1,6,1],[3,2,4,4],[3,5,3,9],[3,10,4,15],[4,5,6,5],[4,6,6,6],[4,7,5,9],[5,3,5,4]]}
["PLAN DE AUSTERIDAD EN EL GASTO 2025-2027"]
["Entidad"," "]
["Valores en Pesos Corrientes"]
["CONCEPTO\n(Decreto 062 de 2024)","Posiciones Presupuestales Asociadas\n(Funcionamiento e Inversión)","LÍNEA BASE",null,null,"PLAN DE AUSTERIDAD EN EL GASTO 2025-2027",null,null,null,null,"SEGUIMIENTO RESULTADOS PLAN DE AUSTERIDAD 2025-2027"]
[null,null,null,null,null,"ESTRATEGIAS\n2025-2027","ACCIONES\n2025-2027","META INDICADOR DE AUSTERIDAD"]
[null,null,"AÑO 2023","AÑO 2024",null,null,null,null,null,null,"AÑO 2025",null,"AÑO 2026",null,"AÑO 2027"]
[null,null,"Valor EJECUTADO\na 31/12/2023","Valor EJECUTADO\na 31/12/2024","Resultado\nIndicador Austeridad",null,null,"AÑO 2025","AÑO 2026","AÑO 2027","Valor EJECUTADO\na 31/12/2025","Resultado\nIndicador Austeridad","Valor EJECUTADO\na 31/12/2026","Resultado\nIndicador Austeridad","Valor EJECUTADO\na 31/12/2027","Resultado\nIndicador Austeridad"]
["Servicios de personal"]
["Artículo 6°.- Reducción del gasto en CPS profesionales y de apoyo a la gestión. ","N.A.  \nSe registran totales. Corresponde con lo reportado en SIDEAP y SIVICOF",null,null,{"$f":"1-(D9/C9)","v":{"$error":"#DIV/0!"}},null,null,null,null,null,null,{"$f":"1-(K9/D9)","v":{"$error":"#DIV/0!"}},null,{"$f":"1-(M9/K9)","v":{"$error":"#DIV/0!"}},null,{"$f":"1-(O9/M9)","v":{"$error":"#DIV/0!"}}]
["Artículo 7°.- Horas extras, dominicales y festivos. ",null,null,null,{"$error":"#DIV/0!"},null,null,null,null,null,null,{"$f":"1-(K10/D10)","v":{"$error":"#DIV/0!"}},null,{"$f":"1-(M10/K10)","v":{"$error":"#DIV/0!"}},null,{"$error":"#DIV/0!"}]
["Artículo 8°.- Viáticos y gastos de viaje.",null,null,null,{"$error":"#DIV/0!"},null,null,null,null,null,null,{"$error":"#DIV/0!"},null,{"$error":"#DIV/0!"},null,{"$error":"#DIV/0!"}]
["Artículo 9°.- Compensación por vacaciones.",null,null,null,{"$error":"#DIV/0!"},null,null,null,null,null,null,{"$error":"#DIV/0!"},null,{"$error":"#DIV/0!"},null,{"$error":"#DIV/0!"}]
["Artículo 10°.- Bono navideño.",null,null,null,{"$error":"#DIV/0!"},null,null,null,null,null,null,{"$error":"#DIV/0!"},null,{"$error":"#DIV/0!"},null,{"$error":"#DIV/0!"}]
["Artículo 11 -. Capacitación.",null,null,null,{"$error":"#DIV/0!"},null,null,null,null,null,null,{"$error":"#DIV/0!"},null,{"$error":"#DIV/0!"},null,{"$error":"#DIV/0!"}]
["Artículo 12 -. Bienestar.",null,null,null,{"$error":"#DIV/0!"},null,null,null,null,null,null,{"$error":"#DIV/0!"},null,{"$error":"#DIV/0!"},null,{"$error":"#DIV/0!"}]
["Artículo 13 -. Eventos y conmemoraciones.",null,null,null,{"$error":"#DIV/0!"},null,null,null,null,null,null,{"$error":"#DIV/0!"},null,{"$error":"#DIV/0!"},null,{"$error":"#DIV/0!"}]
["Artículo 14 -. Fondos educativos.",null,null,null,{"$error":"#DIV/0!"},null,null,null,null,null,null,{"$error":"#DIV/0!"},null,{"$error":"#DIV/0!"},null,{"$error":"#DIV/0!"}]
["Servicios Administrativos"]
["Artículo 15. Telefonía.",null,null,null,{"$f":"1-(D19/C19)","v":{"$error":"#DIV/0!"}},null,null,null,null,null,null,{"$error":"#DIV/0!"},null,{"$error":"#DIV/0!"},null,{"$error":"#DIV/0!"}]
["Artículo 16 -. Vehículos oficiales.",null,null,null,{"$error":"#DIV/0!"},null,null,null,null,null,null,{"$error":"#DIV/0!"},null,{"$error":"#DIV/0!"},null,{"$error":"#DIV/0!"}]
["Artículo 17 -. Adquisición de vehículos y maquinaria.",null,null,null,{"$error":"#DIV/0!"},null,null,null,null,null,null,{"$error":"#DIV/0!"},null,{"$error":"#DIV/0!"},null,{"$error":"#DIV/0!"}]
["Artículo 18 -. Fotocopiado, multicopiado e impresión.",null,null,null,{"$error":"#DIV/0!"},null,null,null,null,null,null,{"$error":"#DIV/0!"},null,{"$error":"#DIV/0!"},null,{"$error":"#DIV/0!"}]
["Artículo 19 -. Publicidad distrital.",null,null,null,{"$error":"#DIV/0!"},null,null,null,null,null,null,{"$error":"#DIV/0!"},null,{"$error":"#DIV/0!"},null,{"$error":"#DIV/0!"}]
["Artículo 20 -. Cajas menores.",null,null,null,{"$error":"#DIV/0!"},null,null,null,null,null,null,{"$error":"#DIV/0!"},null,{"$error":"#DIV/0!"},null,{"$error":"#DIV/0!"}]
["Artículo 21 -. Mantenimiento o reparación de bienes inmuebles o muebles.",null,null,null,{"$error":"#DIV/0!"},null,null,null,null,null,null,{"$error":"#DIV/0!"},null,{"$error":"#DIV/0!"},null,{"$error":"#DIV/0!"}]
["Artículo 22 -. Suscripciones.",null,null,null,{"$error":"#DIV/0!"},null,null,null,null,null,null,{"$error":"#DIV/0!"},null,{"$error":"#DIV/0!"},null,{"$error":"#DIV/0!"}]
["Artículo 23 -. Servicios públicos.",null,null,null,{"$error":"#DIV/0!"},null,null,null,null,null,null,{"$error":"#DIV/0!"},null,{"$error":"#DIV/0!"},null,{"$error":"#DIV/0!"}]

{"sheet":"0213-01 IDPC","index":55,"n_rows":27,"n_cols":16,"rows_kept":27,"cut":false,"hidden":false,"merged":[[5,10,5,11],[5,12,5,13],[5,14,5,15],[1,1,1,4],[3,0,6,0],[3,1,6,1],[3,2,4,4],[3,5,3,9],[3,10,4,15],[4,5,6,5],[4,6,6,6],[4,7,5,9],[5,3,5,4]]}
["PLAN DE AUSTERIDAD EN EL GASTO 2025-2027"]
["Entidad"," "]
["Valores en Pesos Corrientes"]
["CONCEPTO\n(Decreto 062 de 2024)","Posiciones Presupuestales Asociadas\n(Funcionamiento e Inversión)","LÍNEA BASE",null,null,"PLAN DE AUSTERIDAD EN EL GASTO 2025-2027",null,null,null,null,"SEGUIMIENTO RESULTADOS PLAN DE AUSTERIDAD 2025-2027"]
[null,null,null,null,null,"ESTRATEGIAS\n2025-2027","ACCIONES\n2025-2027","META INDICADOR DE AUSTERIDAD"]
[null,null,"AÑO 2023","AÑO 2024",null,null,null,null,null,null,"AÑO 2025",null,"AÑO 2026",null,"AÑO 2027"]
[null,null,"Valor EJECUTADO\na 31/12/2023","Valor EJECUTADO\na 31/12/2024","Resultado\nIndicador Austeridad",null,null,"AÑO 2025","AÑO 2026","AÑO 2027","Valor EJECUTADO\na 31/12/2025","Resultado\nIndicador Austeridad","Valor EJECUTADO\na 31/12/2026","Resultado\nIndicador Austeridad","Valor EJECUTADO\na 31/12/2027","Resultado\nIndicador Austeridad"]
["Servicios de personal"]
["Artículo 6°.- Reducción del gasto en CPS profesionales y de apoyo a la gestión. ","N.A.  \nSe registran totales. Corresponde con lo reportado en SIDEAP y SIVICOF",null,null,{"$f":"1-(D9/C9)","v":{"$error":"#DIV/0!"}},null,null,null,null,null,null,{"$f":"1-(K9/D9)","v":{"$error":"#DIV/0!"}},null,{"$f":"1-(M9/K9)","v":{"$error":"#DIV/0!"}},null,{"$f":"1-(O9/M9)","v":{"$error":"#DIV/0!"}}]
["Artículo 7°.- Horas extras, dominicales y festivos. ",null,null,null,{"$error":"#DIV/0!"},null,null,null,null,null,null,{"$f":"1-(K10/D10)","v":{"$error":"#DIV/0!"}},null,{"$f":"1-(M10/K10)","v":{"$error":"#DIV/0!"}},null,{"$error":"#DIV/0!"}]
["Artículo 8°.- Viáticos y gastos de viaje.",null,null,null,{"$error":"#DIV/0!"},null,null,null,null,null,null,{"$error":"#DIV/0!"},null,{"$error":"#DIV/0!"},null,{"$error":"#DIV/0!"}]
["Artículo 9°.- Compensación por vacaciones.",null,null,null,{"$error":"#DIV/0!"},null,null,null,null,null,null,{"$error":"#DIV/0!"},null,{"$error":"#DIV/0!"},null,{"$error":"#DIV/0!"}]
["Artículo 10°.- Bono navideño.",null,null,null,{"$error":"#DIV/0!"},null,null,null,null,null,null,{"$error":"#DIV/0!"},null,{"$error":"#DIV/0!"},null,{"$error":"#DIV/0!"}]
["Artículo 11 -. Capacitación.",null,null,null,{"$error":"#DIV/0!"},null,null,null,null,null,null,{"$error":"#DIV/0!"},null,{"$error":"#DIV/0!"},null,{"$error":"#DIV/0!"}]
["Artículo 12 -. Bienestar.",null,null,null,{"$error":"#DIV/0!"},null,null,null,null,null,null,{"$error":"#DIV/0!"},null,{"$error":"#DIV/0!"},null,{"$error":"#DIV/0!"}]
["Artículo 13 -. Eventos y conmemoraciones.",null,null,null,{"$error":"#DIV/0!"},null,null,null,null,null,null,{"$error":"#DIV/0!"},null,{"$error":"#DIV/0!"},null,{"$error":"#DIV/0!"}]
["Artículo 14 -. Fondos educativos.",null,null,null,{"$error":"#DIV/0!"},null,null,null,null,null,null,{"$error":"#DIV/0!"},null,{"$error":"#DIV/0!"},null,{"$error":"#DIV/0!"}]
["Servicios Administrativos"]
["Artículo 15. Telefonía.",null,null,null,{"$f":"1-(D19/C19)","v":{"$error":"#DIV/0!"}},null,null,null,null,null,null,{"$error":"#DIV/0!"},null,{"$error":"#DIV/0!"},null,{"$error":"#DIV/0!"}]
["Artículo 16 -. Vehículos oficiales.",null,null,null,{"$error":"#DIV/0!"},null,null,null,null,null,null,{"$error":"#DIV/0!"},null,{"$error":"#DIV/0!"},null,{"$error":"#DIV/0!"}]
["Artículo 17 -. Adquisición de vehículos y maquinaria.",null,null,null,{"$error":"#DIV/0!"},null,null,null,null,null,null,{"$error":"#DIV/0!"},null,{"$error":"#DIV/0!"},null,{"$error":"#DIV/0!"}]
["Artículo 18 -. Fotocopiado, multicopiado e impresión.",null,null,null,{"$error":"#DIV/0!"},null,null,null,null,null,null,{"$error":"#DIV/0!"},null,{"$error":"#DIV/0!"},null,{"$error":"#DIV/0!"}]
["Artículo 19 -. Publicidad distrital.",null,null,null,{"$error":"#DIV/0!"},null,null,null,null,null,null,{"$error":"#DIV/0!"},null,{"$error":"#DIV/0!"},null,{"$error":"#DIV/0!"}]
["Artículo 20 -. Cajas menores.",null,null,null,{"$error":"#DIV/0!"},null,null,null,null,null,null,{"$error":"#DIV/0!"},null,{"$error":"#DIV/0!"},null,{"$error":"#DIV/0!"}]
["Artículo 21 -. Mantenimiento o reparación de bienes inmuebles o muebles.",null,null,null,{"$error":"#DIV/0!"},null,null,null,null,null,null,{"$error":"#DIV/0!"},null,{"$error":"#DIV/0!"},null,{"$error":"#DIV/0!"}]
["Artículo 22 -. Suscripciones.",null,null,null,{"$error":"#DIV/0!"},null,null,null,null,null,null,{"$error":"#DIV/0!"},null,{"$error":"#DIV/0!"},null,{"$error":"#DIV/0!"}]
["Artículo 23 -. Servicios públicos.",null,null,null,{"$error":"#DIV/0!"},null,null,null,null,null,null,{"$error":"#DIV/0!"},null,{"$error":"#DIV/0!"},null,{"$error":"#DIV/0!"}]

{"sheet":"0214-01 IDIPRON","index":56,"n_rows":27,"n_cols":16,"rows_kept":27,"cut":false,"hidden":false,"merged":[[5,10,5,11],[5,12,5,13],[5,14,5,15],[1,1,1,4],[3,0,6,0],[3,1,6,1],[3,2,4,4],[3,5,3,9],[3,10,4,15],[4,5,6,5],[4,6,6,6],[4,7,5,9],[5,3,5,4]]}
["PLAN DE AUSTERIDAD EN EL GASTO 2025-2027"]
["Entidad"," "]
["Valores en Pesos Corrientes"]
["CONCEPTO\n(Decreto 062 de 2024)","Posiciones Presupuestales Asociadas\n(Funcionamiento e Inversión)","LÍNEA BASE",null,null,"PLAN DE AUSTERIDAD EN EL GASTO 2025-2027",null,null,null,null,"SEGUIMIENTO RESULTADOS PLAN DE AUSTERIDAD 2025-2027"]
[null,null,null,null,null,"ESTRATEGIAS\n2025-2027","ACCIONES\n2025-2027","META INDICADOR DE AUSTERIDAD"]
[null,null,"AÑO 2023","AÑO 2024",null,null,null,null,null,null,"AÑO 2025",null,"AÑO 2026",null,"AÑO 2027"]
[null,null,"Valor EJECUTADO\na 31/12/2023","Valor EJECUTADO\na 31/12/2024","Resultado\nIndicador Austeridad",null,null,"AÑO 2025","AÑO 2026","AÑO 2027","Valor EJECUTADO\na 31/12/2025","Resultado\nIndicador Austeridad","Valor EJECUTADO\na 31/12/2026","Resultado\nIndicador Austeridad","Valor EJECUTADO\na 31/12/2027","Resultado\nIndicador Austeridad"]
["Servicios de personal"]
["Artículo 6°.- Reducción del gasto en CPS profesionales y de apoyo a la gestión. ","N.A.  \nSe registran totales. Corresponde con lo reportado en SIDEAP y SIVICOF",null,null,{"$f":"1-(D9/C9)","v":{"$error":"#DIV/0!"}},null,null,null,null,null,null,{"$f":"1-(K9/D9)","v":{"$error":"#DIV/0!"}},null,{"$f":"1-(M9/K9)","v":{"$error":"#DIV/0!"}},null,{"$f":"1-(O9/M9)","v":{"$error":"#DIV/0!"}}]
["Artículo 7°.- Horas extras, dominicales y festivos. ",null,null,null,{"$error":"#DIV/0!"},null,null,null,null,null,null,{"$f":"1-(K10/D10)","v":{"$error":"#DIV/0!"}},null,{"$f":"1-(M10/K10)","v":{"$error":"#DIV/0!"}},null,{"$error":"#DIV/0!"}]
["Artículo 8°.- Viáticos y gastos de viaje.",null,null,null,{"$error":"#DIV/0!"},null,null,null,null,null,null,{"$error":"#DIV/0!"},null,{"$error":"#DIV/0!"},null,{"$error":"#DIV/0!"}]
["Artículo 9°.- Compensación por vacaciones.",null,null,null,{"$error":"#DIV/0!"},null,null,null,null,null,null,{"$error":"#DIV/0!"},null,{"$error":"#DIV/0!"},null,{"$error":"#DIV/0!"}]
["Artículo 10°.- Bono navideño.",null,null,null,{"$error":"#DIV/0!"},null,null,null,null,null,null,{"$error":"#DIV/0!"},null,{"$error":"#DIV/0!"},null,{"$error":"#DIV/0!"}]
["Artículo 11 -. Capacitación.",null,null,null,{"$error":"#DIV/0!"},null,null,null,null,null,null,{"$error":"#DIV/0!"},null,{"$error":"#DIV/0!"},null,{"$error":"#DIV/0!"}]
["Artículo 12 -. Bienestar.",null,null,null,{"$error":"#DIV/0!"},null,null,null,null,null,null,{"$error":"#DIV/0!"},null,{"$error":"#DIV/0!"},null,{"$error":"#DIV/0!"}]
["Artículo 13 -. Eventos y conmemoraciones.",null,null,null,{"$error":"#DIV/0!"},null,null,null,null,null,null,{"$error":"#DIV/0!"},null,{"$error":"#DIV/0!"},null,{"$error":"#DIV/0!"}]
["Artículo 14 -. Fondos educativos.",null,null,null,{"$error":"#DIV/0!"},null,null,null,null,null,null,{"$error":"#DIV/0!"},null,{"$error":"#DIV/0!"},null,{"$error":"#DIV/0!"}]
["Servicios Administrativos"]
["Artículo 15. Telefonía.",null,null,null,{"$f":"1-(D19/C19)","v":{"$error":"#DIV/0!"}},null,null,null,null,null,null,{"$error":"#DIV/0!"},null,{"$error":"#DIV/0!"},null,{"$error":"#DIV/0!"}]
["Artículo 16 -. Vehículos oficiales.",null,null,null,{"$error":"#DIV/0!"},null,null,null,null,null,null,{"$error":"#DIV/0!"},null,{"$error":"#DIV/0!"},null,{"$error":"#DIV/0!"}]
["Artículo 17 -. Adquisición de vehículos y maquinaria.",null,null,null,{"$error":"#DIV/0!"},null,null,null,null,null,null,{"$error":"#DIV/0!"},null,{"$error":"#DIV/0!"},null,{"$error":"#DIV/0!"}]
["Artículo 18 -. Fotocopiado, multicopiado e impresión.",null,null,null,{"$error":"#DIV/0!"},null,null,null,null,null,null,{"$error":"#DIV/0!"},null,{"$error":"#DIV/0!"},null,{"$error":"#DIV/0!"}]
["Artículo 19 -. Publicidad distrital.",null,null,null,{"$error":"#DIV/0!"},null,null,null,null,null,null,{"$error":"#DIV/0!"},null,{"$error":"#DIV/0!"},null,{"$error":"#DIV/0!"}]
["Artículo 20 -. Cajas menores.",null,null,null,{"$error":"#DIV/0!"},null,null,null,null,null,null,{"$error":"#DIV/0!"},null,{"$error":"#DIV/0!"},null,{"$error":"#DIV/0!"}]
["Artículo 21 -. Mantenimiento o reparación de bienes inmuebles o muebles.",null,null,null,{"$error":"#DIV/0!"},null,null,null,null,null,null,{"$error":"#DIV/0!"},null,{"$error":"#DIV/0!"},null,{"$error":"#DIV/0!"}]
["Artículo 22 -. Suscripciones.",null,null,null,{"$error":"#DIV/0!"},null,null,null,null,null,null,{"$error":"#DIV/0!"},null,{"$error":"#DIV/0!"},null,{"$error":"#DIV/0!"}]
["Artículo 23 -. Servicios públicos.",null,null,null,{"$error":"#DIV/0!"},null,null,null,null,null,null,{"$error":"#DIV/0!"},null,{"$error":"#DIV/0!"},null,{"$error":"#DIV/0!"}]

{"sheet":"0215-01 FUGA","index":57,"n_rows":27,"n_cols":16,"rows_kept":27,"cut":false,"hidden":false,"merged":[[5,10,5,11],[5,12,5,13],[5,14,5,15],[1,1,1,4],[3,0,6,0],[3,1,6,1],[3,2,4,4],[3,5,3,9],[3,10,4,15],[4,5,6,5],[4,6,6,6],[4,7,5,9],[5,3,5,4]]}
["PLAN DE AUSTERIDAD EN EL GASTO 2025-2027"]
["Entidad"," "]
["Valores en Pesos Corrientes"]
["CONCEPTO\n(Decreto 062 de 2024)","Posiciones Presupuestales Asociadas\n(Funcionamiento e Inversión)","LÍNEA BASE",null,null,"PLAN DE AUSTERIDAD EN EL GASTO 2025-2027",null,null,null,null,"SEGUIMIENTO RESULTADOS PLAN DE AUSTERIDAD 2025-2027"]
[null,null,null,null,null,"ESTRATEGIAS\n2025-2027","ACCIONES\n2025-2027","META INDICADOR DE AUSTERIDAD"]
[null,null,"AÑO 2023","AÑO 2024",null,null,null,null,null,null,"AÑO 2025",null,"AÑO 2026",null,"AÑO 2027"]
[null,null,"Valor EJECUTADO\na 31/12/2023","Valor EJECUTADO\na 31/12/2024","Resultado\nIndicador Austeridad",null,null,"AÑO 2025","AÑO 2026","AÑO 2027","Valor EJECUTADO\na 31/12/2025","Resultado\nIndicador Austeridad","Valor EJECUTADO\na 31/12/2026","Resultado\nIndicador Austeridad","Valor EJECUTADO\na 31/12/2027","Resultado\nIndicador Austeridad"]
["Servicios de personal"]
["Artículo 6°.- Reducción del gasto en CPS profesionales y de apoyo a la gestión. ","N.A.  \nSe registran totales. Corresponde con lo reportado en SIDEAP y SIVICOF",null,null,{"$f":"1-(D9/C9)","v":{"$error":"#DIV/0!"}},null,null,null,null,null,null,{"$f":"1-(K9/D9)","v":{"$error":"#DIV/0!"}},null,{"$f":"1-(M9/K9)","v":{"$error":"#DIV/0!"}},null,{"$f":"1-(O9/M9)","v":{"$error":"#DIV/0!"}}]
["Artículo 7°.- Horas extras, dominicales y festivos. ",null,null,null,{"$error":"#DIV/0!"},null,null,null,null,null,null,{"$f":"1-(K10/D10)","v":{"$error":"#DIV/0!"}},null,{"$f":"1-(M10/K10)","v":{"$error":"#DIV/0!"}},null,{"$error":"#DIV/0!"}]
["Artículo 8°.- Viáticos y gastos de viaje.",null,null,null,{"$error":"#DIV/0!"},null,null,null,null,null,null,{"$error":"#DIV/0!"},null,{"$error":"#DIV/0!"},null,{"$error":"#DIV/0!"}]
["Artículo 9°.- Compensación por vacaciones.",null,null,null,{"$error":"#DIV/0!"},null,null,null,null,null,null,{"$error":"#DIV/0!"},null,{"$error":"#DIV/0!"},null,{"$error":"#DIV/0!"}]
["Artículo 10°.- Bono navideño.",null,null,null,{"$error":"#DIV/0!"},null,null,null,null,null,null,{"$error":"#DIV/0!"},null,{"$error":"#DIV/0!"},null,{"$error":"#DIV/0!"}]
["Artículo 11 -. Capacitación.",null,null,null,{"$error":"#DIV/0!"},null,null,null,null,null,null,{"$error":"#DIV/0!"},null,{"$error":"#DIV/0!"},null,{"$error":"#DIV/0!"}]
["Artículo 12 -. Bienestar.",null,null,null,{"$error":"#DIV/0!"},null,null,null,null,null,null,{"$error":"#DIV/0!"},null,{"$error":"#DIV/0!"},null,{"$error":"#DIV/0!"}]
["Artículo 13 -. Eventos y conmemoraciones.",null,null,null,{"$error":"#DIV/0!"},null,null,null,null,null,null,{"$error":"#DIV/0!"},null,{"$error":"#DIV/0!"},null,{"$error":"#DIV/0!"}]
["Artículo 14 -. Fondos educativos.",null,null,null,{"$error":"#DIV/0!"},null,null,null,null,null,null,{"$error":"#DIV/0!"},null,{"$error":"#DIV/0!"},null,{"$error":"#DIV/0!"}]
["Servicios Administrativos"]
["Artículo 15. Telefonía.",null,null,null,{"$f":"1-(D19/C19)","v":{"$error":"#DIV/0!"}},null,null,null,null,null,null,{"$error":"#DIV/0!"},null,{"$error":"#DIV/0!"},null,{"$error":"#DIV/0!"}]
["Artículo 16 -. Vehículos oficiales.",null,null,null,{"$error":"#DIV/0!"},null,null,null,null,null,null,{"$error":"#DIV/0!"},null,{"$error":"#DIV/0!"},null,{"$error":"#DIV/0!"}]
["Artículo 17 -. Adquisición de vehículos y maquinaria.",null,null,null,{"$error":"#DIV/0!"},null,null,null,null,null,null,{"$error":"#DIV/0!"},null,{"$error":"#DIV/0!"},null,{"$error":"#DIV/0!"}]
["Artículo 18 -. Fotocopiado, multicopiado e impresión.",null,null,null,{"$error":"#DIV/0!"},null,null,null,null,null,null,{"$error":"#DIV/0!"},null,{"$error":"#DIV/0!"},null,{"$error":"#DIV/0!"}]
["Artículo 19 -. Publicidad distrital.",null,null,null,{"$error":"#DIV/0!"},null,null,null,null,null,null,{"$error":"#DIV/0!"},null,{"$error":"#DIV/0!"},null,{"$error":"#DIV/0!"}]
["Artículo 20 -. Cajas menores.",null,null,null,{"$error":"#DIV/0!"},null,null,null,null,null,null,{"$error":"#DIV/0!"},null,{"$error":"#DIV/0!"},null,{"$error":"#DIV/0!"}]
["Artículo 21 -. Mantenimiento o reparación de bienes inmuebles o muebles.",null,null,null,{"$error":"#DIV/0!"},null,null,null,null,null,null,{"$error":"#DIV/0!"},null,{"$error":"#DIV/0!"},null,{"$error":"#DIV/0!"}]
["Artículo 22 -. Suscripciones.",null,null,null,{"$error":"#DIV/0!"},null,null,null,null,null,null,{"$error":"#DIV/0!"},null,{"$error":"#DIV/0!"},null,{"$error":"#DIV/0!"}]
["Artículo 23 -. Servicios públicos.",null,null,null,{"$error":"#DIV/0!"},null,null,null,null,null,null,{"$error":"#DIV/0!"},null,{"$error":"#DIV/0!"},null,{"$error":"#DIV/0!"}]

{"sheet":"0216-01 OFB","index":58,"n_rows":27,"n_cols":16,"rows_kept":27,"cut":false,"hidden":false,"merged":[[5,10,5,11],[5,12,5,13],[5,14,5,15],[1,1,1,4],[3,0,6,0],[3,1,6,1],[3,2,4,4],[3,5,3,9],[3,10,4,15],[4,5,6,5],[4,6,6,6],[4,7,5,9],[5,3,5,4]]}
["PLAN DE AUSTERIDAD EN EL GASTO 2025-2027"]
["Entidad"," "]
["Valores en Pesos Corrientes"]
["CONCEPTO\n(Decreto 062 de 2024)","Posiciones Presupuestales Asociadas\n(Funcionamiento e Inversión)","LÍNEA BASE",null,null,"PLAN DE AUSTERIDAD EN EL GASTO 2025-2027",null,null,null,null,"SEGUIMIENTO RESULTADOS PLAN DE AUSTERIDAD 2025-2027"]
[null,null,null,null,null,"ESTRATEGIAS\n2025-2027","ACCIONES\n2025-2027","META INDICADOR DE AUSTERIDAD"]
[null,null,"AÑO 2023","AÑO 2024",null,null,null,null,null,null,"AÑO 2025",null,"AÑO 2026",null,"AÑO 2027"]
[null,null,"Valor EJECUTADO\na 31/12/2023","Valor EJECUTADO\na 31/12/2024","Resultado\nIndicador Austeridad",null,null,"AÑO 2025","AÑO 2026","AÑO 2027","Valor EJECUTADO\na 31/12/2025","Resultado\nIndicador Austeridad","Valor EJECUTADO\na 31/12/2026","Resultado\nIndicador Austeridad","Valor EJECUTADO\na 31/12/2027","Resultado\nIndicador Austeridad"]
["Servicios de personal"]
["Artículo 6°.- Reducción del gasto en CPS profesionales y de apoyo a la gestión. ","O21202020070272111      Servicios de alquiler o arrendamiento con o sin opción de compra\nO21202020090393193      Servicios fisioterapéuticos\nO21202020080282199      Otros servicios jurídicos n.c.p.\nO21202020080383132      Servicios de soporte en tecnologías de la informac\nO23011601140000007663  Formación Musical Vamos a la Filarmónica\nO23011601200000007572  Acciones para alcanzar una sede para La orquesta\nO23011601210000007691  Bogotá Ciudad Filarmónica\nO23011601210000007693  Implementación del proyecto de estímulos de la OFB\nO23011605560000007697  Fortalecimiento de la capacidad institucional para la OFB",9683410702,6588102373,{"$f":"1-(D9/C9)","v":0.31965062974770853},"La entidad contará con el personal estrictamente necesario para garantizar el cumplimiento de sus objetivos y el mantenimiento de su misión, sin comprometer la calidad ni la eficiencia de sus operaciones.","La OFB  realizará una evaluación detallada de las necesidades de la entidad, priorizando aquellos contratos de prestación de servicios  y apoyo a la gestión esenciales, adicionalmente ajustando los plazos de ejecución.\nSe mantiene anualmente el ahorro con el incremento del IPC estimado",-5.1999999999999998E-2,-3.2300000000000002E-2,-0.03,null,{"$f":"1-(K9/D9)","v":1},null,{"$f":"1-(M9/K9)","v":{"$error":"#DIV/0!"}},null,{"$f":"1-(O9/M9)","v":{"$error":"#DIV/0!"}}]
["Artículo 7°.- Horas extras, dominicales y festivos. ","O211010100102           Horas extras, dominicales, festivos y recargos",30313848,34113876,-0.12535617385163378,"Seran reconicidas las horas extras a funcionarios de los niveles técnico y asistencial (operarios, secretarias, auxiliares), de conformidad con la normatividad vigente y por necesidades del servicio, garantizando el cumplimiento de los objetivos misionales. ","La OFB  realizará una evaluación detallada de las necesidades de la entidad en cuento a las horas extra del personal tecnico y asistencial, atendiendo los conciertos programados teniendo en cuenta que la mayoria de estos son en horarios nocturnos y fines de semana. ",-5.1999999999999998E-2,-3.2300000000000002E-2,-0.03,null,{"$f":"1-(K10/D10)","v":1},null,{"$f":"1-(M10/K10)","v":{"$error":"#DIV/0!"}},null,{"$error":"#DIV/0!"}]
["Artículo 8°.- Viáticos y gastos de viaje.","N/A",0,0,{"$error":"#DIV/0!"}," Los eventos fuera del Distrito capital seran financiadas por invitaciones de los organizadores y gestión de la Dirección General asi no incurrir en gastos al interior de nuestro presupuesto mediante este rubro. "," Los eventos fuera del Distrito capital seran financiadas por invitaciones de los organizadores y gestión de la Dirección General asi no incurrir en gastos al interior de nuestro presupuesto mediante este rubro. ",-5.1999999999999998E-2,-3.2300000000000002E-2,-0.03,null,{"$error":"#DIV/0!"},null,{"$error":"#DIV/0!"},null,{"$error":"#DIV/0!"}]
["Artículo 9°.- Compensación por vacaciones.","O211010300102           Indemnización por vacaciones",34347795,120780941,-2.5164103256118771,"La entidad fomentará la programación y disfrute oportuno de las vacaciones en el periodo de la vigencia para ser pagadas acorde sin ser acumuladas ni interrumpidas."," Difundir sobre la toma de vacaciones en el periodo establecido para que estas no se acumulen ni se han interrumpidas. ",-5.1999999999999998E-2,-3.2300000000000002E-2,-0.03,null,1,null,{"$error":"#DIV/0!"},null,{"$error":"#DIV/0!"}]
["Artículo 10°.- Bono navideño.","O21202020090191191      Servicios administrativos relacionados con los trabajadores",9744000,11440000,-0.17405582922824303,"La entidad continuará implementando su plan de bienestar, otorgando un bono navideño por cada hijo(a) de los funcionarios que cumpla con las siguientes condiciones:\n-Menores de 13 años.\n-Menores de 18 años en condición de discapacidad"," La entidad continuará implementando su plan de bienestar, otorgando un bono navideño por cada hijo(a) de los funcionarios que cumpla con las siguientes condiciones:\n-Menores de 13 años.\n-Menores de 18 años en condición de discapacidad",-5.1999999999999998E-2,-3.2300000000000002E-2,-0.03,null,1,null,{"$error":"#DIV/0!"},null,{"$error":"#DIV/0!"}]
["Artículo 11 -. Capacitación.","O21202020090292913      Servicios de educación para la formación y el trabajo",3423651,2328750,0.31980508527300244,"Optimizar los recursos destinados a capacitaciones mediante la implementación del Plan Institucional de Capacitación (PIC), priorizando el uso de herramientas virtuales y la gestión de talleres presenciales únicamente cuando sean estratégicamente necesarios y financiados mediante alianzas o invitaciones externas gestionadas por el área correspondiente.","Continuar con la programación anual de capacitaciones basadas en necesidades prioritarias, favoreciendo la modalidad virtual para reducir costos, y gestionar alianzas estratégicas con entidades externas para acceder a talleres presenciales sin incurrir en gastos adicionales.",-5.1999999999999998E-2,-3.2300000000000002E-2,-0.03,null,1,null,{"$error":"#DIV/0!"},null,{"$error":"#DIV/0!"}]
["Artículo 12 -. Bienestar.","O21202020090191191      Servicios administrativos relacionados con los trajadores\nO21202020090696990      Otros servicios de diversión y entretenimiento n.c",143420256,170671250,-0.19000798604068869,"Optimizar los recursos destinados al Plan de Bienestar sin desmejorar las condiciones de los empleados. ","Optimizar los recursos destinados al Plan de Bienestar sin desmejorar las condiciones de los empleados. ",-5.1999999999999998E-2,-3.2300000000000002E-2,-0.03,null,1,null,{"$error":"#DIV/0!"},null,{"$error":"#DIV/0!"}]
["Artículo 13 -. Eventos y conmemoraciones.","N/A",0," ",{"$error":"#VALUE!"},"La entidad no destina recursos para eventos y conmemoraciones","N/A",-5.1999999999999998E-2,-3.2300000000000002E-2,-0.03,null,{"$error":"#VALUE!"},null,{"$error":"#DIV/0!"},null,{"$error":"#DIV/0!"}]
["Artículo 14 -. Fondos educativos.","O21202020090292920      Servicios de apoyo educativo",26729528,0,1,"La entidad no entregará incentivos de apoyo educativo, toda vez que estas ayudas se administran únicamente a través del FRADEC en las entidades del Distrito.","Difundir y capacitar a los funcionarios sobre los beneficios con el Fondo Educativo Fradec. ",-5.1999999999999998E-2,-3.2300000000000002E-2,-0.03,null,{"$error":"#DIV/0!"},null,{"$error":"#DIV/0!"},null,{"$error":"#DIV/0!"}]
["Servicios Administrativos"," "," "," ",null," "," "," "," "," "]
["Artículo 15. Telefonía.","O21202020080484120      Servicios de telefonía fija (acceso)\nO23011601210000007586  Mantenimiento de los equipamientos culturales",68375470,74791546,{"$f":"1-(D19/C19)","v":-9.383593268170598E-2},"La entidad no adquiere ni proyecta adquirir planes de celular para servidores públicos. Se han implementado controles para llamadas internacionales, nacionales y a celulares, permitiéndolas solo para asuntos misionales desde extensiones asignadas. Además, en las cinco sedes principales se utilizan comunicaciones unificadas con tecnología VOZ/IP, centralizando y optimizando las extensiones en un único sistema."," -Mantener la política de no adquirir planes de celular para servidores públicos.\n-Controlar y monitorear las llamadas internacionales, nacionales y a celulares, autorizándolas únicamente para asuntos misionales.\n-Garantizar el uso eficiente del sistema de comunicaciones unificadas VOZ/IP en las cinco sedes principales.",-5.1999999999999998E-2,-3.2300000000000002E-2,-0.03,null,1,null,{"$error":"#DIV/0!"},null,{"$error":"#DIV/0!"}]
["Artículo 16 -. Vehículos oficiales.","O2120202008078714102    Servicio de mantenimiento y reparación de vehículo\nO2120201003033331101    Gasolina motor corriente\n",65383873,61019100,6.6756109721429313E-2," Optimizar el uso de los tres vehículos institucionales mediante controles estrictos de desplazamientos, consumo de combustible y mantenimiento preventivo, priorizando su asignación para asuntos administrativos y misionales esenciales."," - Controlar los desplazamientos mediante planillas y monitoreo del consumo de combustible con chips asociados al proveedor.\n - Limitar el consumo de combustible estrictamente a lo necesario, ajustándose al presupuesto aprobado.\n - Realizar mantenimientos preventivos periódicos para garantizar el óptimo estado de los vehículos y evitar costos elevados por daños mayores.\n - Priorizar el uso de cada vehículo según su asignación funcional y necesidades misionales.",-5.1999999999999998E-2,-3.2300000000000002E-2,-0.03,null,1,null,{"$error":"#DIV/0!"},null,{"$error":"#DIV/0!"}]
["Artículo 17 -. Adquisición de vehículos y maquinaria.",0,0," ",{"$error":"#VALUE!"},"La entidad mantiene la política de no destinar recursos para la adquisición de vehículos y maquinaria, priorizando el uso eficiente y sostenible de los bienes existentes."," N/A",-5.1999999999999998E-2,-3.2300000000000002E-2,-0.03,null,{"$error":"#VALUE!"},null,{"$error":"#DIV/0!"},null,{"$error":"#DIV/0!"}]
["Artículo 18 -. Fotocopiado, multicopiado e impresión.","O23011601210000007691  Bogotá Ciudad Filarmónica\nO23011601140000007663  Formación Musical Vamos a la Filarmónica",21922972,24700000,-0.1266720588796082," Optimizar los recursos destinados al servicio de fotocopiado e impresión mediante el uso exclusivo de equipos y consumibles para actividades esenciales, priorizando la sostenibilidad y la reducción del consumo de papel, tinta y otros materiales.","  - Priorizar el uso de impresoras con dúplex para reducir el consumo de papel, utilizando ambas caras de cada hoja.\n - Limitar el uso de la impresora a color a trabajos de arte final de la Oficina Asesora de Relacionamiento y Comunicaciones.\n - Promover la revisión y circulación de documentos a través de medios electrónicos para disminuir la impresión innecesaria.\n - Utilizar papel reciclado en todos los procesos de impresión y fotocopiado.",-5.1999999999999998E-2,-3.2300000000000002E-2,-0.03,null,1,null,{"$error":"#DIV/0!"},null,{"$error":"#DIV/0!"}]
["Artículo 19 -. Publicidad distrital.","N/A",0,0,{"$error":"#DIV/0!"}," La Orquesta mantiene la política de austeridad en no realizar contratos para publicidad o propaganda.","N/A",-5.1999999999999998E-2,-3.2300000000000002E-2,-0.03,null,{"$error":"#DIV/0!"},null,{"$error":"#DIV/0!"},null,{"$error":"#DIV/0!"}]
["Artículo 20 -. Cajas menores.","O2120201004054516099 Máquinas y material de oficina n.c.p.\nO2120201004064693999 Accesorios eléctricos n.c.p.\nO21202020080282130 Servicios de documentación y certificación jurídica\nO21202020060464112 Servicios de transporte terrestre local regular de pasajeros\nO2120202008098912197 Servicios de impresión litográfica n.c.p.\nO21202020080585951 Servicios de copia y reproducción\nO2120202008078714102 Servicio de mantenimiento y reparación de vehículos automóviles\nO2120202008078715999 Servicio de mantenimiento y reparación de otros equipos n.c.p.",8694470,5976429,0.31261721531042141,"  Garantizar el uso eficiente del fondo de caja menor, limitándolo exclusivamente a gastos imprevistos, urgentes, imprescindibles e inaplazables, de acuerdo con la reglamentación vigente, y fortaleciendo las medidas de austeridad.","\nContinuar con las medidas de austeridad para reducir el monto total ejecutado en cada vigencia.\n",-5.1999999999999998E-2,-3.2300000000000002E-2,-0.03,null,1,null,{"$error":"#DIV/0!"},null,{"$error":"#DIV/0!"}]
["Artículo 21 -. Mantenimiento o reparación de bienes inmuebles o muebles.","O2120202008078711001    Servicio de mantenimiento y reparación de producto\nO2120202008078711002    Servicio de mantenimiento y reparación de depósito\nO2120202008078715202    Servicio de mantenimiento y reparación de motores\nO2120202008078715999    Servicio de mantenimiento y reparación de otros equipos",14769084,4313038,0.70796848335347007," Optimizar los recursos destinados al mantenimiento de extintores, motobombas, dataloggers y UPS mediante una planificación preventiva y priorización de intervenciones esenciales, garantizando el funcionamiento eficiente y la seguridad operativa."," - Priorizar el mantenimiento de equipos críticos según su importancia para la seguridad y operación de la entidad.\n",-5.1999999999999998E-2,-3.2300000000000002E-2,-0.03,null,1,null,{"$error":"#DIV/0!"},null,{"$error":"#DIV/0!"}]
["Artículo 22 -. Suscripciones.","N/A "," "," ",{"$error":"#VALUE!"},"La Orquesta mantiene la política de austeridad al no realizar suscripciones de ningún tipo, priorizando la asignación de recursos a actividades misionales.","N/A",-5.1999999999999998E-2,-3.2300000000000002E-2,-0.03,null,{"$error":"#VALUE!"},null,{"$error":"#DIV/0!"},null,{"$error":"#DIV/0!"}]
["Artículo 23 -. Servicios públicos.","O23011601210000007586  Mantenimiento de los equipamientos culturales\nO21202020080686330 Servicios de distribución de agua por tubería (a comisión o por contrato)\nO21202020090494239 Servicios generales de recolección de otros desechos\nO21202020080686312 Servicios de distribución de electricidad (a comisión o por contrato)",106563663,100354250,5.8269515378802206E-2," Gestionar eficientemente los recursos destinados a servicios públicos, minimizando el impacto de los incrementos tarifarios mediante la optimización del consumo","  - Monitorear y analizar periódicamente el consumo de servicios públicos para identificar oportunidades de ahorro.\n\n - Promover campañas internas para fomentar el uso responsable de energía, agua y otros servicios públicos.\n",-5.1999999999999998E-2,-3.2300000000000002E-2,-0.03,null,1,null,{"$error":"#DIV/0!"},null,{"$error":"#DIV/0!"}]

{"sheet":"0218-01 JB","index":59,"n_rows":27,"n_cols":16,"rows_kept":27,"cut":false,"hidden":false,"merged":[[5,10,5,11],[5,12,5,13],[5,14,5,15],[1,1,1,4],[3,0,6,0],[3,1,6,1],[3,2,4,4],[3,5,3,9],[3,10,4,15],[4,5,6,5],[4,6,6,6],[4,7,5,9],[5,3,5,4]]}
["PLAN DE AUSTERIDAD EN EL GASTO 2025-2027"]
["Entidad"," "]
["Valores en Pesos Corrientes"]
["CONCEPTO\n(Decreto 062 de 2024)","Posiciones Presupuestales Asociadas\n(Funcionamiento e Inversión)","LÍNEA BASE",null,null,"PLAN DE AUSTERIDAD EN EL GASTO 2025-2027",null,null,null,null,"SEGUIMIENTO RESULTADOS PLAN DE AUSTERIDAD 2025-2027"]
[null,null,null,null,null,"ESTRATEGIAS\n2025-2027","ACCIONES\n2025-2027","META INDICADOR DE AUSTERIDAD"]
[null,null,"AÑO 2023","AÑO 2024",null,null,null,null,null,null,"AÑO 2025",null,"AÑO 2026",null,"AÑO 2027"]
[null,null,"Valor EJECUTADO\na 31/12/2023","Valor EJECUTADO\na 31/12/2024","Resultado\nIndicador Austeridad",null,null,"AÑO 2025","AÑO 2026","AÑO 2027","Valor EJECUTADO\na 31/12/2025","Resultado\nIndicador Austeridad","Valor EJECUTADO\na 31/12/2026","Resultado\nIndicador Austeridad","Valor EJECUTADO\na 31/12/2027","Resultado\nIndicador Austeridad"]
["Servicios de personal"]
["Artículo 6°.- Reducción del gasto en CPS profesionales y de apoyo a la gestión. ","N.A.  \nSe registran totales. Corresponde con lo reportado en SIDEAP y SIVICOF",null,null,{"$f":"1-(D9/C9)","v":{"$error":"#DIV/0!"}},null,null,null,null,null,null,{"$f":"1-(K9/D9)","v":{"$error":"#DIV/0!"}},null,{"$f":"1-(M9/K9)","v":{"$error":"#DIV/0!"}},null,{"$f":"1-(O9/M9)","v":{"$error":"#DIV/0!"}}]
["Artículo 7°.- Horas extras, dominicales y festivos. ",null,null,null,{"$error":"#DIV/0!"},null,null,null,null,null,null,{"$f":"1-(K10/D10)","v":{"$error":"#DIV/0!"}},null,{"$f":"1-(M10/K10)","v":{"$error":"#DIV/0!"}},null,{"$error":"#DIV/0!"}]
["Artículo 8°.- Viáticos y gastos de viaje.",null,null,null,{"$error":"#DIV/0!"},null,null,null,null,null,null,{"$error":"#DIV/0!"},null,{"$error":"#DIV/0!"},null,{"$error":"#DIV/0!"}]
["Artículo 9°.- Compensación por vacaciones.",null,null,null,{"$error":"#DIV/0!"},null,null,null,null,null,null,{"$error":"#DIV/0!"},null,{"$error":"#DIV/0!"},null,{"$error":"#DIV/0!"}]
["Artículo 10°.- Bono navideño.",null,null,null,{"$error":"#DIV/0!"},null,null,null,null,null,null,{"$error":"#DIV/0!"},null,{"$error":"#DIV/0!"},null,{"$error":"#DIV/0!"}]
["Artículo 11 -. Capacitación.",null,null,null,{"$error":"#DIV/0!"},null,null,null,null,null,null,{"$error":"#DIV/0!"},null,{"$error":"#DIV/0!"},null,{"$error":"#DIV/0!"}]
["Artículo 12 -. Bienestar.",null,null,null,{"$error":"#DIV/0!"},null,null,null,null,null,null,{"$error":"#DIV/0!"},null,{"$error":"#DIV/0!"},null,{"$error":"#DIV/0!"}]
["Artículo 13 -. Eventos y conmemoraciones.",null,null,null,{"$error":"#DIV/0!"},null,null,null,null,null,null,{"$error":"#DIV/0!"},null,{"$error":"#DIV/0!"},null,{"$error":"#DIV/0!"}]
["Artículo 14 -. Fondos educativos.",null,null,null,{"$error":"#DIV/0!"},null,null,null,null,null,null,{"$error":"#DIV/0!"},null,{"$error":"#DIV/0!"},null,{"$error":"#DIV/0!"}]
["Servicios Administrativos"]
["Artículo 15. Telefonía.",null,null,null,{"$f":"1-(D19/C19)","v":{"$error":"#DIV/0!"}},null,null,null,null,null,null,{"$error":"#DIV/0!"},null,{"$error":"#DIV/0!"},null,{"$error":"#DIV/0!"}]
["Artículo 16 -. Vehículos oficiales.",null,null,null,{"$error":"#DIV/0!"},null,null,null,null,null,null,{"$error":"#DIV/0!"},null,{"$error":"#DIV/0!"},null,{"$error":"#DIV/0!"}]
["Artículo 17 -. Adquisición de vehículos y maquinaria.",null,null,null,{"$error":"#DIV/0!"},null,null,null,null,null,null,{"$error":"#DIV/0!"},null,{"$error":"#DIV/0!"},null,{"$error":"#DIV/0!"}]
["Artículo 18 -. Fotocopiado, multicopiado e impresión.",null,null,null,{"$error":"#DIV/0!"},null,null,null,null,null,null,{"$error":"#DIV/0!"},null,{"$error":"#DIV/0!"},null,{"$error":"#DIV/0!"}]
["Artículo 19 -. Publicidad distrital.",null,null,null,{"$error":"#DIV/0!"},null,null,null,null,null,null,{"$error":"#DIV/0!"},null,{"$error":"#DIV/0!"},null,{"$error":"#DIV/0!"}]
["Artículo 20 -. Cajas menores.",null,null,null,{"$error":"#DIV/0!"},null,null,null,null,null,null,{"$error":"#DIV/0!"},null,{"$error":"#DIV/0!"},null,{"$error":"#DIV/0!"}]
["Artículo 21 -. Mantenimiento o reparación de bienes inmuebles o muebles.",null,null,null,{"$error":"#DIV/0!"},null,null,null,null,null,null,{"$error":"#DIV/0!"},null,{"$error":"#DIV/0!"},null,{"$error":"#DIV/0!"}]
["Artículo 22 -. Suscripciones.",null,null,null,{"$error":"#DIV/0!"},null,null,null,null,null,null,{"$error":"#DIV/0!"},null,{"$error":"#DIV/0!"},null,{"$error":"#DIV/0!"}]
["Artículo 23 -. Servicios públicos.",null,null,null,{"$error":"#DIV/0!"},null,null,null,null,null,null,{"$error":"#DIV/0!"},null,{"$error":"#DIV/0!"},null,{"$error":"#DIV/0!"}]

{"sheet":"0219-01 IDEP","index":60,"n_rows":27,"n_cols":16,"rows_kept":27,"cut":false,"hidden":false,"merged":[[5,10,5,11],[5,12,5,13],[5,14,5,15],[1,1,1,4],[3,0,6,0],[3,1,6,1],[3,2,4,4],[3,5,3,9],[3,10,4,15],[4,5,6,5],[4,6,6,6],[4,7,5,9],[5,3,5,4]]}
["PLAN DE AUSTERIDAD EN EL GASTO 2025-2027"]
["Entidad"," "]
["Valores en Pesos Corrientes"]
["CONCEPTO\n(Decreto 062 de 2024)","Posiciones Presupuestales Asociadas\n(Funcionamiento e Inversión)","LÍNEA BASE",null,null,"PLAN DE AUSTERIDAD EN EL GASTO 2025-2027",null,null,null,null,"SEGUIMIENTO RESULTADOS PLAN DE AUSTERIDAD 2025-2027"]
[null,null,null,null,null,"ESTRATEGIAS\n2025-2027","ACCIONES\n2025-2027","META INDICADOR DE AUSTERIDAD"]
[null,null,"AÑO 2023","AÑO 2024",null,null,null,null,null,null,"AÑO 2025",null,"AÑO 2026",null,"AÑO 2027"]
[null,null,"Valor EJECUTADO\na 31/12/2023","Valor EJECUTADO\na 31/12/2024","Resultado\nIndicador Austeridad",null,null,"AÑO 2025","AÑO 2026","AÑO 2027","Valor EJECUTADO\na 31/12/2025","Resultado\nIndicador Austeridad","Valor EJECUTADO\na 31/12/2026","Resultado\nIndicador Austeridad","Valor EJECUTADO\na 31/12/2027","Resultado\nIndicador Austeridad"]
["Servicios de personal"]
["Artículo 6°.- Reducción del gasto en CPS profesionales y de apoyo a la gestión. ","N.A.  \nSe registran totales. Corresponde con lo reportado en SIDEAP y SIVICOF",null,null,{"$f":"1-(D9/C9)","v":{"$error":"#DIV/0!"}},null,null,null,null,null,null,{"$f":"1-(K9/D9)","v":{"$error":"#DIV/0!"}},null,{"$f":"1-(M9/K9)","v":{"$error":"#DIV/0!"}},null,{"$f":"1-(O9/M9)","v":{"$error":"#DIV/0!"}}]
["Artículo 7°.- Horas extras, dominicales y festivos. ",null,null,null,{"$error":"#DIV/0!"},null,null,null,null,null,null,{"$f":"1-(K10/D10)","v":{"$error":"#DIV/0!"}},null,{"$f":"1-(M10/K10)","v":{"$error":"#DIV/0!"}},null,{"$error":"#DIV/0!"}]
["Artículo 8°.- Viáticos y gastos de viaje.",null,null,null,{"$error":"#DIV/0!"},null,null,null,null,null,null,{"$error":"#DIV/0!"},null,{"$error":"#DIV/0!"},null,{"$error":"#DIV/0!"}]
["Artículo 9°.- Compensación por vacaciones.",null,null,null,{"$error":"#DIV/0!"},null,null,null,null,null,null,{"$error":"#DIV/0!"},null,{"$error":"#DIV/0!"},null,{"$error":"#DIV/0!"}]
["Artículo 10°.- Bono navideño.",null,null,null,{"$error":"#DIV/0!"},null,null,null,null,null,null,{"$error":"#DIV/0!"},null,{"$error":"#DIV/0!"},null,{"$error":"#DIV/0!"}]
["Artículo 11 -. Capacitación.",null,null,null,{"$error":"#DIV/0!"},null,null,null,null,null,null,{"$error":"#DIV/0!"},null,{"$error":"#DIV/0!"},null,{"$error":"#DIV/0!"}]
["Artículo 12 -. Bienestar.",null,null,null,{"$error":"#DIV/0!"},null,null,null,null,null,null,{"$error":"#DIV/0!"},null,{"$error":"#DIV/0!"},null,{"$error":"#DIV/0!"}]
["Artículo 13 -. Eventos y conmemoraciones.",null,null,null,{"$error":"#DIV/0!"},null,null,null,null,null,null,{"$error":"#DIV/0!"},null,{"$error":"#DIV/0!"},null,{"$error":"#DIV/0!"}]
["Artículo 14 -. Fondos educativos.",null,null,null,{"$error":"#DIV/0!"},null,null,null,null,null,null,{"$error":"#DIV/0!"},null,{"$error":"#DIV/0!"},null,{"$error":"#DIV/0!"}]
["Servicios Administrativos"]
["Artículo 15. Telefonía.",null,null,null,{"$f":"1-(D19/C19)","v":{"$error":"#DIV/0!"}},null,null,null,null,null,null,{"$error":"#DIV/0!"},null,{"$error":"#DIV/0!"},null,{"$error":"#DIV/0!"}]
["Artículo 16 -. Vehículos oficiales.",null,null,null,{"$error":"#DIV/0!"},null,null,null,null,null,null,{"$error":"#DIV/0!"},null,{"$error":"#DIV/0!"},null,{"$error":"#DIV/0!"}]
["Artículo 17 -. Adquisición de vehículos y maquinaria.",null,null,null,{"$error":"#DIV/0!"},null,null,null,null,null,null,{"$error":"#DIV/0!"},null,{"$error":"#DIV/0!"},null,{"$error":"#DIV/0!"}]
["Artículo 18 -. Fotocopiado, multicopiado e impresión.",null,null,null,{"$error":"#DIV/0!"},null,null,null,null,null,null,{"$error":"#DIV/0!"},null,{"$error":"#DIV/0!"},null,{"$error":"#DIV/0!"}]
["Artículo 19 -. Publicidad distrital.",null,null,null,{"$error":"#DIV/0!"},null,null,null,null,null,null,{"$error":"#DIV/0!"},null,{"$error":"#DIV/0!"},null,{"$error":"#DIV/0!"}]
["Artículo 20 -. Cajas menores.",null,null,null,{"$error":"#DIV/0!"},null,null,null,null,null,null,{"$error":"#DIV/0!"},null,{"$error":"#DIV/0!"},null,{"$error":"#DIV/0!"}]
["Artículo 21 -. Mantenimiento o reparación de bienes inmuebles o muebles.",null,null,null,{"$error":"#DIV/0!"},null,null,null,null,null,null,{"$error":"#DIV/0!"},null,{"$error":"#DIV/0!"},null,{"$error":"#DIV/0!"}]
["Artículo 22 -. Suscripciones.",null,null,null,{"$error":"#DIV/0!"},null,null,null,null,null,null,{"$error":"#DIV/0!"},null,{"$error":"#DIV/0!"},null,{"$error":"#DIV/0!"}]
["Artículo 23 -. Servicios públicos.",null,null,null,{"$error":"#DIV/0!"},null,null,null,null,null,null,{"$error":"#DIV/0!"},null,{"$error":"#DIV/0!"},null,{"$error":"#DIV/0!"}]

{"sheet":"0220-01 IDPAC","index":61,"n_rows":27,"n_cols":16,"rows_kept":27,"cut":false,"hidden":false,"merged":[[5,10,5,11],[5,12,5,13],[5,14,5,15],[1,1,1,4],[3,0,6,0],[3,1,6,1],[3,2,4,4],[3,5,3,9],[3,10,4,15],[4,5,6,5],[4,6,6,6],[4,7,5,9],[5,3,5,4]]}
["PLAN DE AUSTERIDAD EN EL GASTO 2025-2027"]
["Entidad"," "]
["Valores en Pesos Corrientes"]
["CONCEPTO\n(Decreto 062 de 2024)","Posiciones Presupuestales Asociadas\n(Funcionamiento e Inversión)","LÍNEA BASE",null,null,"PLAN DE AUSTERIDAD EN EL GASTO 2025-2027",null,null,null,null,"SEGUIMIENTO RESULTADOS PLAN DE AUSTERIDAD 2025-2027"]
[null,null,null,null,null,"ESTRATEGIAS\n2025-2027","ACCIONES\n2025-2027","META INDICADOR DE AUSTERIDAD"]
[null,null,"AÑO 2023","AÑO 2024",null,null,null,null,null,null,"AÑO 2025",null,"AÑO 2026",null,"AÑO 2027"]
[null,null,"Valor EJECUTADO\na 31/12/2023","Valor EJECUTADO\na 31/12/2024","Resultado\nIndicador Austeridad",null,null,"AÑO 2025","AÑO 2026","AÑO 2027","Valor EJECUTADO\na 31/12/2025","Resultado\nIndicador Austeridad","Valor EJECUTADO\na 31/12/2026","Resultado\nIndicador Austeridad","Valor EJECUTADO\na 31/12/2027","Resultado\nIndicador Austeridad"]
["Servicios de personal"]
["Artículo 6°.- Reducción del gasto en CPS profesionales y de apoyo a la gestión. ","N.A.  \nSe registran totales. Corresponde con lo reportado en SIDEAP y SIVICOF",null,null,{"$f":"1-(D9/C9)","v":{"$error":"#DIV/0!"}},null,null,null,null,null,null,{"$f":"1-(K9/D9)","v":{"$error":"#DIV/0!"}},null,{"$f":"1-(M9/K9)","v":{"$error":"#DIV/0!"}},null,{"$f":"1-(O9/M9)","v":{"$error":"#DIV/0!"}}]
["Artículo 7°.- Horas extras, dominicales y festivos. ",null,null,null,{"$error":"#DIV/0!"},null,null,null,null,null,null,{"$f":"1-(K10/D10)","v":{"$error":"#DIV/0!"}},null,{"$f":"1-(M10/K10)","v":{"$error":"#DIV/0!"}},null,{"$error":"#DIV/0!"}]
["Artículo 8°.- Viáticos y gastos de viaje.",null,null,null,{"$error":"#DIV/0!"},null,null,null,null,null,null,{"$error":"#DIV/0!"},null,{"$error":"#DIV/0!"},null,{"$error":"#DIV/0!"}]
["Artículo 9°.- Compensación por vacaciones.",null,null,null,{"$error":"#DIV/0!"},null,null,null,null,null,null,{"$error":"#DIV/0!"},null,{"$error":"#DIV/0!"},null,{"$error":"#DIV/0!"}]
["Artículo 10°.- Bono navideño.",null,null,null,{"$error":"#DIV/0!"},null,null,null,null,null,null,{"$error":"#DIV/0!"},null,{"$error":"#DIV/0!"},null,{"$error":"#DIV/0!"}]
["Artículo 11 -. Capacitación.",null,null,null,{"$error":"#DIV/0!"},null,null,null,null,null,null,{"$error":"#DIV/0!"},null,{"$error":"#DIV/0!"},null,{"$error":"#DIV/0!"}]
["Artículo 12 -. Bienestar.",null,null,null,{"$error":"#DIV/0!"},null,null,null,null,null,null,{"$error":"#DIV/0!"},null,{"$error":"#DIV/0!"},null,{"$error":"#DIV/0!"}]
["Artículo 13 -. Eventos y conmemoraciones.",null,null,null,{"$error":"#DIV/0!"},null,null,null,null,null,null,{"$error":"#DIV/0!"},null,{"$error":"#DIV/0!"},null,{"$error":"#DIV/0!"}]
["Artículo 14 -. Fondos educativos.",null,null,null,{"$error":"#DIV/0!"},null,null,null,null,null,null,{"$error":"#DIV/0!"},null,{"$error":"#DIV/0!"},null,{"$error":"#DIV/0!"}]
["Servicios Administrativos"]
["Artículo 15. Telefonía.",null,null,null,{"$f":"1-(D19/C19)","v":{"$error":"#DIV/0!"}},null,null,null,null,null,null,{"$error":"#DIV/0!"},null,{"$error":"#DIV/0!"},null,{"$error":"#DIV/0!"}]
["Artículo 16 -. Vehículos oficiales.",null,null,null,{"$error":"#DIV/0!"},null,null,null,null,null,null,{"$error":"#DIV/0!"},null,{"$error":"#DIV/0!"},null,{"$error":"#DIV/0!"}]
["Artículo 17 -. Adquisición de vehículos y maquinaria.",null,null,null,{"$error":"#DIV/0!"},null,null,null,null,null,null,{"$error":"#DIV/0!"},null,{"$error":"#DIV/0!"},null,{"$error":"#DIV/0!"}]
["Artículo 18 -. Fotocopiado, multicopiado e impresión.",null,null,null,{"$error":"#DIV/0!"},null,null,null,null,null,null,{"$error":"#DIV/0!"},null,{"$error":"#DIV/0!"},null,{"$error":"#DIV/0!"}]
["Artículo 19 -. Publicidad distrital.",null,null,null,{"$error":"#DIV/0!"},null,null,null,null,null,null,{"$error":"#DIV/0!"},null,{"$error":"#DIV/0!"},null,{"$error":"#DIV/0!"}]
["Artículo 20 -. Cajas menores.",null,null,null,{"$error":"#DIV/0!"},null,null,null,null,null,null,{"$error":"#DIV/0!"},null,{"$error":"#DIV/0!"},null,{"$error":"#DIV/0!"}]
["Artículo 21 -. Mantenimiento o reparación de bienes inmuebles o muebles.",null,null,null,{"$error":"#DIV/0!"},null,null,null,null,null,null,{"$error":"#DIV/0!"},null,{"$error":"#DIV/0!"},null,{"$error":"#DIV/0!"}]
["Artículo 22 -. Suscripciones.",null,null,null,{"$error":"#DIV/0!"},null,null,null,null,null,null,{"$error":"#DIV/0!"},null,{"$error":"#DIV/0!"},null,{"$error":"#DIV/0!"}]
["Artículo 23 -. Servicios públicos.",null,null,null,{"$error":"#DIV/0!"},null,null,null,null,null,null,{"$error":"#DIV/0!"},null,{"$error":"#DIV/0!"},null,{"$error":"#DIV/0!"}]

{"sheet":"0221-01 IDT","index":62,"n_rows":27,"n_cols":16,"rows_kept":27,"cut":false,"hidden":false,"merged":[[5,10,5,11],[5,12,5,13],[5,14,5,15],[1,1,1,4],[3,0,6,0],[3,1,6,1],[3,2,4,4],[3,5,3,9],[3,10,4,15],[4,5,6,5],[4,6,6,6],[4,7,5,9],[5,3,5,4]]}
["PLAN DE AUSTERIDAD EN EL GASTO 2025-2027"]
["Entidad"," "]
["Valores en Pesos Corrientes"]
["CONCEPTO\n(Decreto 062 de 2024)","Posiciones Presupuestales Asociadas\n(Funcionamiento e Inversión)","LÍNEA BASE",null,null,"PLAN DE AUSTERIDAD EN EL GASTO 2025-2027",null,null,null,null,"SEGUIMIENTO RESULTADOS PLAN DE AUSTERIDAD 2025-2027"]
[null,null,null,null,null,"ESTRATEGIAS\n2025-2027","ACCIONES\n2025-2027","META INDICADOR DE AUSTERIDAD"]
[null,null,"AÑO 2023","AÑO 2024",null,null,null,null,null,null,"AÑO 2025",null,"AÑO 2026",null,"AÑO 2027"]
[null,null,"Valor EJECUTADO\na 31/12/2023","Valor EJECUTADO\na 31/12/2024","Resultado\nIndicador Austeridad",null,null,"AÑO 2025","AÑO 2026","AÑO 2027","Valor EJECUTADO\na 31/12/2025","Resultado\nIndicador Austeridad","Valor EJECUTADO\na 31/12/2026","Resultado\nIndicador Austeridad","Valor EJECUTADO\na 31/12/2027","Resultado\nIndicador Austeridad"]
["Servicios de personal"]
["Artículo 6°.- Reducción del gasto en CPS profesionales y de apoyo a la gestión. ","N.A.  \nSe registran totales. Corresponde con lo reportado en SIDEAP y SIVICOF",null,null,{"$f":"1-(D9/C9)","v":{"$error":"#DIV/0!"}},null,null,null,null,null,null,{"$f":"1-(K9/D9)","v":{"$error":"#DIV/0!"}},null,{"$f":"1-(M9/K9)","v":{"$error":"#DIV/0!"}},null,{"$f":"1-(O9/M9)","v":{"$error":"#DIV/0!"}}]
["Artículo 7°.- Horas extras, dominicales y festivos. ",null,null,null,{"$error":"#DIV/0!"},null,null,null,null,null,null,{"$f":"1-(K10/D10)","v":{"$error":"#DIV/0!"}},null,{"$f":"1-(M10/K10)","v":{"$error":"#DIV/0!"}},null,{"$error":"#DIV/0!"}]
["Artículo 8°.- Viáticos y gastos de viaje.",null,null,null,{"$error":"#DIV/0!"},null,null,null,null,null,null,{"$error":"#DIV/0!"},null,{"$error":"#DIV/0!"},null,{"$error":"#DIV/0!"}]
["Artículo 9°.- Compensación por vacaciones.",null,null,null,{"$error":"#DIV/0!"},null,null,null,null,null,null,{"$error":"#DIV/0!"},null,{"$error":"#DIV/0!"},null,{"$error":"#DIV/0!"}]
["Artículo 10°.- Bono navideño.",null,null,null,{"$error":"#DIV/0!"},null,null,null,null,null,null,{"$error":"#DIV/0!"},null,{"$error":"#DIV/0!"},null,{"$error":"#DIV/0!"}]
["Artículo 11 -. Capacitación.",null,null,null,{"$error":"#DIV/0!"},null,null,null,null,null,null,{"$error":"#DIV/0!"},null,{"$error":"#DIV/0!"},null,{"$error":"#DIV/0!"}]
["Artículo 12 -. Bienestar.",null,null,null,{"$error":"#DIV/0!"},null,null,null,null,null,null,{"$error":"#DIV/0!"},null,{"$error":"#DIV/0!"},null,{"$error":"#DIV/0!"}]
["Artículo 13 -. Eventos y conmemoraciones.",null,null,null,{"$error":"#DIV/0!"},null,null,null,null,null,null,{"$error":"#DIV/0!"},null,{"$error":"#DIV/0!"},null,{"$error":"#DIV/0!"}]
["Artículo 14 -. Fondos educativos.",null,null,null,{"$error":"#DIV/0!"},null,null,null,null,null,null,{"$error":"#DIV/0!"},null,{"$error":"#DIV/0!"},null,{"$error":"#DIV/0!"}]
["Servicios Administrativos"]
["Artículo 15. Telefonía.",null,null,null,{"$f":"1-(D19/C19)","v":{"$error":"#DIV/0!"}},null,null,null,null,null,null,{"$error":"#DIV/0!"},null,{"$error":"#DIV/0!"},null,{"$error":"#DIV/0!"}]
["Artículo 16 -. Vehículos oficiales.",null,null,null,{"$error":"#DIV/0!"},null,null,null,null,null,null,{"$error":"#DIV/0!"},null,{"$error":"#DIV/0!"},null,{"$error":"#DIV/0!"}]
["Artículo 17 -. Adquisición de vehículos y maquinaria.",null,null,null,{"$error":"#DIV/0!"},null,null,null,null,null,null,{"$error":"#DIV/0!"},null,{"$error":"#DIV/0!"},null,{"$error":"#DIV/0!"}]
["Artículo 18 -. Fotocopiado, multicopiado e impresión.",null,null,null,{"$error":"#DIV/0!"},null,null,null,null,null,null,{"$error":"#DIV/0!"},null,{"$error":"#DIV/0!"},null,{"$error":"#DIV/0!"}]
["Artículo 19 -. Publicidad distrital.",null,null,null,{"$error":"#DIV/0!"},null,null,null,null,null,null,{"$error":"#DIV/0!"},null,{"$error":"#DIV/0!"},null,{"$error":"#DIV/0!"}]
["Artículo 20 -. Cajas menores.",null,null,null,{"$error":"#DIV/0!"},null,null,null,null,null,null,{"$error":"#DIV/0!"},null,{"$error":"#DIV/0!"},null,{"$error":"#DIV/0!"}]
["Artículo 21 -. Mantenimiento o reparación de bienes inmuebles o muebles.",null,null,null,{"$error":"#DIV/0!"},null,null,null,null,null,null,{"$error":"#DIV/0!"},null,{"$error":"#DIV/0!"},null,{"$error":"#DIV/0!"}]
["Artículo 22 -. Suscripciones.",null,null,null,{"$error":"#DIV/0!"},null,null,null,null,null,null,{"$error":"#DIV/0!"},null,{"$error":"#DIV/0!"},null,{"$error":"#DIV/0!"}]
["Artículo 23 -. Servicios públicos.",null,null,null,{"$error":"#DIV/0!"},null,null,null,null,null,null,{"$error":"#DIV/0!"},null,{"$error":"#DIV/0!"},null,{"$error":"#DIV/0!"}]

{"sheet":"0221-02 IDT","index":63,"n_rows":27,"n_cols":16,"rows_kept":27,"cut":false,"hidden":false,"merged":[[5,10,5,11],[5,12,5,13],[5,14,5,15],[1,1,1,4],[3,0,6,0],[3,1,6,1],[3,2,4,4],[3,5,3,9],[3,10,4,15],[4,5,6,5],[4,6,6,6],[4,7,5,9],[5,3,5,4]]}
["PLAN DE AUSTERIDAD EN EL GASTO 2025-2027"]
["Entidad"," "]
["Valores en Pesos Corrientes"]
["CONCEPTO\n(Decreto 062 de 2024)","Posiciones Presupuestales Asociadas\n(Funcionamiento e Inversión)","LÍNEA BASE",null,null,"PLAN DE AUSTERIDAD EN EL GASTO 2025-2027",null,null,null,null,"SEGUIMIENTO RESULTADOS PLAN DE AUSTERIDAD 2025-2027"]
[null,null,null,null,null,"ESTRATEGIAS\n2025-2027","ACCIONES\n2025-2027","META INDICADOR DE AUSTERIDAD"]
[null,null,"AÑO 2023","AÑO 2024",null,null,null,null,null,null,"AÑO 2025",null,"AÑO 2026",null,"AÑO 2027"]
[null,null,"Valor EJECUTADO\na 31/12/2023","Valor EJECUTADO\na 31/12/2024","Resultado\nIndicador Austeridad",null,null,"AÑO 2025","AÑO 2026","AÑO 2027","Valor EJECUTADO\na 31/12/2025","Resultado\nIndicador Austeridad","Valor EJECUTADO\na 31/12/2026","Resultado\nIndicador Austeridad","Valor EJECUTADO\na 31/12/2027","Resultado\nIndicador Austeridad"]
["Servicios de personal"]
["Artículo 6°.- Reducción del gasto en CPS profesionales y de apoyo a la gestión. ","N.A.  \nSe registran totales. Corresponde con lo reportado en SIDEAP y SIVICOF",null,null,{"$f":"1-(D9/C9)","v":{"$error":"#DIV/0!"}},null,null,null,null,null,null,{"$f":"1-(K9/D9)","v":{"$error":"#DIV/0!"}},null,{"$f":"1-(M9/K9)","v":{"$error":"#DIV/0!"}},null,{"$f":"1-(O9/M9)","v":{"$error":"#DIV/0!"}}]
["Artículo 7°.- Horas extras, dominicales y festivos. ",null,null,null,{"$error":"#DIV/0!"},null,null,null,null,null,null,{"$f":"1-(K10/D10)","v":{"$error":"#DIV/0!"}},null,{"$f":"1-(M10/K10)","v":{"$error":"#DIV/0!"}},null,{"$error":"#DIV/0!"}]
["Artículo 8°.- Viáticos y gastos de viaje.",null,null,null,{"$error":"#DIV/0!"},null,null,null,null,null,null,{"$error":"#DIV/0!"},null,{"$error":"#DIV/0!"},null,{"$error":"#DIV/0!"}]
["Artículo 9°.- Compensación por vacaciones.",null,null,null,{"$error":"#DIV/0!"},null,null,null,null,null,null,{"$error":"#DIV/0!"},null,{"$error":"#DIV/0!"},null,{"$error":"#DIV/0!"}]
["Artículo 10°.- Bono navideño.",null,null,null,{"$error":"#DIV/0!"},null,null,null,null,null,null,{"$error":"#DIV/0!"},null,{"$error":"#DIV/0!"},null,{"$error":"#DIV/0!"}]
["Artículo 11 -. Capacitación.",null,null,null,{"$error":"#DIV/0!"},null,null,null,null,null,null,{"$error":"#DIV/0!"},null,{"$error":"#DIV/0!"},null,{"$error":"#DIV/0!"}]
["Artículo 12 -. Bienestar.",null,null,null,{"$error":"#DIV/0!"},null,null,null,null,null,null,{"$error":"#DIV/0!"},null,{"$error":"#DIV/0!"},null,{"$error":"#DIV/0!"}]
["Artículo 13 -. Eventos y conmemoraciones.",null,null,null,{"$error":"#DIV/0!"},null,null,null,null,null,null,{"$error":"#DIV/0!"},null,{"$error":"#DIV/0!"},null,{"$error":"#DIV/0!"}]
["Artículo 14 -. Fondos educativos.",null,null,null,{"$error":"#DIV/0!"},null,null,null,null,null,null,{"$error":"#DIV/0!"},null,{"$error":"#DIV/0!"},null,{"$error":"#DIV/0!"}]
["Servicios Administrativos"]
["Artículo 15. Telefonía.",null,null,null,{"$f":"1-(D19/C19)","v":{"$error":"#DIV/0!"}},null,null,null,null,null,null,{"$error":"#DIV/0!"},null,{"$error":"#DIV/0!"},null,{"$error":"#DIV/0!"}]
["Artículo 16 -. Vehículos oficiales.",null,null,null,{"$error":"#DIV/0!"},null,null,null,null,null,null,{"$error":"#DIV/0!"},null,{"$error":"#DIV/0!"},null,{"$error":"#DIV/0!"}]
["Artículo 17 -. Adquisición de vehículos y maquinaria.",null,null,null,{"$error":"#DIV/0!"},null,null,null,null,null,null,{"$error":"#DIV/0!"},null,{"$error":"#DIV/0!"},null,{"$error":"#DIV/0!"}]
["Artículo 18 -. Fotocopiado, multicopiado e impresión.",null,null,null,{"$error":"#DIV/0!"},null,null,null,null,null,null,{"$error":"#DIV/0!"},null,{"$error":"#DIV/0!"},null,{"$error":"#DIV/0!"}]
["Artículo 19 -. Publicidad distrital.",null,null,null,{"$error":"#DIV/0!"},null,null,null,null,null,null,{"$error":"#DIV/0!"},null,{"$error":"#DIV/0!"},null,{"$error":"#DIV/0!"}]
["Artículo 20 -. Cajas menores.",null,null,null,{"$error":"#DIV/0!"},null,null,null,null,null,null,{"$error":"#DIV/0!"},null,{"$error":"#DIV/0!"},null,{"$error":"#DIV/0!"}]
["Artículo 21 -. Mantenimiento o reparación de bienes inmuebles o muebles.",null,null,null,{"$error":"#DIV/0!"},null,null,null,null,null,null,{"$error":"#DIV/0!"},null,{"$error":"#DIV/0!"},null,{"$error":"#DIV/0!"}]
["Artículo 22 -. Suscripciones.",null,null,null,{"$error":"#DIV/0!"},null,null,null,null,null,null,{"$error":"#DIV/0!"},null,{"$error":"#DIV/0!"},null,{"$error":"#DIV/0!"}]
["Artículo 23 -. Servicios públicos.",null,null,null,{"$error":"#DIV/0!"},null,null,null,null,null,null,{"$error":"#DIV/0!"},null,{"$error":"#DIV/0!"},null,{"$error":"#DIV/0!"}]

{"sheet":"0222-01 IDARTES","index":64,"n_rows":27,"n_cols":16,"rows_kept":27,"cut":false,"hidden":false,"merged":[[5,10,5,11],[5,12,5,13],[5,14,5,15],[1,1,1,4],[3,0,6,0],[3,1,6,1],[3,2,4,4],[3,5,3,9],[3,10,4,15],[4,5,6,5],[4,6,6,6],[4,7,5,9],[5,3,5,4]]}
["PLAN DE AUSTERIDAD EN EL GASTO 2025-2027"]
["Entidad"," "]
["Valores en Pesos Corrientes"]
["CONCEPTO\n(Decreto 062 de 2024)","Posiciones Presupuestales Asociadas\n(Funcionamiento e Inversión)","LÍNEA BASE",null,null,"PLAN DE AUSTERIDAD EN EL GASTO 2025-2027",null,null,null,null,"SEGUIMIENTO RESULTADOS PLAN DE AUSTERIDAD 2025-2027"]
[null,null,null,null,null,"ESTRATEGIAS\n2025-2027","ACCIONES\n2025-2027","META INDICADOR DE AUSTERIDAD"]
[null,null,"AÑO 2023","AÑO 2024",null,null,null,null,null,null,"AÑO 2025",null,"AÑO 2026",null,"AÑO 2027"]
[null,null,"Valor EJECUTADO\na 31/12/2023","Valor EJECUTADO\na 31/12/2024","Resultado\nIndicador Austeridad",null,null,"AÑO 2025","AÑO 2026","AÑO 2027","Valor EJECUTADO\na 31/12/2025","Resultado\nIndicador Austeridad","Valor EJECUTADO\na 31/12/2026","Resultado\nIndicador Austeridad","Valor EJECUTADO\na 31/12/2027","Resultado\nIndicador Austeridad"]
["Servicios de personal"]
["Artículo 6°.- Reducción del gasto en CPS profesionales y de apoyo a la gestión. ","N.A.  \nSe registran totales. Corresponde con lo reportado en SIDEAP y SIVICOF",null,null,{"$f":"1-(D9/C9)","v":{"$error":"#DIV/0!"}},null,null,null,null,null,null,{"$f":"1-(K9/D9)","v":{"$error":"#DIV/0!"}},null,{"$f":"1-(M9/K9)","v":{"$error":"#DIV/0!"}},null,{"$f":"1-(O9/M9)","v":{"$error":"#DIV/0!"}}]
["Artículo 7°.- Horas extras, dominicales y festivos. ",null,null,null,{"$error":"#DIV/0!"},null,null,null,null,null,null,{"$f":"1-(K10/D10)","v":{"$error":"#DIV/0!"}},null,{"$f":"1-(M10/K10)","v":{"$error":"#DIV/0!"}},null,{"$error":"#DIV/0!"}]
["Artículo 8°.- Viáticos y gastos de viaje.",null,null,null,{"$error":"#DIV/0!"},null,null,null,null,null,null,{"$error":"#DIV/0!"},null,{"$error":"#DIV/0!"},null,{"$error":"#DIV/0!"}]
["Artículo 9°.- Compensación por vacaciones.",null,null,null,{"$error":"#DIV/0!"},null,null,null,null,null,null,{"$error":"#DIV/0!"},null,{"$error":"#DIV/0!"},null,{"$error":"#DIV/0!"}]
["Artículo 10°.- Bono navideño.",null,null,null,{"$error":"#DIV/0!"},null,null,null,null,null,null,{"$error":"#DIV/0!"},null,{"$error":"#DIV/0!"},null,{"$error":"#DIV/0!"}]
["Artículo 11 -. Capacitación.",null,null,null,{"$error":"#DIV/0!"},null,null,null,null,null,null,{"$error":"#DIV/0!"},null,{"$error":"#DIV/0!"},null,{"$error":"#DIV/0!"}]
["Artículo 12 -. Bienestar.",null,null,null,{"$error":"#DIV/0!"},null,null,null,null,null,null,{"$error":"#DIV/0!"},null,{"$error":"#DIV/0!"},null,{"$error":"#DIV/0!"}]
["Artículo 13 -. Eventos y conmemoraciones.",null,null,null,{"$error":"#DIV/0!"},null,null,null,null,null,null,{"$error":"#DIV/0!"},null,{"$error":"#DIV/0!"},null,{"$error":"#DIV/0!"}]
["Artículo 14 -. Fondos educativos.",null,null,null,{"$error":"#DIV/0!"},null,null,null,null,null,null,{"$error":"#DIV/0!"},null,{"$error":"#DIV/0!"},null,{"$error":"#DIV/0!"}]
["Servicios Administrativos"]
["Artículo 15. Telefonía.",null,null,null,{"$f":"1-(D19/C19)","v":{"$error":"#DIV/0!"}},null,null,null,null,null,null,{"$error":"#DIV/0!"},null,{"$error":"#DIV/0!"},null,{"$error":"#DIV/0!"}]
["Artículo 16 -. Vehículos oficiales.",null,null,null,{"$error":"#DIV/0!"},null,null,null,null,null,null,{"$error":"#DIV/0!"},null,{"$error":"#DIV/0!"},null,{"$error":"#DIV/0!"}]
["Artículo 17 -. Adquisición de vehículos y maquinaria.",null,null,null,{"$error":"#DIV/0!"},null,null,null,null,null,null,{"$error":"#DIV/0!"},null,{"$error":"#DIV/0!"},null,{"$error":"#DIV/0!"}]
["Artículo 18 -. Fotocopiado, multicopiado e impresión.",null,null,null,{"$error":"#DIV/0!"},null,null,null,null,null,null,{"$error":"#DIV/0!"},null,{"$error":"#DIV/0!"},null,{"$error":"#DIV/0!"}]
["Artículo 19 -. Publicidad distrital.",null,null,null,{"$error":"#DIV/0!"},null,null,null,null,null,null,{"$error":"#DIV/0!"},null,{"$error":"#DIV/0!"},null,{"$error":"#DIV/0!"}]
["Artículo 20 -. Cajas menores.",null,null,null,{"$error":"#DIV/0!"},null,null,null,null,null,null,{"$error":"#DIV/0!"},null,{"$error":"#DIV/0!"},null,{"$error":"#DIV/0!"}]
["Artículo 21 -. Mantenimiento o reparación de bienes inmuebles o muebles.",null,null,null,{"$error":"#DIV/0!"},null,null,null,null,null,null,{"$error":"#DIV/0!"},null,{"$error":"#DIV/0!"},null,{"$error":"#DIV/0!"}]
["Artículo 22 -. Suscripciones.",null,null,null,{"$error":"#DIV/0!"},null,null,null,null,null,null,{"$error":"#DIV/0!"},null,{"$error":"#DIV/0!"},null,{"$error":"#DIV/0!"}]
["Artículo 23 -. Servicios públicos.",null,null,null,{"$error":"#DIV/0!"},null,null,null,null,null,null,{"$error":"#DIV/0!"},null,{"$error":"#DIV/0!"},null,{"$error":"#DIV/0!"}]

{"sheet":"0226-01 UAECD","index":65,"n_rows":27,"n_cols":16,"rows_kept":27,"cut":false,"hidden":false,"merged":[[5,10,5,11],[5,12,5,13],[5,14,5,15],[1,1,1,4],[3,0,6,0],[3,1,6,1],[3,2,4,4],[3,5,3,9],[3,10,4,15],[4,5,6,5],[4,6,6,6],[4,7,5,9],[5,3,5,4]]}
["PLAN DE AUSTERIDAD EN EL GASTO 2025-2027"]
["Entidad"," "]
["Valores en Pesos Corrientes"]
["CONCEPTO\n(Decreto 062 de 2024)","Posiciones Presupuestales Asociadas\n(Funcionamiento e Inversión)","LÍNEA BASE",null,null,"PLAN DE AUSTERIDAD EN EL GASTO 2025-2027",null,null,null,null,"SEGUIMIENTO RESULTADOS PLAN DE AUSTERIDAD 2025-2027"]
[null,null,null,null,null,"ESTRATEGIAS\n2025-2027","ACCIONES\n2025-2027","META INDICADOR DE AUSTERIDAD"]
[null,null,"AÑO 2023","AÑO 2024",null,null,null,null,null,null,"AÑO 2025",null,"AÑO 2026",null,"AÑO 2027"]
[null,null,"Valor EJECUTADO\na 31/12/2023","Valor EJECUTADO\na 31/12/2024","Resultado\nIndicador Austeridad",null,null,"AÑO 2025","AÑO 2026","AÑO 2027","Valor EJECUTADO\na 31/12/2025","Resultado\nIndicador Austeridad","Valor EJECUTADO\na 31/12/2026","Resultado\nIndicador Austeridad","Valor EJECUTADO\na 31/12/2027","Resultado\nIndicador Austeridad"]
["Servicios de personal"]
["Artículo 6°.- Reducción del gasto en CPS profesionales y de apoyo a la gestión. ","N.A.  \nSe registran totales. Corresponde con lo reportado en SIDEAP y SIVICOF",20000,22000,{"$f":"1-(D9/C9)","v":-0.10000000000000009},"fsef","gdsfgsg",0.01,null,null,23000,{"$f":"1-(K9/D9)","v":-4.5454545454545414E-2},null,{"$f":"1-(M9/K9)","v":1},null,{"$f":"1-(O9/M9)","v":{"$error":"#DIV/0!"}}]
["Artículo 7°.- Horas extras, dominicales y festivos. ",null,null,null,{"$error":"#DIV/0!"},null,null,null,null,null,null,{"$f":"1-(K10/D10)","v":{"$error":"#DIV/0!"}},null,{"$f":"1-(M10/K10)","v":{"$error":"#DIV/0!"}},null,{"$error":"#DIV/0!"}]
["Artículo 8°.- Viáticos y gastos de viaje.",null,null,null,{"$error":"#DIV/0!"},null,null,null,null,null,null,{"$error":"#DIV/0!"},null,{"$error":"#DIV/0!"},null,{"$error":"#DIV/0!"}]
["Artículo 9°.- Compensación por vacaciones.",null,null,null,{"$error":"#DIV/0!"},null,null,null,null,null,null,{"$error":"#DIV/0!"},null,{"$error":"#DIV/0!"},null,{"$error":"#DIV/0!"}]
["Artículo 10°.- Bono navideño.",null,null,null,{"$error":"#DIV/0!"},null,null,null,null,null,null,{"$error":"#DIV/0!"},null,{"$error":"#DIV/0!"},null,{"$error":"#DIV/0!"}]
["Artículo 11 -. Capacitación.",null,null,null,{"$error":"#DIV/0!"},null,null,null,null,null,null,{"$error":"#DIV/0!"},null,{"$error":"#DIV/0!"},null,{"$error":"#DIV/0!"}]
["Artículo 12 -. Bienestar.",null,null,null,{"$error":"#DIV/0!"},null,null,null,null,null,null,{"$error":"#DIV/0!"},null,{"$error":"#DIV/0!"},null,{"$error":"#DIV/0!"}]
["Artículo 13 -. Eventos y conmemoraciones.",null,null,null,{"$error":"#DIV/0!"},null,null,null,null,null,null,{"$error":"#DIV/0!"},null,{"$error":"#DIV/0!"},null,{"$error":"#DIV/0!"}]
["Artículo 14 -. Fondos educativos.",null,null,null,{"$error":"#DIV/0!"},null,null,null,null,null,null,{"$error":"#DIV/0!"},null,{"$error":"#DIV/0!"},null,{"$error":"#DIV/0!"}]
["Servicios Administrativos"]
["Artículo 15. Telefonía.",null,null,null,{"$f":"1-(D19/C19)","v":{"$error":"#DIV/0!"}},null,null,null,null,null,null,{"$error":"#DIV/0!"},null,{"$error":"#DIV/0!"},null,{"$error":"#DIV/0!"}]
["Artículo 16 -. Vehículos oficiales.",null,null,null,{"$error":"#DIV/0!"},null,null,null,null,null,null,{"$error":"#DIV/0!"},null,{"$error":"#DIV/0!"},null,{"$error":"#DIV/0!"}]
["Artículo 17 -. Adquisición de vehículos y maquinaria.",null,null,null,{"$error":"#DIV/0!"},null,null,null,null,null,null,{"$error":"#DIV/0!"},null,{"$error":"#DIV/0!"},null,{"$error":"#DIV/0!"}]
["Artículo 18 -. Fotocopiado, multicopiado e impresión.",null,null,null,{"$error":"#DIV/0!"},null,null,null,null,null,null,{"$error":"#DIV/0!"},null,{"$error":"#DIV/0!"},null,{"$error":"#DIV/0!"}]
["Artículo 19 -. Publicidad distrital.",null,null,null,{"$error":"#DIV/0!"},null,null,null,null,null,null,{"$error":"#DIV/0!"},null,{"$error":"#DIV/0!"},null,{"$error":"#DIV/0!"}]
["Artículo 20 -. Cajas menores.",null,null,null,{"$error":"#DIV/0!"},null,null,null,null,null,null,{"$error":"#DIV/0!"},null,{"$error":"#DIV/0!"},null,{"$error":"#DIV/0!"}]
["Artículo 21 -. Mantenimiento o reparación de bienes inmuebles o muebles.",null,null,null,{"$error":"#DIV/0!"},null,null,null,null,null,null,{"$error":"#DIV/0!"},null,{"$error":"#DIV/0!"},null,{"$error":"#DIV/0!"}]
["Artículo 22 -. Suscripciones.",null,null,null,{"$error":"#DIV/0!"},null,null,null,null,null,null,{"$error":"#DIV/0!"},null,{"$error":"#DIV/0!"},null,{"$error":"#DIV/0!"}]
["Artículo 23 -. Servicios públicos.",null,null,null,{"$error":"#DIV/0!"},null,null,null,null,null,null,{"$error":"#DIV/0!"},null,{"$error":"#DIV/0!"},null,{"$error":"#DIV/0!"}]

{"sheet":"0227-01 UAERMV","index":66,"n_rows":27,"n_cols":16,"rows_kept":27,"cut":false,"hidden":false,"merged":[[5,10,5,11],[5,12,5,13],[5,14,5,15],[1,1,1,4],[3,0,6,0],[3,1,6,1],[3,2,4,4],[3,5,3,9],[3,10,4,15],[4,5,6,5],[4,6,6,6],[4,7,5,9],[5,3,5,4]]}
["PLAN DE AUSTERIDAD EN EL GASTO 2025-2027"]
["Entidad"," "]
["Valores en Pesos Corrientes"]
["CONCEPTO\n(Decreto 062 de 2024)","Posiciones Presupuestales Asociadas\n(Funcionamiento e Inversión)","LÍNEA BASE",null,null,"PLAN DE AUSTERIDAD EN EL GASTO 2025-2027",null,null,null,null,"SEGUIMIENTO RESULTADOS PLAN DE AUSTERIDAD 2025-2027"]
[null,null,null,null,null,"ESTRATEGIAS\n2025-2027","ACCIONES\n2025-2027","META INDICADOR DE AUSTERIDAD"]
[null,null,"AÑO 2023","AÑO 2024",null,null,null,null,null,null,"AÑO 2025",null,"AÑO 2026",null,"AÑO 2027"]
[null,null,"Valor EJECUTADO\na 31/12/2023","Valor EJECUTADO\na 31/12/2024","Resultado\nIndicador Austeridad",null,null,"AÑO 2025","AÑO 2026","AÑO 2027","Valor EJECUTADO\na 31/12/2025","Resultado\nIndicador Austeridad","Valor EJECUTADO\na 31/12/2026","Resultado\nIndicador Austeridad","Valor EJECUTADO\na 31/12/2027","Resultado\nIndicador Austeridad"]
["Servicios de personal"]
["Artículo 6°.- Reducción del gasto en CPS profesionales y de apoyo a la gestión. ","N.A.  \nSe registran totales. Corresponde con lo reportado en SIDEAP y SIVICOF",null,null,{"$f":"1-(D9/C9)","v":{"$error":"#DIV/0!"}},null,null,null,null,null,null,{"$f":"1-(K9/D9)","v":{"$error":"#DIV/0!"}},null,{"$f":"1-(M9/K9)","v":{"$error":"#DIV/0!"}},null,{"$f":"1-(O9/M9)","v":{"$error":"#DIV/0!"}}]
["Artículo 7°.- Horas extras, dominicales y festivos. ",null,null,null,{"$error":"#DIV/0!"},null,null,null,null,null,null,{"$f":"1-(K10/D10)","v":{"$error":"#DIV/0!"}},null,{"$f":"1-(M10/K10)","v":{"$error":"#DIV/0!"}},null,{"$error":"#DIV/0!"}]
["Artículo 8°.- Viáticos y gastos de viaje.",null,null,null,{"$error":"#DIV/0!"},null,null,null,null,null,null,{"$error":"#DIV/0!"},null,{"$error":"#DIV/0!"},null,{"$error":"#DIV/0!"}]
["Artículo 9°.- Compensación por vacaciones.",null,null,null,{"$error":"#DIV/0!"},null,null,null,null,null,null,{"$error":"#DIV/0!"},null,{"$error":"#DIV/0!"},null,{"$error":"#DIV/0!"}]
["Artículo 10°.- Bono navideño.",null,null,null,{"$error":"#DIV/0!"},null,null,null,null,null,null,{"$error":"#DIV/0!"},null,{"$error":"#DIV/0!"},null,{"$error":"#DIV/0!"}]
["Artículo 11 -. Capacitación.",null,null,null,{"$error":"#DIV/0!"},null,null,null,null,null,null,{"$error":"#DIV/0!"},null,{"$error":"#DIV/0!"},null,{"$error":"#DIV/0!"}]
["Artículo 12 -. Bienestar.",null,null,null,{"$error":"#DIV/0!"},null,null,null,null,null,null,{"$error":"#DIV/0!"},null,{"$error":"#DIV/0!"},null,{"$error":"#DIV/0!"}]
["Artículo 13 -. Eventos y conmemoraciones.",null,null,null,{"$error":"#DIV/0!"},null,null,null,null,null,null,{"$error":"#DIV/0!"},null,{"$error":"#DIV/0!"},null,{"$error":"#DIV/0!"}]
["Artículo 14 -. Fondos educativos.",null,null,null,{"$error":"#DIV/0!"},null,null,null,null,null,null,{"$error":"#DIV/0!"},null,{"$error":"#DIV/0!"},null,{"$error":"#DIV/0!"}]
["Servicios Administrativos"]
["Artículo 15. Telefonía.",null,null,null,{"$f":"1-(D19/C19)","v":{"$error":"#DIV/0!"}},null,null,null,null,null,null,{"$error":"#DIV/0!"},null,{"$error":"#DIV/0!"},null,{"$error":"#DIV/0!"}]
["Artículo 16 -. Vehículos oficiales.",null,null,null,{"$error":"#DIV/0!"},null,null,null,null,null,null,{"$error":"#DIV/0!"},null,{"$error":"#DIV/0!"},null,{"$error":"#DIV/0!"}]
["Artículo 17 -. Adquisición de vehículos y maquinaria.",null,null,null,{"$error":"#DIV/0!"},null,null,null,null,null,null,{"$error":"#DIV/0!"},null,{"$error":"#DIV/0!"},null,{"$error":"#DIV/0!"}]
["Artículo 18 -. Fotocopiado, multicopiado e impresión.",null,null,null,{"$error":"#DIV/0!"},null,null,null,null,null,null,{"$error":"#DIV/0!"},null,{"$error":"#DIV/0!"},null,{"$error":"#DIV/0!"}]
["Artículo 19 -. Publicidad distrital.",null,null,null,{"$error":"#DIV/0!"},null,null,null,null,null,null,{"$error":"#DIV/0!"},null,{"$error":"#DIV/0!"},null,{"$error":"#DIV/0!"}]
["Artículo 20 -. Cajas menores.",null,null,null,{"$error":"#DIV/0!"},null,null,null,null,null,null,{"$error":"#DIV/0!"},null,{"$error":"#DIV/0!"},null,{"$error":"#DIV/0!"}]
["Artículo 21 -. Mantenimiento o reparación de bienes inmuebles o muebles.",null,null,null,{"$error":"#DIV/0!"},null,null,null,null,null,null,{"$error":"#DIV/0!"},null,{"$error":"#DIV/0!"},null,{"$error":"#DIV/0!"}]
["Artículo 22 -. Suscripciones.",null,null,null,{"$error":"#DIV/0!"},null,null,null,null,null,null,{"$error":"#DIV/0!"},null,{"$error":"#DIV/0!"},null,{"$error":"#DIV/0!"}]
["Artículo 23 -. Servicios públicos.",null,null,null,{"$error":"#DIV/0!"},null,null,null,null,null,null,{"$error":"#DIV/0!"},null,{"$error":"#DIV/0!"},null,{"$error":"#DIV/0!"}]

{"sheet":"0228-01 UAESP","index":67,"n_rows":27,"n_cols":16,"rows_kept":27,"cut":false,"hidden":false,"merged":[[5,10,5,11],[5,12,5,13],[5,14,5,15],[1,1,1,4],[3,0,6,0],[3,1,6,1],[3,2,4,4],[3,5,3,9],[3,10,4,15],[4,5,6,5],[4,6,6,6],[4,7,5,9],[5,3,5,4]]}
["PLAN DE AUSTERIDAD EN EL GASTO 2025-2027"]
["Entidad"," "]
["Valores en Pesos Corrientes"]
["CONCEPTO\n(Decreto 062 de 2024)","Posiciones Presupuestales Asociadas\n(Funcionamiento e Inversión)","LÍNEA BASE",null,null,"PLAN DE AUSTERIDAD EN EL GASTO 2025-2027",null,null,null,null,"SEGUIMIENTO RESULTADOS PLAN DE AUSTERIDAD 2025-2027"]
[null,null,null,null,null,"ESTRATEGIAS\n2025-2027","ACCIONES\n2025-2027","META INDICADOR DE AUSTERIDAD"]
[null,null,"AÑO 2023","AÑO 2024",null,null,null,null,null,null,"AÑO 2025",null,"AÑO 2026",null,"AÑO 2027"]
[null,null,"Valor EJECUTADO\na 31/12/2023","Valor EJECUTADO\na 31/12/2024","Resultado\nIndicador Austeridad",null,null,"AÑO 2025","AÑO 2026","AÑO 2027","Valor EJECUTADO\na 31/12/2025","Resultado\nIndicador Austeridad","Valor EJECUTADO\na 31/12/2026","Resultado\nIndicador Austeridad","Valor EJECUTADO\na 31/12/2027","Resultado\nIndicador Austeridad"]
["Servicios de personal"]
["Artículo 6°.- Reducción del gasto en CPS profesionales y de apoyo a la gestión. ","N.A.  \nSe registran totales. Corresponde con lo reportado en SIDEAP y SIVICOF",null,null,{"$f":"1-(D9/C9)","v":{"$error":"#DIV/0!"}},null,null,null,null,null,null,{"$f":"1-(K9/D9)","v":{"$error":"#DIV/0!"}},null,{"$f":"1-(M9/K9)","v":{"$error":"#DIV/0!"}},null,{"$f":"1-(O9/M9)","v":{"$error":"#DIV/0!"}}]
["Artículo 7°.- Horas extras, dominicales y festivos. ",null,null,null,{"$error":"#DIV/0!"},null,null,null,null,null,null,{"$f":"1-(K10/D10)","v":{"$error":"#DIV/0!"}},null,{"$f":"1-(M10/K10)","v":{"$error":"#DIV/0!"}},null,{"$error":"#DIV/0!"}]
["Artículo 8°.- Viáticos y gastos de viaje.",null,null,null,{"$error":"#DIV/0!"},null,null,null,null,null,null,{"$error":"#DIV/0!"},null,{"$error":"#DIV/0!"},null,{"$error":"#DIV/0!"}]
["Artículo 9°.- Compensación por vacaciones.",null,null,null,{"$error":"#DIV/0!"},null,null,null,null,null,null,{"$error":"#DIV/0!"},null,{"$error":"#DIV/0!"},null,{"$error":"#DIV/0!"}]
["Artículo 10°.- Bono navideño.",null,null,null,{"$error":"#DIV/0!"},null,null,null,null,null,null,{"$error":"#DIV/0!"},null,{"$error":"#DIV/0!"},null,{"$error":"#DIV/0!"}]
["Artículo 11 -. Capacitación.",null,null,null,{"$error":"#DIV/0!"},null,null,null,null,null,null,{"$error":"#DIV/0!"},null,{"$error":"#DIV/0!"},null,{"$error":"#DIV/0!"}]
["Artículo 12 -. Bienestar.",null,null,null,{"$error":"#DIV/0!"},null,null,null,null,null,null,{"$error":"#DIV/0!"},null,{"$error":"#DIV/0!"},null,{"$error":"#DIV/0!"}]
["Artículo 13 -. Eventos y conmemoraciones.",null,null,null,{"$error":"#DIV/0!"},null,null,null,null,null,null,{"$error":"#DIV/0!"},null,{"$error":"#DIV/0!"},null,{"$error":"#DIV/0!"}]
["Artículo 14 -. Fondos educativos.",null,null,null,{"$error":"#DIV/0!"},null,null,null,null,null,null,{"$error":"#DIV/0!"},null,{"$error":"#DIV/0!"},null,{"$error":"#DIV/0!"}]
["Servicios Administrativos"]
["Artículo 15. Telefonía.",null,null,null,{"$f":"1-(D19/C19)","v":{"$error":"#DIV/0!"}},null,null,null,null,null,null,{"$error":"#DIV/0!"},null,{"$error":"#DIV/0!"},null,{"$error":"#DIV/0!"}]
["Artículo 16 -. Vehículos oficiales.",null,null,null,{"$error":"#DIV/0!"},null,null,null,null,null,null,{"$error":"#DIV/0!"},null,{"$error":"#DIV/0!"},null,{"$error":"#DIV/0!"}]
["Artículo 17 -. Adquisición de vehículos y maquinaria.",null,null,null,{"$error":"#DIV/0!"},null,null,null,null,null,null,{"$error":"#DIV/0!"},null,{"$error":"#DIV/0!"},null,{"$error":"#DIV/0!"}]
["Artículo 18 -. Fotocopiado, multicopiado e impresión.",null,null,null,{"$error":"#DIV/0!"},null,null,null,null,null,null,{"$error":"#DIV/0!"},null,{"$error":"#DIV/0!"},null,{"$error":"#DIV/0!"}]
["Artículo 19 -. Publicidad distrital.",null,null,null,{"$error":"#DIV/0!"},null,null,null,null,null,null,{"$error":"#DIV/0!"},null,{"$error":"#DIV/0!"},null,{"$error":"#DIV/0!"}]
["Artículo 20 -. Cajas menores.",null,null,null,{"$error":"#DIV/0!"},null,null,null,null,null,null,{"$error":"#DIV/0!"},null,{"$error":"#DIV/0!"},null,{"$error":"#DIV/0!"}]
["Artículo 21 -. Mantenimiento o reparación de bienes inmuebles o muebles.",null,null,null,{"$error":"#DIV/0!"},null,null,null,null,null,null,{"$error":"#DIV/0!"},null,{"$error":"#DIV/0!"},null,{"$error":"#DIV/0!"}]
["Artículo 22 -. Suscripciones.",null,null,null,{"$error":"#DIV/0!"},null,null,null,null,null,null,{"$error":"#DIV/0!"},null,{"$error":"#DIV/0!"},null,{"$error":"#DIV/0!"}]
["Artículo 23 -. Servicios públicos.",null,null,null,{"$error":"#DIV/0!"},null,null,null,null,null,null,{"$error":"#DIV/0!"},null,{"$error":"#DIV/0!"},null,{"$error":"#DIV/0!"}]

{"sheet":"0229-01 IDPYBA","index":68,"n_rows":27,"n_cols":16,"rows_kept":27,"cut":false,"hidden":false,"merged":[[5,10,5,11],[5,12,5,13],[5,14,5,15],[1,1,1,4],[3,0,6,0],[3,1,6,1],[3,2,4,4],[3,5,3,9],[3,10,4,15],[4,5,6,5],[4,6,6,6],[4,7,5,9],[5,3,5,4]]}
["PLAN DE AUSTERIDAD EN EL GASTO 2025-2027"]
["Entidad"," "]
["Valores en Pesos Corrientes"]
["CONCEPTO\n(Decreto 062 de 2024)","Posiciones Presupuestales Asociadas\n(Funcionamiento e Inversión)","LÍNEA BASE",null,null,"PLAN DE AUSTERIDAD EN EL GASTO 2025-2027",null,null,null,null,"SEGUIMIENTO RESULTADOS PLAN DE AUSTERIDAD 2025-2027"]
[null,null,null,null,null,"ESTRATEGIAS\n2025-2027","ACCIONES\n2025-2027","META INDICADOR DE AUSTERIDAD"]
[null,null,"AÑO 2023","AÑO 2024",null,null,null,null,null,null,"AÑO 2025",null,"AÑO 2026",null,"AÑO 2027"]
[null,null,"Valor EJECUTADO\na 31/12/2023","Valor EJECUTADO\na 31/12/2024","Resultado\nIndicador Austeridad",null,null,"AÑO 2025","AÑO 2026","AÑO 2027","Valor EJECUTADO\na 31/12/2025","Resultado\nIndicador Austeridad","Valor EJECUTADO\na 31/12/2026","Resultado\nIndicador Austeridad","Valor EJECUTADO\na 31/12/2027","Resultado\nIndicador Austeridad"]
["Servicios de personal"]
["Artículo 6°.- Reducción del gasto en CPS profesionales y de apoyo a la gestión. ","N.A.  \nSe registran totales. Corresponde con lo reportado en SIDEAP y SIVICOF",null,null,{"$f":"1-(D9/C9)","v":{"$error":"#DIV/0!"}},null,null,null,null,null,null,{"$f":"1-(K9/D9)","v":{"$error":"#DIV/0!"}},null,{"$f":"1-(M9/K9)","v":{"$error":"#DIV/0!"}},null,{"$f":"1-(O9/M9)","v":{"$error":"#DIV/0!"}}]
["Artículo 7°.- Horas extras, dominicales y festivos. ",null,null,null,{"$error":"#DIV/0!"},null,null,null,null,null,null,{"$f":"1-(K10/D10)","v":{"$error":"#DIV/0!"}},null,{"$f":"1-(M10/K10)","v":{"$error":"#DIV/0!"}},null,{"$error":"#DIV/0!"}]
["Artículo 8°.- Viáticos y gastos de viaje.",null,null,null,{"$error":"#DIV/0!"},null,null,null,null,null,null,{"$error":"#DIV/0!"},null,{"$error":"#DIV/0!"},null,{"$error":"#DIV/0!"}]
["Artículo 9°.- Compensación por vacaciones.",null,null,null,{"$error":"#DIV/0!"},null,null,null,null,null,null,{"$error":"#DIV/0!"},null,{"$error":"#DIV/0!"},null,{"$error":"#DIV/0!"}]
["Artículo 10°.- Bono navideño.",null,null,null,{"$error":"#DIV/0!"},null,null,null,null,null,null,{"$error":"#DIV/0!"},null,{"$error":"#DIV/0!"},null,{"$error":"#DIV/0!"}]
["Artículo 11 -. Capacitación.",null,null,null,{"$error":"#DIV/0!"},null,null,null,null,null,null,{"$error":"#DIV/0!"},null,{"$error":"#DIV/0!"},null,{"$error":"#DIV/0!"}]
["Artículo 12 -. Bienestar.",null,null,null,{"$error":"#DIV/0!"},null,null,null,null,null,null,{"$error":"#DIV/0!"},null,{"$error":"#DIV/0!"},null,{"$error":"#DIV/0!"}]
["Artículo 13 -. Eventos y conmemoraciones.",null,null,null,{"$error":"#DIV/0!"},null,null,null,null,null,null,{"$error":"#DIV/0!"},null,{"$error":"#DIV/0!"},null,{"$error":"#DIV/0!"}]
["Artículo 14 -. Fondos educativos.",null,null,null,{"$error":"#DIV/0!"},null,null,null,null,null,null,{"$error":"#DIV/0!"},null,{"$error":"#DIV/0!"},null,{"$error":"#DIV/0!"}]
["Servicios Administrativos"]
["Artículo 15. Telefonía.",null,null,null,{"$f":"1-(D19/C19)","v":{"$error":"#DIV/0!"}},null,null,null,null,null,null,{"$error":"#DIV/0!"},null,{"$error":"#DIV/0!"},null,{"$error":"#DIV/0!"}]
["Artículo 16 -. Vehículos oficiales.",null,null,null,{"$error":"#DIV/0!"},null,null,null,null,null,null,{"$error":"#DIV/0!"},null,{"$error":"#DIV/0!"},null,{"$error":"#DIV/0!"}]
["Artículo 17 -. Adquisición de vehículos y maquinaria.",null,null,null,{"$error":"#DIV/0!"},null,null,null,null,null,null,{"$error":"#DIV/0!"},null,{"$error":"#DIV/0!"},null,{"$error":"#DIV/0!"}]
["Artículo 18 -. Fotocopiado, multicopiado e impresión.",null,null,null,{"$error":"#DIV/0!"},null,null,null,null,null,null,{"$error":"#DIV/0!"},null,{"$error":"#DIV/0!"},null,{"$error":"#DIV/0!"}]
["Artículo 19 -. Publicidad distrital.",null,null,null,{"$error":"#DIV/0!"},null,null,null,null,null,null,{"$error":"#DIV/0!"},null,{"$error":"#DIV/0!"},null,{"$error":"#DIV/0!"}]
["Artículo 20 -. Cajas menores.",null,null,null,{"$error":"#DIV/0!"},null,null,null,null,null,null,{"$error":"#DIV/0!"},null,{"$error":"#DIV/0!"},null,{"$error":"#DIV/0!"}]
["Artículo 21 -. Mantenimiento o reparación de bienes inmuebles o muebles.",null,null,null,{"$error":"#DIV/0!"},null,null,null,null,null,null,{"$error":"#DIV/0!"},null,{"$error":"#DIV/0!"},null,{"$error":"#DIV/0!"}]
["Artículo 22 -. Suscripciones.",null,null,null,{"$error":"#DIV/0!"},null,null,null,null,null,null,{"$error":"#DIV/0!"},null,{"$error":"#DIV/0!"},null,{"$error":"#DIV/0!"}]
["Artículo 23 -. Servicios públicos.",null,null,null,{"$error":"#DIV/0!"},null,null,null,null,null,null,{"$error":"#DIV/0!"},null,{"$error":"#DIV/0!"},null,{"$error":"#DIV/0!"}]

{"sheet":"0230-01 UD","index":69,"n_rows":27,"n_cols":16,"rows_kept":27,"cut":false,"hidden":false,"merged":[[5,10,5,11],[5,12,5,13],[5,14,5,15],[1,1,1,4],[3,0,6,0],[3,1,6,1],[3,2,4,4],[3,5,3,9],[3,10,4,15],[4,5,6,5],[4,6,6,6],[4,7,5,9],[5,3,5,4]]}
["PLAN DE AUSTERIDAD EN EL GASTO 2025-2027"]
["Entidad"," "]
["Valores en Pesos Corrientes"]
["CONCEPTO\n(Decreto 062 de 2024)","Posiciones Presupuestales Asociadas\n(Funcionamiento e Inversión)","LÍNEA BASE",null,null,"PLAN DE AUSTERIDAD EN EL GASTO 2025-2027",null,null,null,null,"SEGUIMIENTO RESULTADOS PLAN DE AUSTERIDAD 2025-2027"]
[null,null,null,null,null,"ESTRATEGIAS\n2025-2027","ACCIONES\n2025-2027","META INDICADOR DE AUSTERIDAD"]
[null,null,"AÑO 2023","AÑO 2024",null,null,null,null,null,null,"AÑO 2025",null,"AÑO 2026",null,"AÑO 2027"]
[null,null,"Valor EJECUTADO\na 31/12/2023","Valor EJECUTADO\na 31/12/2024","Resultado\nIndicador Austeridad",null,null,"AÑO 2025","AÑO 2026","AÑO 2027","Valor EJECUTADO\na 31/12/2025","Resultado\nIndicador Austeridad","Valor EJECUTADO\na 31/12/2026","Resultado\nIndicador Austeridad","Valor EJECUTADO\na 31/12/2027","Resultado\nIndicador Austeridad"]
["Servicios de personal"]
["Artículo 6°.- Reducción del gasto en CPS profesionales y de apoyo a la gestión. ","N.A.  \nSe registran totales. Corresponde con lo reportado en SIDEAP y SIVICOF",null,null,{"$f":"1-(D9/C9)","v":{"$error":"#DIV/0!"}},null,null,null,null,null,null,{"$f":"1-(K9/D9)","v":{"$error":"#DIV/0!"}},null,{"$f":"1-(M9/K9)","v":{"$error":"#DIV/0!"}},null,{"$f":"1-(O9/M9)","v":{"$error":"#DIV/0!"}}]
["Artículo 7°.- Horas extras, dominicales y festivos. ",null,null,null,{"$error":"#DIV/0!"},null,null,null,null,null,null,{"$f":"1-(K10/D10)","v":{"$error":"#DIV/0!"}},null,{"$f":"1-(M10/K10)","v":{"$error":"#DIV/0!"}},null,{"$error":"#DIV/0!"}]
["Artículo 8°.- Viáticos y gastos de viaje.",null,null,null,{"$error":"#DIV/0!"},null,null,null,null,null,null,{"$error":"#DIV/0!"},null,{"$error":"#DIV/0!"},null,{"$error":"#DIV/0!"}]
["Artículo 9°.- Compensación por vacaciones.",null,null,null,{"$error":"#DIV/0!"},null,null,null,null,null,null,{"$error":"#DIV/0!"},null,{"$error":"#DIV/0!"},null,{"$error":"#DIV/0!"}]
["Artículo 10°.- Bono navideño.",null,null,null,{"$error":"#DIV/0!"},null,null,null,null,null,null,{"$error":"#DIV/0!"},null,{"$error":"#DIV/0!"},null,{"$error":"#DIV/0!"}]
["Artículo 11 -. Capacitación.",null,null,null,{"$error":"#DIV/0!"},null,null,null,null,null,null,{"$error":"#DIV/0!"},null,{"$error":"#DIV/0!"},null,{"$error":"#DIV/0!"}]
["Artículo 12 -. Bienestar.",null,null,null,{"$error":"#DIV/0!"},null,null,null,null,null,null,{"$error":"#DIV/0!"},null,{"$error":"#DIV/0!"},null,{"$error":"#DIV/0!"}]
["Artículo 13 -. Eventos y conmemoraciones.",null,null,null,{"$error":"#DIV/0!"},null,null,null,null,null,null,{"$error":"#DIV/0!"},null,{"$error":"#DIV/0!"},null,{"$error":"#DIV/0!"}]
["Artículo 14 -. Fondos educativos.",null,null,null,{"$error":"#DIV/0!"},null,null,null,null,null,null,{"$error":"#DIV/0!"},null,{"$error":"#DIV/0!"},null,{"$error":"#DIV/0!"}]
["Servicios Administrativos"]
["Artículo 15. Telefonía.",null,null,null,{"$f":"1-(D19/C19)","v":{"$error":"#DIV/0!"}},null,null,null,null,null,null,{"$error":"#DIV/0!"},null,{"$error":"#DIV/0!"},null,{"$error":"#DIV/0!"}]
["Artículo 16 -. Vehículos oficiales.",null,null,null,{"$error":"#DIV/0!"},null,null,null,null,null,null,{"$error":"#DIV/0!"},null,{"$error":"#DIV/0!"},null,{"$error":"#DIV/0!"}]
["Artículo 17 -. Adquisición de vehículos y maquinaria.",null,null,null,{"$error":"#DIV/0!"},null,null,null,null,null,null,{"$error":"#DIV/0!"},null,{"$error":"#DIV/0!"},null,{"$error":"#DIV/0!"}]
["Artículo 18 -. Fotocopiado, multicopiado e impresión.",null,null,null,{"$error":"#DIV/0!"},null,null,null,null,null,null,{"$error":"#DIV/0!"},null,{"$error":"#DIV/0!"},null,{"$error":"#DIV/0!"}]
["Artículo 19 -. Publicidad distrital.",null,null,null,{"$error":"#DIV/0!"},null,null,null,null,null,null,{"$error":"#DIV/0!"},null,{"$error":"#DIV/0!"},null,{"$error":"#DIV/0!"}]
["Artículo 20 -. Cajas menores.",null,null,null,{"$error":"#DIV/0!"},null,null,null,null,null,null,{"$error":"#DIV/0!"},null,{"$error":"#DIV/0!"},null,{"$error":"#DIV/0!"}]
["Artículo 21 -. Mantenimiento o reparación de bienes inmuebles o muebles.",null,null,null,{"$error":"#DIV/0!"},null,null,null,null,null,null,{"$error":"#DIV/0!"},null,{"$error":"#DIV/0!"},null,{"$error":"#DIV/0!"}]
["Artículo 22 -. Suscripciones.",null,null,null,{"$error":"#DIV/0!"},null,null,null,null,null,null,{"$error":"#DIV/0!"},null,{"$error":"#DIV/0!"},null,{"$error":"#DIV/0!"}]
["Artículo 23 -. Servicios públicos.",null,null,null,{"$error":"#DIV/0!"},null,null,null,null,null,null,{"$error":"#DIV/0!"},null,{"$error":"#DIV/0!"},null,{"$error":"#DIV/0!"}]

{"sheet":"0235-01 CONTRALORIA","index":70,"n_rows":27,"n_cols":16,"rows_kept":27,"cut":false,"hidden":false,"merged":[[5,10,5,11],[5,12,5,13],[5,14,5,15],[1,1,1,4],[3,0,6,0],[3,1,6,1],[3,2,4,4],[3,5,3,9],[3,10,4,15],[4,5,6,5],[4,6,6,6],[4,7,5,9],[5,3,5,4]]}
["PLAN DE AUSTERIDAD EN EL GASTO 2025-2027"]
["Entidad"," "]
["Valores en Pesos Corrientes"]
["CONCEPTO\n(Decreto 062 de 2024)","Posiciones Presupuestales Asociadas\n(Funcionamiento e Inversión)","LÍNEA BASE",null,null,"PLAN DE AUSTERIDAD EN EL GASTO 2025-2027",null,null,null,null,"SEGUIMIENTO RESULTADOS PLAN DE AUSTERIDAD 2025-2027"]
[null,null,null,null,null,"ESTRATEGIAS\n2025-2027","ACCIONES\n2025-2027","META INDICADOR DE AUSTERIDAD"]
[null,null,"AÑO 2023","AÑO 2024",null,null,null,null,null,null,"AÑO 2025",null,"AÑO 2026",null,"AÑO 2027"]
[null,null,"Valor EJECUTADO\na 31/12/2023","Valor EJECUTADO\na 31/12/2024","Resultado\nIndicador Austeridad",null,null,"AÑO 2025","AÑO 2026","AÑO 2027","Valor EJECUTADO\na 31/12/2025","Resultado\nIndicador Austeridad","Valor EJECUTADO\na 31/12/2026","Resultado\nIndicador Austeridad","Valor EJECUTADO\na 31/12/2027","Resultado\nIndicador Austeridad"]
["Servicios de personal"]
["Artículo 6°.- Reducción del gasto en CPS profesionales y de apoyo a la gestión. ","N.A.  \nSe registran totales. Corresponde con lo reportado en SIDEAP y SIVICOF",null,null,{"$f":"1-(D9/C9)","v":{"$error":"#DIV/0!"}},null,null,null,null,null,null,{"$f":"1-(K9/D9)","v":{"$error":"#DIV/0!"}},null,{"$f":"1-(M9/K9)","v":{"$error":"#DIV/0!"}},null,{"$f":"1-(O9/M9)","v":{"$error":"#DIV/0!"}}]
["Artículo 7°.- Horas extras, dominicales y festivos. ",null,null,null,{"$error":"#DIV/0!"},null,null,null,null,null,null,{"$f":"1-(K10/D10)","v":{"$error":"#DIV/0!"}},null,{"$f":"1-(M10/K10)","v":{"$error":"#DIV/0!"}},null,{"$error":"#DIV/0!"}]
["Artículo 8°.- Viáticos y gastos de viaje.",null,null,null,{"$error":"#DIV/0!"},null,null,null,null,null,null,{"$error":"#DIV/0!"},null,{"$error":"#DIV/0!"},null,{"$error":"#DIV/0!"}]
["Artículo 9°.- Compensación por vacaciones.",null,null,null,{"$error":"#DIV/0!"},null,null,null,null,null,null,{"$error":"#DIV/0!"},null,{"$error":"#DIV/0!"},null,{"$error":"#DIV/0!"}]
["Artículo 10°.- Bono navideño.",null,null,null,{"$error":"#DIV/0!"},null,null,null,null,null,null,{"$error":"#DIV/0!"},null,{"$error":"#DIV/0!"},null,{"$error":"#DIV/0!"}]
["Artículo 11 -. Capacitación.",null,null,null,{"$error":"#DIV/0!"},null,null,null,null,null,null,{"$error":"#DIV/0!"},null,{"$error":"#DIV/0!"},null,{"$error":"#DIV/0!"}]
["Artículo 12 -. Bienestar.",null,null,null,{"$error":"#DIV/0!"},null,null,null,null,null,null,{"$error":"#DIV/0!"},null,{"$error":"#DIV/0!"},null,{"$error":"#DIV/0!"}]
["Artículo 13 -. Eventos y conmemoraciones.",null,null,null,{"$error":"#DIV/0!"},null,null,null,null,null,null,{"$error":"#DIV/0!"},null,{"$error":"#DIV/0!"},null,{"$error":"#DIV/0!"}]
["Artículo 14 -. Fondos educativos.",null,null,null,{"$error":"#DIV/0!"},null,null,null,null,null,null,{"$error":"#DIV/0!"},null,{"$error":"#DIV/0!"},null,{"$error":"#DIV/0!"}]
["Servicios Administrativos"]
["Artículo 15. Telefonía.",null,null,null,{"$f":"1-(D19/C19)","v":{"$error":"#DIV/0!"}},null,null,null,null,null,null,{"$error":"#DIV/0!"},null,{"$error":"#DIV/0!"},null,{"$error":"#DIV/0!"}]
["Artículo 16 -. Vehículos oficiales.",null,null,null,{"$error":"#DIV/0!"},null,null,null,null,null,null,{"$error":"#DIV/0!"},null,{"$error":"#DIV/0!"},null,{"$error":"#DIV/0!"}]
["Artículo 17 -. Adquisición de vehículos y maquinaria.",null,null,null,{"$error":"#DIV/0!"},null,null,null,null,null,null,{"$error":"#DIV/0!"},null,{"$error":"#DIV/0!"},null,{"$error":"#DIV/0!"}]
["Artículo 18 -. Fotocopiado, multicopiado e impresión.",null,null,null,{"$error":"#DIV/0!"},null,null,null,null,null,null,{"$error":"#DIV/0!"},null,{"$error":"#DIV/0!"},null,{"$error":"#DIV/0!"}]
["Artículo 19 -. Publicidad distrital.",null,null,null,{"$error":"#DIV/0!"},null,null,null,null,null,null,{"$error":"#DIV/0!"},null,{"$error":"#DIV/0!"},null,{"$error":"#DIV/0!"}]
["Artículo 20 -. Cajas menores.",null,null,null,{"$error":"#DIV/0!"},null,null,null,null,null,null,{"$error":"#DIV/0!"},null,{"$error":"#DIV/0!"},null,{"$error":"#DIV/0!"}]
["Artículo 21 -. Mantenimiento o reparación de bienes inmuebles o muebles.",null,null,null,{"$error":"#DIV/0!"},null,null,null,null,null,null,{"$error":"#DIV/0!"},null,{"$error":"#DIV/0!"},null,{"$error":"#DIV/0!"}]
["Artículo 22 -. Suscripciones.",null,null,null,{"$error":"#DIV/0!"},null,null,null,null,null,null,{"$error":"#DIV/0!"},null,{"$error":"#DIV/0!"},null,{"$error":"#DIV/0!"}]
["Artículo 23 -. Servicios públicos.",null,null,null,{"$error":"#DIV/0!"},null,null,null,null,null,null,{"$error":"#DIV/0!"},null,{"$error":"#DIV/0!"},null,{"$error":"#DIV/0!"}]

{"sheet":"0240-01 LOTERIA ","index":71,"n_rows":27,"n_cols":16,"rows_kept":27,"cut":false,"hidden":false,"merged":[[5,10,5,11],[5,12,5,13],[5,14,5,15],[1,1,1,4],[3,0,6,0],[3,1,6,1],[3,2,4,4],[3,5,3,9],[3,10,4,15],[4,5,6,5],[4,6,6,6],[4,7,5,9],[5,3,5,4]]}
["PLAN DE AUSTERIDAD EN EL GASTO 2025-2027"]
["Entidad"," "]
["Valores en Pesos Corrientes"]
["CONCEPTO\n(Decreto 062 de 2024)","Posiciones Presupuestales Asociadas\n(Funcionamiento e Inversión)","LÍNEA BASE",null,null,"PLAN DE AUSTERIDAD EN EL GASTO 2025-2027",null,null,null,null,"SEGUIMIENTO RESULTADOS PLAN DE AUSTERIDAD 2025-2027"]
[null,null,null,null,null,"ESTRATEGIAS\n2025-2027","ACCIONES\n2025-2027","META INDICADOR DE AUSTERIDAD"]
[null,null,"AÑO 2023","AÑO 2024",null,null,null,null,null,null,"AÑO 2025",null,"AÑO 2026",null,"AÑO 2027"]
[null,null,"Valor EJECUTADO\na 31/12/2023","Valor EJECUTADO\na 31/12/2024","Resultado\nIndicador Austeridad",null,null,"AÑO 2025","AÑO 2026","AÑO 2027","Valor EJECUTADO\na 31/12/2025","Resultado\nIndicador Austeridad","Valor EJECUTADO\na 31/12/2026","Resultado\nIndicador Austeridad","Valor EJECUTADO\na 31/12/2027","Resultado\nIndicador Austeridad"]
["Servicios de personal"]
["Artículo 6°.- Reducción del gasto en CPS profesionales y de apoyo a la gestión. ","N.A.  \nSe registran totales. Corresponde con lo reportado en SIDEAP y SIVICOF",null,null,{"$f":"1-(D9/C9)","v":{"$error":"#DIV/0!"}},null,null,null,null,null,null,{"$f":"1-(K9/D9)","v":{"$error":"#DIV/0!"}},null,{"$f":"1-(M9/K9)","v":{"$error":"#DIV/0!"}},null,{"$f":"1-(O9/M9)","v":{"$error":"#DIV/0!"}}]
["Artículo 7°.- Horas extras, dominicales y festivos. ",null,null,null,{"$error":"#DIV/0!"},null,null,null,null,null,null,{"$f":"1-(K10/D10)","v":{"$error":"#DIV/0!"}},null,{"$f":"1-(M10/K10)","v":{"$error":"#DIV/0!"}},null,{"$error":"#DIV/0!"}]
["Artículo 8°.- Viáticos y gastos de viaje.",null,null,null,{"$error":"#DIV/0!"},null,null,null,null,null,null,{"$error":"#DIV/0!"},null,{"$error":"#DIV/0!"},null,{"$error":"#DIV/0!"}]
["Artículo 9°.- Compensación por vacaciones.",null,null,null,{"$error":"#DIV/0!"},null,null,null,null,null,null,{"$error":"#DIV/0!"},null,{"$error":"#DIV/0!"},null,{"$error":"#DIV/0!"}]
["Artículo 10°.- Bono navideño.",null,null,null,{"$error":"#DIV/0!"},null,null,null,null,null,null,{"$error":"#DIV/0!"},null,{"$error":"#DIV/0!"},null,{"$error":"#DIV/0!"}]
["Artículo 11 -. Capacitación.",null,null,null,{"$error":"#DIV/0!"},null,null,null,null,null,null,{"$error":"#DIV/0!"},null,{"$error":"#DIV/0!"},null,{"$error":"#DIV/0!"}]
["Artículo 12 -. Bienestar.",null,null,null,{"$error":"#DIV/0!"},null,null,null,null,null,null,{"$error":"#DIV/0!"},null,{"$error":"#DIV/0!"},null,{"$error":"#DIV/0!"}]
["Artículo 13 -. Eventos y conmemoraciones.",null,null,null,{"$error":"#DIV/0!"},null,null,null,null,null,null,{"$error":"#DIV/0!"},null,{"$error":"#DIV/0!"},null,{"$error":"#DIV/0!"}]
["Artículo 14 -. Fondos educativos.",null,null,null,{"$error":"#DIV/0!"},null,null,null,null,null,null,{"$error":"#DIV/0!"},null,{"$error":"#DIV/0!"},null,{"$error":"#DIV/0!"}]
["Servicios Administrativos"]
["Artículo 15. Telefonía.",null,null,null,{"$f":"1-(D19/C19)","v":{"$error":"#DIV/0!"}},null,null,null,null,null,null,{"$error":"#DIV/0!"},null,{"$error":"#DIV/0!"},null,{"$error":"#DIV/0!"}]
["Artículo 16 -. Vehículos oficiales.",null,null,null,{"$error":"#DIV/0!"},null,null,null,null,null,null,{"$error":"#DIV/0!"},null,{"$error":"#DIV/0!"},null,{"$error":"#DIV/0!"}]
["Artículo 17 -. Adquisición de vehículos y maquinaria.",null,null,null,{"$error":"#DIV/0!"},null,null,null,null,null,null,{"$error":"#DIV/0!"},null,{"$error":"#DIV/0!"},null,{"$error":"#DIV/0!"}]
["Artículo 18 -. Fotocopiado, multicopiado e impresión.",null,null,null,{"$error":"#DIV/0!"},null,null,null,null,null,null,{"$error":"#DIV/0!"},null,{"$error":"#DIV/0!"},null,{"$error":"#DIV/0!"}]
["Artículo 19 -. Publicidad distrital.",null,null,null,{"$error":"#DIV/0!"},null,null,null,null,null,null,{"$error":"#DIV/0!"},null,{"$error":"#DIV/0!"},null,{"$error":"#DIV/0!"}]
["Artículo 20 -. Cajas menores.",null,null,null,{"$error":"#DIV/0!"},null,null,null,null,null,null,{"$error":"#DIV/0!"},null,{"$error":"#DIV/0!"},null,{"$error":"#DIV/0!"}]
["Artículo 21 -. Mantenimiento o reparación de bienes inmuebles o muebles.",null,null,null,{"$error":"#DIV/0!"},null,null,null,null,null,null,{"$error":"#DIV/0!"},null,{"$error":"#DIV/0!"},null,{"$error":"#DIV/0!"}]
["Artículo 22 -. Suscripciones.",null,null,null,{"$error":"#DIV/0!"},null,null,null,null,null,null,{"$error":"#DIV/0!"},null,{"$error":"#DIV/0!"},null,{"$error":"#DIV/0!"}]
["Artículo 23 -. Servicios públicos.",null,null,null,{"$error":"#DIV/0!"},null,null,null,null,null,null,{"$error":"#DIV/0!"},null,{"$error":"#DIV/0!"},null,{"$error":"#DIV/0!"}]

{"sheet":"0260-01 CANAL CAPITAL","index":72,"n_rows":27,"n_cols":16,"rows_kept":27,"cut":false,"hidden":false,"merged":[[5,10,5,11],[5,12,5,13],[5,14,5,15],[1,1,1,4],[3,0,6,0],[3,1,6,1],[3,2,4,4],[3,5,3,9],[3,10,4,15],[4,5,6,5],[4,6,6,6],[4,7,5,9],[5,3,5,4]]}
["PLAN DE AUSTERIDAD EN EL GASTO 2025-2027"]
["Entidad"," "]
["Valores en Pesos Corrientes"]
["CONCEPTO\n(Decreto 062 de 2024)","Posiciones Presupuestales Asociadas\n(Funcionamiento e Inversión)","LÍNEA BASE",null,null,"PLAN DE AUSTERIDAD EN EL GASTO 2025-2027",null,null,null,null,"SEGUIMIENTO RESULTADOS PLAN DE AUSTERIDAD 2025-2027"]
[null,null,null,null,null,"ESTRATEGIAS\n2025-2027","ACCIONES\n2025-2027","META INDICADOR DE AUSTERIDAD"]
[null,null,"AÑO 2023","AÑO 2024",null,null,null,null,null,null,"AÑO 2025",null,"AÑO 2026",null,"AÑO 2027"]
[null,null,"Valor EJECUTADO\na 31/12/2023","Valor EJECUTADO\na 31/12/2024","Resultado\nIndicador Austeridad",null,null,"AÑO 2025","AÑO 2026","AÑO 2027","Valor EJECUTADO\na 31/12/2025","Resultado\nIndicador Austeridad","Valor EJECUTADO\na 31/12/2026","Resultado\nIndicador Austeridad","Valor EJECUTADO\na 31/12/2027","Resultado\nIndicador Austeridad"]
["Servicios de personal"]
["Artículo 6°.- Reducción del gasto en CPS profesionales y de apoyo a la gestión. ","N.A.  \nSe registran totales. Corresponde con lo reportado en SIDEAP y SIVICOF",null,null,{"$f":"1-(D9/C9)","v":{"$error":"#DIV/0!"}},null,null,null,null,null,null,{"$f":"1-(K9/D9)","v":{"$error":"#DIV/0!"}},null,{"$f":"1-(M9/K9)","v":{"$error":"#DIV/0!"}},null,{"$f":"1-(O9/M9)","v":{"$error":"#DIV/0!"}}]
["Artículo 7°.- Horas extras, dominicales y festivos. ",null,null,null,{"$error":"#DIV/0!"},null,null,null,null,null,null,{"$f":"1-(K10/D10)","v":{"$error":"#DIV/0!"}},null,{"$f":"1-(M10/K10)","v":{"$error":"#DIV/0!"}},null,{"$error":"#DIV/0!"}]
["Artículo 8°.- Viáticos y gastos de viaje.",null,null,null,{"$error":"#DIV/0!"},null,null,null,null,null,null,{"$error":"#DIV/0!"},null,{"$error":"#DIV/0!"},null,{"$error":"#DIV/0!"}]
["Artículo 9°.- Compensación por vacaciones.",null,null,null,{"$error":"#DIV/0!"},null,null,null,null,null,null,{"$error":"#DIV/0!"},null,{"$error":"#DIV/0!"},null,{"$error":"#DIV/0!"}]
["Artículo 10°.- Bono navideño.",null,null,null,{"$error":"#DIV/0!"},null,null,null,null,null,null,{"$error":"#DIV/0!"},null,{"$error":"#DIV/0!"},null,{"$error":"#DIV/0!"}]
["Artículo 11 -. Capacitación.",null,null,null,{"$error":"#DIV/0!"},null,null,null,null,null,null,{"$error":"#DIV/0!"},null,{"$error":"#DIV/0!"},null,{"$error":"#DIV/0!"}]
["Artículo 12 -. Bienestar.",null,null,null,{"$error":"#DIV/0!"},null,null,null,null,null,null,{"$error":"#DIV/0!"},null,{"$error":"#DIV/0!"},null,{"$error":"#DIV/0!"}]
["Artículo 13 -. Eventos y conmemoraciones.",null,null,null,{"$error":"#DIV/0!"},null,null,null,null,null,null,{"$error":"#DIV/0!"},null,{"$error":"#DIV/0!"},null,{"$error":"#DIV/0!"}]
["Artículo 14 -. Fondos educativos.",null,null,null,{"$error":"#DIV/0!"},null,null,null,null,null,null,{"$error":"#DIV/0!"},null,{"$error":"#DIV/0!"},null,{"$error":"#DIV/0!"}]
["Servicios Administrativos"]
["Artículo 15. Telefonía.",null,null,null,{"$f":"1-(D19/C19)","v":{"$error":"#DIV/0!"}},null,null,null,null,null,null,{"$error":"#DIV/0!"},null,{"$error":"#DIV/0!"},null,{"$error":"#DIV/0!"}]
["Artículo 16 -. Vehículos oficiales.",null,null,null,{"$error":"#DIV/0!"},null,null,null,null,null,null,{"$error":"#DIV/0!"},null,{"$error":"#DIV/0!"},null,{"$error":"#DIV/0!"}]
["Artículo 17 -. Adquisición de vehículos y maquinaria.",null,null,null,{"$error":"#DIV/0!"},null,null,null,null,null,null,{"$error":"#DIV/0!"},null,{"$error":"#DIV/0!"},null,{"$error":"#DIV/0!"}]
["Artículo 18 -. Fotocopiado, multicopiado e impresión.",null,null,null,{"$error":"#DIV/0!"},null,null,null,null,null,null,{"$error":"#DIV/0!"},null,{"$error":"#DIV/0!"},null,{"$error":"#DIV/0!"}]
["Artículo 19 -. Publicidad distrital.",null,null,null,{"$error":"#DIV/0!"},null,null,null,null,null,null,{"$error":"#DIV/0!"},null,{"$error":"#DIV/0!"},null,{"$error":"#DIV/0!"}]
["Artículo 20 -. Cajas menores.",null,null,null,{"$error":"#DIV/0!"},null,null,null,null,null,null,{"$error":"#DIV/0!"},null,{"$error":"#DIV/0!"},null,{"$error":"#DIV/0!"}]
["Artículo 21 -. Mantenimiento o reparación de bienes inmuebles o muebles.",null,null,null,{"$error":"#DIV/0!"},null,null,null,null,null,null,{"$error":"#DIV/0!"},null,{"$error":"#DIV/0!"},null,{"$error":"#DIV/0!"}]
["Artículo 22 -. Suscripciones.",null,null,null,{"$error":"#DIV/0!"},null,null,null,null,null,null,{"$error":"#DIV/0!"},null,{"$error":"#DIV/0!"},null,{"$error":"#DIV/0!"}]
["Artículo 23 -. Servicios públicos.",null,null,null,{"$error":"#DIV/0!"},null,null,null,null,null,null,{"$error":"#DIV/0!"},null,{"$error":"#DIV/0!"},null,{"$error":"#DIV/0!"}]

{"sheet":"0262-01 TRANSMILENIO","index":73,"n_rows":27,"n_cols":16,"rows_kept":27,"cut":false,"hidden":false,"merged":[[5,10,5,11],[5,12,5,13],[5,14,5,15],[1,1,1,4],[3,0,6,0],[3,1,6,1],[3,2,4,4],[3,5,3,9],[3,10,4,15],[4,5,6,5],[4,6,6,6],[4,7,5,9],[5,3,5,4]]}
["PLAN DE AUSTERIDAD EN EL GASTO 2025-2027"]
["Entidad"," "]
["Valores en Pesos Corrientes"]
["CONCEPTO\n(Decreto 062 de 2024)","Posiciones Presupuestales Asociadas\n(Funcionamiento e Inversión)","LÍNEA BASE",null,null,"PLAN DE AUSTERIDAD EN EL GASTO 2025-2027",null,null,null,null,"SEGUIMIENTO RESULTADOS PLAN DE AUSTERIDAD 2025-2027"]
[null,null,null,null,null,"ESTRATEGIAS\n2025-2027","ACCIONES\n2025-2027","META INDICADOR DE AUSTERIDAD"]
[null,null,"AÑO 2023","AÑO 2024",null,null,null,null,null,null,"AÑO 2025",null,"AÑO 2026",null,"AÑO 2027"]
[null,null,"Valor EJECUTADO\na 31/12/2023","Valor EJECUTADO\na 31/12/2024","Resultado\nIndicador Austeridad",null,null,"AÑO 2025","AÑO 2026","AÑO 2027","Valor EJECUTADO\na 31/12/2025","Resultado\nIndicador Austeridad","Valor EJECUTADO\na 31/12/2026","Resultado\nIndicador Austeridad","Valor EJECUTADO\na 31/12/2027","Resultado\nIndicador Austeridad"]
["Servicios de personal"]
["Artículo 6°.- Reducción del gasto en CPS profesionales y de apoyo a la gestión. ","N.A.  \nSe registran totales. Corresponde con lo reportado en SIDEAP y SIVICOF",null,null,{"$f":"1-(D9/C9)","v":{"$error":"#DIV/0!"}},null,null,null,null,null,null,{"$f":"1-(K9/D9)","v":{"$error":"#DIV/0!"}},null,{"$f":"1-(M9/K9)","v":{"$error":"#DIV/0!"}},null,{"$f":"1-(O9/M9)","v":{"$error":"#DIV/0!"}}]
["Artículo 7°.- Horas extras, dominicales y festivos. ",null,null,null,{"$error":"#DIV/0!"},null,null,null,null,null,null,{"$f":"1-(K10/D10)","v":{"$error":"#DIV/0!"}},null,{"$f":"1-(M10/K10)","v":{"$error":"#DIV/0!"}},null,{"$error":"#DIV/0!"}]
["Artículo 8°.- Viáticos y gastos de viaje.",null,null,null,{"$error":"#DIV/0!"},null,null,null,null,null,null,{"$error":"#DIV/0!"},null,{"$error":"#DIV/0!"},null,{"$error":"#DIV/0!"}]
["Artículo 9°.- Compensación por vacaciones.",null,null,null,{"$error":"#DIV/0!"},null,null,null,null,null,null,{"$error":"#DIV/0!"},null,{"$error":"#DIV/0!"},null,{"$error":"#DIV/0!"}]
["Artículo 10°.- Bono navideño.",null,null,null,{"$error":"#DIV/0!"},null,null,null,null,null,null,{"$error":"#DIV/0!"},null,{"$error":"#DIV/0!"},null,{"$error":"#DIV/0!"}]
["Artículo 11 -. Capacitación.",null,null,null,{"$error":"#DIV/0!"},null,null,null,null,null,null,{"$error":"#DIV/0!"},null,{"$error":"#DIV/0!"},null,{"$error":"#DIV/0!"}]
["Artículo 12 -. Bienestar.",null,null,null,{"$error":"#DIV/0!"},null,null,null,null,null,null,{"$error":"#DIV/0!"},null,{"$error":"#DIV/0!"},null,{"$error":"#DIV/0!"}]
["Artículo 13 -. Eventos y conmemoraciones.",null,null,null,{"$error":"#DIV/0!"},null,null,null,null,null,null,{"$error":"#DIV/0!"},null,{"$error":"#DIV/0!"},null,{"$error":"#DIV/0!"}]
["Artículo 14 -. Fondos educativos.",null,null,null,{"$error":"#DIV/0!"},null,null,null,null,null,null,{"$error":"#DIV/0!"},null,{"$error":"#DIV/0!"},null,{"$error":"#DIV/0!"}]
["Servicios Administrativos"]
["Artículo 15. Telefonía.",null,null,null,{"$f":"1-(D19/C19)","v":{"$error":"#DIV/0!"}},null,null,null,null,null,null,{"$error":"#DIV/0!"},null,{"$error":"#DIV/0!"},null,{"$error":"#DIV/0!"}]
["Artículo 16 -. Vehículos oficiales.",null,null,null,{"$error":"#DIV/0!"},null,null,null,null,null,null,{"$error":"#DIV/0!"},null,{"$error":"#DIV/0!"},null,{"$error":"#DIV/0!"}]
["Artículo 17 -. Adquisición de vehículos y maquinaria.",null,null,null,{"$error":"#DIV/0!"},null,null,null,null,null,null,{"$error":"#DIV/0!"},null,{"$error":"#DIV/0!"},null,{"$error":"#DIV/0!"}]
["Artículo 18 -. Fotocopiado, multicopiado e impresión.",null,null,null,{"$error":"#DIV/0!"},null,null,null,null,null,null,{"$error":"#DIV/0!"},null,{"$error":"#DIV/0!"},null,{"$error":"#DIV/0!"}]
["Artículo 19 -. Publicidad distrital.",null,null,null,{"$error":"#DIV/0!"},null,null,null,null,null,null,{"$error":"#DIV/0!"},null,{"$error":"#DIV/0!"},null,{"$error":"#DIV/0!"}]
["Artículo 20 -. Cajas menores.",null,null,null,{"$error":"#DIV/0!"},null,null,null,null,null,null,{"$error":"#DIV/0!"},null,{"$error":"#DIV/0!"},null,{"$error":"#DIV/0!"}]
["Artículo 21 -. Mantenimiento o reparación de bienes inmuebles o muebles.",null,null,null,{"$error":"#DIV/0!"},null,null,null,null,null,null,{"$error":"#DIV/0!"},null,{"$error":"#DIV/0!"},null,{"$error":"#DIV/0!"}]
["Artículo 22 -. Suscripciones.",null,null,null,{"$error":"#DIV/0!"},null,null,null,null,null,null,{"$error":"#DIV/0!"},null,{"$error":"#DIV/0!"},null,{"$error":"#DIV/0!"}]
["Artículo 23 -. Servicios públicos.",null,null,null,{"$error":"#DIV/0!"},null,null,null,null,null,null,{"$error":"#DIV/0!"},null,{"$error":"#DIV/0!"},null,{"$error":"#DIV/0!"}]

{"sheet":"0263-01 ERU","index":74,"n_rows":27,"n_cols":16,"rows_kept":27,"cut":false,"hidden":false,"merged":[[5,10,5,11],[5,12,5,13],[5,14,5,15],[1,1,1,4],[3,0,6,0],[3,1,6,1],[3,2,4,4],[3,5,3,9],[3,10,4,15],[4,5,6,5],[4,6,6,6],[4,7,5,9],[5,3,5,4]]}
["PLAN DE AUSTERIDAD EN EL GASTO 2025-2027"]
["Entidad"," "]
["Valores en Pesos Corrientes"]
["CONCEPTO\n(Decreto 062 de 2024)","Posiciones Presupuestales Asociadas\n(Funcionamiento e Inversión)","LÍNEA BASE",null,null,"PLAN DE AUSTERIDAD EN EL GASTO 2025-2027",null,null,null,null,"SEGUIMIENTO RESULTADOS PLAN DE AUSTERIDAD 2025-2027"]
[null,null,null,null,null,"ESTRATEGIAS\n2025-2027","ACCIONES\n2025-2027","META INDICADOR DE AUSTERIDAD"]
[null,null,"AÑO 2023","AÑO 2024",null,null,null,null,null,null,"AÑO 2025",null,"AÑO 2026",null,"AÑO 2027"]
[null,null,"Valor EJECUTADO\na 31/12/2023","Valor EJECUTADO\na 31/12/2024","Resultado\nIndicador Austeridad",null,null,"AÑO 2025","AÑO 2026","AÑO 2027","Valor EJECUTADO\na 31/12/2025","Resultado\nIndicador Austeridad","Valor EJECUTADO\na 31/12/2026","Resultado\nIndicador Austeridad","Valor EJECUTADO\na 31/12/2027","Resultado\nIndicador Austeridad"]
["Servicios de personal"]
["Artículo 6°.- Reducción del gasto en CPS profesionales y de apoyo a la gestión. ","N.A.  \nSe registran totales. Corresponde con lo reportado en SIDEAP y SIVICOF",null,null,{"$f":"1-(D9/C9)","v":{"$error":"#DIV/0!"}},null,null,null,null,null,null,{"$f":"1-(K9/D9)","v":{"$error":"#DIV/0!"}},null,{"$f":"1-(M9/K9)","v":{"$error":"#DIV/0!"}},null,{"$f":"1-(O9/M9)","v":{"$error":"#DIV/0!"}}]
["Artículo 7°.- Horas extras, dominicales y festivos. ",null,null,null,{"$error":"#DIV/0!"},null,null,null,null,null,null,{"$f":"1-(K10/D10)","v":{"$error":"#DIV/0!"}},null,{"$f":"1-(M10/K10)","v":{"$error":"#DIV/0!"}},null,{"$error":"#DIV/0!"}]
["Artículo 8°.- Viáticos y gastos de viaje.",null,null,null,{"$error":"#DIV/0!"},null,null,null,null,null,null,{"$error":"#DIV/0!"},null,{"$error":"#DIV/0!"},null,{"$error":"#DIV/0!"}]
["Artículo 9°.- Compensación por vacaciones.",null,null,null,{"$error":"#DIV/0!"},null,null,null,null,null,null,{"$error":"#DIV/0!"},null,{"$error":"#DIV/0!"},null,{"$error":"#DIV/0!"}]
["Artículo 10°.- Bono navideño.",null,null,null,{"$error":"#DIV/0!"},null,null,null,null,null,null,{"$error":"#DIV/0!"},null,{"$error":"#DIV/0!"},null,{"$error":"#DIV/0!"}]
["Artículo 11 -. Capacitación.",null,null,null,{"$error":"#DIV/0!"},null,null,null,null,null,null,{"$error":"#DIV/0!"},null,{"$error":"#DIV/0!"},null,{"$error":"#DIV/0!"}]
["Artículo 12 -. Bienestar.",null,null,null,{"$error":"#DIV/0!"},null,null,null,null,null,null,{"$error":"#DIV/0!"},null,{"$error":"#DIV/0!"},null,{"$error":"#DIV/0!"}]
["Artículo 13 -. Eventos y conmemoraciones.",null,null,null,{"$error":"#DIV/0!"},null,null,null,null,null,null,{"$error":"#DIV/0!"},null,{"$error":"#DIV/0!"},null,{"$error":"#DIV/0!"}]
["Artículo 14 -. Fondos educativos.",null,null,null,{"$error":"#DIV/0!"},null,null,null,null,null,null,{"$error":"#DIV/0!"},null,{"$error":"#DIV/0!"},null,{"$error":"#DIV/0!"}]
["Servicios Administrativos"]
["Artículo 15. Telefonía.",null,null,null,{"$f":"1-(D19/C19)","v":{"$error":"#DIV/0!"}},null,null,null,null,null,null,{"$error":"#DIV/0!"},null,{"$error":"#DIV/0!"},null,{"$error":"#DIV/0!"}]
["Artículo 16 -. Vehículos oficiales.",null,null,null,{"$error":"#DIV/0!"},null,null,null,null,null,null,{"$error":"#DIV/0!"},null,{"$error":"#DIV/0!"},null,{"$error":"#DIV/0!"}]
["Artículo 17 -. Adquisición de vehículos y maquinaria.",null,null,null,{"$error":"#DIV/0!"},null,null,null,null,null,null,{"$error":"#DIV/0!"},null,{"$error":"#DIV/0!"},null,{"$error":"#DIV/0!"}]
["Artículo 18 -. Fotocopiado, multicopiado e impresión.",null,null,null,{"$error":"#DIV/0!"},null,null,null,null,null,null,{"$error":"#DIV/0!"},null,{"$error":"#DIV/0!"},null,{"$error":"#DIV/0!"}]
["Artículo 19 -. Publicidad distrital.",null,null,null,{"$error":"#DIV/0!"},null,null,null,null,null,null,{"$error":"#DIV/0!"},null,{"$error":"#DIV/0!"},null,{"$error":"#DIV/0!"}]
["Artículo 20 -. Cajas menores.",null,null,null,{"$error":"#DIV/0!"},null,null,null,null,null,null,{"$error":"#DIV/0!"},null,{"$error":"#DIV/0!"},null,{"$error":"#DIV/0!"}]
["Artículo 21 -. Mantenimiento o reparación de bienes inmuebles o muebles.",null,null,null,{"$error":"#DIV/0!"},null,null,null,null,null,null,{"$error":"#DIV/0!"},null,{"$error":"#DIV/0!"},null,{"$error":"#DIV/0!"}]
["Artículo 22 -. Suscripciones.",null,null,null,{"$error":"#DIV/0!"},null,null,null,null,null,null,{"$error":"#DIV/0!"},null,{"$error":"#DIV/0!"},null,{"$error":"#DIV/0!"}]
["Artículo 23 -. Servicios públicos.",null,null,null,{"$error":"#DIV/0!"},null,null,null,null,null,null,{"$error":"#DIV/0!"},null,{"$error":"#DIV/0!"},null,{"$error":"#DIV/0!"}]

{"sheet":"0264-01 AB ESP","index":75,"n_rows":27,"n_cols":16,"rows_kept":27,"cut":false,"hidden":false,"merged":[[5,10,5,11],[5,12,5,13],[5,14,5,15],[1,1,1,4],[3,0,6,0],[3,1,6,1],[3,2,4,4],[3,5,3,9],[3,10,4,15],[4,5,6,5],[4,6,6,6],[4,7,5,9],[5,3,5,4]]}
["PLAN DE AUSTERIDAD EN EL GASTO 2025-2027"]
["Entidad"," "]
["Valores en Pesos Corrientes"]
["CONCEPTO\n(Decreto 062 de 2024)","Posiciones Presupuestales Asociadas\n(Funcionamiento e Inversión)","LÍNEA BASE",null,null,"PLAN DE AUSTERIDAD EN EL GASTO 2025-2027",null,null,null,null,"SEGUIMIENTO RESULTADOS PLAN DE AUSTERIDAD 2025-2027"]
[null,null,null,null,null,"ESTRATEGIAS\n2025-2027","ACCIONES\n2025-2027","META INDICADOR DE AUSTERIDAD"]
[null,null,"AÑO 2023","AÑO 2024",null,null,null,null,null,null,"AÑO 2025",null,"AÑO 2026",null,"AÑO 2027"]
[null,null,"Valor EJECUTADO\na 31/12/2023","Valor EJECUTADO\na 31/12/2024","Resultado\nIndicador Austeridad",null,null,"AÑO 2025","AÑO 2026","AÑO 2027","Valor EJECUTADO\na 31/12/2025","Resultado\nIndicador Austeridad","Valor EJECUTADO\na 31/12/2026","Resultado\nIndicador Austeridad","Valor EJECUTADO\na 31/12/2027","Resultado\nIndicador Austeridad"]
["Servicios de personal"]
["Artículo 6°.- Reducción del gasto en CPS profesionales y de apoyo a la gestión. ","N.A.  \nSe registran totales. Corresponde con lo reportado en SIDEAP y SIVICOF",null,null,{"$f":"1-(D9/C9)","v":{"$error":"#DIV/0!"}},null,null,null,null,null,null,{"$f":"1-(K9/D9)","v":{"$error":"#DIV/0!"}},null,{"$f":"1-(M9/K9)","v":{"$error":"#DIV/0!"}},null,{"$f":"1-(O9/M9)","v":{"$error":"#DIV/0!"}}]
["Artículo 7°.- Horas extras, dominicales y festivos. ",null,null,null,{"$error":"#DIV/0!"},null,null,null,null,null,null,{"$f":"1-(K10/D10)","v":{"$error":"#DIV/0!"}},null,{"$f":"1-(M10/K10)","v":{"$error":"#DIV/0!"}},null,{"$error":"#DIV/0!"}]
["Artículo 8°.- Viáticos y gastos de viaje.",null,null,null,{"$error":"#DIV/0!"},null,null,null,null,null,null,{"$error":"#DIV/0!"},null,{"$error":"#DIV/0!"},null,{"$error":"#DIV/0!"}]
["Artículo 9°.- Compensación por vacaciones.",null,null,null,{"$error":"#DIV/0!"},null,null,null,null,null,null,{"$error":"#DIV/0!"},null,{"$error":"#DIV/0!"},null,{"$error":"#DIV/0!"}]
["Artículo 10°.- Bono navideño.",null,null,null,{"$error":"#DIV/0!"},null,null,null,null,null,null,{"$error":"#DIV/0!"},null,{"$error":"#DIV/0!"},null,{"$error":"#DIV/0!"}]
["Artículo 11 -. Capacitación.",null,null,null,{"$error":"#DIV/0!"},null,null,null,null,null,null,{"$error":"#DIV/0!"},null,{"$error":"#DIV/0!"},null,{"$error":"#DIV/0!"}]
["Artículo 12 -. Bienestar.",null,null,null,{"$error":"#DIV/0!"},null,null,null,null,null,null,{"$error":"#DIV/0!"},null,{"$error":"#DIV/0!"},null,{"$error":"#DIV/0!"}]
["Artículo 13 -. Eventos y conmemoraciones.",null,null,null,{"$error":"#DIV/0!"},null,null,null,null,null,null,{"$error":"#DIV/0!"},null,{"$error":"#DIV/0!"},null,{"$error":"#DIV/0!"}]
["Artículo 14 -. Fondos educativos.",null,null,null,{"$error":"#DIV/0!"},null,null,null,null,null,null,{"$error":"#DIV/0!"},null,{"$error":"#DIV/0!"},null,{"$error":"#DIV/0!"}]
["Servicios Administrativos"]
["Artículo 15. Telefonía.",null,null,null,{"$f":"1-(D19/C19)","v":{"$error":"#DIV/0!"}},null,null,null,null,null,null,{"$error":"#DIV/0!"},null,{"$error":"#DIV/0!"},null,{"$error":"#DIV/0!"}]
["Artículo 16 -. Vehículos oficiales.",null,null,null,{"$error":"#DIV/0!"},null,null,null,null,null,null,{"$error":"#DIV/0!"},null,{"$error":"#DIV/0!"},null,{"$error":"#DIV/0!"}]
["Artículo 17 -. Adquisición de vehículos y maquinaria.",null,null,null,{"$error":"#DIV/0!"},null,null,null,null,null,null,{"$error":"#DIV/0!"},null,{"$error":"#DIV/0!"},null,{"$error":"#DIV/0!"}]
["Artículo 18 -. Fotocopiado, multicopiado e impresión.",null,null,null,{"$error":"#DIV/0!"},null,null,null,null,null,null,{"$error":"#DIV/0!"},null,{"$error":"#DIV/0!"},null,{"$error":"#DIV/0!"}]
["Artículo 19 -. Publicidad distrital.",null,null,null,{"$error":"#DIV/0!"},null,null,null,null,null,null,{"$error":"#DIV/0!"},null,{"$error":"#DIV/0!"},null,{"$error":"#DIV/0!"}]
["Artículo 20 -. Cajas menores.",null,null,null,{"$error":"#DIV/0!"},null,null,null,null,null,null,{"$error":"#DIV/0!"},null,{"$error":"#DIV/0!"},null,{"$error":"#DIV/0!"}]
["Artículo 21 -. Mantenimiento o reparación de bienes inmuebles o muebles.",null,null,null,{"$error":"#DIV/0!"},null,null,null,null,null,null,{"$error":"#DIV/0!"},null,{"$error":"#DIV/0!"},null,{"$error":"#DIV/0!"}]
["Artículo 22 -. Suscripciones.",null,null,null,{"$error":"#DIV/0!"},null,null,null,null,null,null,{"$error":"#DIV/0!"},null,{"$error":"#DIV/0!"},null,{"$error":"#DIV/0!"}]
["Artículo 23 -. Servicios públicos.",null,null,null,{"$error":"#DIV/0!"},null,null,null,null,null,null,{"$error":"#DIV/0!"},null,{"$error":"#DIV/0!"},null,{"$error":"#DIV/0!"}]

{"sheet":"0265-01 EAAB","index":76,"n_rows":27,"n_cols":16,"rows_kept":27,"cut":false,"hidden":false,"merged":[[5,10,5,11],[5,12,5,13],[5,14,5,15],[1,1,1,4],[3,0,6,0],[3,1,6,1],[3,2,4,4],[3,5,3,9],[3,10,4,15],[4,5,6,5],[4,6,6,6],[4,7,5,9],[5,3,5,4]]}
["PLAN DE AUSTERIDAD EN EL GASTO 2025-2027"]
["Entidad"," "]
["Valores en Pesos Corrientes"]
["CONCEPTO\n(Decreto 062 de 2024)","Posiciones Presupuestales Asociadas\n(Funcionamiento e Inversión)","LÍNEA BASE",null,null,"PLAN DE AUSTERIDAD EN EL GASTO 2025-2027",null,null,null,null,"SEGUIMIENTO RESULTADOS PLAN DE AUSTERIDAD 2025-2027"]
[null,null,null,null,null,"ESTRATEGIAS\n2025-2027","ACCIONES\n2025-2027","META INDICADOR DE AUSTERIDAD"]
[null,null,"AÑO 2023","AÑO 2024",null,null,null,null,null,null,"AÑO 2025",null,"AÑO 2026",null,"AÑO 2027"]
[null,null,"Valor EJECUTADO\na 31/12/2023","Valor EJECUTADO\na 31/12/2024","Resultado\nIndicador Austeridad",null,null,"AÑO 2025","AÑO 2026","AÑO 2027","Valor EJECUTADO\na 31/12/2025","Resultado\nIndicador Austeridad","Valor EJECUTADO\na 31/12/2026","Resultado\nIndicador Austeridad","Valor EJECUTADO\na 31/12/2027","Resultado\nIndicador Austeridad"]
["Servicios de personal"]
["Artículo 6°.- Reducción del gasto en CPS profesionales y de apoyo a la gestión. ","N.A.  \nSe registran totales. Corresponde con lo reportado en SIDEAP y SIVICOF",null,null,{"$f":"1-(D9/C9)","v":{"$error":"#DIV/0!"}},null,null,null,null,null,null,{"$f":"1-(K9/D9)","v":{"$error":"#DIV/0!"}},null,{"$f":"1-(M9/K9)","v":{"$error":"#DIV/0!"}},null,{"$f":"1-(O9/M9)","v":{"$error":"#DIV/0!"}}]
["Artículo 7°.- Horas extras, dominicales y festivos. ",null,null,null,{"$error":"#DIV/0!"},null,null,null,null,null,null,{"$f":"1-(K10/D10)","v":{"$error":"#DIV/0!"}},null,{"$f":"1-(M10/K10)","v":{"$error":"#DIV/0!"}},null,{"$error":"#DIV/0!"}]
["Artículo 8°.- Viáticos y gastos de viaje.",null,null,null,{"$error":"#DIV/0!"},null,null,null,null,null,null,{"$error":"#DIV/0!"},null,{"$error":"#DIV/0!"},null,{"$error":"#DIV/0!"}]
["Artículo 9°.- Compensación por vacaciones.",null,null,null,{"$error":"#DIV/0!"},null,null,null,null,null,null,{"$error":"#DIV/0!"},null,{"$error":"#DIV/0!"},null,{"$error":"#DIV/0!"}]
["Artículo 10°.- Bono navideño.",null,null,null,{"$error":"#DIV/0!"},null,null,null,null,null,null,{"$error":"#DIV/0!"},null,{"$error":"#DIV/0!"},null,{"$error":"#DIV/0!"}]
["Artículo 11 -. Capacitación.",null,null,null,{"$error":"#DIV/0!"},null,null,null,null,null,null,{"$error":"#DIV/0!"},null,{"$error":"#DIV/0!"},null,{"$error":"#DIV/0!"}]
["Artículo 12 -. Bienestar.",null,null,null,{"$error":"#DIV/0!"},null,null,null,null,null,null,{"$error":"#DIV/0!"},null,{"$error":"#DIV/0!"},null,{"$error":"#DIV/0!"}]
["Artículo 13 -. Eventos y conmemoraciones.",null,null,null,{"$error":"#DIV/0!"},null,null,null,null,null,null,{"$error":"#DIV/0!"},null,{"$error":"#DIV/0!"},null,{"$error":"#DIV/0!"}]
["Artículo 14 -. Fondos educativos.",null,null,null,{"$error":"#DIV/0!"},null,null,null,null,null,null,{"$error":"#DIV/0!"},null,{"$error":"#DIV/0!"},null,{"$error":"#DIV/0!"}]
["Servicios Administrativos"]
["Artículo 15. Telefonía.",null,null,null,{"$f":"1-(D19/C19)","v":{"$error":"#DIV/0!"}},null,null,null,null,null,null,{"$error":"#DIV/0!"},null,{"$error":"#DIV/0!"},null,{"$error":"#DIV/0!"}]
["Artículo 16 -. Vehículos oficiales.",null,null,null,{"$error":"#DIV/0!"},null,null,null,null,null,null,{"$error":"#DIV/0!"},null,{"$error":"#DIV/0!"},null,{"$error":"#DIV/0!"}]
["Artículo 17 -. Adquisición de vehículos y maquinaria.",null,null,null,{"$error":"#DIV/0!"},null,null,null,null,null,null,{"$error":"#DIV/0!"},null,{"$error":"#DIV/0!"},null,{"$error":"#DIV/0!"}]
["Artículo 18 -. Fotocopiado, multicopiado e impresión.",null,null,null,{"$error":"#DIV/0!"},null,null,null,null,null,null,{"$error":"#DIV/0!"},null,{"$error":"#DIV/0!"},null,{"$error":"#DIV/0!"}]
["Artículo 19 -. Publicidad distrital.",null,null,null,{"$error":"#DIV/0!"},null,null,null,null,null,null,{"$error":"#DIV/0!"},null,{"$error":"#DIV/0!"},null,{"$error":"#DIV/0!"}]
["Artículo 20 -. Cajas menores.",null,null,null,{"$error":"#DIV/0!"},null,null,null,null,null,null,{"$error":"#DIV/0!"},null,{"$error":"#DIV/0!"},null,{"$error":"#DIV/0!"}]
["Artículo 21 -. Mantenimiento o reparación de bienes inmuebles o muebles.",null,null,null,{"$error":"#DIV/0!"},null,null,null,null,null,null,{"$error":"#DIV/0!"},null,{"$error":"#DIV/0!"},null,{"$error":"#DIV/0!"}]
["Artículo 22 -. Suscripciones.",null,null,null,{"$error":"#DIV/0!"},null,null,null,null,null,null,{"$error":"#DIV/0!"},null,{"$error":"#DIV/0!"},null,{"$error":"#DIV/0!"}]
["Artículo 23 -. Servicios públicos.",null,null,null,{"$error":"#DIV/0!"},null,null,null,null,null,null,{"$error":"#DIV/0!"},null,{"$error":"#DIV/0!"},null,{"$error":"#DIV/0!"}]

{"sheet":"0266-01 EMB","index":77,"n_rows":27,"n_cols":16,"rows_kept":27,"cut":false,"hidden":false,"merged":[[5,10,5,11],[5,12,5,13],[5,14,5,15],[1,1,1,4],[3,0,6,0],[3,1,6,1],[3,2,4,4],[3,5,3,9],[3,10,4,15],[4,5,6,5],[4,6,6,6],[4,7,5,9],[5,3,5,4]]}
["PLAN DE AUSTERIDAD EN EL GASTO 2025-2027"]
["Entidad","EMPRESA METRO DE BOGOTA"]
["Valores en Pesos Corrientes"]
["CONCEPTO\n(Decreto 062 de 2024)","Posiciones Presupuestales Asociadas\n(Funcionamiento e Inversión)","LÍNEA BASE",null,null,"PLAN DE AUSTERIDAD EN EL GASTO 2025-2027",null,null,null,null,"SEGUIMIENTO RESULTADOS PLAN DE AUSTERIDAD 2025-2027"]
[null,null,null,null,null,"ESTRATEGIAS\n2025-2027","ACCIONES\n2025-2027","META INDICADOR DE AUSTERIDAD"]
[null,null,"AÑO 2023","AÑO 2024",null,null,null,null,null,null,"AÑO 2025",null,"AÑO 2026",null,"AÑO 2027"]
[null,null,"Valor EJECUTADO\na 31/12/2023","Valor EJECUTADO\na 31/12/2024","Resultado\nIndicador Austeridad",null,null,"AÑO 2025","AÑO 2026","AÑO 2027","Valor EJECUTADO\na 31/12/2025","Resultado\nIndicador Austeridad","Valor EJECUTADO\na 31/12/2026","Resultado\nIndicador Austeridad","Valor EJECUTADO\na 31/12/2027","Resultado\nIndicador Austeridad"]
["Servicios de personal"]
["Artículo 6°.- Reducción del gasto en CPS profesionales y de apoyo a la gestión. ","N.A.  \nSe registran totales. Corresponde con lo reportado en SIDEAP y SIVICOF",null,null,{"$f":"1-(D9/C9)","v":{"$error":"#DIV/0!"}},null,null,null,null,null,null,{"$f":"1-(K9/D9)","v":{"$error":"#DIV/0!"}},null,{"$f":"1-(M9/K9)","v":{"$error":"#DIV/0!"}},null,{"$f":"1-(O9/M9)","v":{"$error":"#DIV/0!"}}]
["Artículo 7°.- Horas extras, dominicales y festivos. ",null,null,null,{"$error":"#DIV/0!"},null,null,null,null,null,null,{"$f":"1-(K10/D10)","v":{"$error":"#DIV/0!"}},null,{"$f":"1-(M10/K10)","v":{"$error":"#DIV/0!"}},null,{"$error":"#DIV/0!"}]
["Artículo 8°.- Viáticos y gastos de viaje.",null,null,null,{"$error":"#DIV/0!"},null,null,null,null,null,null,{"$error":"#DIV/0!"},null,{"$error":"#DIV/0!"},null,{"$error":"#DIV/0!"}]
["Artículo 9°.- Compensación por vacaciones.",null,null,null,{"$error":"#DIV/0!"},null,null,null,null,null,null,{"$error":"#DIV/0!"},null,{"$error":"#DIV/0!"},null,{"$error":"#DIV/0!"}]
["Artículo 10°.- Bono navideño.",null,null,null,{"$error":"#DIV/0!"},null,null,null,null,null,null,{"$error":"#DIV/0!"},null,{"$error":"#DIV/0!"},null,{"$error":"#DIV/0!"}]
["Artículo 11 -. Capacitación.",null,null,null,{"$error":"#DIV/0!"},null,null,null,null,null,null,{"$error":"#DIV/0!"},null,{"$error":"#DIV/0!"},null,{"$error":"#DIV/0!"}]
["Artículo 12 -. Bienestar.",null,null,null,{"$error":"#DIV/0!"},null,null,null,null,null,null,{"$error":"#DIV/0!"},null,{"$error":"#DIV/0!"},null,{"$error":"#DIV/0!"}]
["Artículo 13 -. Eventos y conmemoraciones.",null,null,null,{"$error":"#DIV/0!"},null,null,null,null,null,null,{"$error":"#DIV/0!"},null,{"$error":"#DIV/0!"},null,{"$error":"#DIV/0!"}]
["Artículo 14 -. Fondos educativos.",null,null,null,{"$error":"#DIV/0!"},null,null,null,null,null,null,{"$error":"#DIV/0!"},null,{"$error":"#DIV/0!"},null,{"$error":"#DIV/0!"}]
["Servicios Administrativos"]
["Artículo 15. Telefonía.",null,null,null,{"$f":"1-(D19/C19)","v":{"$error":"#DIV/0!"}},null,null,null,null,null,null,{"$error":"#DIV/0!"},null,{"$error":"#DIV/0!"},null,{"$error":"#DIV/0!"}]
["Artículo 16 -. Vehículos oficiales.",null,null,null,{"$error":"#DIV/0!"},null,null,null,null,null,null,{"$error":"#DIV/0!"},null,{"$error":"#DIV/0!"},null,{"$error":"#DIV/0!"}]
["Artículo 17 -. Adquisición de vehículos y maquinaria.",null,null,null,{"$error":"#DIV/0!"},null,null,null,null,null,null,{"$error":"#DIV/0!"},null,{"$error":"#DIV/0!"},null,{"$error":"#DIV/0!"}]
["Artículo 18 -. Fotocopiado, multicopiado e impresión.",null,null,null,{"$error":"#DIV/0!"},null,null,null,null,null,null,{"$error":"#DIV/0!"},null,{"$error":"#DIV/0!"},null,{"$error":"#DIV/0!"}]
["Artículo 19 -. Publicidad distrital.",null,null,null,{"$error":"#DIV/0!"},null,null,null,null,null,null,{"$error":"#DIV/0!"},null,{"$error":"#DIV/0!"},null,{"$error":"#DIV/0!"}]
["Artículo 20 -. Cajas menores.",null,null,null,{"$error":"#DIV/0!"},null,null,null,null,null,null,{"$error":"#DIV/0!"},null,{"$error":"#DIV/0!"},null,{"$error":"#DIV/0!"}]
["Artículo 21 -. Mantenimiento o reparación de bienes inmuebles o muebles.",null,null,null,{"$error":"#DIV/0!"},null,null,null,null,null,null,{"$error":"#DIV/0!"},null,{"$error":"#DIV/0!"},null,{"$error":"#DIV/0!"}]
["Artículo 22 -. Suscripciones.",null,null,null,{"$error":"#DIV/0!"},null,null,null,null,null,null,{"$error":"#DIV/0!"},null,{"$error":"#DIV/0!"},null,{"$error":"#DIV/0!"}]
["Artículo 23 -. Servicios públicos.",null,null,null,{"$error":"#DIV/0!"},null,null,null,null,null,null,{"$error":"#DIV/0!"},null,{"$error":"#DIV/0!"},null,{"$error":"#DIV/0!"}]

{"sheet":"0267-01 C. SALUD","index":78,"n_rows":27,"n_cols":16,"rows_kept":27,"cut":false,"hidden":false,"merged":[[5,10,5,11],[5,12,5,13],[5,14,5,15],[1,1,1,4],[3,0,6,0],[3,1,6,1],[3,2,4,4],[3,5,3,9],[3,10,4,15],[4,5,6,5],[4,6,6,6],[4,7,5,9],[5,3,5,4]]}
["PLAN DE AUSTERIDAD EN EL GASTO 2025-2027"]
["Entidad"," "]
["Valores en Pesos Corrientes"]
["CONCEPTO\n(Decreto 062 de 2024)","Posiciones Presupuestales Asociadas\n(Funcionamiento e Inversión)","LÍNEA BASE",null,null,"PLAN DE AUSTERIDAD EN EL GASTO 2025-2027",null,null,null,null,"SEGUIMIENTO RESULTADOS PLAN DE AUSTERIDAD 2025-2027"]
[null,null,null,null,null,"ESTRATEGIAS\n2025-2027","ACCIONES\n2025-2027","META INDICADOR DE AUSTERIDAD"]
[null,null,"AÑO 2023","AÑO 2024",null,null,null,null,null,null,"AÑO 2025",null,"AÑO 2026",null,"AÑO 2027"]
[null,null,"Valor EJECUTADO\na 31/12/2023","Valor EJECUTADO\na 31/12/2024","Resultado\nIndicador Austeridad",null,null,"AÑO 2025","AÑO 2026","AÑO 2027","Valor EJECUTADO\na 31/12/2025","Resultado\nIndicador Austeridad","Valor EJECUTADO\na 31/12/2026","Resultado\nIndicador Austeridad","Valor EJECUTADO\na 31/12/2027","Resultado\nIndicador Austeridad"]
["Servicios de personal"]
["Artículo 6°.- Reducción del gasto en CPS profesionales y de apoyo a la gestión. ","N.A.  \nSe registran totales. Corresponde con lo reportado en SIDEAP y SIVICOF",null,null,{"$f":"1-(D9/C9)","v":{"$error":"#DIV/0!"}},null,null,null,null,null,null,{"$f":"1-(K9/D9)","v":{"$error":"#DIV/0!"}},null,{"$f":"1-(M9/K9)","v":{"$error":"#DIV/0!"}},null,{"$f":"1-(O9/M9)","v":{"$error":"#DIV/0!"}}]
["Artículo 7°.- Horas extras, dominicales y festivos. ",null,null,null,{"$error":"#DIV/0!"},null,null,null,null,null,null,{"$f":"1-(K10/D10)","v":{"$error":"#DIV/0!"}},null,{"$f":"1-(M10/K10)","v":{"$error":"#DIV/0!"}},null,{"$error":"#DIV/0!"}]
["Artículo 8°.- Viáticos y gastos de viaje.",null,null,null,{"$error":"#DIV/0!"},null,null,null,null,null,null,{"$error":"#DIV/0!"},null,{"$error":"#DIV/0!"},null,{"$error":"#DIV/0!"}]
["Artículo 9°.- Compensación por vacaciones.",null,null,null,{"$error":"#DIV/0!"},null,null,null,null,null,null,{"$error":"#DIV/0!"},null,{"$error":"#DIV/0!"},null,{"$error":"#DIV/0!"}]
["Artículo 10°.- Bono navideño.",null,null,null,{"$error":"#DIV/0!"},null,null,null,null,null,null,{"$error":"#DIV/0!"},null,{"$error":"#DIV/0!"},null,{"$error":"#DIV/0!"}]
["Artículo 11 -. Capacitación.",null,null,null,{"$error":"#DIV/0!"},null,null,null,null,null,null,{"$error":"#DIV/0!"},null,{"$error":"#DIV/0!"},null,{"$error":"#DIV/0!"}]
["Artículo 12 -. Bienestar.",null,null,null,{"$error":"#DIV/0!"},null,null,null,null,null,null,{"$error":"#DIV/0!"},null,{"$error":"#DIV/0!"},null,{"$error":"#DIV/0!"}]
["Artículo 13 -. Eventos y conmemoraciones.",null,null,null,{"$error":"#DIV/0!"},null,null,null,null,null,null,{"$error":"#DIV/0!"},null,{"$error":"#DIV/0!"},null,{"$error":"#DIV/0!"}]
["Artículo 14 -. Fondos educativos.",null,null,null,{"$error":"#DIV/0!"},null,null,null,null,null,null,{"$error":"#DIV/0!"},null,{"$error":"#DIV/0!"},null,{"$error":"#DIV/0!"}]
["Servicios Administrativos"]
["Artículo 15. Telefonía.",null,null,null,{"$f":"1-(D19/C19)","v":{"$error":"#DIV/0!"}},null,null,null,null,null,null,{"$error":"#DIV/0!"},null,{"$error":"#DIV/0!"},null,{"$error":"#DIV/0!"}]
["Artículo 16 -. Vehículos oficiales.",null,null,null,{"$error":"#DIV/0!"},null,null,null,null,null,null,{"$error":"#DIV/0!"},null,{"$error":"#DIV/0!"},null,{"$error":"#DIV/0!"}]
["Artículo 17 -. Adquisición de vehículos y maquinaria.",null,null,null,{"$error":"#DIV/0!"},null,null,null,null,null,null,{"$error":"#DIV/0!"},null,{"$error":"#DIV/0!"},null,{"$error":"#DIV/0!"}]
["Artículo 18 -. Fotocopiado, multicopiado e impresión.",null,null,null,{"$error":"#DIV/0!"},null,null,null,null,null,null,{"$error":"#DIV/0!"},null,{"$error":"#DIV/0!"},null,{"$error":"#DIV/0!"}]
["Artículo 19 -. Publicidad distrital.",null,null,null,{"$error":"#DIV/0!"},null,null,null,null,null,null,{"$error":"#DIV/0!"},null,{"$error":"#DIV/0!"},null,{"$error":"#DIV/0!"}]
["Artículo 20 -. Cajas menores.",null,null,null,{"$error":"#DIV/0!"},null,null,null,null,null,null,{"$error":"#DIV/0!"},null,{"$error":"#DIV/0!"},null,{"$error":"#DIV/0!"}]
["Artículo 21 -. Mantenimiento o reparación de bienes inmuebles o muebles.",null,null,null,{"$error":"#DIV/0!"},null,null,null,null,null,null,{"$error":"#DIV/0!"},null,{"$error":"#DIV/0!"},null,{"$error":"#DIV/0!"}]
["Artículo 22 -. Suscripciones.",null,null,null,{"$error":"#DIV/0!"},null,null,null,null,null,null,{"$error":"#DIV/0!"},null,{"$error":"#DIV/0!"},null,{"$error":"#DIV/0!"}]
["Artículo 23 -. Servicios públicos.",null,null,null,{"$error":"#DIV/0!"},null,null,null,null,null,null,{"$error":"#DIV/0!"},null,{"$error":"#DIV/0!"},null,{"$error":"#DIV/0!"}]

{"sheet":"0423-01 SUBRED CENTRO","index":79,"n_rows":27,"n_cols":16,"rows_kept":27,"cut":false,"hidden":false,"merged":[[5,10,5,11],[5,12,5,13],[5,14,5,15],[1,1,1,4],[3,0,6,0],[3,1,6,1],[3,2,4,4],[3,5,3,9],[3,10,4,15],[4,5,6,5],[4,6,6,6],[4,7,5,9],[5,3,5,4]]}
["PLAN DE AUSTERIDAD EN EL GASTO 2025-2027"]
["Entidad"," "]
["Valores en Pesos Corrientes"]
["CONCEPTO\n(Decreto 062 de 2024)","Posiciones Presupuestales Asociadas\n(Funcionamiento e Inversión)","LÍNEA BASE",null,null,"PLAN DE AUSTERIDAD EN EL GASTO 2025-2027",null,null,null,null,"SEGUIMIENTO RESULTADOS PLAN DE AUSTERIDAD 2025-2027"]
[null,null,null,null,null,"ESTRATEGIAS\n2025-2027","ACCIONES\n2025-2027","META INDICADOR DE AUSTERIDAD"]
[null,null,"AÑO 2023","AÑO 2024",null,null,null,null,null,null,"AÑO 2025",null,"AÑO 2026",null,"AÑO 2027"]
[null,null,"Valor EJECUTADO\na 31/12/2023","Valor EJECUTADO\na 31/12/2024","Resultado\nIndicador Austeridad",null,null,"AÑO 2025","AÑO 2026","AÑO 2027","Valor EJECUTADO\na 31/12/2025","Resultado\nIndicador Austeridad","Valor EJECUTADO\na 31/12/2026","Resultado\nIndicador Austeridad","Valor EJECUTADO\na 31/12/2027","Resultado\nIndicador Austeridad"]
["Servicios de personal"]
["Artículo 6°.- Reducción del gasto en CPS profesionales y de apoyo a la gestión. ","N.A.  \nSe registran totales. Corresponde con lo reportado en SIDEAP y SIVICOF",null,null,{"$f":"1-(D9/C9)","v":{"$error":"#DIV/0!"}},null,null,null,null,null,null,{"$f":"1-(K9/D9)","v":{"$error":"#DIV/0!"}},null,{"$f":"1-(M9/K9)","v":{"$error":"#DIV/0!"}},null,{"$f":"1-(O9/M9)","v":{"$error":"#DIV/0!"}}]
["Artículo 7°.- Horas extras, dominicales y festivos. ",null,null,null,{"$error":"#DIV/0!"},null,null,null,null,null,null,{"$f":"1-(K10/D10)","v":{"$error":"#DIV/0!"}},null,{"$f":"1-(M10/K10)","v":{"$error":"#DIV/0!"}},null,{"$error":"#DIV/0!"}]
["Artículo 8°.- Viáticos y gastos de viaje.",null,null,null,{"$error":"#DIV/0!"},null,null,null,null,null,null,{"$error":"#DIV/0!"},null,{"$error":"#DIV/0!"},null,{"$error":"#DIV/0!"}]
["Artículo 9°.- Compensación por vacaciones.",null,null,null,{"$error":"#DIV/0!"},null,null,null,null,null,null,{"$error":"#DIV/0!"},null,{"$error":"#DIV/0!"},null,{"$error":"#DIV/0!"}]
["Artículo 10°.- Bono navideño.",null,null,null,{"$error":"#DIV/0!"},null,null,null,null,null,null,{"$error":"#DIV/0!"},null,{"$error":"#DIV/0!"},null,{"$error":"#DIV/0!"}]
["Artículo 11 -. Capacitación.",null,null,null,{"$error":"#DIV/0!"},null,null,null,null,null,null,{"$error":"#DIV/0!"},null,{"$error":"#DIV/0!"},null,{"$error":"#DIV/0!"}]
["Artículo 12 -. Bienestar.",null,null,null,{"$error":"#DIV/0!"},null,null,null,null,null,null,{"$error":"#DIV/0!"},null,{"$error":"#DIV/0!"},null,{"$error":"#DIV/0!"}]
["Artículo 13 -. Eventos y conmemoraciones.",null,null,null,{"$error":"#DIV/0!"},null,null,null,null,null,null,{"$error":"#DIV/0!"},null,{"$error":"#DIV/0!"},null,{"$error":"#DIV/0!"}]
["Artículo 14 -. Fondos educativos.",null,null,null,{"$error":"#DIV/0!"},null,null,null,null,null,null,{"$error":"#DIV/0!"},null,{"$error":"#DIV/0!"},null,{"$error":"#DIV/0!"}]
["Servicios Administrativos"]
["Artículo 15. Telefonía.",null,null,null,{"$f":"1-(D19/C19)","v":{"$error":"#DIV/0!"}},null,null,null,null,null,null,{"$error":"#DIV/0!"},null,{"$error":"#DIV/0!"},null,{"$error":"#DIV/0!"}]
["Artículo 16 -. Vehículos oficiales.",null,null,null,{"$error":"#DIV/0!"},null,null,null,null,null,null,{"$error":"#DIV/0!"},null,{"$error":"#DIV/0!"},null,{"$error":"#DIV/0!"}]
["Artículo 17 -. Adquisición de vehículos y maquinaria.",null,null,null,{"$error":"#DIV/0!"},null,null,null,null,null,null,{"$error":"#DIV/0!"},null,{"$error":"#DIV/0!"},null,{"$error":"#DIV/0!"}]
["Artículo 18 -. Fotocopiado, multicopiado e impresión.",null,null,null,{"$error":"#DIV/0!"},null,null,null,null,null,null,{"$error":"#DIV/0!"},null,{"$error":"#DIV/0!"},null,{"$error":"#DIV/0!"}]
["Artículo 19 -. Publicidad distrital.",null,null,null,{"$error":"#DIV/0!"},null,null,null,null,null,null,{"$error":"#DIV/0!"},null,{"$error":"#DIV/0!"},null,{"$error":"#DIV/0!"}]
["Artículo 20 -. Cajas menores.",null,null,null,{"$error":"#DIV/0!"},null,null,null,null,null,null,{"$error":"#DIV/0!"},null,{"$error":"#DIV/0!"},null,{"$error":"#DIV/0!"}]
["Artículo 21 -. Mantenimiento o reparación de bienes inmuebles o muebles.",null,null,null,{"$error":"#DIV/0!"},null,null,null,null,null,null,{"$error":"#DIV/0!"},null,{"$error":"#DIV/0!"},null,{"$error":"#DIV/0!"}]
["Artículo 22 -. Suscripciones.",null,null,null,{"$error":"#DIV/0!"},null,null,null,null,null,null,{"$error":"#DIV/0!"},null,{"$error":"#DIV/0!"},null,{"$error":"#DIV/0!"}]
["Artículo 23 -. Servicios públicos.",null,null,null,{"$error":"#DIV/0!"},null,null,null,null,null,null,{"$error":"#DIV/0!"},null,{"$error":"#DIV/0!"},null,{"$error":"#DIV/0!"}]

{"sheet":"0424-01 SUBRED OCCIDENTE","index":80,"n_rows":27,"n_cols":16,"rows_kept":27,"cut":false,"hidden":false,"merged":[[5,10,5,11],[5,12,5,13],[5,14,5,15],[1,1,1,4],[3,0,6,0],[3,1,6,1],[3,2,4,4],[3,5,3,9],[3,10,4,15],[4,5,6,5],[4,6,6,6],[4,7,5,9],[5,3,5,4]]}
["PLAN DE AUSTERIDAD EN EL GASTO 2025-2027"]
["Entidad"," "]
["Valores en Pesos Corrientes"]
["CONCEPTO\n(Decreto 062 de 2024)","Posiciones Presupuestales Asociadas\n(Funcionamiento e Inversión)","LÍNEA BASE",null,null,"PLAN DE AUSTERIDAD EN EL GASTO 2025-2027",null,null,null,null,"SEGUIMIENTO RESULTADOS PLAN DE AUSTERIDAD 2025-2027"]
[null,null,null,null,null,"ESTRATEGIAS\n2025-2027","ACCIONES\n2025-2027","META INDICADOR DE AUSTERIDAD"]
[null,null,"AÑO 2023","AÑO 2024",null,null,null,null,null,null,"AÑO 2025",null,"AÑO 2026",null,"AÑO 2027"]
[null,null,"Valor EJECUTADO\na 31/12/2023","Valor EJECUTADO\na 31/12/2024","Resultado\nIndicador Austeridad",null,null,"AÑO 2025","AÑO 2026","AÑO 2027","Valor EJECUTADO\na 31/12/2025","Resultado\nIndicador Austeridad","Valor EJECUTADO\na 31/12/2026","Resultado\nIndicador Austeridad","Valor EJECUTADO\na 31/12/2027","Resultado\nIndicador Austeridad"]
["Servicios de personal"]
["Artículo 6°.- Reducción del gasto en CPS profesionales y de apoyo a la gestión. ","N.A.  \nSe registran totales. Corresponde con lo reportado en SIDEAP y SIVICOF",null,null,{"$f":"1-(D9/C9)","v":{"$error":"#DIV/0!"}},null,null,null,null,null,null,{"$f":"1-(K9/D9)","v":{"$error":"#DIV/0!"}},null,{"$f":"1-(M9/K9)","v":{"$error":"#DIV/0!"}},null,{"$f":"1-(O9/M9)","v":{"$error":"#DIV/0!"}}]
["Artículo 7°.- Horas extras, dominicales y festivos. ",null,null,null,{"$error":"#DIV/0!"},null,null,null,null,null,null,{"$f":"1-(K10/D10)","v":{"$error":"#DIV/0!"}},null,{"$f":"1-(M10/K10)","v":{"$error":"#DIV/0!"}},null,{"$error":"#DIV/0!"}]
["Artículo 8°.- Viáticos y gastos de viaje.",null,null,null,{"$error":"#DIV/0!"},null,null,null,null,null,null,{"$error":"#DIV/0!"},null,{"$error":"#DIV/0!"},null,{"$error":"#DIV/0!"}]
["Artículo 9°.- Compensación por vacaciones.",null,null,null,{"$error":"#DIV/0!"},null,null,null,null,null,null,{"$error":"#DIV/0!"},null,{"$error":"#DIV/0!"},null,{"$error":"#DIV/0!"}]
["Artículo 10°.- Bono navideño.",null,null,null,{"$error":"#DIV/0!"},null,null,null,null,null,null,{"$error":"#DIV/0!"},null,{"$error":"#DIV/0!"},null,{"$error":"#DIV/0!"}]
["Artículo 11 -. Capacitación.",null,null,null,{"$error":"#DIV/0!"},null,null,null,null,null,null,{"$error":"#DIV/0!"},null,{"$error":"#DIV/0!"},null,{"$error":"#DIV/0!"}]
["Artículo 12 -. Bienestar.",null,null,null,{"$error":"#DIV/0!"},null,null,null,null,null,null,{"$error":"#DIV/0!"},null,{"$error":"#DIV/0!"},null,{"$error":"#DIV/0!"}]
["Artículo 13 -. Eventos y conmemoraciones.",null,null,null,{"$error":"#DIV/0!"},null,null,null,null,null,null,{"$error":"#DIV/0!"},null,{"$error":"#DIV/0!"},null,{"$error":"#DIV/0!"}]
["Artículo 14 -. Fondos educativos.",null,null,null,{"$error":"#DIV/0!"},null,null,null,null,null,null,{"$error":"#DIV/0!"},null,{"$error":"#DIV/0!"},null,{"$error":"#DIV/0!"}]
["Servicios Administrativos"]
["Artículo 15. Telefonía.",null,null,null,{"$f":"1-(D19/C19)","v":{"$error":"#DIV/0!"}},null,null,null,null,null,null,{"$error":"#DIV/0!"},null,{"$error":"#DIV/0!"},null,{"$error":"#DIV/0!"}]
["Artículo 16 -. Vehículos oficiales.",null,null,null,{"$error":"#DIV/0!"},null,null,null,null,null,null,{"$error":"#DIV/0!"},null,{"$error":"#DIV/0!"},null,{"$error":"#DIV/0!"}]
["Artículo 17 -. Adquisición de vehículos y maquinaria.",null,null,null,{"$error":"#DIV/0!"},null,null,null,null,null,null,{"$error":"#DIV/0!"},null,{"$error":"#DIV/0!"},null,{"$error":"#DIV/0!"}]
["Artículo 18 -. Fotocopiado, multicopiado e impresión.",null,null,null,{"$error":"#DIV/0!"},null,null,null,null,null,null,{"$error":"#DIV/0!"},null,{"$error":"#DIV/0!"},null,{"$error":"#DIV/0!"}]
["Artículo 19 -. Publicidad distrital.",null,null,null,{"$error":"#DIV/0!"},null,null,null,null,null,null,{"$error":"#DIV/0!"},null,{"$error":"#DIV/0!"},null,{"$error":"#DIV/0!"}]
["Artículo 20 -. Cajas menores.",null,null,null,{"$error":"#DIV/0!"},null,null,null,null,null,null,{"$error":"#DIV/0!"},null,{"$error":"#DIV/0!"},null,{"$error":"#DIV/0!"}]
["Artículo 21 -. Mantenimiento o reparación de bienes inmuebles o muebles.",null,null,null,{"$error":"#DIV/0!"},null,null,null,null,null,null,{"$error":"#DIV/0!"},null,{"$error":"#DIV/0!"},null,{"$error":"#DIV/0!"}]
["Artículo 22 -. Suscripciones.",null,null,null,{"$error":"#DIV/0!"},null,null,null,null,null,null,{"$error":"#DIV/0!"},null,{"$error":"#DIV/0!"},null,{"$error":"#DIV/0!"}]
["Artículo 23 -. Servicios públicos.",null,null,null,{"$error":"#DIV/0!"},null,null,null,null,null,null,{"$error":"#DIV/0!"},null,{"$error":"#DIV/0!"},null,{"$error":"#DIV/0!"}]

{"sheet":"0425-01 SUBRED SUR","index":81,"n_rows":27,"n_cols":16,"rows_kept":27,"cut":false,"hidden":false,"merged":[[5,10,5,11],[5,12,5,13],[5,14,5,15],[1,1,1,4],[3,0,6,0],[3,1,6,1],[3,2,4,4],[3,5,3,9],[3,10,4,15],[4,5,6,5],[4,6,6,6],[4,7,5,9],[5,3,5,4]]}
["PLAN DE AUSTERIDAD EN EL GASTO 2025-2027"]
["Entidad"," "]
["Valores en Pesos Corrientes"]
["CONCEPTO\n(Decreto 062 de 2024)","Posiciones Presupuestales Asociadas\n(Funcionamiento e Inversión)","LÍNEA BASE",null,null,"PLAN DE AUSTERIDAD EN EL GASTO 2025-2027",null,null,null,null,"SEGUIMIENTO RESULTADOS PLAN DE AUSTERIDAD 2025-2027"]
[null,null,null,null,null,"ESTRATEGIAS\n2025-2027","ACCIONES\n2025-2027","META INDICADOR DE AUSTERIDAD"]
[null,null,"AÑO 2023","AÑO 2024",null,null,null,null,null,null,"AÑO 2025",null,"AÑO 2026",null,"AÑO 2027"]
[null,null,"Valor EJECUTADO\na 31/12/2023","Valor EJECUTADO\na 31/12/2024","Resultado\nIndicador Austeridad",null,null,"AÑO 2025","AÑO 2026","AÑO 2027","Valor EJECUTADO\na 31/12/2025","Resultado\nIndicador Austeridad","Valor EJECUTADO\na 31/12/2026","Resultado\nIndicador Austeridad","Valor EJECUTADO\na 31/12/2027","Resultado\nIndicador Austeridad"]
["Servicios de personal"]
["Artículo 6°.- Reducción del gasto en CPS profesionales y de apoyo a la gestión. ","N.A.  \nSe registran totales. Corresponde con lo reportado en SIDEAP y SIVICOF",null,null,{"$f":"1-(D9/C9)","v":{"$error":"#DIV/0!"}},null,null,null,null,null,null,{"$f":"1-(K9/D9)","v":{"$error":"#DIV/0!"}},null,{"$f":"1-(M9/K9)","v":{"$error":"#DIV/0!"}},null,{"$f":"1-(O9/M9)","v":{"$error":"#DIV/0!"}}]
["Artículo 7°.- Horas extras, dominicales y festivos. ",null,null,null,{"$error":"#DIV/0!"},null,null,null,null,null,null,{"$f":"1-(K10/D10)","v":{"$error":"#DIV/0!"}},null,{"$f":"1-(M10/K10)","v":{"$error":"#DIV/0!"}},null,{"$error":"#DIV/0!"}]
["Artículo 8°.- Viáticos y gastos de viaje.",null,null,null,{"$error":"#DIV/0!"},null,null,null,null,null,null,{"$error":"#DIV/0!"},null,{"$error":"#DIV/0!"},null,{"$error":"#DIV/0!"}]
["Artículo 9°.- Compensación por vacaciones.",null,null,null,{"$error":"#DIV/0!"},null,null,null,null,null,null,{"$error":"#DIV/0!"},null,{"$error":"#DIV/0!"},null,{"$error":"#DIV/0!"}]
["Artículo 10°.- Bono navideño.",null,null,null,{"$error":"#DIV/0!"},null,null,null,null,null,null,{"$error":"#DIV/0!"},null,{"$error":"#DIV/0!"},null,{"$error":"#DIV/0!"}]
["Artículo 11 -. Capacitación.",null,null,null,{"$error":"#DIV/0!"},null,null,null,null,null,null,{"$error":"#DIV/0!"},null,{"$error":"#DIV/0!"},null,{"$error":"#DIV/0!"}]
["Artículo 12 -. Bienestar.",null,null,null,{"$error":"#DIV/0!"},null,null,null,null,null,null,{"$error":"#DIV/0!"},null,{"$error":"#DIV/0!"},null,{"$error":"#DIV/0!"}]
["Artículo 13 -. Eventos y conmemoraciones.",null,null,null,{"$error":"#DIV/0!"},null,null,null,null,null,null,{"$error":"#DIV/0!"},null,{"$error":"#DIV/0!"},null,{"$error":"#DIV/0!"}]
["Artículo 14 -. Fondos educativos.",null,null,null,{"$error":"#DIV/0!"},null,null,null,null,null,null,{"$error":"#DIV/0!"},null,{"$error":"#DIV/0!"},null,{"$error":"#DIV/0!"}]
["Servicios Administrativos"]
["Artículo 15. Telefonía.",null,null,null,{"$f":"1-(D19/C19)","v":{"$error":"#DIV/0!"}},null,null,null,null,null,null,{"$error":"#DIV/0!"},null,{"$error":"#DIV/0!"},null,{"$error":"#DIV/0!"}]
["Artículo 16 -. Vehículos oficiales.",null,null,null,{"$error":"#DIV/0!"},null,null,null,null,null,null,{"$error":"#DIV/0!"},null,{"$error":"#DIV/0!"},null,{"$error":"#DIV/0!"}]
["Artículo 17 -. Adquisición de vehículos y maquinaria.",null,null,null,{"$error":"#DIV/0!"},null,null,null,null,null,null,{"$error":"#DIV/0!"},null,{"$error":"#DIV/0!"},null,{"$error":"#DIV/0!"}]
["Artículo 18 -. Fotocopiado, multicopiado e impresión.",null,null,null,{"$error":"#DIV/0!"},null,null,null,null,null,null,{"$error":"#DIV/0!"},null,{"$error":"#DIV/0!"},null,{"$error":"#DIV/0!"}]
["Artículo 19 -. Publicidad distrital.",null,null,null,{"$error":"#DIV/0!"},null,null,null,null,null,null,{"$error":"#DIV/0!"},null,{"$error":"#DIV/0!"},null,{"$error":"#DIV/0!"}]
["Artículo 20 -. Cajas menores.",null,null,null,{"$error":"#DIV/0!"},null,null,null,null,null,null,{"$error":"#DIV/0!"},null,{"$error":"#DIV/0!"},null,{"$error":"#DIV/0!"}]
["Artículo 21 -. Mantenimiento o reparación de bienes inmuebles o muebles.",null,null,null,{"$error":"#DIV/0!"},null,null,null,null,null,null,{"$error":"#DIV/0!"},null,{"$error":"#DIV/0!"},null,{"$error":"#DIV/0!"}]
["Artículo 22 -. Suscripciones.",null,null,null,{"$error":"#DIV/0!"},null,null,null,null,null,null,{"$error":"#DIV/0!"},null,{"$error":"#DIV/0!"},null,{"$error":"#DIV/0!"}]
["Artículo 23 -. Servicios públicos.",null,null,null,{"$error":"#DIV/0!"},null,null,null,null,null,null,{"$error":"#DIV/0!"},null,{"$error":"#DIV/0!"},null,{"$error":"#DIV/0!"}]

{"sheet":"0426-01 SUBRED NORTE","index":82,"n_rows":27,"n_cols":16,"rows_kept":27,"cut":false,"hidden":false,"merged":[[5,10,5,11],[5,12,5,13],[5,14,5,15],[1,1,1,4],[3,0,6,0],[3,1,6,1],[3,2,4,4],[3,5,3,9],[3,10,4,15],[4,5,6,5],[4,6,6,6],[4,7,5,9],[5,3,5,4]]}
["PLAN DE AUSTERIDAD EN EL GASTO 2025-2027"]
["Entidad"," "]
["Valores en Pesos Corrientes"]
["CONCEPTO\n(Decreto 062 de 2024)","Posiciones Presupuestales Asociadas\n(Funcionamiento e Inversión)","LÍNEA BASE",null,null,"PLAN DE AUSTERIDAD EN EL GASTO 2025-2027",null,null,null,null,"SEGUIMIENTO RESULTADOS PLAN DE AUSTERIDAD 2025-2027"]
[null,null,null,null,null,"ESTRATEGIAS\n2025-2027","ACCIONES\n2025-2027","META INDICADOR DE AUSTERIDAD"]
[null,null,"AÑO 2023","AÑO 2024",null,null,null,null,null,null,"AÑO 2025",null,"AÑO 2026",null,"AÑO 2027"]
[null,null,"Valor EJECUTADO\na 31/12/2023","Valor EJECUTADO\na 31/12/2024","Resultado\nIndicador Austeridad",null,null,"AÑO 2025","AÑO 2026","AÑO 2027","Valor EJECUTADO\na 31/12/2025","Resultado\nIndicador Austeridad","Valor EJECUTADO\na 31/12/2026","Resultado\nIndicador Austeridad","Valor EJECUTADO\na 31/12/2027","Resultado\nIndicador Austeridad"]
["Servicios de personal"]
["Artículo 6°.- Reducción del gasto en CPS profesionales y de apoyo a la gestión. ","N.A.  \nSe registran totales. Corresponde con lo reportado en SIDEAP y SIVICOF",null,null,{"$f":"1-(D9/C9)","v":{"$error":"#DIV/0!"}},null,null,null,null,null,null,{"$f":"1-(K9/D9)","v":{"$error":"#DIV/0!"}},null,{"$f":"1-(M9/K9)","v":{"$error":"#DIV/0!"}},null,{"$f":"1-(O9/M9)","v":{"$error":"#DIV/0!"}}]
["Artículo 7°.- Horas extras, dominicales y festivos. ",null,null,null,{"$error":"#DIV/0!"},null,null,null,null,null,null,{"$f":"1-(K10/D10)","v":{"$error":"#DIV/0!"}},null,{"$f":"1-(M10/K10)","v":{"$error":"#DIV/0!"}},null,{"$error":"#DIV/0!"}]
["Artículo 8°.- Viáticos y gastos de viaje.",null,null,null,{"$error":"#DIV/0!"},null,null,null,null,null,null,{"$error":"#DIV/0!"},null,{"$error":"#DIV/0!"},null,{"$error":"#DIV/0!"}]
["Artículo 9°.- Compensación por vacaciones.",null,null,null,{"$error":"#DIV/0!"},null,null,null,null,null,null,{"$error":"#DIV/0!"},null,{"$error":"#DIV/0!"},null,{"$error":"#DIV/0!"}]
["Artículo 10°.- Bono navideño.",null,null,null,{"$error":"#DIV/0!"},null,null,null,null,null,null,{"$error":"#DIV/0!"},null,{"$error":"#DIV/0!"},null,{"$error":"#DIV/0!"}]
["Artículo 11 -. Capacitación.",null,null,null,{"$error":"#DIV/0!"},null,null,null,null,null,null,{"$error":"#DIV/0!"},null,{"$error":"#DIV/0!"},null,{"$error":"#DIV/0!"}]
["Artículo 12 -. Bienestar.",null,null,null,{"$error":"#DIV/0!"},null,null,null,null,null,null,{"$error":"#DIV/0!"},null,{"$error":"#DIV/0!"},null,{"$error":"#DIV/0!"}]
["Artículo 13 -. Eventos y conmemoraciones.",null,null,null,{"$error":"#DIV/0!"},null,null,null,null,null,null,{"$error":"#DIV/0!"},null,{"$error":"#DIV/0!"},null,{"$error":"#DIV/0!"}]
["Artículo 14 -. Fondos educativos.",null,null,null,{"$error":"#DIV/0!"},null,null,null,null,null,null,{"$error":"#DIV/0!"},null,{"$error":"#DIV/0!"},null,{"$error":"#DIV/0!"}]
["Servicios Administrativos"]
["Artículo 15. Telefonía.",null,null,null,{"$f":"1-(D19/C19)","v":{"$error":"#DIV/0!"}},null,null,null,null,null,null,{"$error":"#DIV/0!"},null,{"$error":"#DIV/0!"},null,{"$error":"#DIV/0!"}]
["Artículo 16 -. Vehículos oficiales.",null,null,null,{"$error":"#DIV/0!"},null,null,null,null,null,null,{"$error":"#DIV/0!"},null,{"$error":"#DIV/0!"},null,{"$error":"#DIV/0!"}]
["Artículo 17 -. Adquisición de vehículos y maquinaria.",null,null,null,{"$error":"#DIV/0!"},null,null,null,null,null,null,{"$error":"#DIV/0!"},null,{"$error":"#DIV/0!"},null,{"$error":"#DIV/0!"}]
["Artículo 18 -. Fotocopiado, multicopiado e impresión.",null,null,null,{"$error":"#DIV/0!"},null,null,null,null,null,null,{"$error":"#DIV/0!"},null,{"$error":"#DIV/0!"},null,{"$error":"#DIV/0!"}]
["Artículo 19 -. Publicidad distrital.",null,null,null,{"$error":"#DIV/0!"},null,null,null,null,null,null,{"$error":"#DIV/0!"},null,{"$error":"#DIV/0!"},null,{"$error":"#DIV/0!"}]
["Artículo 20 -. Cajas menores.",null,null,null,{"$error":"#DIV/0!"},null,null,null,null,null,null,{"$error":"#DIV/0!"},null,{"$error":"#DIV/0!"},null,{"$error":"#DIV/0!"}]
["Artículo 21 -. Mantenimiento o reparación de bienes inmuebles o muebles.",null,null,null,{"$error":"#DIV/0!"},null,null,null,null,null,null,{"$error":"#DIV/0!"},null,{"$error":"#DIV/0!"},null,{"$error":"#DIV/0!"}]
["Artículo 22 -. Suscripciones.",null,null,null,{"$error":"#DIV/0!"},null,null,null,null,null,null,{"$error":"#DIV/0!"},null,{"$error":"#DIV/0!"},null,{"$error":"#DIV/0!"}]
["Artículo 23 -. Servicios públicos.",null,null,null,{"$error":"#DIV/0!"},null,null,null,null,null,null,{"$error":"#DIV/0!"},null,{"$error":"#DIV/0!"},null,{"$error":"#DIV/0!"}]

{"sheet":"0501-01 ATENEA","index":83,"n_rows":27,"n_cols":16,"rows_kept":27,"cut":false,"hidden":false,"merged":[[5,10,5,11],[5,12,5,13],[5,14,5,15],[1,1,1,4],[3,0,6,0],[3,1,6,1],[3,2,4,4],[3,5,3,9],[3,10,4,15],[4,5,6,5],[4,6,6,6],[4,7,5,9],[5,3,5,4]]}
["PLAN DE AUSTERIDAD EN EL GASTO 2025-2027"]
["Entidad"," "]
["Valores en Pesos Corrientes"]
["CONCEPTO\n(Decreto 062 de 2024)","Posiciones Presupuestales Asociadas\n(Funcionamiento e Inversión)","LÍNEA BASE",null,null,"PLAN DE AUSTERIDAD EN EL GASTO 2025-2027",null,null,null,null,"SEGUIMIENTO RESULTADOS PLAN DE AUSTERIDAD 2025-2027"]
[null,null,null,null,null,"ESTRATEGIAS\n2025-2027","ACCIONES\n2025-2027","META INDICADOR DE AUSTERIDAD"]
[null,null,"AÑO 2023","AÑO 2024",null,null,null,null,null,null,"AÑO 2025",null,"AÑO 2026",null,"AÑO 2027"]
[null,null,"Valor EJECUTADO\na 31/12/2023","Valor EJECUTADO\na 31/12/2024","Resultado\nIndicador Austeridad",null,null,"AÑO 2025","AÑO 2026","AÑO 2027","Valor EJECUTADO\na 31/12/2025","Resultado\nIndicador Austeridad","Valor EJECUTADO\na 31/12/2026","Resultado\nIndicador Austeridad","Valor EJECUTADO\na 31/12/2027","Resultado\nIndicador Austeridad"]
["Servicios de personal"]
["Artículo 6°.- Reducción del gasto en CPS profesionales y de apoyo a la gestión. ","N.A.  \nSe registran totales. Corresponde con lo reportado en SIDEAP y SIVICOF",null,null,{"$f":"1-(D9/C9)","v":{"$error":"#DIV/0!"}},null,null,null,null,null,null,{"$f":"1-(K9/D9)","v":{"$error":"#DIV/0!"}},null,{"$f":"1-(M9/K9)","v":{"$error":"#DIV/0!"}},null,{"$f":"1-(O9/M9)","v":{"$error":"#DIV/0!"}}]
["Artículo 7°.- Horas extras, dominicales y festivos. ",null,null,null,{"$error":"#DIV/0!"},null,null,null,null,null,null,{"$f":"1-(K10/D10)","v":{"$error":"#DIV/0!"}},null,{"$f":"1-(M10/K10)","v":{"$error":"#DIV/0!"}},null,{"$error":"#DIV/0!"}]
["Artículo 8°.- Viáticos y gastos de viaje.",null,null,null,{"$error":"#DIV/0!"},null,null,null,null,null,null,{"$error":"#DIV/0!"},null,{"$error":"#DIV/0!"},null,{"$error":"#DIV/0!"}]
["Artículo 9°.- Compensación por vacaciones.",null,null,null,{"$error":"#DIV/0!"},null,null,null,null,null,null,{"$error":"#DIV/0!"},null,{"$error":"#DIV/0!"},null,{"$error":"#DIV/0!"}]
["Artículo 10°.- Bono navideño.",null,null,null,{"$error":"#DIV/0!"},null,null,null,null,null,null,{"$error":"#DIV/0!"},null,{"$error":"#DIV/0!"},null,{"$error":"#DIV/0!"}]
["Artículo 11 -. Capacitación.",null,null,null,{"$error":"#DIV/0!"},null,null,null,null,null,null,{"$error":"#DIV/0!"},null,{"$error":"#DIV/0!"},null,{"$error":"#DIV/0!"}]
["Artículo 12 -. Bienestar.",null,null,null,{"$error":"#DIV/0!"},null,null,null,null,null,null,{"$error":"#DIV/0!"},null,{"$error":"#DIV/0!"},null,{"$error":"#DIV/0!"}]
["Artículo 13 -. Eventos y conmemoraciones.",null,null,null,{"$error":"#DIV/0!"},null,null,null,null,null,null,{"$error":"#DIV/0!"},null,{"$error":"#DIV/0!"},null,{"$error":"#DIV/0!"}]
["Artículo 14 -. Fondos educativos.",null,null,null,{"$error":"#DIV/0!"},null,null,null,null,null,null,{"$error":"#DIV/0!"},null,{"$error":"#DIV/0!"},null,{"$error":"#DIV/0!"}]
["Servicios Administrativos"]
["Artículo 15. Telefonía.",null,null,null,{"$f":"1-(D19/C19)","v":{"$error":"#DIV/0!"}},null,null,null,null,null,null,{"$error":"#DIV/0!"},null,{"$error":"#DIV/0!"},null,{"$error":"#DIV/0!"}]
["Artículo 16 -. Vehículos oficiales.",null,null,null,{"$error":"#DIV/0!"},null,null,null,null,null,null,{"$error":"#DIV/0!"},null,{"$error":"#DIV/0!"},null,{"$error":"#DIV/0!"}]
["Artículo 17 -. Adquisición de vehículos y maquinaria.",null,null,null,{"$error":"#DIV/0!"},null,null,null,null,null,null,{"$error":"#DIV/0!"},null,{"$error":"#DIV/0!"},null,{"$error":"#DIV/0!"}]
["Artículo 18 -. Fotocopiado, multicopiado e impresión.",null,null,null,{"$error":"#DIV/0!"},null,null,null,null,null,null,{"$error":"#DIV/0!"},null,{"$error":"#DIV/0!"},null,{"$error":"#DIV/0!"}]
["Artículo 19 -. Publicidad distrital.",null,null,null,{"$error":"#DIV/0!"},null,null,null,null,null,null,{"$error":"#DIV/0!"},null,{"$error":"#DIV/0!"},null,{"$error":"#DIV/0!"}]
["Artículo 20 -. Cajas menores.",null,null,null,{"$error":"#DIV/0!"},null,null,null,null,null,null,{"$error":"#DIV/0!"},null,{"$error":"#DIV/0!"},null,{"$error":"#DIV/0!"}]
["Artículo 21 -. Mantenimiento o reparación de bienes inmuebles o muebles.",null,null,null,{"$error":"#DIV/0!"},null,null,null,null,null,null,{"$error":"#DIV/0!"},null,{"$error":"#DIV/0!"},null,{"$error":"#DIV/0!"}]
["Artículo 22 -. Suscripciones.",null,null,null,{"$error":"#DIV/0!"},null,null,null,null,null,null,{"$error":"#DIV/0!"},null,{"$error":"#DIV/0!"},null,{"$error":"#DIV/0!"}]
["Artículo 23 -. Servicios públicos.",null,null,null,{"$error":"#DIV/0!"},null,null,null,null,null,null,{"$error":"#DIV/0!"},null,{"$error":"#DIV/0!"},null,{"$error":"#DIV/0!"}]

{"sheet":"Fondos de Desarrollo Local","index":84,"n_rows":26,"n_cols":11,"rows_kept":26,"cut":false,"hidden":false,"merged":[]}
[]
[]
[]
[]
[]
[]
[]
[]
[]
[]
[]
[]
[]
[]
[]
[]
[]
[null,null,null,null,"0001-01 USAQUEN",null,"0006-01 TUNJUELITO",null,"0011-01 SUBA",null,"0016-01 P. ARANDA"]
[]
[null,null,null,null,"0002-01 CHAPINERO",null,"0007-01 BOSA",null,"0012-01 BARRIOS UNI",null,"0017-01 CANDELARIA"]
[]
[null,null,null,null,"0003-01 SANTAFE",null,"0008-01 KENNEDY",null,"0013-01 TEUSAQUILLO",null,"0018-01 R. URIBE"]
[]
[null,null,null,null,"0004-01 SAN CRISTOBAL",null,"0009-01 FONTIBON",null,"0014-01 MARTIREZ",null,"0019-01 C. BOLIVAR"]
[]
[null,null,null,null,"0005-01 USME",null,"0010-01 ENGATIVA",null,"0015-01 A. NARIÑO",null,"0020-01 SUMAPAZ"]

{"sheet":"Administración Central","index":85,"n_rows":27,"n_cols":13,"rows_kept":27,"cut":false,"hidden":false,"merged":[]}
[]
[]
[]
[]
[]
[]
[]
[]
[]
[]
[]
[]
[]
[]
[]
[]
[null,null,null,null,"0100-01 CONCEJO",null,"0111-01 SDH",null,"0113-01 SDM",null,"0119-01 SDCRD",null,"0126-01 SDA"]
[]
[null,null,null,null,"0102-01 PERSONERIA",null,"0111-02 SDH",null,"0113-02 SDM",null,"0120-01 SDP",null,"0127-01 DADEP"]
[]
[null,null,null,null,"0104-01 SECRETARÍA GENERAL",null,"0111-03 SDH",null,"0114-01 SDS",null,"0121-01 SDM",null,"0131-01 UAECOB"]
[]
[null,null,null,null,"0105-01 VEEDURIA",null,"0111-04 SDH",null,"0117-01 SDDE",null,"0122-01 SDIS",null,"0136-01 SJD"]
[]
[null,null,null,null,"0110-01 SDG",null,"0112-01 SDE",null,"0118-01 SDHT",null,"0125-01 DASCD",null,"0137-01 SDSCJ"]
[]
[null,null,null,null,"0137-02 SDSCJ"]

{"sheet":"Establecimientos Públicos","index":86,"n_rows":25,"n_cols":13,"rows_kept":25,"cut":false,"hidden":false,"merged":[]}
[]
[]
[]
[]
[]
[]
[]
[]
[]
[]
[]
[]
[]
[]
[]
[]
[null,null,null,null,"0200-01 IPES",null,"0206-02 FONCEP",null,"0215-01 FUGA",null,"0221-01 IDT",null,"0228-01 UAESP"]
[]
[null,null,null,null,"0201-01 FFDS",null,"0208-01 CVP",null,"0216-01 OFB",null,"0221-02 IDT",null,"0229-01 IDPYBA"]
[]
[null,null,null,null,"0203-01 IDIGER",null,"0211-01 IDRD",null,"0218-01 JB",null,"0222-01 IDARTES",null,"0230-01 UD"]
[]
[null,null,null,null,"0204-01 IDU",null,"0213-01 IDPC",null,"0219-01 IDEP",null,"0226-01 UAECD",null,"0227-01 UAERMV"]
[]
[null,null,null,null,"0206-01 FONCEP",null,"0214-01 IDIPRON",null,"0220-01 IDPAC",null,"0501-01 ATENEA"]

{"sheet":"EICD","index":87,"n_rows":23,"n_cols":9,"rows_kept":23,"cut":false,"hidden":false,"merged":[]}
[]
[]
[]
[]
[]
[]
[]
[]
[]
[]
[]
[]
[]
[]
[]
[]
[null,null,null,null,null,null,"0240-01 LOTERIA ",null,"0264-01 AB ESP"]
[]
[null,null,null,null,null,null,"0260-01 CANAL CAPITAL",null,"0265-01 EAAB"]
[]
[null,null,null,null,null,null,"0262-01 TRANSMILENIO",null,"0266-01 EMB"]
[]
[null,null,null,null,null,null,"0263-01 ERU",null,"0267-01 C. SALUD"]

{"sheet":"ESES","index":88,"n_rows":19,"n_cols":9,"rows_kept":19,"cut":false,"hidden":false,"merged":[]}
[]
[]
[]
[]
[]
[]
[]
[]
[]
[]
[]
[]
[]
[]
[]
[]
[null,null,null,null,null,null,"0423-01 SUBRED CENTRO",null,"0425-01 SUBRED SUR"]
[]
[null,null,null,null,null,null,"0424-01 SUBRED OCCIDENTE",null,"0426-01 SUBRED NORTE"]